Workbook

Sheet Summary
B3: Architecture Diagnostic Report (ADR)
B4: Report Period: 12/02/2011
B6: Issue Summary | I6: Severity Summary
B7: Percentages | F7: All Issues by Severity | I7: Percentages
F8: Severity | G8: Count
F9: Critical | G9: =I143 -> 14200
F10: Warning | G10: =I262 -> 9584
F11: Info | G11: =I381 -> 5318
F12: Total Issues | G12: =SUM(G9:G11) -> 29102
F19: URL Summary
F20: Type | G20: # of URLs
F21: Issues | G21: ='Report Data'!L8 -> 5720
F22: Non-issues | G22: ='Report Data'!L9 -> 6
F23: Total URLs Crawled | G23: =SUM(G21:G22) -> 5726
B25: Issue Breakdown by Severity
B26: Critical
B42: CRITICAL | C42: Tab Names | D42: Long Desc | I42: Issue Count | J42: Critical % | K42: Total Issue %
C43: Appended Parameters | D43: URLs found with appended parameters | I43: 3308 | J43: =I43/$I$143 -> 0.2329577465 | K43: =IF($G$12<>0,I43/$G$12,0) -> 0.1136691636
C44: Duplicate H1 Tags | D44: Pages found with duplicate H1 tags | I44: 2731 | J44: =I44/$I$143 -> 0.1923239437 | K44: =IF($G$12<>0,I44/$G$12,0) -> 0.0938423476
C45: Duplicate Meta Description | D45: Pages found with duplicate meta description tags | I45: 2085 | J45: =I45/$I$143 -> 0.1468309859 | K45: =IF($G$12<>0,I45/$G$12,0) -> 0.07164456051
C46: Duplicate Title Tags | D46: Pages found with duplicate title tags | I46: 1866 | J46: =I46/$I$143 -> 0.1314084507 | K46: =IF($G$12<>0,I46/$G$12,0) -> 0.06411930452
C47: URL Special Characters | D47: URLs found with special characters (see cell comment for additional details) | I47: 1532 | J47: =I47/$I$143 -> 0.1078873239 | K47: =IF($G$12<>0,I47/$G$12,0) -> 0.05264243007
C48: Multiple H1 Tags | D48: Pages found with multiple H1 tags | I48: 1272 | J48: =I48/$I$143 -> 0.08957746479 | K48: =IF($G$12<>0,I48/$G$12,0) -> 0.0437083362
C49: Short Meta Descriptions | D49: Pages found with meta description tag shorter than 125 characters | I49: 481 | J49: =I49/$I$143 -> 0.03387323944 | K49: =IF($G$12<>0,I49/$G$12,0) -> 0.01652807367
C50: Missing Meta Description | D50: Pages found missing a meta description tag | I50: 278 | J50: =I50/$I$143 -> 0.01957746479 | K50: =IF($G$12<>0,I50/$G$12,0) -> 0.009552608068
C51: Multiple Title Tags | D51: Pages found with multiple title tags | I51: 255 | J51: =I51/$I$143 -> 0.01795774648 | K51: =IF($G$12<>0,I51/$G$12,0) -> 0.008762284379
C52: Missing H1 Tag | D52: Pages found missing an H1 tag | I52: 119 | J52: =I52/$I$143 -> 0.00838028169 | K52: =IF($G$12<>0,I52/$G$12,0) -> 0.004089066044
C53: Long Title Tags | D53: Pages found with title tags longer than 150 characters | I53: 87 | J53: =I53/$I$143 -> 0.006126760563 | K53: =IF($G$12<>0,I53/$G$12,0) -> 0.002989485259
C54: 404s | D54: Page Error found - Page Not Found - 404 Response Code | I54: 52 | J54: =I54/$I$143 -> 0.003661971831 | K54: =IF($G$12<>0,I54/$G$12,0) -> 0.001786818775
C55: Multiple Meta Description | D55: Pages found with multiple meta description tags | I55: 48 | J55: =I55/$I$143 -> 0.00338028169 | K55: =IF($G$12<>0,I55/$G$12,0) -> 0.001649371177
C56: Large ViewState Code | D56: Pages found with more than 1000 characters of viewstate code | I56: 33 | J56: =I56/$I$143 -> 0.002323943662 | K56: =IF($G$12<>0,I56/$G$12,0) -> 0.001133942684
C57: Embedded Scripts | D57: Pages found with more than 50,000 characters of embedded script code | I57: 20 | J57: =I57/$I$143 -> 0.001408450704 | K57: =IF($G$12<>0,I57/$G$12,0) -> 0.0006872379905
C58: Long Meta Keywords | D58: Pages found with meta keywords longer than 500 characters | I58: 13 | J58: =I58/$I$143 -> 0.0009154929577 | K58: =IF($G$12<>0,I58/$G$12,0) -> 0.0004467046938
C59: Large Page Size | D59: Pages found larger than 250k | I59: 13 | J59: =I59/$I$143 -> 0.0009154929577 | K59: =IF($G$12<>0,I59/$G$12,0) -> 0.0004467046938
C60: Long Meta Descriptions | D60: Pages found with meta descriptions longer than 400 characters | I60: 3 | J60: =I60/$I$143 -> 0.0002112676056 | K60: =IF($G$12<>0,I60/$G$12,0) -> 0.0001030856986
C61: Excessive Table Use | D61: Pages found coded with more than 100 HTML tables | I61: 3 | J61: =I61/$I$143 -> 0.0002112676056 | K61: =IF($G$12<>0,I61/$G$12,0) -> 0.0001030856986
C62: Missing Title Tags | D62: Pages found missing a title tag | I62: 1 | J62: =I62/$I$143 -> 7.042253521e-05 | K62: =IF($G$12<>0,I62/$G$12,0) -> 3.436189953e-05
C63: 0 | J63: =I63/$I$143 ->  | K63: =IF($G$12<>0,I63/$G$12,0) -> 
C64: 0
C65: 0
C66: 0
C67: 0
C68: 0
C69: 0
C70: 0
C71: 0
C72: 0
C73: 0
C74: 0
C75: 0
C76: 0
C77: 0
C78: 0
C79: 0
C80: 0
C81: 0
C82: 0
C83: 0
C84: 0
C85: 0
C86: 0
C87: 0
C88: 0
C89: 0
C90: 0
C91: 0
C92: 0
C93: 0
C94: 0
C95: 0
C96: 0
C97: 0
C98: 0
C99: 0
C100: 0
C101: 0
C102: 0
C103: 0
C104: 0
C105: 0
C106: 0
C107: 0
C108: 0 | J108: =I108/$I$143 ->  | K108: =IF($G$12<>0,I108/$G$12,0) -> 
C109: 0
C110: 0
C111: 0
C112: 0
C113: 0
C114: 0
C115: 0
C116: 0
C117: 0
C118: 0
C119: 0
C120: 0
C121: 0
C122: 0
C123: 0
C124: 0
C125: 0
C126: 0
C127: 0
C128: 0
C129: 0
C130: 0
C131: 0
C132: 0
C133: 0
C134: 0
C135: 0
C136: 0
C137: 0
C138: 0
C139: 0
C140: 0
C141: 0
C142: 0
I143: =SUM(I43:I62) -> 14200 | J143: =IFERROR(I143/$I$143,0) -> 1 | K143: =IFERROR(IF($G$12<>0,I143/$G$12,0),0) -> 0.4879389733
B145: Warning
E147: =SUM(E53:E66) -> 0
B161: WARNING | C161: Tab Names | D161: Long Desc | I161: Issue Count | J161: Warning % | K161: Total Issue %
C162: URL Capitalization | D162: URLs found with capital lettering | I162: 4814 | J162: =I162/$I$262 -> 0.5022954925 | K162: =IF($G$12<>0,I162/$G$12,0) -> 0.1654181843
C163: Missing Meta Keywords | D163: Pages found missing a meta keyword tag | I163: 3950 | J163: =I163/$I$262 -> 0.4121452421 | K163: =IF($G$12<>0,I163/$G$12,0) -> 0.1357295031
C164: Deep Directory Depth | D164: URLs found more than three directories deep | I164: 377 | J164: =I164/$I$262 -> 0.03933639399 | K164: =IF($G$12<>0,I164/$G$12,0) -> 0.01295443612
C165: Duplicate Meta Keywords | D165: Pages found with duplicate meta keyword tags | I165: 332 | J165: =I165/$I$262 -> 0.03464106845 | K165: =IF($G$12<>0,I165/$G$12,0) -> 0.01140815064
C166: 302s | D166: Redirect Found - Temporary - 302 Response Code | I166: 63 | J166: =I166/$I$262 -> 0.00657345576 | K166: =IF($G$12<>0,I166/$G$12,0) -> 0.00216479967
C167: Multiple Meta Keywords | D167: Pages found with multiple meta keyword tags | I167: 40 | J167: =I167/$I$262 -> 0.004173622705 | K167: =IF($G$12<>0,I167/$G$12,0) -> 0.001374475981
C168: Short Title Tags | D168: Pages found with title tag shorter than 20 characters | I168: 8 | J168: =I168/$I$262 -> 0.0008347245409 | K168: =IF($G$12<>0,I168/$G$12,0) -> 0.0002748951962
C169: 0 | J169: =I169/$I$262 ->  | K169: =IF($G$12<>0,I169/$G$12,0) -> 
C170: 0
C171: 0
C172: 0
C173: 0
C174: 0
C175: 0
C176: 0
C177: 0
C178: 0
C179: 0
C180: 0
C181: 0
C182: 0
C183: 0
C184: 0
C185: 0
C186: 0
C187: 0
C188: 0
C189: 0
C190: 0
C191: 0
C192: 0
C193: 0
C194: 0
C195: 0
C196: 0
C197: 0
C198: 0
C199: 0
C200: 0
C201: 0
C202: 0
C203: 0
C204: 0
C205: 0
C206: 0
C207: 0
C208: 0
C209: 0
C210: 0
C211: 0
C212: 0
C213: 0
C214: 0
C215: 0
C216: 0
C217: 0
C218: 0
C219: 0
C220: 0
C221: 0
C222: 0
C223: 0
C224: 0
C225: 0
C226: 0
C227: 0 | K227: =IF($G$12<>0,I227/$G$12,0) -> 
C228: 0
C229: 0
C230: 0
C231: 0
C232: 0 | J232: =I232/$I$262 -> 
C233: 0
C234: 0
C235: 0
C236: 0
C237: 0
C238: 0
C239: 0
C240: 0
... 126 more rows

Sheet URL Appended Parameters
B3: Appended Parameters
B5: URLs found with appended parameters
B6: Total Count: 3308
B8: Issue Severity: Critical
B9: URL | C9: Appended Parameter Count
B10: http://jobsuche.monster.de/AdvancedSearch.aspx?occ=559.11729&occ=559.11865&occ=559.11866&occ=559.11749&occ=559.11883&occ=559.11921&occ=559.11912&occ=559.11790&HPS=4_5C3_Suche_Naturwissenschaftliche | C10: 9
B11: http://jobsuche.monster.de/AdvancedSearch.aspx?occ=5.11759&occ=5.11751&occ=5.11777&occ=5.11918&occ=5.14870&occ=5.11943&occ=5.11902&sf=18.813&stct=Berlin | C11: 9
B12: http://jobsuche.monster.de/AdvancedSearch.aspx?occ=2.11802&occ=2.11797&occ=2.11770&occ=2.11942&occ=2.14874&occ=2.11888&occ=2.11713&occ=2.11958&occ=2.11894 | C12: 9
B13: http://jobsuche.monster.de/AdvancedSearch.aspx?occ=13.11810&occ=13.11831&occ=13.11822&occ=13.11811&occ=13.11947&occ=13.11816&occ=13.12007&occ=13.11901&HPS=4_5C3_Suche_Hotel | C13: 9
B14: http://jobsuche.monster.de/AdvancedSearch.aspx?occ=5.11759&occ=5.11751&occ=5.11777&occ=5.11918&occ=5.14870&occ=5.11943&occ=5.11902&pg=4 | C14: 8
B15: http://jobsuche.monster.de/AdvancedSearch.aspx?occ=5.11759&occ=5.11751&occ=5.11777&occ=5.11918&occ=5.14870&occ=5.11943&occ=5.11902&pg=3 | C15: 8
B16: http://jobsuche.monster.de/AdvancedSearch.aspx?occ=555.11805&occ=555.11974&occ=555.11926&occ=555.11961&occ=555.11914&occ=555.11762&occ=555.11879&HPS=4_5C3_Suche_Sicherheit | C16: 8
B17: http://jobsuche.monster.de/AdvancedSearch.aspx?occ=559.11729&occ=559.11865&occ=559.11866&occ=559.11749&occ=559.11883&occ=559.11921&occ=559.11912&occ=559.11790 | C17: 8
B18: http://jobsuche.monster.de/AdvancedSearch.aspx?occ=5.11759&occ=5.11751&occ=5.11777&occ=5.11918&occ=5.14870&occ=5.11943&occ=5.11902&HPS=4_5C3_Suche_Personalwesen | C18: 8
B19: http://jobsuche.monster.de/AdvancedSearch.aspx?occ=5.11759&occ=5.11751&occ=5.11777&occ=5.11918&occ=5.14870&occ=5.11943&occ=5.11902&pg=1 | C19: 8
B20: http://jobsuche.monster.de/AdvancedSearch.aspx?occ=5.11759&occ=5.11751&occ=5.11777&occ=5.11918&occ=5.14870&occ=5.11943&occ=5.11902&pg=2 | C20: 8
B21: http://jobsuche.monster.de/AdvancedSearch.aspx?occ=13.11810&occ=13.11831&occ=13.11822&occ=13.11811&occ=13.11947&occ=13.11816&occ=13.12007&occ=13.11901 | C21: 8
B22: http://jobsuche.monster.de/AdvancedSearch.aspx?occ=5.11759&occ=5.11751&occ=5.11777&occ=5.11918&occ=5.14870&occ=5.11943&occ=5.11902&pg=5 | C22: 8
B23: http://jobsuche.monster.de/AdvancedSearch.aspx?occ=5623.11778&occ=5623.11850&occ=5623.11781&occ=5623.11899&occ=5623.11992&sf=18.817&stct=Rheinland%2dPfalz | C23: 7
B24: http://jobsuche.monster.de/AdvancedSearch.aspx?occ=5.11759&occ=5.11751&occ=5.11777&occ=5.11918&occ=5.14870&occ=5.11943&occ=5.11902 | C24: 7
B25: http://jobsuche.monster.de/AdvancedSearch.aspx?occ=9008.11794&occ=9008.11848&occ=9008.11934&occ=9008.11935&occ=9008.11910&sf=18.826&stct=Sachsen%2dAnhalt | C25: 7
B26: http://jobsuche.monster.de/AdvancedSearch.aspx?occ=7.11852&occ=7.11916&occ=7.11917&occ=7.11905&occ=7.11983&occ=7.11722&sf=23 | C26: 7
B27: http://jobsuche.monster.de/AdvancedSearch.aspx?occ=7.11852&occ=7.11916&occ=7.11917&occ=7.11905&occ=7.11983&occ=7.11722&HPS=4_5C3_Suche_Recht | C27: 7
B28: http://jobsuche.monster.de/AdvancedSearch.aspx?occ=5623.11778&occ=5623.11850&occ=5623.11781&occ=5623.11899&occ=5623.11992&sf=18.823&stct=Mecklenburg%2dVorpommern | C28: 7
B29: http://jobsuche.monster.de/AdvancedSearch.aspx?occ=5623.11778&occ=5623.11850&occ=5623.11781&occ=5623.11899&occ=5623.11992&HPS=4_5C3_Suche_Redaktion | C29: 6
B30: http://jobsuche.monster.de/AdvancedSearch.aspx?occ=9008.11794&occ=9008.11848&occ=9008.11934&occ=9008.11935&occ=9008.11910&HPS=4_5C3_Suche_Projektmanagement | C30: 6
B31: http://jobsuche.monster.de/AdvancedSearch.aspx?occ=7.11852&occ=7.11916&occ=7.11917&occ=7.11905&occ=7.11983&occ=7.11722 | C31: 6
B32: http://jobsuche.monster.de/AdvancedSearch.aspx?occ=9008.11794&occ=9008.11848&occ=9008.11934&occ=9008.11935&occ=9008.11910 | C32: 5
B33: http://jobsuche.monster.de/AdvancedSearch.aspx?occ=11.12008&occ=11.11741&occ=11.11892&sf=18.815&stct=Hessen | C33: 5
B34: http://jobsuche.monster.de/AdvancedSearch.aspx?occ=5623.11778&occ=5623.11850&occ=5623.11781&occ=5623.11899&occ=5623.11992 | C34: 5
B35: http://forum.monster.de/n/pfx/forum.aspx?tsn=1&nav=messages&webtag=mstforum30&tid=118 | C35: 4
B36: http://forum.monster.de/n/pfx/forum.aspx?tsn=1&nav=messages&webtag=mstforum40&tid=327 | C36: 4
B37: http://forum.monster.de/n/pfx/forum.aspx?tsn=1&nav=messages&webtag=mstforum40&tid=338 | C37: 4
B38: http://forum.monster.de/n/pfx/forum.aspx?tsn=1&nav=messages&webtag=mstforum50&tid=94 | C38: 4
B39: http://forum.monster.de/n/pfx/forum.aspx?tsn=1&nav=messages&webtag=mstforum50&tid=107 | C39: 4
B40: http://jobsuche.monster.de/AdvancedSearch.aspx?occ=11.12008&occ=11.11741&occ=11.11892&pg=6 | C40: 4
B41: http://mein.monster.de/JobFile/JobFile.aspx?jobid=103914005&action=ADD&fjs=1&jobtitle=.NET+Developer+-+Contract-based | C41: 4
B42: http://forum.monster.de/n/pfx/forum.aspx?tsn=5&nav=messages&webtag=mstforum50&tid=86 | C42: 4
B43: http://forum.monster.de/n/pfx/forum.aspx?tsn=1&nav=messages&webtag=mstforum50&tid=83 | C43: 4
B44: http://jobsuche.monster.de/AdvancedSearch.aspx?occ=11.12008&occ=11.11741&occ=11.11892&HPS=4_5C3_Suche_Sonstige | C44: 4
B45: http://forum.monster.de/n/pfx/forum.aspx?tsn=4&nav=messages&webtag=mstforum40&tid=344 | C45: 4
B46: http://forum.monster.de/n/pfx/forum.aspx?tsn=1&nav=messages&webtag=mstforum50&tid=118 | C46: 4
B47: http://mein.monster.de/JobFile/JobFile.aspx?jobid=102309634&action=ADD&fjs=1&jobtitle=Account+Manager+Innendienst+(m%2fw) | C47: 4
B48: http://forum.monster.de/n/pfx/forum.aspx?tsn=1&nav=messages&webtag=exp99482&tid=1 | C48: 4
B49: http://forum.monster.de/n/pfx/profile.aspx?webtag=mstforum40&userId=1881054893&ptpw=y | C49: 3
B50: http://forum.monster.de/n/pfx/forum.aspx?nav=myforums&webtag=exp99482&mode=subscriptions | C50: 3
B51: http://jobsuche.monster.de/AdvancedSearch.aspx?indid=43&sf=18.820&stct=Bayern | C51: 3
B52: http://jobsuche.monster.de/AdvancedSearch.aspx?indid=4&sf=18.826&stct=Sachsen%2dAnhalt | C52: 3
B53: http://forum.monster.de/n/pfx/profile.aspx?webtag=mstforum40&userId=1892558899&ptpw=y | C53: 3
B54: http://forum.monster.de/n/pfx/profile.aspx?webtag=mstforum30&userId=1893597676&ptpw=y | C54: 3
B55: http://forum.monster.de/n/pfx/profile.aspx?webtag=mstforum30&userId=1888615451&ptpw=y | C55: 3
B56: http://forum.monster.de/n/pfx/profile.aspx?webtag=mstforum30&userId=1887458185&ptpw=y | C56: 3
B57: http://jobsuche.monster.de/Durchsuchen/?pg=6&sf=20&pcn=2 | C57: 3
B58: http://jobsuche.monster.de/AdvancedSearch.aspx?indid=48&sf=18.820&stct=Bayern | C58: 3
B59: http://jobsuche.monster.de/AdvancedSearch.aspx?indid=3&sf=18.824&stct=Nordrhein%2dWestfalen | C59: 3
B60: http://jobsuche.monster.de/Durchsuchen/?pg=10&sf=19&pjt=1 | C60: 3
B61: http://jobsuche.monster.de/?tm=Letzten-7-Tage&pg=6&sf=23 | C61: 3
B62: http://forum.monster.de/n/pfx/profile.aspx?webtag=mstforum50&userId=1873974946&ptpw=y | C62: 3
B63: http://jobsuche.monster.de/AdvancedSearch.aspx?occ=1.11712&occ=1.11730&occ=1.14868&occ=1.11760&occ=1.11711&occ=1.11804&occ=1.11803&occ=1.11817&occ=1.14875&occ=1.11750&occ=1.11843&occ=1.11766&occ=1.11952&occ=1.11893&occ=1.11981&occ=1.11982&occ=1.11927&occ=1.11960&occ=1.11724&sf=18.816&stct=Niedersachsen | C63: 21
B64: http://jobsuche.monster.de/AdvancedSearch.aspx?occ=1.11712&occ=1.11730&occ=1.14868&occ=1.11760&occ=1.11711&occ=1.11804&occ=1.11803&occ=1.11817&occ=1.14875&occ=1.11750&occ=1.11843&occ=1.11766&occ=1.11952&occ=1.11893&occ=1.11981&occ=1.11982&occ=1.11927&occ=1.11960&occ=1.11724&HPS=4_5C3_Suche_Rechnungswesen | C64: 20
B65: http://jobsuche.monster.de/AdvancedSearch.aspx?occ=1.11712&occ=1.11730&occ=1.14868&occ=1.11760&occ=1.11711&occ=1.11804&occ=1.11803&occ=1.11817&occ=1.14875&occ=1.11750&occ=1.11843&occ=1.11766&occ=1.11952&occ=1.11893&occ=1.11981&occ=1.11982&occ=1.11927&occ=1.11960&occ=1.11724&sf=21 | C65: 20
B66: https://login.monster.de/?ch=DEGE&r=http%3A%2F%2Fjobsuche.monster.de%2fRaumpfleger%2fJobs-erhalten-5.aspx | C66: 2
B67: https://login.monster.de/?ch=DEGE&r=http%3A%2F%2Fjobsuche.monster.de%2fRechnungswesen-Finanzen_4%3fHPS%3d4_5C3_Suche_Rechnungswesen | C67: 2
B68: https://login.monster.de/?ch=DEGE&r=http%3A%2F%2Fjobsuche.monster.de%2fRechnungswesen-Finanzen_4%3fsf%3d10 | C68: 2
B69: https://login.monster.de/?ch=DEGE&r=http%3A%2F%2Fjobsuche.monster.de%2fRechnungswesen-Finanzen_4%3fsf%3d14 | C69: 2
B70: https://login.monster.de/?ch=DEGE&r=http%3A%2F%2Fjobsuche.monster.de%2fRecht_4%3fHPS%3d4_5C3_Suche_Recht | C70: 2
B71: https://login.monster.de/?ch=DEGE&r=http%3A%2F%2Fjobsuche.monster.de%2fRedaktion-Dokumentation_4%3fHPS%3d4_5C3_Suche_Redaktion | C71: 2
B72: https://login.monster.de/?ch=DEGE&r=http%3A%2F%2Fjobsuche.monster.de%2fRheinland-Pfalz%2bIT-Informationstechnologie_14%3fsf%3d18.817 | C72: 2
B73: https://login.monster.de/?ch=DEGE&r=http%3A%2F%2Fjobsuche.monster.de%2fRheinland-Pfalz%2bIngenieurdienstleistungen_13%3fsf%3d18.817 | C73: 2
B74: https://login.monster.de/?ch=DEGE&r=http%3A%2F%2Fjobsuche.monster.de%2fRochus-Mummert-Management-Search-GmbH_6%3fre%3d106 | C74: 2
B75: https://login.monster.de/?ch=DEGE&r=http%3A%2F%2Fjobsuche.monster.de%2fSaarland%2bVermietung-Leasing_13%3fsf%3d18.825 | C75: 2
B76: https://login.monster.de/?ch=DEGE&r=http%3A%2F%2Fjobsuche.monster.de%2fSachsen%2bAdministration-Sachbearbeitung_14%3fsf%3d18.818 | C76: 2
B77: https://login.monster.de/?ch=DEGE&r=http%3A%2F%2Fjobsuche.monster.de%2fSchifffahrt_3%3fpg%3d5 | C77: 2
B78: https://login.monster.de/?ch=DEGE&r=http%3A%2F%2Fjobsuche.monster.de%2fSchifffahrt_3%3fsf%3d13 | C78: 2
B79: https://login.monster.de/?ch=DEGE&r=http%3A%2F%2Fjobsuche.monster.de%2fSicherheit-Zivilschutz_4%3fHPS%3d4_5C3_Suche_Sicherheit | C79: 2
B80: https://login.monster.de/?ch=DEGE&r=http%3A%2F%2Fjobsuche.monster.de%2fSoftware__2dEntwickler-__28m__2fw__29_5%3fsf%3d19 | C80: 2
B81: https://login.monster.de/?ch=DEGE&r=http%3A%2F%2Fjobsuche.monster.de%2fTagesmutter%2fJobs-erhalten-5.aspx | C81: 2
B82: https://login.monster.de/?ch=DEGE&r=http%3A%2F%2Fjobsuche.monster.de%2fVermietung-Leasing_3%3fsf%3d23 | C82: 2
B83: https://login.monster.de/?ch=DEGE&r=http%3A%2F%2Fjobsuche.monster.de%2fVertrieb-Verkauf_4%3fHPS%3d4_5C3_Suche_Vertrieb | C83: 2
B84: https://login.monster.de/?ch=DEGE&r=http%3A%2F%2Fjobsuche.monster.de%2fVertrieb-Verkauf_4%3fpg%3d10 | C84: 2
B85: https://login.monster.de/?ch=DEGE&r=http%3A%2F%2Fjobsuche.monster.de%2fVertrieb-Verkauf_4%3fpg%3d3 | C85: 2
B86: https://login.monster.de/?ch=DEGE&r=http%3A%2F%2Fjobsuche.monster.de%2fadministration-sachbearbeitung_4 | C86: 2
B87: https://login.monster.de/?ch=DEGE&r=http%3A%2F%2Fjobsuche.monster.de%2fanlagen-maschinenbau_3 | C87: 2
B88: https://login.monster.de/?ch=DEGE&r=http%3A%2F%2Fjobsuche.monster.de%2faus-und-weiterbildung_4 | C88: 2
B89: https://login.monster.de/?ch=DEGE&r=http%3A%2F%2Fjobsuche.monster.de%2fbau-baustoffhandel_3 | C89: 2
B90: https://login.monster.de/?ch=DEGE&r=http%3A%2F%2Fjobsuche.monster.de%2fcustomer-service-kundenbetreuung_4 | C90: 2
B91: https://login.monster.de/?ch=DEGE&r=http%3A%2F%2Fjobsuche.monster.de%2fdesign-und-gestaltung_4 | C91: 2
B92: https://login.monster.de/?ch=DEGE&r=http%3A%2F%2Fjobsuche.monster.de%2fdruckereien_3 | C92: 2
B93: https://login.monster.de/?ch=DEGE&r=http%3A%2F%2Fjobsuche.monster.de%2feinzelhandel_3 | C93: 2
B94: https://login.monster.de/?ch=DEGE&r=http%3A%2F%2Fjobsuche.monster.de%2fenergie-wasserversorgung_3 | C94: 2
B95: https://login.monster.de/?ch=DEGE&r=http%3A%2F%2Fjobsuche.monster.de%2fhandwerk_4 | C95: 2
B96: https://login.monster.de/?ch=DEGE&r=http%3A%2F%2Fjobsuche.monster.de%2fhaushaltsdienstleistungen_3 | C96: 2
B97: https://login.monster.de/?ch=DEGE&r=http%3A%2F%2Fjobsuche.monster.de%2fhotel-und-gastronomie_4 | C97: 2
B98: https://login.monster.de/?ch=DEGE&r=http%3A%2F%2Fjobsuche.monster.de%2fingenieurdienstleistungen_3 | C98: 2
B99: https://login.monster.de/?ch=DEGE&r=http%3A%2F%2Fjobsuche.monster.de%2fingenieurwesen-entwicklung-und-konstruktion_4 | C99: 2
B100: https://login.monster.de/?ch=DEGE&r=http%3A%2F%2Fjobsuche.monster.de%2finstandhaltung_4 | C100: 2
B101: https://login.monster.de/?ch=DEGE&r=http%3A%2F%2Fjobsuche.monster.de%2fit-informationstechnologie_4 | C101: 2
B102: https://login.monster.de/?ch=DEGE&r=http%3A%2F%2Fjobsuche.monster.de%2fit-software-systeme-design_3 | C102: 2
B103: https://login.monster.de/?ch=DEGE&r=http%3A%2F%2Fjobsuche.monster.de%2fland-forstwirtschaft-fischerei_3 | C103: 2
B104: https://login.monster.de/?ch=DEGE&r=http%3A%2F%2Fjobsuche.monster.de%2flogistik-und-transport_4 | C104: 2
B105: https://login.monster.de/?ch=DEGE&r=http%3A%2F%2Fjobsuche.monster.de%2fmarketing_4 | C105: 2
B106: https://login.monster.de/?ch=DEGE&r=http%3A%2F%2Fjobsuche.monster.de%2fmedizin-und-gesundheit_4 | C106: 2
B107: https://login.monster.de/?ch=DEGE&r=http%3A%2F%2Fjobsuche.monster.de%2fnaturwissenschaftliche-forschung_4 | C107: 2
B108: https://login.monster.de/?ch=DEGE&r=http%3A%2F%2Fjobsuche.monster.de%2fpersonalwesen_4 | C108: 2
B109: https://login.monster.de/?ch=DEGE&r=http%3A%2F%2Fjobsuche.monster.de%2fproduktion%2f_4 | C109: 2
B110: https://login.monster.de/?ch=DEGE&r=http%3A%2F%2Fjobsuche.monster.de%2fprojektmanagement_4 | C110: 2
B111: https://login.monster.de/?ch=DEGE&r=http%3A%2F%2Fjobsuche.monster.de%2frechnungswesen-finanzen_4 | C111: 2
B112: https://login.monster.de/?ch=DEGE&r=http%3A%2F%2Fjobsuche.monster.de%2frecht_4 | C112: 2
B113: https://login.monster.de/?ch=DEGE&r=http%3A%2F%2Fjobsuche.monster.de%2fredaktion-dokumentation_4 | C113: 2
B114: https://login.monster.de/?ch=DEGE&r=http%3A%2F%2Fjobsuche.monster.de%2frundfunk-musik-film_3 | C114: 2
B115: https://login.monster.de/?ch=DEGE&r=http%3A%2F%2Fjobsuche.monster.de%2fschifffahrt_3 | C115: 2
B116: https://login.monster.de/?ch=DEGE&r=http%3A%2F%2Fjobsuche.monster.de%2fsonstige-Berufe_4%3fHPS%3d4_5C3_Suche_Sonstige | C116: 2
B117: https://login.monster.de/?ch=DEGE&r=http%3A%2F%2Fjobsuche.monster.de%2fsport-erholung_3 | C117: 2
B118: https://login.monster.de/?ch=DEGE&r=http%3A%2F%2Fjobsuche.monster.de%2ftextil-leder-bekleidung_3 | C118: 2
B119: https://login.monster.de/?ch=DEGE&r=http%3A%2F%2Fjobsuche.monster.de%2fvermietung-leasing_3 | C119: 2
B120: https://login.monster.de/?ch=DEGE&r=http%3A%2F%2Fjobsuche.monster.de%2fvertrieb-verkauf_4 | C120: 2
B121: https://login.monster.de/?r=http%3A%2F%2Fdatenschutz.monster.de%2F&ch=DEGE | C121: 2
B122: https://login.monster.de/?r=http%3A%2F%2Fhome.monster.de%2F&ch=DEGE | C122: 2
B123: https://login.monster.de/?r=http%3A%2F%2Fjobs.monster.de%2F&ch=DEGE | C123: 2
B124: https://login.monster.de/?r=http%3A%2F%2Fjobsuche.monster.de%2F&ch=DEGE | C124: 2
B125: https://login.monster.de/?r=http%3A%2F%2Fkarriere-beratung.monster.de%2F&ch=DEGE | C125: 2
B126: https://login.monster.de/?r=http%3A%2F%2Fkarriere-journal.monster.de%2F&ch=DEGE | C126: 2
B127: https://login.monster.de/?r=http%3A%2F%2Flebenslauf.monster.de%2F&ch=DEGE | C127: 2
B128: https://login.monster.de/?r=http%3A%2F%2Flogin.monster.de%2F&ch=DEGE | C128: 2
B129: https://login.monster.de/?r=http%3A%2F%2Fmein.monster.de%2F&ch=DEGE | C129: 2
B130: https://login.monster.de/?r=http%3A%2F%2Funternehmen.monster.de%2F&ch=DEGE | C130: 2
B131: https://login.monster.de/?r=http%3A%2F%2Funternehmen.monster.de%2fprofile%2fmonster-worldwide-deutschland.aspx%3ffollow%3d1&ch=DEGE | C131: 2
B132: https://login.monster.de/?r=http%3A%2F%2Funternehmen.monster.de%2fprofile%2fsalzgitter-ag.aspx%3ffollow%3d1&ch=DEGE | C132: 2
B133: http://jobsuche.monster.de/Rechnungswesen-Finanzen_4?pg=4&sf=21 | C133: 2
B134: http://jobsuche.monster.de/Medizin-und-Gesundheit_4?pg=6&sf=22 | C134: 2
B135: http://jobsuche.monster.de/Adecco-Personaldienstleistungen-GmbH__2c-Industrial_6?pg=2&sf=20 | C135: 2
B136: http://jobsuche.monster.de/Brunel-GmbH_6?pg=3&sf=20 | C136: 2
B137: http://jobsuche.monster.de/Bayern+MAN-Diesel-__26-Turbo-SE_16?sf=18.820&re=106 | C137: 2
B138: http://jobsuche.monster.de/Business-Development-Manager-__28m__2fw__29_5?pg=4&sf=19 | C138: 2
B139: http://jobsuche.monster.de/Sachsen-Anhalt+IT-Informationstechnologie_14?sf=18.826&pcnme=4 | C139: 2
B140: http://jobsuche.monster.de/AdvancedSearch.aspx?indid=78&pg=6 | C140: 2
B141: http://jobsuche.monster.de/AdvancedSearch.aspx?indid=78&sf=22 | C141: 2
B142: http://jobsuche.monster.de/Bayern+Medizin-und-Gesundheit_14?pg=7&sf=18.820 | C142: 2
B143: http://jobsuche.monster.de/Michael-Page-International-__28Deutschland__29-GmbH_6?pg=4&sf=20 | C143: 2
B144: http://jobsuche.monster.de/Sachsen-Anhalt+Ingenieurdienstleistungen_13?sf=18.826&pcnme=3 | C144: 2
B145: http://jobsuche.monster.de/Sachsen-Anhalt+Ingenieurwesen-Entwicklung-und-Konstruktion_14?pg=1&sf=18.826 | C145: 2
B146: http://jobsuche.monster.de/Adecco-Personaldienstleistungen-GmbH__2c-Office_6?pg=3&sf=20 | C146: 2
B147: http://jobsuche.monster.de/IT-Informationstechnologie_4?pg=7&sf=14 | C147: 2
B148: http://jobsuche.monster.de/Hamburg+Anlagen-Maschinenbau_13?pg=10&sf=18.822 | C148: 2
B149: http://jobsuche.monster.de/IT-Informationstechnologie_4?pg=8&sf=19 | C149: 2
B150: http://jobsuche.monster.de/AdvancedSearch.aspx?indid=79&pg=6 | C150: 2
B151: http://jobsuche.monster.de/IT-Informationstechnologie_4?pg=9&sf=23 | C151: 2
B152: http://jobsuche.monster.de/Recht_4?pg=5&sf=23 | C152: 2
B153: http://jobsuche.monster.de/AdvancedSearch.aspx?indid=79&sf=22 | C153: 2
B154: http://jobsuche.monster.de/AdvancedSearch.aspx?indid=83&sf=20 | C154: 2
B155: http://jobsuche.monster.de/Recht_4?pg=8&sf=23 | C155: 2
B156: http://jobsuche.monster.de/Aushilfe-M__2fw_5?pg=5&sf=19 | C156: 2
B157: http://jobsuche.monster.de/Naturwissenschaftliche-Forschung_4?pg=3&sf=22 | C157: 2
B158: http://jobsuche.monster.de/Sachsen-Anhalt+Naturwissenschaftliche-Forschung_14?sf=18.826&pcnme=2 | C158: 2
B159: http://jobsuche.monster.de/Hamburg+Bau-Baustoffhandel_13?sf=18.822&pcnme=1 | C159: 2
B160: http://jobsuche.monster.de/Sachsen-Anhalt+Produktion_14?sf=18.826&pcnme=2 | C160: 2
B161: http://jobsuche.monster.de/IT-Informationstechnologie_4?tm=Heute&sf=23 | C161: 2
B162: http://jobsuche.monster.de/AutoVision-GmbH_6?pg=3&sf=20 | C162: 2
B163: http://jobsuche.monster.de/IT-Software-Systeme-Design_3?pg=1&sf=13 | C163: 2
B164: http://jobsuche.monster.de/Sachsen-Anhalt+Rechnungswesen-Finanzen_14?pg=4&sf=18.826 | C164: 2
B165: http://jobsuche.monster.de/Customer-Service-Kundenbetreuung_4?pg=2&sf=20 | C165: 2
B166: http://jobsuche.monster.de/Naturwissenschaftliche-Forschung_4?sf=20&pcn=1 | C166: 2
B167: http://jobsuche.monster.de/Customer-Service-Kundenbetreuung_4?pg=6&sf=22 | C167: 2
B168: http://jobsuche.monster.de/Naturwissenschaftliche-Forschung_4?tm=Gestern&sf=23 | C168: 2
B169: http://jobsuche.monster.de/Sachsen-Anhalt+Vertrieb-Verkauf_14?pg=6&sf=18.826 | C169: 2
B170: http://jobsuche.monster.de/Redaktion-Dokumentation_4?pg=3&sf=22 | C170: 2
B171: http://jobsuche.monster.de/Brandenburg+Customer-Service-Kundenbetreuung_14?pg=4&sf=18.821 | C171: 2
B172: http://jobsuche.monster.de/IT-Software-Systeme-Design_3?pg=9&sf=19 | C172: 2
B173: http://jobsuche.monster.de/Customer-Service-Kundenbetreuung_4?pg=9&sf=20 | C173: 2
B174: http://jobsuche.monster.de/Bayern+Redaktion-Dokumentation_14?pg=10&sf=18.820 | C174: 2
B175: http://jobsuche.monster.de/Niedersachsen+Anlagen-Maschinenbau_13?pg=1&sf=18.816 | C175: 2
B176: http://jobsuche.monster.de/Sachsen_1?sf=18.818&pcnme=9 | C176: 2
B177: http://jobsuche.monster.de/Niedersachsen+Aus-und-Weiterbildung_14?pg=4&sf=18.816 | C177: 2
B178: http://jobsuche.monster.de/Hamburg+Customer-Service-Kundenbetreuung_14?pg=5&sf=18.822 | C178: 2
B179: http://jobsuche.monster.de/Bayern+Sport-Erholung_13?pg=1&sf=18.820 | C179: 2
B180: http://jobsuche.monster.de/Redaktion-Dokumentation_4?tm=Letzten-7-Tage&sf=23 | C180: 2
B181: http://jobsuche.monster.de/Schifffahrt_3?pg=2&sf=22 | C181: 2
B182: http://jobsuche.monster.de/Infineon-Technologies-AG_6?pg=6&re=106 | C182: 2
B183: http://jobsuche.monster.de/Infineon-Technologies-AG_6?sf=22&re=106 | C183: 2
B184: http://jobsuche.monster.de/Infineon-Technologies-AG_6?sf=23&re=106 | C184: 2
B185: http://jobsuche.monster.de/Schifffahrt_3?pg=7&sf=10 | C185: 2
B186: http://jobsuche.monster.de/Bayern+Textil-Leder-Bekleidung_13?pg=10&sf=18.820 | C186: 2
B187: http://jobsuche.monster.de/Ingenieurdienstleistungen_3?pg=1&sf=21 | C187: 2
B188: http://jobsuche.monster.de/Hamburg+Dr__2e-Heimeier-__26-Partner_16?sf=18.822&re=106 | C188: 2
B189: http://jobsuche.monster.de/Rheinland-Pfalz+Administration-Sachbearbeitung_14?sf=18.817&pcnme=2 | C189: 2
B190: http://jobsuche.monster.de/Bayern+Vermietung-Leasing_13?pg=1&sf=18.820 | C190: 2
B191: http://jobsuche.monster.de/Baden-Württemberg+Gassner-Professionals-__26-Resources_16?sf=18.812&re=106 | C191: 2
B192: http://jobsuche.monster.de/Ingenieurdienstleistungen_3?pg=3&sf=14 | C192: 2
B193: http://jobsuche.monster.de/Schifffahrt_3?tm=Gestern&sf=23 | C193: 2
B194: http://jobsuche.monster.de/Hamburg+Einzelhandel_13?pg=9&sf=18.822 | C194: 2
B195: http://jobsuche.monster.de/Ingenieurdienstleistungen_3?pg=4&sf=14 | C195: 2
B196: http://jobsuche.monster.de/Daimler-AG_6?pg=9&sf=20 | C196: 2
B197: http://jobsuche.monster.de/Schleswig-Holstein+Administration-Sachbearbeitung_14?sf=18.819&pcnme=1 | C197: 2
B198: http://jobsuche.monster.de/Hamburg+Energie-Wasserversorgung_13?pg=10&sf=18.822 | C198: 2
B199: http://jobsuche.monster.de/Hamburg+Energie-Wasserversorgung_13?pg=6&sf=18.822 | C199: 2
B200: http://jobsuche.monster.de/Schleswig-Holstein+Aus-und-Weiterbildung_14?pg=4&sf=18.819 | C200: 2
B201: http://jobsuche.monster.de/Baden-Württemberg+Hanseatisches-Personalkontor_16?sf=18.812&re=106 | C201: 2
B202: http://jobsuche.monster.de/Niedersachsen+Customer-Service-Kundenbetreuung_14?sf=18.816&pcnme=2 | C202: 2
B203: http://jobsuche.monster.de/Deloitte-__26-Touche-GmbH_6?pg=5&re=106 | C203: 2
B204: http://jobsuche.monster.de/Bayern_1?pg=3&sf=18.820 | C204: 2
... 3113 more rows

Sheet Duplicate H1 Tags
B3: Duplicate H1 Tags
B5: Pages found with duplicate H1 tags
B6: Total Count: 2731
B8: Issue Severity: Critical
B9: URL | C9: Duplicate
B10: http://arbeitgeber.monster.de/produkte/stellenanzeigen.aspx | C10: Expressanzeige
B11: http://arbeitgeber.monster.de/produkte/stellenanzeigen.aspx?WT.mc_n=SeekerDoormapExpress | C11: Expressanzeige
B12: http://arbeitgeber.monster.de/online-recruiting/solution-15.aspx?WT.mc_n=SeekerDoormapWhyMonster | C12: Warum Monster?
B13: http://arbeitgeber.monster.de/online-recruiting/solution-15.aspx | C13: Warum Monster?
B14: http://arbeitgeber.monster.de/hr/personal-tipps/personalmanagement/arbeitsrecht.aspx | C14: Personalmanagement
B15: http://arbeitgeber.monster.de/hr/personal-tipps/personalmanagement/vergutung.aspx | C15: Personalmanagement
B16: http://arbeitgeber.monster.de/produkte/mitarbeiter-lebenslauf-suche.aspx | C16: Lebenslaufdatenbank
B17: http://arbeitgeber.monster.de/produkte/mitarbeiter-lebenslauf-suche.aspx?WT.mc_n=SeekerDoormapCVDB | C17: Lebenslaufdatenbank
B18: http://mein.monster.de/Terms/Default.aspx | C18: Nutzungsbedingungen
B19: http://mein.monster.de/terms/default.aspx | C19: Nutzungsbedingungen
B20: http://mein.monster.de/terms/ | C20: Nutzungsbedingungen
B21: http://arbeitgeber.monster.de/online-recruiting/aktuelles.aspx | C21: AKTUELLES VON MONSTER
B22: http://arbeitgeber.monster.de/online-recruiting/aktuelles.aspx?WT.mc_n=News_prospect | C22: AKTUELLES VON MONSTER
B23: http://unternehmen.monster.de/durchsuchen-T-unternehmen-seite-1.aspx | C23: Ergebnisse durchsuchen
B24: http://unternehmen.monster.de/durchsuchen-unternehmen-seite-1.aspx | C24: Ergebnisse durchsuchen
B25: http://arbeitgeber.monster.de/hr/personal-tipps/rekrutierung-verguetung/bewerberauswahl.aspx | C25: Rekrutierung & Vergütung
B26: http://arbeitgeber.monster.de/hr/personal-tipps/rekrutierung-verguetung/bewerberauswahl.aspx?pg=2 | C26: Rekrutierung & Vergütung
B27: http://mein.monster.de/Karriere-Tools/Landing.aspx | C27: --||TSA||--No Career Paths
B28: http://mein.monster.de/Karriere-Portraits/GetProfile.aspx | C28: --||TSA||--No Career Paths
B29: http://mein.monster.de/Karriere-Portraits/Browse.aspx | C29: --||TSA||--No Career Paths
B30: http://stellenanzeige.monster.de/IT-Supporter-m-w-Job-Frankfurt-Hessen-Deutschland-97530502.aspx | C30: IT-Supporter (m/w)--||TSA||--
B31: http://stellenanzeige.monster.de/IT-Supporter-m-w-Job-Frankfurt-am-Main-Hessen-Deutschland-104154489.aspx | C31: IT-Supporter (m/w)--||TSA||--
B32: http://stellenanzeige.monster.de/Marketing-Manager-in-Print-bei-unserem-Tochterunternehmen-myToys-de-Job-Berlin-Deutschland-104222173.aspx | C32: Karriere machen. Zeichen setzen.
B33: http://stellenanzeige.monster.de/Praktikant-in-in-den-Bereichen-der-Neuen-Medien-Job-Hamburg-Deutschland-100658388.aspx | C33: Karriere machen. Zeichen setzen.
B34: http://stellenanzeige.monster.de/Technical-Writer-Technischer-Redakteur-m-w-bei-unserem-Tochterunternehmen-Otto-Software-E-Job-Hamburg-Deutschland-104223135.aspx | C34: Karriere machen. Zeichen setzen.
B35: http://stellenanzeige.monster.de/Bilanzbuchhalter-m-w-Job-Berlin-Deutschland-100673535.aspx | C35: Bilanzbuchhalter (m/w)--||TSA||--
B36: http://stellenanzeige.monster.de/Bilanzbuchhalter-m-w-Job-Bad-Lauterberg-Niedersachsen-Deutschland-102378917.aspx | C36: Bilanzbuchhalter (m/w)--||TSA||--
B37: http://stellenanzeige.monster.de/Sicherheitsmitarbeiter-m-w-Job-Frankfurt-am-Main-oder-Berlin-Deutschland-104191933.aspx | C37: Sicherheitsmitarbeiter (m/w)--||TSA||--
B38: http://stellenanzeige.monster.de/Sicherheitsmitarbeiter-m-w-Job-Frankfurt-Hessen-Deutschland-103966436.aspx | C38: Sicherheitsmitarbeiter (m/w)--||TSA||--
B39: https://login.monster.de/?ch=DEGE&r=http%3A%2F%2Fjobsuche.monster.de%2fit-informationstechnologie_4 | C39: Ihr Benutzerkonto--||TSA||--Passwort vergessen
B40: https://login.monster.de/?ch=DEGE&r=http%3A%2F%2Fjobsuche.monster.de%2fit-software-systeme-design_3 | C40: Ihr Benutzerkonto--||TSA||--Passwort vergessen
B41: https://login.monster.de/?ch=DEGE&r=http%3A%2F%2Fjobsuche.monster.de%2fland-forstwirtschaft-fischerei_3 | C41: Ihr Benutzerkonto--||TSA||--Passwort vergessen
B42: https://login.monster.de/?ch=DEGE&r=http%3A%2F%2Fjobsuche.monster.de%2flogistik-und-transport_4 | C42: Ihr Benutzerkonto--||TSA||--Passwort vergessen
B43: https://login.monster.de/?ch=DEGE&r=http%3A%2F%2Fjobsuche.monster.de%2fmarketing_4 | C43: Ihr Benutzerkonto--||TSA||--Passwort vergessen
B44: https://login.monster.de/?ch=DEGE&r=http%3A%2F%2Fjobsuche.monster.de%2fmedizin-und-gesundheit_4 | C44: Ihr Benutzerkonto--||TSA||--Passwort vergessen
B45: https://login.monster.de/?ch=DEGE&r=http%3A%2F%2Fjobsuche.monster.de%2fnaturwissenschaftliche-forschung_4 | C45: Ihr Benutzerkonto--||TSA||--Passwort vergessen
B46: https://login.monster.de/?ch=DEGE&r=http%3A%2F%2Fjobsuche.monster.de%2fpersonalwesen_4 | C46: Ihr Benutzerkonto--||TSA||--Passwort vergessen
B47: https://login.monster.de/?r=http%3A%2F%2Funternehmen.monster.de%2fprofile%2fsalzgitter-ag.aspx%3ffollow%3d1&ch=DEGE | C47: Ihr Benutzerkonto--||TSA||--Passwort vergessen
B48: https://login.monster.de/?r=http%3A%2F%2Funternehmen.monster.de%2fprofile%2fmonster-worldwide-deutschland.aspx%3ffollow%3d1&ch=DEGE | C48: Ihr Benutzerkonto--||TSA||--Passwort vergessen
B49: https://login.monster.de/?r=http%3A%2F%2Funternehmen.monster.de%2F&ch=DEGE | C49: Ihr Benutzerkonto--||TSA||--Passwort vergessen
B50: https://login.monster.de/?r=http%3A%2F%2Fmein.monster.de%2F&ch=DEGE | C50: Ihr Benutzerkonto--||TSA||--Passwort vergessen
B51: https://login.monster.de/?r=http%3A%2F%2Flogin.monster.de%2F&ch=DEGE | C51: Ihr Benutzerkonto--||TSA||--Passwort vergessen
B52: https://login.monster.de/?r=http%3A%2F%2Flebenslauf.monster.de%2F&ch=DEGE | C52: Ihr Benutzerkonto--||TSA||--Passwort vergessen
B53: https://login.monster.de/?r=http%3A%2F%2Fkarriere-journal.monster.de%2F&ch=DEGE | C53: Ihr Benutzerkonto--||TSA||--Passwort vergessen
B54: https://login.monster.de/?r=http%3A%2F%2Fkarriere-beratung.monster.de%2F&ch=DEGE | C54: Ihr Benutzerkonto--||TSA||--Passwort vergessen
B55: https://login.monster.de/?r=http%3A%2F%2Fjobsuche.monster.de%2F&ch=DEGE | C55: Ihr Benutzerkonto--||TSA||--Passwort vergessen
B56: https://login.monster.de/?r=http%3A%2F%2Fjobs.monster.de%2F&ch=DEGE | C56: Ihr Benutzerkonto--||TSA||--Passwort vergessen
B57: https://login.monster.de/?r=http%3A%2F%2Fhome.monster.de%2F&ch=DEGE | C57: Ihr Benutzerkonto--||TSA||--Passwort vergessen
B58: https://login.monster.de/?r=http%3A%2F%2Fdatenschutz.monster.de%2F&ch=DEGE | C58: Ihr Benutzerkonto--||TSA||--Passwort vergessen
B59: https://login.monster.de/?ch=DEGE&r=http%3A%2F%2Fjobsuche.monster.de%2fvertrieb-verkauf_4 | C59: Ihr Benutzerkonto--||TSA||--Passwort vergessen
B60: https://login.monster.de/?ch=DEGE&r=http%3A%2F%2Fjobsuche.monster.de%2fvermietung-leasing_3 | C60: Ihr Benutzerkonto--||TSA||--Passwort vergessen
B61: https://login.monster.de/?ch=DEGE&r=http%3A%2F%2Fjobsuche.monster.de%2ftextil-leder-bekleidung_3 | C61: Ihr Benutzerkonto--||TSA||--Passwort vergessen
B62: https://login.monster.de/?ch=DEGE&r=http%3A%2F%2Fjobsuche.monster.de%2fsport-erholung_3 | C62: Ihr Benutzerkonto--||TSA||--Passwort vergessen
B63: https://login.monster.de/?ch=DEGE&r=http%3A%2F%2Fjobsuche.monster.de%2fsonstige-Berufe_4%3fHPS%3d4_5C3_Suche_Sonstige | C63: Ihr Benutzerkonto--||TSA||--Passwort vergessen
B64: https://login.monster.de/?ch=DEGE&r=http%3A%2F%2Fjobsuche.monster.de%2fschifffahrt_3 | C64: Ihr Benutzerkonto--||TSA||--Passwort vergessen
B65: https://login.monster.de/?ch=DEGE&r=http%3A%2F%2Fjobsuche.monster.de%2frundfunk-musik-film_3 | C65: Ihr Benutzerkonto--||TSA||--Passwort vergessen
B66: https://login.monster.de/?ch=DEGE&r=http%3A%2F%2Fjobsuche.monster.de%2fredaktion-dokumentation_4 | C66: Ihr Benutzerkonto--||TSA||--Passwort vergessen
B67: https://login.monster.de/?ch=DEGE&r=http%3A%2F%2Fjobsuche.monster.de%2frecht_4 | C67: Ihr Benutzerkonto--||TSA||--Passwort vergessen
B68: https://login.monster.de/?ch=DEGE&r=http%3A%2F%2Fjobsuche.monster.de%2frechnungswesen-finanzen_4 | C68: Ihr Benutzerkonto--||TSA||--Passwort vergessen
B69: https://login.monster.de/?ch=DEGE&r=http%3A%2F%2Fjobsuche.monster.de%2fprojektmanagement_4 | C69: Ihr Benutzerkonto--||TSA||--Passwort vergessen
B70: https://login.monster.de/?ch=DEGE&r=http%3A%2F%2Fjobsuche.monster.de%2fproduktion%2f_4 | C70: Ihr Benutzerkonto--||TSA||--Passwort vergessen
B71: https://login.monster.de/?r=http%3A%2F%2Fwww.monster.de%2F&ch=DEGE | C71: Ihr Benutzerkonto--||TSA||--Passwort vergessen
B72: https://login.monster.de/?ch=DEGE&r=http%3A%2F%2Fjobsuche.monster.de%2f%3ftm%3dSeit-3-Tagen%26sf%3d23 | C72: Ihr Benutzerkonto--||TSA||--Passwort vergessen
B73: https://login.monster.de/?ch=DEGE&r=http%3A%2F%2Fjobsuche.monster.de%2fAdministration-Sachbearbeitung_4%3fHPS%3d4_5C3_Suche_Administration | C73: Ihr Benutzerkonto--||TSA||--Passwort vergessen
B74: https://login.monster.de/?ch=DEGE&r=http%3A%2F%2Fjobsuche.monster.de%2fAdministration-Sachbearbeitung_4%3fsf%3d22 | C74: Ihr Benutzerkonto--||TSA||--Passwort vergessen
B75: https://login.monster.de/?ch=DEGE&r=http%3A%2F%2Fjobsuche.monster.de%2fAnlagen-Maschinenbau_3%3fpg%3d8 | C75: Ihr Benutzerkonto--||TSA||--Passwort vergessen
B76: https://login.monster.de/?ch=DEGE&r=http%3A%2F%2Fjobsuche.monster.de%2fAus-und-Weiterbildung_4%3fHPS%3d4_5C3_Suche_Ausbildung | C76: Ihr Benutzerkonto--||TSA||--Passwort vergessen
B77: https://login.monster.de/?ch=DEGE&r=http%3A%2F%2Fjobsuche.monster.de%2fBau-Baustoffhandel_3%3fpg%3d1 | C77: Ihr Benutzerkonto--||TSA||--Passwort vergessen
B78: https://login.monster.de/?ch=DEGE&r=http%3A%2F%2Fjobsuche.monster.de%2fBerlin%2bLogistik-und-Transport_14%3fsf%3d18.813 | C78: Ihr Benutzerkonto--||TSA||--Passwort vergessen
B79: https://login.monster.de/?ch=DEGE&r=http%3A%2F%2Fjobsuche.monster.de%2fBerlin%2bNaturwissenschaftliche-Forschung_14%3fsf%3d18.813 | C79: Ihr Benutzerkonto--||TSA||--Passwort vergessen
B80: https://login.monster.de/?ch=DEGE&r=http%3A%2F%2Fjobsuche.monster.de%2fBrandenburg%2bEnergie-Wasserversorgung_13%3fsf%3d18.821 | C80: Ihr Benutzerkonto--||TSA||--Passwort vergessen
B81: https://login.monster.de/?ch=DEGE&r=http%3A%2F%2Fjobsuche.monster.de%2fBrandenburg%2bHandwerk_14%3fsf%3d18.821 | C81: Ihr Benutzerkonto--||TSA||--Passwort vergessen
B82: https://login.monster.de/?ch=DEGE&r=http%3A%2F%2Fjobsuche.monster.de%2fBrandenburg%2bLogistik-und-Transport_14%3fsf%3d18.821 | C82: Ihr Benutzerkonto--||TSA||--Passwort vergessen
B83: https://login.monster.de/?ch=DEGE&r=http%3A%2F%2Fjobsuche.monster.de%2fCharit%c3%a9-CFM-Facility-Management-GmbH_6 | C83: Ihr Benutzerkonto--||TSA||--Passwort vergessen
B84: https://login.monster.de/?ch=DEGE&r=http%3A%2F%2Fjobsuche.monster.de%2fCustomer-Service-Kundenbetreuung_4%3fHPS%3d4_5C3_Suche_Customerservice | C84: Ihr Benutzerkonto--||TSA||--Passwort vergessen
B85: https://login.monster.de/?ch=DEGE&r=http%3A%2F%2Fjobsuche.monster.de%2fCustomer-Service-Kundenbetreuung_4%3fsf%3d22 | C85: Ihr Benutzerkonto--||TSA||--Passwort vergessen
B86: https://login.monster.de/?ch=DEGE&r=http%3A%2F%2Fjobsuche.monster.de%2fDesign-Gestaltung_4%3fHPS%3d4_5C3_Suche_Design | C86: Ihr Benutzerkonto--||TSA||--Passwort vergessen
B87: https://login.monster.de/?ch=DEGE&r=http%3A%2F%2Fjobsuche.monster.de%2fDesign-Gestaltung_4%3fpg%3d5 | C87: Ihr Benutzerkonto--||TSA||--Passwort vergessen
B88: https://login.monster.de/?ch=DEGE&r=http%3A%2F%2Fjobsuche.monster.de%2fDurchsuchen%2f | C88: Ihr Benutzerkonto--||TSA||--Passwort vergessen
B89: https://login.monster.de/?ch=DEGE&r=http%3A%2F%2Fjobsuche.monster.de%2fDurchsuchen%2f%3fpg%3d1%26sf%3d23 | C89: Ihr Benutzerkonto--||TSA||--Passwort vergessen
B90: https://login.monster.de/?ch=DEGE&r=http%3A%2F%2Fjobsuche.monster.de%2fDurchsuchen%2f%3fpg%3d8%26sf%3d17 | C90: Ihr Benutzerkonto--||TSA||--Passwort vergessen
B91: https://login.monster.de/?ch=DEGE&r=http%3A%2F%2Fjobsuche.monster.de%2fDurchsuchen%2f%3fpg%3d8%26sf%3d19 | C91: Ihr Benutzerkonto--||TSA||--Passwort vergessen
B92: https://login.monster.de/?ch=DEGE&r=http%3A%2F%2Fjobsuche.monster.de%2fDurchsuchen%2f%3fsf%3d17 | C92: Ihr Benutzerkonto--||TSA||--Passwort vergessen
B93: https://login.monster.de/?ch=DEGE&r=http%3A%2F%2Fjobsuche.monster.de%2fDurchsuchen%2f%3fsf%3d19 | C93: Ihr Benutzerkonto--||TSA||--Passwort vergessen
B94: https://login.monster.de/?ch=DEGE&r=http%3A%2F%2Fjobsuche.monster.de%2fDurchsuchen%2f%3fsf%3d20 | C94: Ihr Benutzerkonto--||TSA||--Passwort vergessen
B95: https://login.monster.de/?ch=DEGE&r=http%3A%2F%2Fjobsuche.monster.de%2fDurchsuchen%2f%3fsf%3d23 | C95: Ihr Benutzerkonto--||TSA||--Passwort vergessen
B96: https://login.monster.de/?ch=DEGE&r=http%3A%2F%2Fjobsuche.monster.de%2fDurchsuchen%2fberlin_1 | C96: Ihr Benutzerkonto--||TSA||--Passwort vergessen
B97: https://login.monster.de/?ch=DEGE&r=http%3A%2F%2Fjobsuche.monster.de%2fEinzelhandel_3%3fpg%3d8 | C97: Ihr Benutzerkonto--||TSA||--Passwort vergessen
B98: https://login.monster.de/?ch=DEGE&r=http%3A%2F%2Fjobsuche.monster.de%2fEinzelhandel_3%3fsf%3d23 | C98: Ihr Benutzerkonto--||TSA||--Passwort vergessen
B99: https://login.monster.de/?ch=DEGE&r=http%3A%2F%2Fjobsuche.monster.de%2fEnergie-Wasserversorgung_3%3fpg%3d3 | C99: Ihr Benutzerkonto--||TSA||--Passwort vergessen
B100: https://login.monster.de/?ch=DEGE&r=http%3A%2F%2Fjobsuche.monster.de%2fEnergie-Wasserversorgung_3%3fpg%3d7 | C100: Ihr Benutzerkonto--||TSA||--Passwort vergessen
B101: https://login.monster.de/?ch=DEGE&r=http%3A%2F%2Fjobsuche.monster.de%2fHamburg%2bIngenieurdienstleistungen_13%3fsf%3d18.822 | C101: Ihr Benutzerkonto--||TSA||--Passwort vergessen
B102: https://login.monster.de/?ch=DEGE&r=http%3A%2F%2Fjobsuche.monster.de%2fHamburg%2bPersonalwesen_14%3fsf%3d18.822 | C102: Ihr Benutzerkonto--||TSA||--Passwort vergessen
B103: https://login.monster.de/?ch=DEGE&r=http%3A%2F%2Fjobsuche.monster.de%2fHandwerk_4%3fHPS%3d4_5C3_Suche_Handwerk | C103: Ihr Benutzerkonto--||TSA||--Passwort vergessen
B104: https://login.monster.de/?ch=DEGE&r=http%3A%2F%2Fjobsuche.monster.de%2fHanseatisches-Personalkontor-Hamburg_6%3fre%3d106 | C104: Ihr Benutzerkonto--||TSA||--Passwort vergessen
B105: https://login.monster.de/?ch=DEGE&r=http%3A%2F%2Fjobsuche.monster.de%2fHaushaltsdienstleistungen_3%3fsf%3d10 | C105: Ihr Benutzerkonto--||TSA||--Passwort vergessen
B106: https://login.monster.de/?ch=DEGE&r=http%3A%2F%2Fjobsuche.monster.de%2fHauswirtschaftler%2fJobs-erhalten-5.aspx | C106: Ihr Benutzerkonto--||TSA||--Passwort vergessen
B107: https://login.monster.de/?ch=DEGE&r=http%3A%2F%2Fjobsuche.monster.de%2fHessen%2bAus-und-Weiterbildung_14%3fsf%3d18.815 | C107: Ihr Benutzerkonto--||TSA||--Passwort vergessen
B108: https://login.monster.de/?ch=DEGE&r=http%3A%2F%2Fjobsuche.monster.de%2fHessen%2bLand-Forstwirtschaft-Fischerei_13%3fsf%3d18.815 | C108: Ihr Benutzerkonto--||TSA||--Passwort vergessen
B109: https://login.monster.de/?ch=DEGE&r=http%3A%2F%2Fjobsuche.monster.de%2fHessen%2bRechnungswesen-Finanzen_14%3fsf%3d18.815 | C109: Ihr Benutzerkonto--||TSA||--Passwort vergessen
B110: https://login.monster.de/?ch=DEGE&r=http%3A%2F%2Fjobsuche.monster.de%2fHotel-und-Gastronomie_4%3fHPS%3d4_5C3_Suche_Hotel | C110: Ihr Benutzerkonto--||TSA||--Passwort vergessen
B111: https://login.monster.de/?ch=DEGE&r=http%3A%2F%2Fjobsuche.monster.de%2fHotel-und-Gastronomie_4%3fpg%3d10 | C111: Ihr Benutzerkonto--||TSA||--Passwort vergessen
B112: https://login.monster.de/?ch=DEGE&r=http%3A%2F%2Fjobsuche.monster.de%2fIT-Informationstechnologie_4%3fHPS%3d4_5C3_Suche_IT | C112: Ihr Benutzerkonto--||TSA||--Passwort vergessen
B113: https://login.monster.de/?ch=DEGE&r=http%3A%2F%2Fjobsuche.monster.de%2fIT-Software-Systeme-Design_3%3fpg%3d6 | C113: Ihr Benutzerkonto--||TSA||--Passwort vergessen
B114: https://login.monster.de/?ch=DEGE&r=http%3A%2F%2Fjobsuche.monster.de%2fIT-Software-Systeme-Design_3%3fsf%3d19 | C114: Ihr Benutzerkonto--||TSA||--Passwort vergessen
B115: https://login.monster.de/?ch=DEGE&r=http%3A%2F%2Fjobsuche.monster.de%2fI__2eK__2eHofmann-GmbH_6%3fsf%3d20 | C115: Ihr Benutzerkonto--||TSA||--Passwort vergessen
B116: https://login.monster.de/?ch=DEGE&r=http%3A%2F%2Fjobsuche.monster.de%2fIngenieurwesen-Entwicklung-und-Konstruktion_4%3fHPS%3d4_5C3_Suche_Ingenieur | C116: Ihr Benutzerkonto--||TSA||--Passwort vergessen
B117: https://login.monster.de/?ch=DEGE&r=http%3A%2F%2Fjobsuche.monster.de%2fIngenieurwesen-Entwicklung-und-Konstruktion_4%3fpg%3d2 | C117: Ihr Benutzerkonto--||TSA||--Passwort vergessen
B118: https://login.monster.de/?ch=DEGE&r=http%3A%2F%2Fjobsuche.monster.de%2fInstandhaltung_4%3fHPS%3d4_5C3_Suche_Instandhaltung | C118: Ihr Benutzerkonto--||TSA||--Passwort vergessen
B119: https://login.monster.de/?ch=DEGE&r=http%3A%2F%2Fjobsuche.monster.de%2fJava-Entwickler-__28m__2fw__29_5%3fsf%3d19 | C119: Ihr Benutzerkonto--||TSA||--Passwort vergessen
B120: https://login.monster.de/?ch=DEGE&r=http%3A%2F%2Fjobsuche.monster.de%2fJobs%2fMonster%2bInternet-Dienstleistungen-Portale-Datenverarbeitung_63 | C120: Ihr Benutzerkonto--||TSA||--Passwort vergessen
B121: https://login.monster.de/?ch=DEGE&r=http%3A%2F%2Fjobsuche.monster.de%2fJobs%2fMonster%2bSchifffahrt_63 | C121: Ihr Benutzerkonto--||TSA||--Passwort vergessen
B122: https://login.monster.de/?ch=DEGE&r=http%3A%2F%2Fjobsuche.monster.de%2fJobs%2fMonster_6 | C122: Ihr Benutzerkonto--||TSA||--Passwort vergessen
B123: https://login.monster.de/?ch=DEGE&r=http%3A%2F%2Fjobsuche.monster.de%2fKonstrukteur-__28m__2fw__29_5%3fsf%3d19 | C123: Ihr Benutzerkonto--||TSA||--Passwort vergessen
B124: https://login.monster.de/?ch=DEGE&r=http%3A%2F%2Fjobsuche.monster.de%2fLand-Forstwirtschaft-Fischerei_3%3fsf%3d13 | C124: Ihr Benutzerkonto--||TSA||--Passwort vergessen
B125: https://login.monster.de/?ch=DEGE&r=http%3A%2F%2Fjobsuche.monster.de%2fLand-Forstwirtschaft-Fischerei_3%3fsf%3d22 | C125: Ihr Benutzerkonto--||TSA||--Passwort vergessen
B126: https://login.monster.de/?ch=DEGE&r=http%3A%2F%2Fjobsuche.monster.de%2fLogistik-und-Transport_4%3fHPS%3d4_5C3_Suche_Logistik | C126: Ihr Benutzerkonto--||TSA||--Passwort vergessen
B127: https://login.monster.de/?ch=DEGE&r=http%3A%2F%2Fjobsuche.monster.de%2fManpower-GmbH-__26-Co__2e-KG_6 | C127: Ihr Benutzerkonto--||TSA||--Passwort vergessen
B128: https://login.monster.de/?ch=DEGE&r=http%3A%2F%2Fjobsuche.monster.de%2fMarketing_4%3fHPS%3d4_5C3_Suche_Marketing | C128: Ihr Benutzerkonto--||TSA||--Passwort vergessen
B129: https://login.monster.de/?ch=DEGE&r=http%3A%2F%2Fjobsuche.monster.de%2fMarketing_4%3fsf%3d13 | C129: Ihr Benutzerkonto--||TSA||--Passwort vergessen
B130: https://login.monster.de/?ch=DEGE&r=http%3A%2F%2Fjobsuche.monster.de%2fMarketing_4%3fsf%3d23 | C130: Ihr Benutzerkonto--||TSA||--Passwort vergessen
B131: https://login.monster.de/?ch=DEGE&r=http%3A%2F%2Fjobsuche.monster.de%2fMecklenburg-Vorpommern%2bHotel-und-Gastronomie_14%3fsf%3d18.823 | C131: Ihr Benutzerkonto--||TSA||--Passwort vergessen
B132: https://login.monster.de/?ch=DEGE&r=http%3A%2F%2Fjobsuche.monster.de%2fMecklenburg-Vorpommern%2bProduktion_14%3fsf%3d18.823 | C132: Ihr Benutzerkonto--||TSA||--Passwort vergessen
B133: https://login.monster.de/?ch=DEGE&r=http%3A%2F%2Fjobsuche.monster.de%2fMedizin-und-Gesundheit_4%3fHPS%3d4_5C3_Suche_Medizin | C133: Ihr Benutzerkonto--||TSA||--Passwort vergessen
B134: https://login.monster.de/?ch=DEGE&r=http%3A%2F%2Fjobsuche.monster.de%2fMedizin-und-Gesundheit_4%3fsf%3d20 | C134: Ihr Benutzerkonto--||TSA||--Passwort vergessen
B135: https://login.monster.de/?ch=DEGE&r=http%3A%2F%2Fjobsuche.monster.de%2fNaturwissenschaftliche-Forschung_4%3fHPS%3d4_5C3_Suche_Naturwissenschaftliche | C135: Ihr Benutzerkonto--||TSA||--Passwort vergessen
B136: https://login.monster.de/?ch=DEGE&r=http%3A%2F%2Fjobsuche.monster.de%2fPersonalwesen_4%3fHPS%3d4_5C3_Suche_Personalwesen | C136: Ihr Benutzerkonto--||TSA||--Passwort vergessen
B137: https://login.monster.de/?ch=DEGE&r=http%3A%2F%2Fjobsuche.monster.de%2fPersonalwesen_4%3fpg%3d8 | C137: Ihr Benutzerkonto--||TSA||--Passwort vergessen
B138: https://login.monster.de/?ch=DEGE&r=http%3A%2F%2Fjobsuche.monster.de%2fProduktion_4%3fHPS%3d4_5C3_Suche_Produktion | C138: Ihr Benutzerkonto--||TSA||--Passwort vergessen
B139: https://login.monster.de/?ch=DEGE&r=http%3A%2F%2Fjobsuche.monster.de%2fProjektleiter-__28m__2fw__29_5%3fsf%3d19 | C139: Ihr Benutzerkonto--||TSA||--Passwort vergessen
B140: https://login.monster.de/?ch=DEGE&r=http%3A%2F%2Fjobsuche.monster.de%2fProjektmanagement_4%3fHPS%3d4_5C3_Suche_Projektmanagement | C140: Ihr Benutzerkonto--||TSA||--Passwort vergessen
B141: https://login.monster.de/?ch=DEGE&r=http%3A%2F%2Fjobsuche.monster.de%2fProjektmanagement_4%3fpg%3d7 | C141: Ihr Benutzerkonto--||TSA||--Passwort vergessen
B142: https://login.monster.de/?ch=DEGE&r=http%3A%2F%2Fjobsuche.monster.de%2fRTL-DISNEY-Fernsehen-GmbH-__26-Co__2e-KG__3b-SUPER-RTL_6 | C142: Ihr Benutzerkonto--||TSA||--Passwort vergessen
B143: https://login.monster.de/?ch=DEGE&r=http%3A%2F%2Fjobsuche.monster.de%2fRatbacher-GmbH_6%3fre%3d106 | C143: Ihr Benutzerkonto--||TSA||--Passwort vergessen
B144: https://login.monster.de/?ch=DEGE&r=http%3A%2F%2Fjobsuche.monster.de%2fRatbacher-GmbH_6%3fsf%3d20 | C144: Ihr Benutzerkonto--||TSA||--Passwort vergessen
B145: https://login.monster.de/?ch=DEGE&r=http%3A%2F%2Fjobsuche.monster.de%2fRaumpfleger%2fJobs-erhalten-5.aspx | C145: Ihr Benutzerkonto--||TSA||--Passwort vergessen
B146: https://login.monster.de/?ch=DEGE&r=http%3A%2F%2Fjobsuche.monster.de%2fRechnungswesen-Finanzen_4%3fHPS%3d4_5C3_Suche_Rechnungswesen | C146: Ihr Benutzerkonto--||TSA||--Passwort vergessen
B147: https://login.monster.de/?ch=DEGE&r=http%3A%2F%2Fjobsuche.monster.de%2fRechnungswesen-Finanzen_4%3fsf%3d10 | C147: Ihr Benutzerkonto--||TSA||--Passwort vergessen
B148: https://login.monster.de/?ch=DEGE&r=http%3A%2F%2Fjobsuche.monster.de%2fRechnungswesen-Finanzen_4%3fsf%3d14 | C148: Ihr Benutzerkonto--||TSA||--Passwort vergessen
B149: https://login.monster.de/?ch=DEGE&r=http%3A%2F%2Fjobsuche.monster.de%2fRecht_4%3fHPS%3d4_5C3_Suche_Recht | C149: Ihr Benutzerkonto--||TSA||--Passwort vergessen
B150: https://login.monster.de/?ch=DEGE&r=http%3A%2F%2Fjobsuche.monster.de%2fRedaktion-Dokumentation_4%3fHPS%3d4_5C3_Suche_Redaktion | C150: Ihr Benutzerkonto--||TSA||--Passwort vergessen
B151: https://login.monster.de/?ch=DEGE&r=http%3A%2F%2Fjobsuche.monster.de%2fRheinland-Pfalz%2bIT-Informationstechnologie_14%3fsf%3d18.817 | C151: Ihr Benutzerkonto--||TSA||--Passwort vergessen
B152: https://login.monster.de/?ch=DEGE&r=http%3A%2F%2Fjobsuche.monster.de%2fRheinland-Pfalz%2bIngenieurdienstleistungen_13%3fsf%3d18.817 | C152: Ihr Benutzerkonto--||TSA||--Passwort vergessen
B153: https://login.monster.de/?ch=DEGE&r=http%3A%2F%2Fjobsuche.monster.de%2fRochus-Mummert-Management-Search-GmbH_6%3fre%3d106 | C153: Ihr Benutzerkonto--||TSA||--Passwort vergessen
B154: https://login.monster.de/?ch=DEGE&r=http%3A%2F%2Fjobsuche.monster.de%2fSaarland%2bVermietung-Leasing_13%3fsf%3d18.825 | C154: Ihr Benutzerkonto--||TSA||--Passwort vergessen
B155: https://login.monster.de/?ch=DEGE&r=http%3A%2F%2Fjobsuche.monster.de%2fSachsen%2bAdministration-Sachbearbeitung_14%3fsf%3d18.818 | C155: Ihr Benutzerkonto--||TSA||--Passwort vergessen
B156: https://login.monster.de/?ch=DEGE&r=http%3A%2F%2Fjobsuche.monster.de%2fSchifffahrt_3%3fpg%3d5 | C156: Ihr Benutzerkonto--||TSA||--Passwort vergessen
B157: https://login.monster.de/?ch=DEGE&r=http%3A%2F%2Fjobsuche.monster.de%2fSchifffahrt_3%3fsf%3d13 | C157: Ihr Benutzerkonto--||TSA||--Passwort vergessen
B158: https://login.monster.de/?ch=DEGE&r=http%3A%2F%2Fjobsuche.monster.de%2fSicherheit-Zivilschutz_4%3fHPS%3d4_5C3_Suche_Sicherheit | C158: Ihr Benutzerkonto--||TSA||--Passwort vergessen
B159: https://login.monster.de/?ch=DEGE&r=http%3A%2F%2Fjobsuche.monster.de%2fSoftware__2dEntwickler-__28m__2fw__29_5%3fsf%3d19 | C159: Ihr Benutzerkonto--||TSA||--Passwort vergessen
B160: https://login.monster.de/?ch=DEGE&r=http%3A%2F%2Fjobsuche.monster.de%2fTagesmutter%2fJobs-erhalten-5.aspx | C160: Ihr Benutzerkonto--||TSA||--Passwort vergessen
B161: https://login.monster.de/?ch=DEGE&r=http%3A%2F%2Fjobsuche.monster.de%2fVermietung-Leasing_3%3fsf%3d23 | C161: Ihr Benutzerkonto--||TSA||--Passwort vergessen
B162: https://login.monster.de/?ch=DEGE&r=http%3A%2F%2Fjobsuche.monster.de%2fVertrieb-Verkauf_4%3fHPS%3d4_5C3_Suche_Vertrieb | C162: Ihr Benutzerkonto--||TSA||--Passwort vergessen
B163: https://login.monster.de/?ch=DEGE&r=http%3A%2F%2Fjobsuche.monster.de%2fVertrieb-Verkauf_4%3fpg%3d10 | C163: Ihr Benutzerkonto--||TSA||--Passwort vergessen
B164: https://login.monster.de/?ch=DEGE&r=http%3A%2F%2Fjobsuche.monster.de%2fVertrieb-Verkauf_4%3fpg%3d3 | C164: Ihr Benutzerkonto--||TSA||--Passwort vergessen
B165: https://login.monster.de/?ch=DEGE&r=http%3A%2F%2Fjobsuche.monster.de%2fadministration-sachbearbeitung_4 | C165: Ihr Benutzerkonto--||TSA||--Passwort vergessen
B166: https://login.monster.de/?ch=DEGE&r=http%3A%2F%2Fjobsuche.monster.de%2fanlagen-maschinenbau_3 | C166: Ihr Benutzerkonto--||TSA||--Passwort vergessen
B167: https://login.monster.de/?ch=DEGE&r=http%3A%2F%2Fjobsuche.monster.de%2faus-und-weiterbildung_4 | C167: Ihr Benutzerkonto--||TSA||--Passwort vergessen
B168: https://login.monster.de/?ch=DEGE&r=http%3A%2F%2Fjobsuche.monster.de%2fbau-baustoffhandel_3 | C168: Ihr Benutzerkonto--||TSA||--Passwort vergessen
B169: https://login.monster.de/?ch=DEGE&r=http%3A%2F%2Fjobsuche.monster.de%2fcustomer-service-kundenbetreuung_4 | C169: Ihr Benutzerkonto--||TSA||--Passwort vergessen
B170: https://login.monster.de/?ch=DEGE&r=http%3A%2F%2Fjobsuche.monster.de%2fdesign-und-gestaltung_4 | C170: Ihr Benutzerkonto--||TSA||--Passwort vergessen
B171: https://login.monster.de/?ch=DEGE&r=http%3A%2F%2Fjobsuche.monster.de%2fdruckereien_3 | C171: Ihr Benutzerkonto--||TSA||--Passwort vergessen
B172: https://login.monster.de/?ch=DEGE&r=http%3A%2F%2Fjobsuche.monster.de%2feinzelhandel_3 | C172: Ihr Benutzerkonto--||TSA||--Passwort vergessen
B173: https://login.monster.de/?ch=DEGE&r=http%3A%2F%2Fjobsuche.monster.de%2fenergie-wasserversorgung_3 | C173: Ihr Benutzerkonto--||TSA||--Passwort vergessen
B174: https://login.monster.de/?ch=DEGE&r=http%3A%2F%2Fjobsuche.monster.de%2fhandwerk_4 | C174: Ihr Benutzerkonto--||TSA||--Passwort vergessen
B175: https://login.monster.de/?ch=DEGE&r=http%3A%2F%2Fjobsuche.monster.de%2fhaushaltsdienstleistungen_3 | C175: Ihr Benutzerkonto--||TSA||--Passwort vergessen
B176: https://login.monster.de/?ch=DEGE&r=http%3A%2F%2Fjobsuche.monster.de%2fhotel-und-gastronomie_4 | C176: Ihr Benutzerkonto--||TSA||--Passwort vergessen
B177: https://login.monster.de/?ch=DEGE&r=http%3A%2F%2Fjobsuche.monster.de%2fingenieurdienstleistungen_3 | C177: Ihr Benutzerkonto--||TSA||--Passwort vergessen
B178: https://login.monster.de/?ch=DEGE&r=http%3A%2F%2Fjobsuche.monster.de%2fingenieurwesen-entwicklung-und-konstruktion_4 | C178: Ihr Benutzerkonto--||TSA||--Passwort vergessen
B179: https://login.monster.de/?ch=DEGE&r=http%3A%2F%2Fjobsuche.monster.de%2finstandhaltung_4 | C179: Ihr Benutzerkonto--||TSA||--Passwort vergessen
B180: http://mein.monster.de/Become-Member/Create-Account.aspx?redirect=http%3a%2f%2fmein.monster.de%2f | C180: Jetzt registrieren--||TSA||--Passwort vergessen
B181: http://mein.monster.de/Become-Member/Create-Account.aspx?redirect=http%3a%2f%2fjobs.monster.de%2f | C181: Jetzt registrieren--||TSA||--Passwort vergessen
B182: http://mein.monster.de/Become-Member/Create-Account.aspx?redirect=http%3a%2f%2fhome.monster.de%2f | C182: Jetzt registrieren--||TSA||--Passwort vergessen
B183: http://mein.monster.de/Become-Member/Create-Account.aspx | C183: Jetzt registrieren--||TSA||--Passwort vergessen
B184: http://mein.monster.de/Become-Member/Create-Account.aspx?redirect=http%3a%2f%2fjobsuche.monster.de%2fProduktion_4%3fHPS%3d4_5C3_Suche_Produktion | C184: Jetzt registrieren--||TSA||--Passwort vergessen
B185: http://mein.monster.de/Become-Member/Create-Account.aspx?redirect=http%3a%2f%2fwww.monster.de%2f | C185: Jetzt registrieren--||TSA||--Passwort vergessen
B186: http://jobsuche.monster.de/Durchsuchen/?pg=10&sf=17 | C186: Bundesweit ausgeschriebene Jobs & Stellenanzeigen
B187: http://jobsuche.monster.de/Durchsuchen/?pg=1&sf=23 | C187: Bundesweit ausgeschriebene Jobs & Stellenanzeigen
B188: http://jobsuche.monster.de/Durchsuchen/?pg=1&sf=20 | C188: Bundesweit ausgeschriebene Jobs & Stellenanzeigen
B189: http://jobsuche.monster.de/Durchsuchen/?pg=1&sf=19 | C189: Bundesweit ausgeschriebene Jobs & Stellenanzeigen
B190: http://jobsuche.monster.de/Durchsuchen/?pg=1&sf=17 | C190: Bundesweit ausgeschriebene Jobs & Stellenanzeigen
B191: http://jobsuche.monster.de/Durchsuchen/?pg=1 | C191: Bundesweit ausgeschriebene Jobs & Stellenanzeigen
B192: http://jobsuche.monster.de/Durchsuchen/?HPS=6_4C5JobKatalog | C192: Bundesweit ausgeschriebene Jobs & Stellenanzeigen
B193: http://jobsuche.monster.de/Durchsuchen/ | C193: Bundesweit ausgeschriebene Jobs & Stellenanzeigen
B194: http://jobsuche.monster.de/Durchsuchen/?pg=10 | C194: Bundesweit ausgeschriebene Jobs & Stellenanzeigen
B195: http://jobsuche.monster.de/rundfunk-musik-film_3 | C195: Bundesweit ausgeschriebene Jobs & Stellenanzeigen
B196: http://jobsuche.monster.de/produktion/_4 | C196: Bundesweit ausgeschriebene Jobs & Stellenanzeigen
B197: http://jobsuche.monster.de/druckereien_3 | C197: Bundesweit ausgeschriebene Jobs & Stellenanzeigen
B198: http://jobsuche.monster.de/design-und-gestaltung_4 | C198: Bundesweit ausgeschriebene Jobs & Stellenanzeigen
B199: http://jobsuche.monster.de/Durchsuchen/?sf=23 | C199: Bundesweit ausgeschriebene Jobs & Stellenanzeigen
B200: http://jobsuche.monster.de/Durchsuchen/?sf=22 | C200: Bundesweit ausgeschriebene Jobs & Stellenanzeigen
B201: http://jobsuche.monster.de/Durchsuchen/?sf=21 | C201: Bundesweit ausgeschriebene Jobs & Stellenanzeigen
B202: http://jobsuche.monster.de/Durchsuchen/?sf=20&pcn=4 | C202: Bundesweit ausgeschriebene Jobs & Stellenanzeigen
B203: http://jobsuche.monster.de/Durchsuchen/?sf=20&pcn=3 | C203: Bundesweit ausgeschriebene Jobs & Stellenanzeigen
B204: http://jobsuche.monster.de/Durchsuchen/?sf=20&pcn=2 | C204: Bundesweit ausgeschriebene Jobs & Stellenanzeigen
... 2536 more rows

Sheet Duplicate Meta Description
B3: Duplicate Meta Description
B5: Pages found with duplicate meta description tags
B6: Total Count: 2085
B8: Issue Severity: Critical
B9: URL | C9: Duplicate
B10: http://karriere-journal.monster.de/lebenslauf-anschreiben/lebenslauf-muster/musterlebenslauf-zum-download-30985/article.aspx?HPS=Navbar_CareerAdvice | C10: Lebenslauf-Vorlagen für die Bewerbung. Für jede Bewerbung den passenden tabellarischen Lebenslauf. Zum kostenlosen Herunterladen als Word-Vorlage.--||TSA||--Tabellarische Lebensläufe für Ihre erfolgreiche Bewerbung. Die kostenlosen Vorlagen für Lebensläufe stehen im Word-Format zum Herunterladen zur Verfügung.
B11: http://karriere-journal.monster.de/lebenslauf-anschreiben/lebenslauf-muster/musterlebenslauf-zum-download-30985/article.aspx | C11: Lebenslauf-Vorlagen für die Bewerbung. Für jede Bewerbung den passenden tabellarischen Lebenslauf. Zum kostenlosen Herunterladen als Word-Vorlage.--||TSA||--Tabellarische Lebensläufe für Ihre erfolgreiche Bewerbung. Die kostenlosen Vorlagen für Lebensläufe stehen im Word-Format zum Herunterladen zur Verfügung.
B12: http://karriere-journal.monster.de/lebenslauf-anschreiben/lebenslauf-muster/musterlebenslauf-zum-download-30985/article.aspx?HPS=Navbar_Lebenslauf | C12: Lebenslauf-Vorlagen für die Bewerbung. Für jede Bewerbung den passenden tabellarischen Lebenslauf. Zum kostenlosen Herunterladen als Word-Vorlage.--||TSA||--Tabellarische Lebensläufe für Ihre erfolgreiche Bewerbung. Die kostenlosen Vorlagen für Lebensläufe stehen im Word-Format zum Herunterladen zur Verfügung.
B13: http://forum.monster.de/n/pfx/forum.aspx?tsn=1&nav=messages&webtag=exp99482&tid=1 | C13: Sie arbeiten, um zu leben - aber Ihr Traumjob sieht anders aus. Was können Sie verändern, und wie erreichen Sie Ihr Ziel? Finden Sie mit Hilfe dieses Forums Ihre neue berufliche Ausrichtung und den Weg dorthin. Netikette Die Trainerinnen Bianca Sievert und Dr. Eva Reichmann beantworten Ihre Fragen vom 23. Nov. bis 7. Dez. Lesetipp: Ihr Weg zum passenden Beruf Nur im passenden Job ist es möglich, auf Dauer glücklich und erfolgreich zu sein. Dieser Ratgeber unterstützt Sie bei Ihrer beruflichen Orientierung. Ihr Weg zum passenden Beruf bei managementbuch.de
B14: http://forum.monster.de/n/pfx/forum.aspx?webtag=exp99482 | C14: Sie arbeiten, um zu leben - aber Ihr Traumjob sieht anders aus. Was können Sie verändern, und wie erreichen Sie Ihr Ziel? Finden Sie mit Hilfe dieses Forums Ihre neue berufliche Ausrichtung und den Weg dorthin. Netikette Die Trainerinnen Bianca Sievert und Dr. Eva Reichmann beantworten Ihre Fragen vom 23. Nov. bis 7. Dez. Lesetipp: Ihr Weg zum passenden Beruf Nur im passenden Job ist es möglich, auf Dauer glücklich und erfolgreich zu sein. Dieser Ratgeber unterstützt Sie bei Ihrer beruflichen Orientierung. Ihr Weg zum passenden Beruf bei managementbuch.de
B15: http://karriere-journal.monster.de/lebenslauf-anschreiben/lebenslauf/mein-erster-lebenslauf/article.aspx | C15: Mein erster Lebenslauf - Grundlagen
B16: http://karriere-journal.monster.de/lebenslauf-anschreiben/lebenslauf/mein-erster-lebenslauf/article.aspx?HPS=Navbar_Lebenslauf | C16: Mein erster Lebenslauf - Grundlagen
B17: http://jobs.monster.de/browse/l-mecklenburg-vorpommern.aspx | C17: Jobs suchen, Arbeit finden, Jobs, Stellenangebote, Jobsuche
B18: http://jobs.monster.de/ | C18: Jobs suchen, Arbeit finden, Jobs, Stellenangebote, Jobsuche
B19: http://jobs.monster.de/browse/l-bayern.aspx | C19: Jobs suchen, Arbeit finden, Jobs, Stellenangebote, Jobsuche
B20: http://jobs.monster.de/browse/l-berlin.aspx | C20: Jobs suchen, Arbeit finden, Jobs, Stellenangebote, Jobsuche
B21: http://jobs.monster.de/browse/l-brandenburg.aspx | C21: Jobs suchen, Arbeit finden, Jobs, Stellenangebote, Jobsuche
B22: http://jobs.monster.de/browse/l-bremen.aspx | C22: Jobs suchen, Arbeit finden, Jobs, Stellenangebote, Jobsuche
B23: http://jobs.monster.de/browse/l-hamburg.aspx | C23: Jobs suchen, Arbeit finden, Jobs, Stellenangebote, Jobsuche
B24: http://jobs.monster.de/browse/l-hessen.aspx | C24: Jobs suchen, Arbeit finden, Jobs, Stellenangebote, Jobsuche
B25: http://jobs.monster.de/browse/l-niedersachsen.aspx | C25: Jobs suchen, Arbeit finden, Jobs, Stellenangebote, Jobsuche
B26: http://jobs.monster.de/browse/l-nordrhein-westfalen.aspx | C26: Jobs suchen, Arbeit finden, Jobs, Stellenangebote, Jobsuche
B27: http://jobs.monster.de/browse/l-rheinland-pfalz.aspx | C27: Jobs suchen, Arbeit finden, Jobs, Stellenangebote, Jobsuche
B28: http://jobs.monster.de/browse/l-saarland.aspx | C28: Jobs suchen, Arbeit finden, Jobs, Stellenangebote, Jobsuche
B29: http://jobs.monster.de/browse/l-sachsen-anhalt.aspx | C29: Jobs suchen, Arbeit finden, Jobs, Stellenangebote, Jobsuche
B30: http://jobs.monster.de/browse/l-schleswig-holstein.aspx | C30: Jobs suchen, Arbeit finden, Jobs, Stellenangebote, Jobsuche
B31: http://jobs.monster.de/browse/v-finanzwesen-l-baden-w%c3%bcrttemberg.aspx | C31: Jobs suchen, Arbeit finden, Jobs, Stellenangebote, Jobsuche
B32: http://jobs.monster.de/browse/v-finanzwesen-q-business-consultant.aspx | C32: Jobs suchen, Arbeit finden, Jobs, Stellenangebote, Jobsuche
B33: http://jobs.monster.de/browse/v-finanzwesen-q-business-systems-manager.aspx | C33: Jobs suchen, Arbeit finden, Jobs, Stellenangebote, Jobsuche
B34: http://jobs.monster.de/browse/v-finanzwesen-q-darlehenspezialist-kontokorrentkonten.aspx | C34: Jobs suchen, Arbeit finden, Jobs, Stellenangebote, Jobsuche
B35: http://jobs.monster.de/browse/v-finanzwesen-q-junior-bankkaufmann.aspx | C35: Jobs suchen, Arbeit finden, Jobs, Stellenangebote, Jobsuche
B36: http://jobs.monster.de/browse/v-finanzwesen-q-portfolio-manager.aspx | C36: Jobs suchen, Arbeit finden, Jobs, Stellenangebote, Jobsuche
B37: http://jobs.monster.de/browse/v-finanzwesen.aspx | C37: Jobs suchen, Arbeit finden, Jobs, Stellenangebote, Jobsuche
B38: http://jobs.monster.de/browse/v-gesundheitswesen-l-hamburg.aspx | C38: Jobs suchen, Arbeit finden, Jobs, Stellenangebote, Jobsuche
B39: http://jobs.monster.de/browse/v-gesundheitswesen-q-redakteur.aspx | C39: Jobs suchen, Arbeit finden, Jobs, Stellenangebote, Jobsuche
B40: http://jobs.monster.de/browse/v-gesundheitswesen-q-staatlich-anerkannter-altenpfleger.aspx | C40: Jobs suchen, Arbeit finden, Jobs, Stellenangebote, Jobsuche
B41: http://jobs.monster.de/browse/v-gesundheitswesen.aspx | C41: Jobs suchen, Arbeit finden, Jobs, Stellenangebote, Jobsuche
B42: http://jobs.monster.de/browse/v-ingenieurwesen-q-entwickler-maschinenbau.aspx | C42: Jobs suchen, Arbeit finden, Jobs, Stellenangebote, Jobsuche
B43: http://jobs.monster.de/browse/v-ingenieurwesen-q-fertigungsingenieur-betriebsanlagen.aspx | C43: Jobs suchen, Arbeit finden, Jobs, Stellenangebote, Jobsuche
B44: http://jobs.monster.de/browse/v-ingenieurwesen-q-ingenieur-werkstofftechnik.aspx | C44: Jobs suchen, Arbeit finden, Jobs, Stellenangebote, Jobsuche
B45: http://jobs.monster.de/browse/v-ingenieurwesen-q-systemelektroniker.aspx | C45: Jobs suchen, Arbeit finden, Jobs, Stellenangebote, Jobsuche
B46: http://jobs.monster.de/browse/v-ingenieurwesen.aspx | C46: Jobs suchen, Arbeit finden, Jobs, Stellenangebote, Jobsuche
B47: http://jobs.monster.de/browse/v-it-l-bremen.aspx | C47: Jobs suchen, Arbeit finden, Jobs, Stellenangebote, Jobsuche
B48: http://jobs.monster.de/browse/v-it-q-analyst-websicherheit.aspx | C48: Jobs suchen, Arbeit finden, Jobs, Stellenangebote, Jobsuche
B49: http://jobs.monster.de/browse/v-it-q-bereichsleiter-it.aspx | C49: Jobs suchen, Arbeit finden, Jobs, Stellenangebote, Jobsuche
B50: http://jobs.monster.de/browse/v-it-q-dbs-installateur.aspx | C50: Jobs suchen, Arbeit finden, Jobs, Stellenangebote, Jobsuche
B51: http://jobs.monster.de/browse/v-it-q-fachinformatiker.aspx | C51: Jobs suchen, Arbeit finden, Jobs, Stellenangebote, Jobsuche
B52: http://jobs.monster.de/browse/v-it-q-it-service-manager.aspx | C52: Jobs suchen, Arbeit finden, Jobs, Stellenangebote, Jobsuche
B53: http://jobs.monster.de/browse/v-it-q-it-supportanalyst.aspx | C53: Jobs suchen, Arbeit finden, Jobs, Stellenangebote, Jobsuche
B54: http://jobs.monster.de/browse/v-it-q-junior-anwendungsentwickler.aspx | C54: Jobs suchen, Arbeit finden, Jobs, Stellenangebote, Jobsuche
B55: http://jobs.monster.de/browse/v-it-q-leiter-technische-dienste.aspx | C55: Jobs suchen, Arbeit finden, Jobs, Stellenangebote, Jobsuche
B56: http://jobs.monster.de/browse/v-it-q-netzwerktechniker.aspx | C56: Jobs suchen, Arbeit finden, Jobs, Stellenangebote, Jobsuche
B57: http://jobs.monster.de/browse/v-it-q-siebel-pre-sales-fachberater.aspx | C57: Jobs suchen, Arbeit finden, Jobs, Stellenangebote, Jobsuche
B58: http://jobs.monster.de/browse/v-it-q-web-multimedia-texter.aspx | C58: Jobs suchen, Arbeit finden, Jobs, Stellenangebote, Jobsuche
B59: http://jobs.monster.de/browse/v-it.aspx | C59: Jobs suchen, Arbeit finden, Jobs, Stellenangebote, Jobsuche
B60: http://jobs.monster.de/browse/v-logistik-l-hessen.aspx | C60: Jobs suchen, Arbeit finden, Jobs, Stellenangebote, Jobsuche
B61: http://jobs.monster.de/browse/v-logistik-l-sachsen-anhalt.aspx | C61: Jobs suchen, Arbeit finden, Jobs, Stellenangebote, Jobsuche
B62: http://jobs.monster.de/browse/v-logistik.aspx | C62: Jobs suchen, Arbeit finden, Jobs, Stellenangebote, Jobsuche
B63: http://jobs.monster.de/browse/v-management.aspx | C63: Jobs suchen, Arbeit finden, Jobs, Stellenangebote, Jobsuche
B64: http://jobs.monster.de/browse/v-marketing-q-kaufmann-unternehmenskommunikation.aspx | C64: Jobs suchen, Arbeit finden, Jobs, Stellenangebote, Jobsuche
B65: http://jobs.monster.de/browse/v-marketing-q-life-cycle-manager.aspx | C65: Jobs suchen, Arbeit finden, Jobs, Stellenangebote, Jobsuche
B66: http://jobs.monster.de/browse/v-marketing-q-senior-product-manager.aspx | C66: Jobs suchen, Arbeit finden, Jobs, Stellenangebote, Jobsuche
B67: http://jobs.monster.de/browse/v-marketing-q-translator.aspx | C67: Jobs suchen, Arbeit finden, Jobs, Stellenangebote, Jobsuche
B68: http://jobs.monster.de/browse/v-marketing-q-werbetechniker.aspx | C68: Jobs suchen, Arbeit finden, Jobs, Stellenangebote, Jobsuche
B69: http://jobs.monster.de/browse/v-marketing.aspx | C69: Jobs suchen, Arbeit finden, Jobs, Stellenangebote, Jobsuche
B70: http://jobs.monster.de/browse/v-sachbearbeitung-l-th%c3%bcringen.aspx | C70: Jobs suchen, Arbeit finden, Jobs, Stellenangebote, Jobsuche
B71: http://jobs.monster.de/browse/v-sachbearbeitung-q-assistent-investitionsgesch%c3%a4fte.aspx | C71: Jobs suchen, Arbeit finden, Jobs, Stellenangebote, Jobsuche
B72: http://jobs.monster.de/browse/v-sachbearbeitung.aspx | C72: Jobs suchen, Arbeit finden, Jobs, Stellenangebote, Jobsuche
B73: http://jobs.monster.de/browse/v-vertrieb-q-property-manager.aspx | C73: Jobs suchen, Arbeit finden, Jobs, Stellenangebote, Jobsuche
B74: http://jobs.monster.de/browse/v-vertrieb-q-sales-account-manager.aspx | C74: Jobs suchen, Arbeit finden, Jobs, Stellenangebote, Jobsuche
B75: http://jobs.monster.de/browse/v-vertrieb-q-sales-consultant.aspx | C75: Jobs suchen, Arbeit finden, Jobs, Stellenangebote, Jobsuche
B76: http://jobs.monster.de/browse/v-vertrieb-q-sales-support.aspx | C76: Jobs suchen, Arbeit finden, Jobs, Stellenangebote, Jobsuche
B77: http://jobs.monster.de/browse/v-vertrieb-q-trainee-vertrieb.aspx | C77: Jobs suchen, Arbeit finden, Jobs, Stellenangebote, Jobsuche
B78: http://jobs.monster.de/browse/v-vertrieb.aspx | C78: Jobs suchen, Arbeit finden, Jobs, Stellenangebote, Jobsuche
B79: http://datenschutz.monster.de/resume-security/inside2.aspx | C79: Monster has relationships with the following ad networks and other third parties.
B80: http://datenschutz.monster.de/email-scams/inside2.aspx | C80: Monster has relationships with the following ad networks and other third parties.
B81: http://datenschutz.monster.de/computer-threats/inside2.aspx | C81: Monster has relationships with the following ad networks and other third parties.
B82: http://datenschutz.monster.de/account-management/inside2.aspx | C82: Monster has relationships with the following ad networks and other third parties.
B83: http://karriere-journal.monster.de/lebenslauf-anschreiben/anschreiben-muster/anschreiben-vorlagen-bewerbung-31021/article.aspx | C83: Musteranschreiben zum kostenlosen Herunterladen als Word-Vorlage und PDF-Dokument.
B84: http://karriere-journal.monster.de/lebenslauf-anschreiben/anschreiben-muster/anschreiben-vorlagen-bewerbung-31021/article.aspx?HPS=Navbar_CareerAdvice | C84: Musteranschreiben zum kostenlosen Herunterladen als Word-Vorlage und PDF-Dokument.
B85: http://karriere-journal.monster.de/lebenslauf-anschreiben/anschreiben-muster/anschreiben-vorlagen-bewerbung-31021/article.aspx?HPS=Navbar_Lebenslauf | C85: Musteranschreiben zum kostenlosen Herunterladen als Word-Vorlage und PDF-Dokument.
B86: http://karriere-journal.monster.de/Lebenslauf-Anschreiben/Anschreiben-Muster/anschreiben-vorlagen-bewerbung-31021/article.aspx | C86: Musteranschreiben zum kostenlosen Herunterladen als Word-Vorlage und PDF-Dokument.
B87: http://karriere-journal.monster.de/vorstellungsgesprach/vorbereitung/ratgeber-vorstellungsgespraech-42086/article.aspx | C87: Das Vorstellungsgespräch ist eine Prüfung. Was Sie wissen sollten, umzu bestehen.
B88: http://karriere-journal.monster.de/vorstellungsgesprach/vorbereitung/ratgeber-vorstellungsgespraech-42086/article.aspx?HPS=Navbar_CareerAdvice | C88: Das Vorstellungsgespräch ist eine Prüfung. Was Sie wissen sollten, umzu bestehen.
B89: http://karriere-journal.monster.de/lebenslauf-anschreiben/anschreiben-muster/hochschulabsolvent-musteranschreiben-31003/article.aspx | C89: Musteranschreiben für Hochschulabsolventen zum Herunterladen als Word- und PDF-Dokument.
B90: http://karriere-journal.monster.de/Lebenslauf-Anschreiben/Anschreiben-Muster/hochschulabsolvent-musteranschreiben-31003/article.aspx | C90: Musteranschreiben für Hochschulabsolventen zum Herunterladen als Word- und PDF-Dokument.
B91: http://karriere-journal.monster.de/bewerbungs-tipps/vorbereitung-recherche/die-initiativbewerbung-29688/article.aspx | C91: So formulieren Sie eine perfekte Initiativbewerbung. Zahlreiche Beispiele aus der Praxis.
B92: http://karriere-journal.monster.de/Bewerbungs-Tipps/Vorbereitung-Recherche/die-initiativbewerbung-29688/article.aspx | C92: So formulieren Sie eine perfekte Initiativbewerbung. Zahlreiche Beispiele aus der Praxis.
B93: http://karriere-journal.monster.de/lebenslauf-anschreiben/lebenslauf/ratgeber-online-lebenslauf-cv-31641/article.aspx?HPS=Navbar_Lebenslauf | C93: Wer seinen Lebenslauf online stellt, hält die Angel dauerhaft in den Strom der Jobangebote.
B94: http://karriere-journal.monster.de/lebenslauf-anschreiben/lebenslauf/ratgeber-online-lebenslauf-cv-31641/article.aspx | C94: Wer seinen Lebenslauf online stellt, hält die Angel dauerhaft in den Strom der Jobangebote.
B95: http://karriere-journal.monster.de/lebenslauf-anschreiben/lebenslauf-muster/fuehrungskraft-musterlebenslauf-30981/article.aspx | C95: Lebenslauf für Führungskräfte und Teamleiter zum kostenlosen Herunterladen als Word-Vorlage.
B96: http://karriere-journal.monster.de/Lebenslauf-Anschreiben/Lebenslauf-Muster/fuehrungskraft-musterlebenslauf-30981/article.aspx | C96: Lebenslauf für Führungskräfte und Teamleiter zum kostenlosen Herunterladen als Word-Vorlage.
B97: http://karriere-journal.monster.de/Lebenslauf-Anschreiben/Lebenslauf/ratgeber-lebenslauf-ueberblick-28680/article.aspx | C97: Der Lebenslauf ist das wichtigste Dokument Ihrer Bewerbung. Alles zu Inhalt, Aufbau und Aussehen.
B98: http://karriere-journal.monster.de/lebenslauf-anschreiben/lebenslauf/ratgeber-lebenslauf-ueberblick-28680/article.aspx | C98: Der Lebenslauf ist das wichtigste Dokument Ihrer Bewerbung. Alles zu Inhalt, Aufbau und Aussehen.
B99: http://karriere-journal.monster.de/lebenslauf-anschreiben/lebenslauf-muster/young-professional-musterlebenslauf-30979/article.aspx | C99: Lebenslauf-Muster für Young Professionals und Berufsanfänger zum Herunterladen als Word-Vorlage.
B100: http://karriere-journal.monster.de/Lebenslauf-Anschreiben/Lebenslauf-Muster/young-professional-musterlebenslauf-30979/article.aspx | C100: Lebenslauf-Muster für Young Professionals und Berufsanfänger zum Herunterladen als Word-Vorlage.
B101: http://karriere-journal.monster.de/lebenslauf-anschreiben/anschreiben/so-verkaufen-sie-softskills-im-anschreiben-31143/article.aspx?HPS=Navbar_Lebenslauf | C101: Ob teamfähig, führungsstark, oder kommunikativ: So verkaufen Sie Ihre Softskills im Anschreiben.
B102: http://karriere-journal.monster.de/lebenslauf-anschreiben/anschreiben/so-verkaufen-sie-softskills-im-anschreiben-31143/article.aspx | C102: Ob teamfähig, führungsstark, oder kommunikativ: So verkaufen Sie Ihre Softskills im Anschreiben.
B103: http://karriere-journal.monster.de/Lebenslauf-Anschreiben/Anschreiben/so-verkaufen-sie-softskills-im-anschreiben-31143/article.aspx | C103: Ob teamfähig, führungsstark, oder kommunikativ: So verkaufen Sie Ihre Softskills im Anschreiben.
B104: http://karriere-journal.monster.de/Lebenslauf-Anschreiben/Anschreiben/bewerben-usa-anschreiben-cover-letter-39178/article.aspx | C104: Richtig Bewerben in Amerika - das Anschreiben. Teil drei des siebenteiligen Bewerbungsratgeber USA.
B105: http://karriere-journal.monster.de/lebenslauf-anschreiben/anschreiben/bewerben-usa-anschreiben-cover-letter-39178/article.aspx | C105: Richtig Bewerben in Amerika - das Anschreiben. Teil drei des siebenteiligen Bewerbungsratgeber USA.
B106: http://arbeitgeber.monster.de/online-recruiting/aktuelles.aspx?WT.mc_n=News_prospect | C106: Sichern Sie sich den Wissensvorsprung zu aktuellsten Entwicklungen und Trends am Jobmarkt mit Monster.
B107: http://arbeitgeber.monster.de/online-recruiting/aktuelles.aspx | C107: Sichern Sie sich den Wissensvorsprung zu aktuellsten Entwicklungen und Trends am Jobmarkt mit Monster.
B108: http://jobsuche.monster.de/?tm=Letzten-7-Tage&sf=20 | C108: Jobs &amp; Stellenanzeigen. Mit der Monster Online Jobsuche finden Sie Jobangebote – leichter als je zuvor.
B109: http://jobsuche.monster.de/?tm=Seit-3-Tagen&sf=23 | C109: Jobs &amp; Stellenanzeigen. Mit der Monster Online Jobsuche finden Sie Jobangebote – leichter als je zuvor.
B110: http://jobsuche.monster.de/?tm=Letzten-7-Tage&sf=23 | C110: Jobs &amp; Stellenanzeigen. Mit der Monster Online Jobsuche finden Sie Jobangebote – leichter als je zuvor.
B111: http://jobsuche.monster.de/?tm=Seit-30-Tagen&sf=23 | C111: Jobs &amp; Stellenanzeigen. Mit der Monster Online Jobsuche finden Sie Jobangebote – leichter als je zuvor.
B112: http://jobsuche.monster.de/?tm=Gestern&sf=23 | C112: Jobs &amp; Stellenanzeigen. Mit der Monster Online Jobsuche finden Sie Jobangebote – leichter als je zuvor.
B113: http://jobsuche.monster.de/?tm=Heute&sf=23 | C113: Jobs &amp; Stellenanzeigen. Mit der Monster Online Jobsuche finden Sie Jobangebote – leichter als je zuvor.
B114: http://jobsuche.monster.de/?tm=Letzten-14-Tage&sf=23 | C114: Jobs &amp; Stellenanzeigen. Mit der Monster Online Jobsuche finden Sie Jobangebote – leichter als je zuvor.
B115: http://jobsuche.monster.de/?tm=Letzten-7-Tage&pg=6&sf=23 | C115: Jobs &amp; Stellenanzeigen. Mit der Monster Online Jobsuche finden Sie Jobangebote – leichter als je zuvor.
B116: http://jobsuche.monster.de/?tm=Letzten-7-Tage&sf=17 | C116: Jobs &amp; Stellenanzeigen. Mit der Monster Online Jobsuche finden Sie Jobangebote – leichter als je zuvor.
B117: http://jobsuche.monster.de/?q=it&sf=14 | C117: It Jobs &amp; Stellenanzeigen. Mit der Monster Online Jobsuche finden Sie Jobangebote – leichter als je zuvor.
B118: http://jobsuche.monster.de/Durchsuchen/?q=it | C118: It Jobs &amp; Stellenanzeigen. Mit der Monster Online Jobsuche finden Sie Jobangebote – leichter als je zuvor.
B119: http://jobsuche.monster.de/Recht_4?pg=8 | C119: Jobs &amp; Stellenanzeigen. Mit der Monster Online Jobsuche finden Sie Recht Jobangebote – leichter als je zuvor.
B120: http://jobsuche.monster.de/recht_4 | C120: Jobs &amp; Stellenanzeigen. Mit der Monster Online Jobsuche finden Sie Recht Jobangebote – leichter als je zuvor.
B121: http://jobsuche.monster.de/Recht_4?HPS=4_5C3_Suche_Recht | C121: Jobs &amp; Stellenanzeigen. Mit der Monster Online Jobsuche finden Sie Recht Jobangebote – leichter als je zuvor.
B122: http://jobsuche.monster.de/Recht_4?pg=1 | C122: Jobs &amp; Stellenanzeigen. Mit der Monster Online Jobsuche finden Sie Recht Jobangebote – leichter als je zuvor.
B123: http://jobsuche.monster.de/Recht_4?pg=10 | C123: Jobs &amp; Stellenanzeigen. Mit der Monster Online Jobsuche finden Sie Recht Jobangebote – leichter als je zuvor.
B124: http://jobsuche.monster.de/Recht_4?pg=11 | C124: Jobs &amp; Stellenanzeigen. Mit der Monster Online Jobsuche finden Sie Recht Jobangebote – leichter als je zuvor.
B125: http://jobsuche.monster.de/Recht_4?pg=2 | C125: Jobs &amp; Stellenanzeigen. Mit der Monster Online Jobsuche finden Sie Recht Jobangebote – leichter als je zuvor.
B126: http://jobsuche.monster.de/Recht_4?pg=3 | C126: Jobs &amp; Stellenanzeigen. Mit der Monster Online Jobsuche finden Sie Recht Jobangebote – leichter als je zuvor.
B127: http://jobsuche.monster.de/Recht_4?pg=4 | C127: Jobs &amp; Stellenanzeigen. Mit der Monster Online Jobsuche finden Sie Recht Jobangebote – leichter als je zuvor.
B128: http://jobsuche.monster.de/Recht_4?pg=5 | C128: Jobs &amp; Stellenanzeigen. Mit der Monster Online Jobsuche finden Sie Recht Jobangebote – leichter als je zuvor.
B129: http://jobsuche.monster.de/Recht_4?pg=5&sf=23 | C129: Jobs &amp; Stellenanzeigen. Mit der Monster Online Jobsuche finden Sie Recht Jobangebote – leichter als je zuvor.
B130: http://jobsuche.monster.de/Recht_4?pg=6 | C130: Jobs &amp; Stellenanzeigen. Mit der Monster Online Jobsuche finden Sie Recht Jobangebote – leichter als je zuvor.
B131: http://jobsuche.monster.de/Recht_4?pg=7 | C131: Jobs &amp; Stellenanzeigen. Mit der Monster Online Jobsuche finden Sie Recht Jobangebote – leichter als je zuvor.
B132: http://jobsuche.monster.de/Recht_4?sf=23 | C132: Jobs &amp; Stellenanzeigen. Mit der Monster Online Jobsuche finden Sie Recht Jobangebote – leichter als je zuvor.
B133: http://jobsuche.monster.de/Recht_4?sf=22 | C133: Jobs &amp; Stellenanzeigen. Mit der Monster Online Jobsuche finden Sie Recht Jobangebote – leichter als je zuvor.
B134: http://jobsuche.monster.de/Recht_4?sf=21 | C134: Jobs &amp; Stellenanzeigen. Mit der Monster Online Jobsuche finden Sie Recht Jobangebote – leichter als je zuvor.
B135: http://jobsuche.monster.de/Recht_4?sf=20 | C135: Jobs &amp; Stellenanzeigen. Mit der Monster Online Jobsuche finden Sie Recht Jobangebote – leichter als je zuvor.
B136: http://jobsuche.monster.de/Recht_4?sf=19 | C136: Jobs &amp; Stellenanzeigen. Mit der Monster Online Jobsuche finden Sie Recht Jobangebote – leichter als je zuvor.
B137: http://jobsuche.monster.de/Recht_4?sf=14 | C137: Jobs &amp; Stellenanzeigen. Mit der Monster Online Jobsuche finden Sie Recht Jobangebote – leichter als je zuvor.
B138: http://jobsuche.monster.de/Recht_4?sf=13 | C138: Jobs &amp; Stellenanzeigen. Mit der Monster Online Jobsuche finden Sie Recht Jobangebote – leichter als je zuvor.
B139: http://jobsuche.monster.de/Recht_4?sf=10 | C139: Jobs &amp; Stellenanzeigen. Mit der Monster Online Jobsuche finden Sie Recht Jobangebote – leichter als je zuvor.
B140: http://jobsuche.monster.de/Recht_4?pg=9 | C140: Jobs &amp; Stellenanzeigen. Mit der Monster Online Jobsuche finden Sie Recht Jobangebote – leichter als je zuvor.
B141: http://jobsuche.monster.de/Recht_4?pg=8&sf=23 | C141: Jobs &amp; Stellenanzeigen. Mit der Monster Online Jobsuche finden Sie Recht Jobangebote – leichter als je zuvor.
B142: http://jobsuche.monster.de/Halle_2 | C142: Jobs &amp; Stellenanzeigen in Halle. Mit der Monster Online Jobsuche finden Sie Jobangebote – leichter als je zuvor.
B143: http://jobsuche.monster.de/Halle_2?sf=13 | C143: Jobs &amp; Stellenanzeigen in Halle. Mit der Monster Online Jobsuche finden Sie Jobangebote – leichter als je zuvor.
B144: http://jobsuche.monster.de/Halle_2?pg=2 | C144: Jobs &amp; Stellenanzeigen in Halle. Mit der Monster Online Jobsuche finden Sie Jobangebote – leichter als je zuvor.
B145: http://jobsuche.monster.de/handwerk_4 | C145: Jobs &amp; Stellenanzeigen. Mit der Monster Online Jobsuche finden Sie Handwerk Jobangebote – leichter als je zuvor.
B146: http://jobsuche.monster.de/Handwerk_4?sf=22 | C146: Jobs &amp; Stellenanzeigen. Mit der Monster Online Jobsuche finden Sie Handwerk Jobangebote – leichter als je zuvor.
B147: http://jobsuche.monster.de/Handwerk_4?sf=21 | C147: Jobs &amp; Stellenanzeigen. Mit der Monster Online Jobsuche finden Sie Handwerk Jobangebote – leichter als je zuvor.
B148: http://jobsuche.monster.de/Handwerk_4?sf=20 | C148: Jobs &amp; Stellenanzeigen. Mit der Monster Online Jobsuche finden Sie Handwerk Jobangebote – leichter als je zuvor.
B149: http://jobsuche.monster.de/Handwerk_4?sf=19 | C149: Jobs &amp; Stellenanzeigen. Mit der Monster Online Jobsuche finden Sie Handwerk Jobangebote – leichter als je zuvor.
B150: http://jobsuche.monster.de/Handwerk_4?pg=8&sf=14 | C150: Jobs &amp; Stellenanzeigen. Mit der Monster Online Jobsuche finden Sie Handwerk Jobangebote – leichter als je zuvor.
B151: http://jobsuche.monster.de/Handwerk_4?HPS=4_5C3_Suche_Handwerk | C151: Jobs &amp; Stellenanzeigen. Mit der Monster Online Jobsuche finden Sie Handwerk Jobangebote – leichter als je zuvor.
B152: http://jobsuche.monster.de/Handwerk_4?pg=8&sf=13 | C152: Jobs &amp; Stellenanzeigen. Mit der Monster Online Jobsuche finden Sie Handwerk Jobangebote – leichter als je zuvor.
B153: http://jobsuche.monster.de/Handwerk_4?sf=14 | C153: Jobs &amp; Stellenanzeigen. Mit der Monster Online Jobsuche finden Sie Handwerk Jobangebote – leichter als je zuvor.
B154: http://jobsuche.monster.de/Handwerk_4?sf=13 | C154: Jobs &amp; Stellenanzeigen. Mit der Monster Online Jobsuche finden Sie Handwerk Jobangebote – leichter als je zuvor.
B155: http://jobsuche.monster.de/Handwerk_4?sf=10 | C155: Jobs &amp; Stellenanzeigen. Mit der Monster Online Jobsuche finden Sie Handwerk Jobangebote – leichter als je zuvor.
B156: http://jobsuche.monster.de/Handwerk_4?pg=8&sf=10 | C156: Jobs &amp; Stellenanzeigen. Mit der Monster Online Jobsuche finden Sie Handwerk Jobangebote – leichter als je zuvor.
B157: http://jobsuche.monster.de/Handwerk_4?pg=1 | C157: Jobs &amp; Stellenanzeigen. Mit der Monster Online Jobsuche finden Sie Handwerk Jobangebote – leichter als je zuvor.
B158: http://jobsuche.monster.de/Handwerk_4?pg=8 | C158: Jobs &amp; Stellenanzeigen. Mit der Monster Online Jobsuche finden Sie Handwerk Jobangebote – leichter als je zuvor.
B159: http://jobsuche.monster.de/Handwerk_4?pg=10 | C159: Jobs &amp; Stellenanzeigen. Mit der Monster Online Jobsuche finden Sie Handwerk Jobangebote – leichter als je zuvor.
B160: http://jobsuche.monster.de/Handwerk_4?pg=5 | C160: Jobs &amp; Stellenanzeigen. Mit der Monster Online Jobsuche finden Sie Handwerk Jobangebote – leichter als je zuvor.
B161: http://jobsuche.monster.de/Handwerk_4?pg=2 | C161: Jobs &amp; Stellenanzeigen. Mit der Monster Online Jobsuche finden Sie Handwerk Jobangebote – leichter als je zuvor.
B162: http://jobsuche.monster.de/Handwerk_4?pg=7 | C162: Jobs &amp; Stellenanzeigen. Mit der Monster Online Jobsuche finden Sie Handwerk Jobangebote – leichter als je zuvor.
B163: http://jobsuche.monster.de/Handwerk_4?pg=6 | C163: Jobs &amp; Stellenanzeigen. Mit der Monster Online Jobsuche finden Sie Handwerk Jobangebote – leichter als je zuvor.
B164: http://jobsuche.monster.de/Handwerk_4?pg=9 | C164: Jobs &amp; Stellenanzeigen. Mit der Monster Online Jobsuche finden Sie Handwerk Jobangebote – leichter als je zuvor.
B165: http://jobsuche.monster.de/Handwerk_4?pg=4 | C165: Jobs &amp; Stellenanzeigen. Mit der Monster Online Jobsuche finden Sie Handwerk Jobangebote – leichter als je zuvor.
B166: http://jobsuche.monster.de/Handwerk_4?pg=3 | C166: Jobs &amp; Stellenanzeigen. Mit der Monster Online Jobsuche finden Sie Handwerk Jobangebote – leichter als je zuvor.
B167: http://jobsuche.monster.de/Handwerk_4?sf=23 | C167: Jobs &amp; Stellenanzeigen. Mit der Monster Online Jobsuche finden Sie Handwerk Jobangebote – leichter als je zuvor.
B168: http://jobsuche.monster.de/Durchsuchen/?q=logistik | C168: Logistik Jobs &amp; Stellenanzeigen. Mit der Monster Online Jobsuche finden Sie Jobangebote – leichter als je zuvor.
B169: http://jobsuche.monster.de/?q=logistik&sf=14 | C169: Logistik Jobs &amp; Stellenanzeigen. Mit der Monster Online Jobsuche finden Sie Jobangebote – leichter als je zuvor.
B170: http://jobsuche.monster.de/Bayern_1?sf=21 | C170: Jobs &amp; Stellenanzeigen in Bayern. Mit der Monster Online Jobsuche finden Sie Jobangebote – leichter als je zuvor.
B171: http://jobsuche.monster.de/Bayern_1?sf=20 | C171: Jobs &amp; Stellenanzeigen in Bayern. Mit der Monster Online Jobsuche finden Sie Jobangebote – leichter als je zuvor.
B172: http://jobsuche.monster.de/Bayern_1?sf=18.820 | C172: Jobs &amp; Stellenanzeigen in Bayern. Mit der Monster Online Jobsuche finden Sie Jobangebote – leichter als je zuvor.
B173: http://jobsuche.monster.de/Bayern_1?pg=3&sf=18.820 | C173: Jobs &amp; Stellenanzeigen in Bayern. Mit der Monster Online Jobsuche finden Sie Jobangebote – leichter als je zuvor.
B174: http://jobsuche.monster.de/Durchsuchen/bayern_1 | C174: Jobs &amp; Stellenanzeigen in Bayern. Mit der Monster Online Jobsuche finden Sie Jobangebote – leichter als je zuvor.
B175: http://jobsuche.monster.de/Berlin_1?sf=18.813 | C175: Jobs &amp; Stellenanzeigen in Berlin. Mit der Monster Online Jobsuche finden Sie Jobangebote – leichter als je zuvor.
B176: http://jobsuche.monster.de/Berlin_2 | C176: Jobs &amp; Stellenanzeigen in Berlin. Mit der Monster Online Jobsuche finden Sie Jobangebote – leichter als je zuvor.
B177: http://jobsuche.monster.de/Durchsuchen/berlin_1 | C177: Jobs &amp; Stellenanzeigen in Berlin. Mit der Monster Online Jobsuche finden Sie Jobangebote – leichter als je zuvor.
B178: http://jobsuche.monster.de/Durchsuchen/bremen_1 | C178: Jobs &amp; Stellenanzeigen in Bremen. Mit der Monster Online Jobsuche finden Sie Jobangebote – leichter als je zuvor.
B179: http://jobsuche.monster.de/Bremen_1?sf=18.814 | C179: Jobs &amp; Stellenanzeigen in Bremen. Mit der Monster Online Jobsuche finden Sie Jobangebote – leichter als je zuvor.
B180: http://jobsuche.monster.de/Hessen_1?sf=10 | C180: Jobs &amp; Stellenanzeigen in Hessen. Mit der Monster Online Jobsuche finden Sie Jobangebote – leichter als je zuvor.
B181: http://jobsuche.monster.de/Hessen_1?sf=18.815 | C181: Jobs &amp; Stellenanzeigen in Hessen. Mit der Monster Online Jobsuche finden Sie Jobangebote – leichter als je zuvor.
B182: http://jobsuche.monster.de/Hessen_1?sf=18.815&pcnme=9 | C182: Jobs &amp; Stellenanzeigen in Hessen. Mit der Monster Online Jobsuche finden Sie Jobangebote – leichter als je zuvor.
B183: http://jobsuche.monster.de/Durchsuchen/hessen_1 | C183: Jobs &amp; Stellenanzeigen in Hessen. Mit der Monster Online Jobsuche finden Sie Jobangebote – leichter als je zuvor.
B184: http://jobsuche.monster.de/Minden_2?pg=6 | C184: Jobs &amp; Stellenanzeigen in Minden. Mit der Monster Online Jobsuche finden Sie Jobangebote – leichter als je zuvor.
B185: http://jobsuche.monster.de/Minden_2?sf=14 | C185: Jobs &amp; Stellenanzeigen in Minden. Mit der Monster Online Jobsuche finden Sie Jobangebote – leichter als je zuvor.
B186: http://jobsuche.monster.de/Minden_2 | C186: Jobs &amp; Stellenanzeigen in Minden. Mit der Monster Online Jobsuche finden Sie Jobangebote – leichter als je zuvor.
B187: http://jobsuche.monster.de/Marketing_4?pg=1&sf=21 | C187: Jobs &amp; Stellenanzeigen. Mit der Monster Online Jobsuche finden Sie Marketing Jobangebote – leichter als je zuvor.
B188: http://jobsuche.monster.de/Marketing_4?pg=5 | C188: Jobs &amp; Stellenanzeigen. Mit der Monster Online Jobsuche finden Sie Marketing Jobangebote – leichter als je zuvor.
B189: http://jobsuche.monster.de/Marketing_4?pg=5&sf=22 | C189: Jobs &amp; Stellenanzeigen. Mit der Monster Online Jobsuche finden Sie Marketing Jobangebote – leichter als je zuvor.
B190: http://jobsuche.monster.de/Marketing_4?pg=6 | C190: Jobs &amp; Stellenanzeigen. Mit der Monster Online Jobsuche finden Sie Marketing Jobangebote – leichter als je zuvor.
B191: http://jobsuche.monster.de/Marketing_4?pg=7 | C191: Jobs &amp; Stellenanzeigen. Mit der Monster Online Jobsuche finden Sie Marketing Jobangebote – leichter als je zuvor.
B192: http://jobsuche.monster.de/Marketing_4?pg=8 | C192: Jobs &amp; Stellenanzeigen. Mit der Monster Online Jobsuche finden Sie Marketing Jobangebote – leichter als je zuvor.
B193: http://jobsuche.monster.de/Marketing_4?pg=9 | C193: Jobs &amp; Stellenanzeigen. Mit der Monster Online Jobsuche finden Sie Marketing Jobangebote – leichter als je zuvor.
B194: http://jobsuche.monster.de/Marketing_4?sf=10 | C194: Jobs &amp; Stellenanzeigen. Mit der Monster Online Jobsuche finden Sie Marketing Jobangebote – leichter als je zuvor.
B195: http://jobsuche.monster.de/Marketing_4?pg=3 | C195: Jobs &amp; Stellenanzeigen. Mit der Monster Online Jobsuche finden Sie Marketing Jobangebote – leichter als je zuvor.
B196: http://jobsuche.monster.de/Marketing_4?pg=2 | C196: Jobs &amp; Stellenanzeigen. Mit der Monster Online Jobsuche finden Sie Marketing Jobangebote – leichter als je zuvor.
B197: http://jobsuche.monster.de/Marketing_4?pg=10 | C197: Jobs &amp; Stellenanzeigen. Mit der Monster Online Jobsuche finden Sie Marketing Jobangebote – leichter als je zuvor.
B198: http://jobsuche.monster.de/Marketing_4?sf=13 | C198: Jobs &amp; Stellenanzeigen. Mit der Monster Online Jobsuche finden Sie Marketing Jobangebote – leichter als je zuvor.
B199: http://jobsuche.monster.de/Marketing_4?pg=1 | C199: Jobs &amp; Stellenanzeigen. Mit der Monster Online Jobsuche finden Sie Marketing Jobangebote – leichter als je zuvor.
B200: http://jobsuche.monster.de/Marketing_4?HPS=4_5C3_Suche_Marketing | C200: Jobs &amp; Stellenanzeigen. Mit der Monster Online Jobsuche finden Sie Marketing Jobangebote – leichter als je zuvor.
B201: http://jobsuche.monster.de/marketing_4 | C201: Jobs &amp; Stellenanzeigen. Mit der Monster Online Jobsuche finden Sie Marketing Jobangebote – leichter als je zuvor.
B202: http://jobsuche.monster.de/Marketing_4?sf=14 | C202: Jobs &amp; Stellenanzeigen. Mit der Monster Online Jobsuche finden Sie Marketing Jobangebote – leichter als je zuvor.
B203: http://jobsuche.monster.de/Marketing_4?sf=19 | C203: Jobs &amp; Stellenanzeigen. Mit der Monster Online Jobsuche finden Sie Marketing Jobangebote – leichter als je zuvor.
B204: http://jobsuche.monster.de/Marketing_4?sf=20 | C204: Jobs &amp; Stellenanzeigen. Mit der Monster Online Jobsuche finden Sie Marketing Jobangebote – leichter als je zuvor.
... 1890 more rows

Sheet Duplicate Title Tags
B3: Duplicate Title Tags
B5: Pages found with duplicate title tags
B6: Total Count: 1866
B8: Issue Severity: Critical
B9: URL | C9: Duplicate
B10: http://forum.monster.de/n/pfx/profile.aspx?webtag=mstforum40&userId=1892558899&ptpw=y | C10: Im Berufsleben
B11: http://forum.monster.de/n/pfx/profile.aspx?webtag=mstforum40&userId=1881054893&ptpw=y | C11: Im Berufsleben
B12: http://forum.monster.de/n/pfx/profile.aspx?webtag=mstforum30&userId=1888615451&ptpw=y | C12: Studium und Berufsstart
B13: http://forum.monster.de/n/pfx/profile.aspx?webtag=mstforum30&userId=1887458185&ptpw=y | C13: Studium und Berufsstart
B14: http://forum.monster.de/n/pfx/profile.aspx?webtag=mstforum30&userId=1893597676&ptpw=y | C14: Studium und Berufsstart
B15: http://karriere-journal.monster.de/karriere-planung/careers-all.aspx | C15: Karriere-Planung-Artikel | Monster
B16: http://karriere-journal.monster.de/karriere-planung/10/careers-all.aspx | C16: Karriere-Planung-Artikel | Monster
B17: http://jobsuche.monster.de/?tm=Letzten-7-Tage&sf=17 | C17: Jobs & Stellenanzeigen | monster.de
B18: http://jobsuche.monster.de/?tm=Letzten-7-Tage&sf=23 | C18: Jobs & Stellenanzeigen | monster.de
B19: http://jobsuche.monster.de/?tm=Letzten-14-Tage&sf=23 | C19: Jobs & Stellenanzeigen | monster.de
B20: http://jobsuche.monster.de/?tm=Seit-3-Tagen&sf=23 | C20: Jobs & Stellenanzeigen | monster.de
B21: http://jobsuche.monster.de/?tm=Letzten-7-Tage&sf=20 | C21: Jobs & Stellenanzeigen | monster.de
B22: http://jobsuche.monster.de/?tm=Seit-30-Tagen&sf=23 | C22: Jobs & Stellenanzeigen | monster.de
B23: http://jobsuche.monster.de/?tm=Heute&sf=23 | C23: Jobs & Stellenanzeigen | monster.de
B24: http://jobsuche.monster.de/?tm=Gestern&sf=23 | C24: Jobs & Stellenanzeigen | monster.de
B25: http://jobsuche.monster.de/Durchsuchen/?q=it | C25: It Jobs & Stellenanzeigen | monster.de
B26: http://jobsuche.monster.de/?q=it&sf=14 | C26: It Jobs & Stellenanzeigen | monster.de
B27: http://datenschutz.monster.de/email-scams/inside2.aspx | C27: Third Party Advertising on Monster.com
B28: http://datenschutz.monster.de/account-management/inside2.aspx | C28: Third Party Advertising on Monster.com
B29: http://karriere-journal.monster.de/Beruf-Recht/Kundigung-Stellenwechsel/ratgeber-probezeit-28289/article.aspx | C29: Ratgeber Kündigung: Probezeit | Monster
B30: http://karriere-journal.monster.de/beruf-recht/kundigung-stellenwechsel/ratgeber-probezeit-28289/article.aspx | C30: Ratgeber Kündigung: Probezeit | Monster
B31: http://karriere-journal.monster.de/vorstellungsgesprach/vorbereitung/ratgeber-vorstellungsgespraech-42086/article.aspx?HPS=Navbar_CareerAdvice | C31: Ratgeber Vorstellungsgespräch | Monster
B32: http://karriere-journal.monster.de/vorstellungsgesprach/vorbereitung/ratgeber-vorstellungsgespraech-42086/article.aspx | C32: Ratgeber Vorstellungsgespräch | Monster
B33: http://karriere-journal.monster.de/geld-gehalt/gehaltsverhandlung/geld-und-gehalt/article.aspx?HPS=7_9C1GeldGehalt | C33: Geld & Gehalt | Monster--||TSA||--Form to
B34: http://karriere-journal.monster.de/geld-gehalt/gehaltsverhandlung/geld-und-gehalt/article.aspx | C34: Geld & Gehalt | Monster--||TSA||--Form to
B35: http://jobsuche.monster.de/Recht_4?sf=19 | C35: Recht Jobs & Stellenanzeigen | monster.de
B36: http://jobsuche.monster.de/recht_4 | C36: Recht Jobs & Stellenanzeigen | monster.de
B37: http://jobsuche.monster.de/Recht_4?HPS=4_5C3_Suche_Recht | C37: Recht Jobs & Stellenanzeigen | monster.de
B38: http://jobsuche.monster.de/Recht_4?pg=1 | C38: Recht Jobs & Stellenanzeigen | monster.de
B39: http://jobsuche.monster.de/Recht_4?sf=23 | C39: Recht Jobs & Stellenanzeigen | monster.de
B40: http://jobsuche.monster.de/Recht_4?sf=22 | C40: Recht Jobs & Stellenanzeigen | monster.de
B41: http://jobsuche.monster.de/Recht_4?sf=10 | C41: Recht Jobs & Stellenanzeigen | monster.de
B42: http://jobsuche.monster.de/Recht_4?sf=13 | C42: Recht Jobs & Stellenanzeigen | monster.de
B43: http://jobsuche.monster.de/Recht_4?sf=14 | C43: Recht Jobs & Stellenanzeigen | monster.de
B44: http://jobsuche.monster.de/Recht_4?sf=21 | C44: Recht Jobs & Stellenanzeigen | monster.de
B45: http://jobsuche.monster.de/Recht_4?sf=20 | C45: Recht Jobs & Stellenanzeigen | monster.de
B46: http://jobs.monster.de/l-berlin.aspx | C46: Berlin Jobs & Karriere-Chancen | Monster.de
B47: http://jobs.monster.de/l-berlin.aspx?HPS=Navbar_Jobs | C47: Berlin Jobs & Karriere-Chancen | Monster.de
B48: http://karriere-journal.monster.de/bewerbungs-tipps/vorbereitung-recherche/bewerbungstipps/article.aspx?HPS=7_9C1Bewerbungstipps | C48: Bewerbungstipps | Monster--||TSA||--Form to
B49: http://karriere-journal.monster.de/bewerbungs-tipps/vorbereitung-recherche/bewerbungstipps/article.aspx | C49: Bewerbungstipps | Monster--||TSA||--Form to
B50: http://jobs.monster.de/l-hamburg.aspx?HPS=Navbar_Jobs | C50: Hamburg Jobs & Karriere-Chancen | Monster.de
B51: http://jobs.monster.de/l-hamburg.aspx | C51: Hamburg Jobs & Karriere-Chancen | Monster.de
B52: http://jobsuche.monster.de/Handwerk_4?sf=10 | C52: Handwerk Jobs & Stellenanzeigen | monster.de
B53: http://jobsuche.monster.de/Handwerk_4?pg=1 | C53: Handwerk Jobs & Stellenanzeigen | monster.de
B54: http://jobsuche.monster.de/Handwerk_4?HPS=4_5C3_Suche_Handwerk | C54: Handwerk Jobs & Stellenanzeigen | monster.de
B55: http://jobsuche.monster.de/Handwerk_4?sf=13 | C55: Handwerk Jobs & Stellenanzeigen | monster.de
B56: http://jobsuche.monster.de/Handwerk_4?sf=19 | C56: Handwerk Jobs & Stellenanzeigen | monster.de
B57: http://jobsuche.monster.de/Handwerk_4?sf=20 | C57: Handwerk Jobs & Stellenanzeigen | monster.de
B58: http://jobsuche.monster.de/handwerk_4 | C58: Handwerk Jobs & Stellenanzeigen | monster.de
B59: http://jobsuche.monster.de/Handwerk_4?sf=21 | C59: Handwerk Jobs & Stellenanzeigen | monster.de
B60: http://jobsuche.monster.de/Handwerk_4?sf=22 | C60: Handwerk Jobs & Stellenanzeigen | monster.de
B61: http://jobsuche.monster.de/Handwerk_4?sf=23 | C61: Handwerk Jobs & Stellenanzeigen | monster.de
B62: http://jobsuche.monster.de/Handwerk_4?sf=14 | C62: Handwerk Jobs & Stellenanzeigen | monster.de
B63: http://jobsuche.monster.de/Halle_2 | C63: Jobs & Stellenanzeigen in Halle | monster.de
B64: http://jobsuche.monster.de/Halle_2?sf=13 | C64: Jobs & Stellenanzeigen in Halle | monster.de
B65: http://jobsuche.monster.de/?q=logistik&sf=14 | C65: Logistik Jobs & Stellenanzeigen | monster.de
B66: http://jobsuche.monster.de/Durchsuchen/?q=logistik | C66: Logistik Jobs & Stellenanzeigen | monster.de
B67: http://jobsuche.monster.de/Bayern_1?sf=21 | C67: Jobs & Stellenanzeigen in Bayern | monster.de
B68: http://jobsuche.monster.de/Bayern_1?sf=18.820 | C68: Jobs & Stellenanzeigen in Bayern | monster.de
B69: http://jobsuche.monster.de/Durchsuchen/bayern_1 | C69: Jobs & Stellenanzeigen in Bayern | monster.de
B70: http://jobsuche.monster.de/Bayern_1?sf=20 | C70: Jobs & Stellenanzeigen in Bayern | monster.de
B71: http://jobsuche.monster.de/Berlin_1?sf=18.813 | C71: Jobs & Stellenanzeigen in Berlin | monster.de
B72: http://jobsuche.monster.de/Durchsuchen/berlin_1 | C72: Jobs & Stellenanzeigen in Berlin | monster.de
B73: http://jobsuche.monster.de/Berlin_2 | C73: Jobs & Stellenanzeigen in Berlin | monster.de
B74: http://jobsuche.monster.de/Durchsuchen/bremen_1 | C74: Jobs & Stellenanzeigen in Bremen | monster.de
B75: http://jobsuche.monster.de/Bremen_1?sf=18.814 | C75: Jobs & Stellenanzeigen in Bremen | monster.de
B76: http://jobsuche.monster.de/Hessen_1?sf=18.815 | C76: Jobs & Stellenanzeigen in Hessen | monster.de
B77: http://jobsuche.monster.de/Hessen_1?sf=18.815&pcnme=9 | C77: Jobs & Stellenanzeigen in Hessen | monster.de
B78: http://jobsuche.monster.de/Hessen_1?sf=10 | C78: Jobs & Stellenanzeigen in Hessen | monster.de
B79: http://jobsuche.monster.de/Durchsuchen/hessen_1 | C79: Jobs & Stellenanzeigen in Hessen | monster.de
B80: http://jobsuche.monster.de/Minden_2 | C80: Jobs & Stellenanzeigen in Minden | monster.de
B81: http://jobsuche.monster.de/Minden_2?sf=14 | C81: Jobs & Stellenanzeigen in Minden | monster.de
B82: http://jobsuche.monster.de/Marketing_4?sf=23 | C82: Marketing Jobs & Stellenanzeigen | monster.de
B83: http://jobsuche.monster.de/Durchsuchen/?q=marketing | C83: Marketing Jobs & Stellenanzeigen | monster.de
B84: http://jobsuche.monster.de/Marketing_4?HPS=4_5C3_Suche_Marketing | C84: Marketing Jobs & Stellenanzeigen | monster.de
B85: http://jobsuche.monster.de/Marketing_4?pg=1 | C85: Marketing Jobs & Stellenanzeigen | monster.de
B86: http://jobsuche.monster.de/Marketing_4?pg=1&sf=21 | C86: Marketing Jobs & Stellenanzeigen | monster.de
B87: http://jobsuche.monster.de/marketing_4 | C87: Marketing Jobs & Stellenanzeigen | monster.de
B88: http://jobsuche.monster.de/Marketing_4?sf=10 | C88: Marketing Jobs & Stellenanzeigen | monster.de
B89: http://jobsuche.monster.de/Marketing_4?sf=13 | C89: Marketing Jobs & Stellenanzeigen | monster.de
B90: http://jobsuche.monster.de/Marketing_4?sf=14 | C90: Marketing Jobs & Stellenanzeigen | monster.de
B91: http://jobsuche.monster.de/?q=marketing&sf=13 | C91: Marketing Jobs & Stellenanzeigen | monster.de
B92: http://jobsuche.monster.de/Marketing_4?sf=19 | C92: Marketing Jobs & Stellenanzeigen | monster.de
B93: http://jobsuche.monster.de/Marketing_4?sf=20 | C93: Marketing Jobs & Stellenanzeigen | monster.de
B94: http://jobsuche.monster.de/Marketing_4?sf=21 | C94: Marketing Jobs & Stellenanzeigen | monster.de
B95: http://jobsuche.monster.de/Marketing_4?sf=22 | C95: Marketing Jobs & Stellenanzeigen | monster.de
B96: http://karriere-journal.monster.de/lebenslauf-anschreiben/lebenslauf/mein-erster-lebenslauf/article.aspx?HPS=Navbar_Lebenslauf | C96: Mein erster Lebenslauf - Grundlagen | Monster
B97: http://karriere-journal.monster.de/lebenslauf-anschreiben/lebenslauf/mein-erster-lebenslauf/article.aspx | C97: Mein erster Lebenslauf - Grundlagen | Monster
B98: http://jobsuche.monster.de/Hamburg_2 | C98: Jobs & Stellenanzeigen in Hamburg | monster.de
B99: http://jobsuche.monster.de/Hamburg_1?sf=18.822 | C99: Jobs & Stellenanzeigen in Hamburg | monster.de
B100: http://jobsuche.monster.de/Durchsuchen/hamburg_1 | C100: Jobs & Stellenanzeigen in Hamburg | monster.de
B101: http://jobsuche.monster.de/Sachsen_1?sf=18.818 | C101: Jobs & Stellenanzeigen in Sachsen | monster.de
B102: http://jobsuche.monster.de/Sachsen_1?sf=18.818&pcnme=9 | C102: Jobs & Stellenanzeigen in Sachsen | monster.de
B103: http://lebenslauf.monster.de/?WT.mc_n=CVDEup01 | C103: Lebenslauf Beispiele und Vorlagen | monster.de
B104: http://lebenslauf.monster.de/?HPS=2_CV_anlegen | C104: Lebenslauf Beispiele und Vorlagen | monster.de
B105: http://lebenslauf.monster.de/ | C105: Lebenslauf Beispiele und Vorlagen | monster.de
B106: http://karriere-journal.monster.de/lebenslauf-anschreiben/lebenslauf-muster/fuehrungskraft-musterlebenslauf-30981/article.aspx | C106: Lebenslauf Führungskraft Teamleiter | Monster
B107: http://karriere-journal.monster.de/Lebenslauf-Anschreiben/Lebenslauf-Muster/fuehrungskraft-musterlebenslauf-30981/article.aspx | C107: Lebenslauf Führungskraft Teamleiter | Monster
B108: http://jobsuche.monster.de/Produktion_4?pg=1 | C108: Produktion Jobs & Stellenanzeigen | monster.de
B109: http://jobsuche.monster.de/Produktion_4?tm=Letzten-14-Tage&sf=23 | C109: Produktion Jobs & Stellenanzeigen | monster.de
B110: http://jobsuche.monster.de/Produktion_4?sf=23 | C110: Produktion Jobs & Stellenanzeigen | monster.de
B111: http://jobsuche.monster.de/Produktion_4?sf=22 | C111: Produktion Jobs & Stellenanzeigen | monster.de
B112: http://jobsuche.monster.de/Produktion_4?sf=21 | C112: Produktion Jobs & Stellenanzeigen | monster.de
B113: http://jobsuche.monster.de/Produktion_4?sf=20 | C113: Produktion Jobs & Stellenanzeigen | monster.de
B114: http://jobsuche.monster.de/Produktion_4?sf=19 | C114: Produktion Jobs & Stellenanzeigen | monster.de
B115: http://jobsuche.monster.de/Produktion_4?sf=14 | C115: Produktion Jobs & Stellenanzeigen | monster.de
B116: http://jobsuche.monster.de/Produktion_4?HPS=4_5C3_Suche_Produktion | C116: Produktion Jobs & Stellenanzeigen | monster.de
B117: http://jobsuche.monster.de/Produktion_4?sf=13 | C117: Produktion Jobs & Stellenanzeigen | monster.de
B118: http://jobsuche.monster.de/Produktion_4?sf=10 | C118: Produktion Jobs & Stellenanzeigen | monster.de
B119: http://jobsuche.monster.de/Durchsuchen/?q=finanzwesen | C119: Finanzwesen Jobs & Stellenanzeigen | monster.de
B120: http://jobsuche.monster.de/?q=finanzwesen&sf=20 | C120: Finanzwesen Jobs & Stellenanzeigen | monster.de
B121: http://jobsuche.monster.de/Durchsuchen/saarland_1 | C121: Jobs & Stellenanzeigen in Saarland | monster.de
B122: http://jobsuche.monster.de/Saarland_1?sf=18.825 | C122: Jobs & Stellenanzeigen in Saarland | monster.de
B123: http://jobsuche.monster.de/Saarland_1?sf=10 | C123: Jobs & Stellenanzeigen in Saarland | monster.de
B124: http://karriere-journal.monster.de/lebenslauf-anschreiben/arbeitszeugnis/ratgeber-arbeitszeugnis-index-28741/article.aspx | C124: Arbeitszeugnis: die häufigsten Fragen | Monster
B125: http://karriere-journal.monster.de/lebenslauf-anschreiben/arbeitszeugnis/ratgeber-arbeitszeugnis-index-28741/article.aspx?HPS=Navbar_Lebenslauf | C125: Arbeitszeugnis: die häufigsten Fragen | Monster
B126: http://karriere-journal.monster.de/karriere-planung/weiterbildung/fernstudium-ratgeber/article.aspx | C126: Fernstudium Ratgeber | Monster--||TSA||--Form to
B127: http://karriere-journal.monster.de/karriere-planung/weiterbildung/fernstudium-anbieter-finden/article.aspx | C127: Fernstudium Ratgeber | Monster--||TSA||--Form to
B128: http://jobsuche.monster.de/Wolfsburg_2?sf=13 | C128: Jobs & Stellenanzeigen in Wolfsburg | monster.de
B129: http://jobsuche.monster.de/Wolfsburg_2 | C129: Jobs & Stellenanzeigen in Wolfsburg | monster.de
B130: http://jobsuche.monster.de/Bozen-__28IT__29_2?sf=13 | C130: Jobs & Stellenanzeigen in Bozen (IT) | monster.de
B131: http://jobsuche.monster.de/Bozen-__28IT__29_2 | C131: Jobs & Stellenanzeigen in Bozen (IT) | monster.de
B132: http://jobsuche.monster.de/Ruhrgebiet_2 | C132: Jobs & Stellenanzeigen in Ruhrgebiet | monster.de
B133: http://jobsuche.monster.de/Ruhrgebiet_2?sf=14 | C133: Jobs & Stellenanzeigen in Ruhrgebiet | monster.de
B134: http://jobsuche.monster.de/bundesweit_2?sf=10 | C134: Jobs & Stellenanzeigen in bundesweit | monster.de
B135: http://jobsuche.monster.de/bundesweit_2 | C135: Jobs & Stellenanzeigen in bundesweit | monster.de
B136: http://jobsuche.monster.de/Personalwesen_4?sf=20&pcn=4 | C136: Personalwesen Jobs & Stellenanzeigen | monster.de
B137: http://jobsuche.monster.de/Personalwesen_4?sf=19&pjt=2 | C137: Personalwesen Jobs & Stellenanzeigen | monster.de
B138: http://jobsuche.monster.de/Personalwesen_4?sf=23 | C138: Personalwesen Jobs & Stellenanzeigen | monster.de
B139: http://jobsuche.monster.de/Personalwesen_4?sf=14 | C139: Personalwesen Jobs & Stellenanzeigen | monster.de
B140: http://jobsuche.monster.de/Personalwesen_4?sf=19 | C140: Personalwesen Jobs & Stellenanzeigen | monster.de
B141: http://jobsuche.monster.de/Personalwesen_4?sf=21 | C141: Personalwesen Jobs & Stellenanzeigen | monster.de
B142: http://jobsuche.monster.de/Personalwesen_4?sf=13 | C142: Personalwesen Jobs & Stellenanzeigen | monster.de
B143: http://jobsuche.monster.de/Personalwesen_4?sf=20 | C143: Personalwesen Jobs & Stellenanzeigen | monster.de
B144: http://jobsuche.monster.de/Personalwesen_4?sf=22 | C144: Personalwesen Jobs & Stellenanzeigen | monster.de
B145: http://jobsuche.monster.de/Personalwesen_4?HPS=4_5C3_Suche_Personalwesen | C145: Personalwesen Jobs & Stellenanzeigen | monster.de
B146: http://jobsuche.monster.de/Personalwesen_4?sf=10 | C146: Personalwesen Jobs & Stellenanzeigen | monster.de
B147: http://jobsuche.monster.de/Personalwesen_4?pg=1 | C147: Personalwesen Jobs & Stellenanzeigen | monster.de
B148: http://jobsuche.monster.de/personalwesen_4 | C148: Personalwesen Jobs & Stellenanzeigen | monster.de
B149: http://jobsuche.monster.de/Instandhaltung_4?sf=13 | C149: Instandhaltung Jobs & Stellenanzeigen | monster.de
B150: http://jobsuche.monster.de/Instandhaltung_4?sf=10 | C150: Instandhaltung Jobs & Stellenanzeigen | monster.de
B151: http://jobsuche.monster.de/Instandhaltung_4?HPS=4_5C3_Suche_Instandhaltung | C151: Instandhaltung Jobs & Stellenanzeigen | monster.de
B152: http://jobsuche.monster.de/instandhaltung_4 | C152: Instandhaltung Jobs & Stellenanzeigen | monster.de
B153: http://jobsuche.monster.de/Instandhaltung_4?tm=Gestern&sf=23 | C153: Instandhaltung Jobs & Stellenanzeigen | monster.de
B154: http://jobsuche.monster.de/Instandhaltung_4?sf=23 | C154: Instandhaltung Jobs & Stellenanzeigen | monster.de
B155: http://jobsuche.monster.de/Instandhaltung_4?sf=22 | C155: Instandhaltung Jobs & Stellenanzeigen | monster.de
B156: http://jobsuche.monster.de/Instandhaltung_4?sf=21 | C156: Instandhaltung Jobs & Stellenanzeigen | monster.de
B157: http://jobsuche.monster.de/Instandhaltung_4?sf=20 | C157: Instandhaltung Jobs & Stellenanzeigen | monster.de
B158: http://jobsuche.monster.de/Instandhaltung_4?sf=19 | C158: Instandhaltung Jobs & Stellenanzeigen | monster.de
B159: http://jobsuche.monster.de/Instandhaltung_4?pg=1 | C159: Instandhaltung Jobs & Stellenanzeigen | monster.de
B160: http://jobsuche.monster.de/Instandhaltung_4?sf=14 | C160: Instandhaltung Jobs & Stellenanzeigen | monster.de
B161: http://jobsuche.monster.de/Durchsuchen/brandenburg_1 | C161: Jobs & Stellenanzeigen in Brandenburg | monster.de
B162: http://jobsuche.monster.de/Brandenburg_1?sf=18.821 | C162: Jobs & Stellenanzeigen in Brandenburg | monster.de
B163: http://jobs.monster.de/l-berlin,-berlin.aspx | C163: Berlin, Berlin Jobs & Karriere-Chancen | Monster.de
B164: http://jobs.monster.de/l-berlin%2c-frankfurt,-berlin.aspx | C164: Berlin, Berlin Jobs & Karriere-Chancen | Monster.de
B165: http://karriere-journal.monster.de/geld-gehalt/gehaltsverhandlung/die-besten-gehaltstipps-35316/article.aspx?HPS=Navbar_CareerAdvice | C165: Die besten Gehaltstipps | Monster--||TSA||--Form to
B166: http://karriere-journal.monster.de/geld-gehalt/gehaltsverhandlung/die-besten-gehaltstipps-35316/article.aspx | C166: Die besten Gehaltstipps | Monster--||TSA||--Form to
B167: http://jobsuche.monster.de/Berlin__2dMitte_2 | C167: Jobs & Stellenanzeigen in Berlin-Mitte | monster.de
B168: http://jobsuche.monster.de/Berlin__2dMitte_2?sf=10 | C168: Jobs & Stellenanzeigen in Berlin-Mitte | monster.de
B169: http://jobsuche.monster.de/Recht_4?pg=5&sf=23 | C169: Recht Jobs & Stellenanzeigen - Seite 5 | monster.de
B170: http://jobsuche.monster.de/Recht_4?pg=5 | C170: Recht Jobs & Stellenanzeigen - Seite 5 | monster.de
B171: http://jobsuche.monster.de/Recht_4?pg=8 | C171: Recht Jobs & Stellenanzeigen - Seite 8 | monster.de
B172: http://jobsuche.monster.de/Recht_4?pg=8&sf=23 | C172: Recht Jobs & Stellenanzeigen - Seite 8 | monster.de
B173: http://jobsuche.monster.de/?q=sachbearbeitung&sf=20 | C173: Sachbearbeitung Jobs & Stellenanzeigen | monster.de
B174: http://jobsuche.monster.de/Durchsuchen/?q=sachbearbeitung | C174: Sachbearbeitung Jobs & Stellenanzeigen | monster.de
B175: http://jobs.monster.de/l-sachsen.aspx | C175: Sachsen-Anhalt Jobs & Karriere-Chancen | Monster.de
B176: http://jobs.monster.de/l-sachsen-anhalt.aspx | C176: Sachsen-Anhalt Jobs & Karriere-Chancen | Monster.de
B177: http://jobsuche.monster.de/sonstige-Berufe_4?pg=1&sf=20 | C177: Sonstige Berufe Jobs & Stellenanzeigen | monster.de
B178: http://jobsuche.monster.de/sonstige-Berufe_4?HPS=4_5C3_Suche_Sonstige | C178: Sonstige Berufe Jobs & Stellenanzeigen | monster.de
B179: http://jobsuche.monster.de/sonstige-Berufe_4?pg=1 | C179: Sonstige Berufe Jobs & Stellenanzeigen | monster.de
B180: http://jobsuche.monster.de/sonstige-Berufe_4?pg=1&sf=21 | C180: Sonstige Berufe Jobs & Stellenanzeigen | monster.de
B181: http://jobsuche.monster.de/sonstige-Berufe_4?sf=10 | C181: Sonstige Berufe Jobs & Stellenanzeigen | monster.de
B182: http://jobsuche.monster.de/sonstige-Berufe_4?sf=13 | C182: Sonstige Berufe Jobs & Stellenanzeigen | monster.de
B183: http://jobsuche.monster.de/sonstige-Berufe_4?sf=14 | C183: Sonstige Berufe Jobs & Stellenanzeigen | monster.de
B184: http://jobsuche.monster.de/sonstige-Berufe_4?sf=15.11 | C184: Sonstige Berufe Jobs & Stellenanzeigen | monster.de
B185: http://jobsuche.monster.de/sonstige-Berufe_4?sf=19 | C185: Sonstige Berufe Jobs & Stellenanzeigen | monster.de
B186: http://jobsuche.monster.de/sonstige-Berufe_4?sf=20 | C186: Sonstige Berufe Jobs & Stellenanzeigen | monster.de
B187: http://jobsuche.monster.de/sonstige-Berufe_4?sf=21 | C187: Sonstige Berufe Jobs & Stellenanzeigen | monster.de
B188: http://jobsuche.monster.de/sonstige-Berufe_4?sf=22 | C188: Sonstige Berufe Jobs & Stellenanzeigen | monster.de
B189: http://jobsuche.monster.de/sonstige-Berufe_4?sf=23 | C189: Sonstige Berufe Jobs & Stellenanzeigen | monster.de
B190: http://jobsuche.monster.de/Niedersachsen_2 | C190: Jobs & Stellenanzeigen in Niedersachsen | monster.de
B191: http://jobsuche.monster.de/Niedersachsen_1?sf=18.816&pcnme=4 | C191: Jobs & Stellenanzeigen in Niedersachsen | monster.de
B192: http://jobsuche.monster.de/Niedersachsen_1?sf=18.816 | C192: Jobs & Stellenanzeigen in Niedersachsen | monster.de
B193: http://jobsuche.monster.de/Niedersachsen_2?sf=10 | C193: Jobs & Stellenanzeigen in Niedersachsen | monster.de
B194: http://jobsuche.monster.de/Niedersachsen_2?sf=14 | C194: Jobs & Stellenanzeigen in Niedersachsen | monster.de
B195: http://jobsuche.monster.de/Niedersachsen_2?sf=19 | C195: Jobs & Stellenanzeigen in Niedersachsen | monster.de
B196: http://jobsuche.monster.de/Durchsuchen/niedersachsen_1 | C196: Jobs & Stellenanzeigen in Niedersachsen | monster.de
B197: http://karriere-journal.monster.de/Bewerbungs-Tipps/Vorbereitung-Recherche/die-initiativbewerbung-29688/article.aspx | C197: Perfekt formuliert: Die Initiativbewerbung | Monster
B198: http://karriere-journal.monster.de/bewerbungs-tipps/vorbereitung-recherche/die-initiativbewerbung-29688/article.aspx | C198: Perfekt formuliert: Die Initiativbewerbung | Monster
B199: http://jobsuche.monster.de/Sachsen+Recht_14?sf=18.818 | C199: Recht Jobs & Stellenanzeigen in Sachsen | monster.de
B200: http://jobsuche.monster.de/Sachsen+Recht_14?sf=14 | C200: Recht Jobs & Stellenanzeigen in Sachsen | monster.de
B201: http://jobs.monster.de/l-rheinland-pfalz.aspx | C201: Rheinland-Pfalz Jobs & Karriere-Chancen | Monster.de
B202: http://jobs.monster.de/l-55543,-rheinland-pfalz.aspx | C202: Rheinland-Pfalz Jobs & Karriere-Chancen | Monster.de
B203: http://jobs.monster.de/l-55543,-rosenhof,-rheinland-pfalz.aspx | C203: Rheinland-Pfalz Jobs & Karriere-Chancen | Monster.de
B204: http://jobs.monster.de/l-hamburg%2c-m%c3%bcnchen,-hamburg.aspx | C204: Hamburg, Hamburg Jobs & Karriere-Chancen | Monster.de
... 1671 more rows

Sheet URL Special Characters
B3: URL Special Characters
B5: URLs found with special characters (see cell comment for additional details)
B6: Total Count: 1532
B8: Issue Severity: Critical
B9: URL | C9: Special Character Count | D9: Special Characters
B10: http://stellenanzeige.monster.de/Technikaffiner-Strategischer-Eink%c3%a4ufer-m-w-f%c3%bcr-weltweite-Beschaffungsm%c3%a4rkte-gesucht!-Job-Villingen-Schwenningen-Baden-W%c3%bcrttemberg-Deutschland-103813551.aspx | C10: 9 | D10: %%%%%%!%%
B11: https://login.monster.de/?ch=DEGE&r=http%3A%2F%2Fjobsuche.monster.de%2fDurchsuchen%2f%3fpg%3d8%26sf%3d19 | C11: 9 | D11: %%%%%%%%%
B12: http://stellenanzeige.monster.de/Orthop%c3%a4dietechniker-m-w-%e2%80%93-Fachbereich-Orthesen-und-Prothesen-Job-Gro%c3%9fraum-Esslingen-Baden-W%c3%bcrttemberg-Deutschland-101423297.aspx | C12: 9 | D12: %%%%%%%%%
B13: https://login.monster.de/?ch=DEGE&r=http%3A%2F%2Fjobsuche.monster.de%2fDurchsuchen%2f%3fpg%3d8%26sf%3d17 | C13: 9 | D13: %%%%%%%%%
B14: https://login.monster.de/?ch=DEGE&r=http%3A%2F%2Fjobsuche.monster.de%2fDurchsuchen%2f%3fpg%3d1%26sf%3d23 | C14: 9 | D14: %%%%%%%%%
B15: http://jobsuche.monster.de/Soci%c3%a9t%c3%a9-G%c3%a9n%c3%a9rale-S__2eA__2e_6 | C15: 8 | D15: %%%%%%%%
B16: http://stellenanzeige.monster.de/Ihr-Einstieg-in-die-Vermessungstechnik-%e2%80%93-Gestalterischer-Vermessungsingenieur-GIS-m-w-gesucht!-Job-Gro%c3%9fraum-Villingen-Schwenningen-Baden-W%c3%bcrttemberg-Deutschland-104107930.aspx | C16: 8 | D16: %%%!%%%%
B17: http://stellenanzeige.monster.de/Key-Account-Manager-in-Markenrepr%c3%a4sentanten-f%c3%bcr-Heimtextilien-in-S%c3%bcddeutschland-Job-S%c3%bcddeutschland-Deutschland-100678268.aspx | C17: 8 | D17: %%%%%%%%
B18: http://stellenanzeige.monster.de/Leidenschaftlicher-Eink%c3%a4ufer-Frische-Produkte-f%c3%bcr-Gro%c3%9fhandel-m-w-Job-Singen-Hohentwiel-Baden-W%c3%bcrttemberg-Deutschland-96190861.aspx | C18: 8 | D18: %%%%%%%%
B19: http://stellenanzeige.monster.de/F%c3%bchrungspers%c3%b6nlichkeit-mit-kaufm%c3%a4nnischem-Background-Job-Stuttgart-Baden-W%c3%bcrttemberg-Deutschland-103442572.aspx | C19: 8 | D19: %%%%%%%%
B20: http://stellenanzeige.monster.de/Wissenschaftlicher-Mitarbeiter-in-%c2%bbObjekterkennung-f%c3%bcr-3D-Smartkameras%c2%ab-Job-Stuttgart-Baden-W%c3%bcrttemberg-Deutschland-103596725.aspx | C20: 8 | D20: %%%%%%%%
B21: http://stellenanzeige.monster.de/Kaufm%c3%a4nnische-Angestellte-w-m-zur-Unterst%c3%bctzung-der-Pr%c3%bcfungsdurchf%c3%bchrung-A-7712-Job-Frankfurt-a.-M.-Hessen-Deutschland-100925141.aspx | C21: 8 | D21: %%%%%%%%
B22: https://login.monster.de/?ch=DEGE&r=http%3A%2F%2Fjobsuche.monster.de%2f%3ftm%3dSeit-3-Tagen%26sf%3d23 | C22: 8 | D22: %%%%%%%%
B23: http://stellenanzeige.monster.de/Erfahrene-F%c3%bchrungskraft-m-w-im-Qualit%c3%a4tsmanagement-Job-Gro%c3%9fraum-Tuttlingen-Baden-W%c3%bcrttemberg-Deutschland-99706937.aspx | C23: 8 | D23: %%%%%%%%
B24: http://stellenanzeige.monster.de/Ern%c3%a4hrungsberater-m-w-Schwerpunkt-Di%c3%a4t-und-Ern%c3%a4hrungspl%c3%a4ne-Job-Berlin-Deutschland-104194956.aspx | C24: 8 | D24: %%%%%%%%
B25: https://login.monster.de/?ch=DEGE&r=http%3A%2F%2Fjobsuche.monster.de%2fBerlin%2bNaturwissenschaftliche-Forschung_14%3fsf%3d18.813 | C25: 7 | D25: %%%%%%%
B26: http://jobsuche.monster.de/AdvancedSearch.aspx?cn=PERIT%20Consulting%20GmbH%20%26%20Co%2e%20KG&sf=20 | C26: 7 | D26: %%%%%%%
B27: https://login.monster.de/?ch=DEGE&r=http%3A%2F%2Fjobsuche.monster.de%2fBrandenburg%2bEnergie-Wasserversorgung_13%3fsf%3d18.821 | C27: 7 | D27: %%%%%%%
B28: https://login.monster.de/?ch=DEGE&r=http%3A%2F%2Fjobsuche.monster.de%2fBrandenburg%2bHandwerk_14%3fsf%3d18.821 | C28: 7 | D28: %%%%%%%
B29: https://login.monster.de/?ch=DEGE&r=http%3A%2F%2Fjobsuche.monster.de%2fDurchsuchen%2f%3fsf%3d23 | C29: 7 | D29: %%%%%%%
B30: https://login.monster.de/?ch=DEGE&r=http%3A%2F%2Fjobsuche.monster.de%2fDurchsuchen%2f%3fsf%3d20 | C30: 7 | D30: %%%%%%%
B31: https://login.monster.de/?ch=DEGE&r=http%3A%2F%2Fjobsuche.monster.de%2fDurchsuchen%2f%3fsf%3d19 | C31: 7 | D31: %%%%%%%
B32: https://login.monster.de/?ch=DEGE&r=http%3A%2F%2Fjobsuche.monster.de%2fDurchsuchen%2f%3fsf%3d17 | C32: 7 | D32: %%%%%%%
B33: https://login.monster.de/?ch=DEGE&r=http%3A%2F%2Fjobsuche.monster.de%2fBrandenburg%2bLogistik-und-Transport_14%3fsf%3d18.821 | C33: 7 | D33: %%%%%%%
B34: https://login.monster.de/?r=http%3A%2F%2Funternehmen.monster.de%2fprofile%2fmonster-worldwide-deutschland.aspx%3ffollow%3d1&ch=DEGE | C34: 7 | D34: %%%%%%%
B35: https://login.monster.de/?r=http%3A%2F%2Funternehmen.monster.de%2fprofile%2fsalzgitter-ag.aspx%3ffollow%3d1&ch=DEGE | C35: 7 | D35: %%%%%%%
B36: https://login.monster.de/?ch=DEGE&r=http%3A%2F%2Fjobsuche.monster.de%2fRheinland-Pfalz%2bIT-Informationstechnologie_14%3fsf%3d18.817 | C36: 7 | D36: %%%%%%%
B37: https://login.monster.de/?ch=DEGE&r=http%3A%2F%2Fjobsuche.monster.de%2fMecklenburg-Vorpommern%2bProduktion_14%3fsf%3d18.823 | C37: 7 | D37: %%%%%%%
B38: https://login.monster.de/?ch=DEGE&r=http%3A%2F%2Fjobsuche.monster.de%2fMecklenburg-Vorpommern%2bHotel-und-Gastronomie_14%3fsf%3d18.823 | C38: 7 | D38: %%%%%%%
B39: https://login.monster.de/?ch=DEGE&r=http%3A%2F%2Fjobsuche.monster.de%2fSaarland%2bVermietung-Leasing_13%3fsf%3d18.825 | C39: 7 | D39: %%%%%%%
B40: https://login.monster.de/?ch=DEGE&r=http%3A%2F%2Fjobsuche.monster.de%2fHessen%2bRechnungswesen-Finanzen_14%3fsf%3d18.815 | C40: 7 | D40: %%%%%%%
B41: https://login.monster.de/?ch=DEGE&r=http%3A%2F%2Fjobsuche.monster.de%2fHessen%2bLand-Forstwirtschaft-Fischerei_13%3fsf%3d18.815 | C41: 7 | D41: %%%%%%%
B42: https://login.monster.de/?ch=DEGE&r=http%3A%2F%2Fjobsuche.monster.de%2fHessen%2bAus-und-Weiterbildung_14%3fsf%3d18.815 | C42: 7 | D42: %%%%%%%
B43: http://jobs.monster.de/l-schw%c3%a4bisch-gm%c3%bcnd,-baden-w%c3%bcrttemberg.aspx | C43: 7 | D43: %%%%,%%
B44: https://login.monster.de/?ch=DEGE&r=http%3A%2F%2Fjobsuche.monster.de%2fBerlin%2bLogistik-und-Transport_14%3fsf%3d18.813 | C44: 7 | D44: %%%%%%%
B45: https://login.monster.de/?ch=DEGE&r=http%3A%2F%2Fjobsuche.monster.de%2fSachsen%2bAdministration-Sachbearbeitung_14%3fsf%3d18.818 | C45: 7 | D45: %%%%%%%
B46: https://login.monster.de/?ch=DEGE&r=http%3A%2F%2Fjobsuche.monster.de%2fRheinland-Pfalz%2bIngenieurdienstleistungen_13%3fsf%3d18.817 | C46: 7 | D46: %%%%%%%
B47: https://login.monster.de/?ch=DEGE&r=http%3A%2F%2Fjobsuche.monster.de%2fHamburg%2bPersonalwesen_14%3fsf%3d18.822 | C47: 7 | D47: %%%%%%%
B48: http://stellenanzeige.monster.de/Theaterleitungsassistent-m-w-CinemaxX-G%c3%b6ttingen-%e2%80%93-Schwerpunkt-Gastronomie-Job-G%c3%b6ttingen-Niedersachsen-Deutschland-103961888.aspx | C48: 7 | D48: %%%%%%%
B49: https://login.monster.de/?ch=DEGE&r=http%3A%2F%2Fjobsuche.monster.de%2fHamburg%2bIngenieurdienstleistungen_13%3fsf%3d18.822 | C49: 7 | D49: %%%%%%%
B50: http://stellenanzeige.monster.de/F%c3%bchrungsnachwuchskraft-Supply-Chain-%e2%80%93-Einstieg-als-Teamleiter-in-der-Produktion-m-w-Job-L%c3%b6rrach-Deutschland-99042784.aspx | C50: 7 | D50: %%%%%%%
B51: http://stellenanzeige.monster.de/Mitarbeiter-m-w-f%c3%bcr-Immobilienkredite-im-Gesch%c3%a4ftskundencenter-Job-Mannheim-Baden-W%c3%bcrttemberg-Deutschland-98392426.aspx | C51: 6 | D51: %%%%%%
B52: http://stellenanzeige.monster.de/Manager-m-w-f%c3%bcr-Service-Flottenmanagement-in-M%c3%bcnchen-Job-M%c3%bcnchen-Bayern-Deutschland-104199044.aspx | C52: 6 | D52: %%%%%%
B53: http://stellenanzeige.monster.de/International-Sales-Manager-m-w-Eventmanagement-L%c3%b6sungen-Middle-East-Job-Gro%c3%9fraum-Karlsruhe-Baden-W%c3%bcrttemberg-Deutschland-104240417.aspx | C53: 6 | D53: %%%%%%
B54: http://stellenanzeige.monster.de/Hochschulabsolventen-m-w-Wirtschaftspr%c3%bcfung-Real-Estate-Job-M%c3%bcnchen-N%c3%bcrnberg-Bayern-Deutschland-100933950.aspx | C54: 6 | D54: %%%%%%
B55: http://stellenanzeige.monster.de/Hochschulabsolvent-m-w-Steuerberatung-International-Tax-Job-D%c3%bcsseldorf-Frankfurt-Hamburg-M%c3%bcnchen-N%c3%bcrnberg-Deutschland-100933261.aspx | C55: 6 | D55: %%%%%%
B56: http://stellenanzeige.monster.de/Gro%c3%9f-und-Au%c3%9fenhandelskaufmann-m-w-Job-Heidelberg-Rhein-Neckar-Raum-Baden-W%c3%bcrttemberg-Deutschland-104223981.aspx | C56: 6 | D56: %%%%%%
B57: https://login.monster.de/?ch=DEGE&r=http%3A%2F%2Fjobsuche.monster.de%2fRochus-Mummert-Management-Search-GmbH_6%3fre%3d106 | C57: 6 | D57: %%%%%%
B58: http://stellenanzeige.monster.de/Getreide-H%c3%a4ndler-grain-trader-m-w-f%c3%bcr-dynamischen-Mittelst%c3%a4ndler-Job-Hamburg-Hamburg-Deutschland-104033329.aspx | C58: 6 | D58: %%%%%%
B59: http://stellenanzeige.monster.de/Gesch%c3%a4ftsf%c3%bchrer-in-CFO-Job-M%c3%bcnchen-Bayern-Deutschland-103647199.aspx | C59: 6 | D59: %%%%%%
B60: http://stellenanzeige.monster.de/Fach%c3%a4rzte-und-Fach%c3%a4rztinnen-f%c3%bcr-Arbeitsmedizin-Job-Wien-AT-Deutschland-103569476.aspx | C60: 6 | D60: %%%%%%
B61: http://stellenanzeige.monster.de/Berater-bzw-Junior-Berater-m-w-mit-ausgepr%c3%a4gtem-Ausdrucksverm%c3%b6gen-Job-M%c3%bcnchen-Bayern-Deutschland-104190092.aspx | C61: 6 | D61: %%%%%%
B62: http://stellenanzeige.monster.de/Duales-BWL-Studium-in-der-Fachrichtung-Gastronomiemanagement-im-Restaurant-%e2%80%9ePfeffer-Salz%e2%80%9c-Job-Viernheim-Hessen-Deutschland-104189125.aspx | C62: 6 | D62: %%%%%%
B63: http://stellenanzeige.monster.de/Dipl-Ingenieur-Elektrotechnik-Automotive-und-Industrie-Job-Schw%c3%a4bisch-Gm%c3%bcnd-Ost-Baden-W%c3%bcrttemberg-Deutschland-103100175.aspx | C63: 6 | D63: %%%%%%
B64: https://login.monster.de/?ch=DEGE&r=http%3A%2F%2Fjobsuche.monster.de%2fRedaktion-Dokumentation_4%3fHPS%3d4_5C3_Suche_Redaktion | C64: 6 | D64: %%%%%%
B65: https://login.monster.de/?ch=DEGE&r=http%3A%2F%2Fjobsuche.monster.de%2fRecht_4%3fHPS%3d4_5C3_Suche_Recht | C65: 6 | D65: %%%%%%
B66: https://login.monster.de/?ch=DEGE&r=http%3A%2F%2Fjobsuche.monster.de%2fRechnungswesen-Finanzen_4%3fsf%3d14 | C66: 6 | D66: %%%%%%
B67: https://login.monster.de/?ch=DEGE&r=http%3A%2F%2Fjobsuche.monster.de%2fRechnungswesen-Finanzen_4%3fsf%3d10 | C67: 6 | D67: %%%%%%
B68: https://login.monster.de/?ch=DEGE&r=http%3A%2F%2Fjobsuche.monster.de%2fRechnungswesen-Finanzen_4%3fHPS%3d4_5C3_Suche_Rechnungswesen | C68: 6 | D68: %%%%%%
B69: https://login.monster.de/?ch=DEGE&r=http%3A%2F%2Fjobsuche.monster.de%2fRatbacher-GmbH_6%3fsf%3d20 | C69: 6 | D69: %%%%%%
B70: https://login.monster.de/?ch=DEGE&r=http%3A%2F%2Fjobsuche.monster.de%2fRatbacher-GmbH_6%3fre%3d106 | C70: 6 | D70: %%%%%%
B71: https://login.monster.de/?ch=DEGE&r=http%3A%2F%2Fjobsuche.monster.de%2fProjektmanagement_4%3fpg%3d7 | C71: 6 | D71: %%%%%%
B72: https://login.monster.de/?ch=DEGE&r=http%3A%2F%2Fjobsuche.monster.de%2fProjektmanagement_4%3fHPS%3d4_5C3_Suche_Projektmanagement | C72: 6 | D72: %%%%%%
B73: https://login.monster.de/?ch=DEGE&r=http%3A%2F%2Fjobsuche.monster.de%2fProjektleiter-__28m__2fw__29_5%3fsf%3d19 | C73: 6 | D73: %%%%%%
B74: https://login.monster.de/?ch=DEGE&r=http%3A%2F%2Fjobsuche.monster.de%2fProduktion_4%3fHPS%3d4_5C3_Suche_Produktion | C74: 6 | D74: %%%%%%
B75: https://login.monster.de/?ch=DEGE&r=http%3A%2F%2Fjobsuche.monster.de%2fPersonalwesen_4%3fpg%3d8 | C75: 6 | D75: %%%%%%
B76: https://login.monster.de/?ch=DEGE&r=http%3A%2F%2Fjobsuche.monster.de%2fPersonalwesen_4%3fHPS%3d4_5C3_Suche_Personalwesen | C76: 6 | D76: %%%%%%
B77: https://login.monster.de/?ch=DEGE&r=http%3A%2F%2Fjobsuche.monster.de%2fNaturwissenschaftliche-Forschung_4%3fHPS%3d4_5C3_Suche_Naturwissenschaftliche | C77: 6 | D77: %%%%%%
B78: https://login.monster.de/?ch=DEGE&r=http%3A%2F%2Fjobsuche.monster.de%2fMedizin-und-Gesundheit_4%3fsf%3d20 | C78: 6 | D78: %%%%%%
B79: https://login.monster.de/?ch=DEGE&r=http%3A%2F%2Fjobsuche.monster.de%2fMedizin-und-Gesundheit_4%3fHPS%3d4_5C3_Suche_Medizin | C79: 6 | D79: %%%%%%
B80: https://login.monster.de/?ch=DEGE&r=http%3A%2F%2Fjobsuche.monster.de%2fMarketing_4%3fsf%3d23 | C80: 6 | D80: %%%%%%
B81: https://login.monster.de/?ch=DEGE&r=http%3A%2F%2Fjobsuche.monster.de%2fMarketing_4%3fsf%3d13 | C81: 6 | D81: %%%%%%
B82: https://login.monster.de/?ch=DEGE&r=http%3A%2F%2Fjobsuche.monster.de%2fMarketing_4%3fHPS%3d4_5C3_Suche_Marketing | C82: 6 | D82: %%%%%%
B83: https://login.monster.de/?ch=DEGE&r=http%3A%2F%2Fjobsuche.monster.de%2fLogistik-und-Transport_4%3fHPS%3d4_5C3_Suche_Logistik | C83: 6 | D83: %%%%%%
B84: https://login.monster.de/?ch=DEGE&r=http%3A%2F%2Fjobsuche.monster.de%2fLand-Forstwirtschaft-Fischerei_3%3fsf%3d22 | C84: 6 | D84: %%%%%%
B85: https://login.monster.de/?ch=DEGE&r=http%3A%2F%2Fjobsuche.monster.de%2fLand-Forstwirtschaft-Fischerei_3%3fsf%3d13 | C85: 6 | D85: %%%%%%
B86: https://login.monster.de/?ch=DEGE&r=http%3A%2F%2Fjobsuche.monster.de%2fKonstrukteur-__28m__2fw__29_5%3fsf%3d19 | C86: 6 | D86: %%%%%%
B87: https://login.monster.de/?ch=DEGE&r=http%3A%2F%2Fjobsuche.monster.de%2fJobs%2fMonster%2bSchifffahrt_63 | C87: 6 | D87: %%%%%%
B88: http://jobs.monster.de/l-essen%2c-bochum%2c-dortmund-(%2b-umgebung),-nordrhein-westfalen.aspx | C88: 6 | D88: %%(%),
B89: https://login.monster.de/?ch=DEGE&r=http%3A%2F%2Fjobsuche.monster.de%2fJobs%2fMonster%2bInternet-Dienstleistungen-Portale-Datenverarbeitung_63 | C89: 6 | D89: %%%%%%
B90: https://login.monster.de/?ch=DEGE&r=http%3A%2F%2Fjobsuche.monster.de%2fJava-Entwickler-__28m__2fw__29_5%3fsf%3d19 | C90: 6 | D90: %%%%%%
B91: https://login.monster.de/?ch=DEGE&r=http%3A%2F%2Fjobsuche.monster.de%2fInstandhaltung_4%3fHPS%3d4_5C3_Suche_Instandhaltung | C91: 6 | D91: %%%%%%
B92: https://login.monster.de/?ch=DEGE&r=http%3A%2F%2Fjobsuche.monster.de%2fIngenieurwesen-Entwicklung-und-Konstruktion_4%3fpg%3d2 | C92: 6 | D92: %%%%%%
B93: https://login.monster.de/?ch=DEGE&r=http%3A%2F%2Fjobsuche.monster.de%2fIngenieurwesen-Entwicklung-und-Konstruktion_4%3fHPS%3d4_5C3_Suche_Ingenieur | C93: 6 | D93: %%%%%%
B94: https://login.monster.de/?ch=DEGE&r=http%3A%2F%2Fjobsuche.monster.de%2fI__2eK__2eHofmann-GmbH_6%3fsf%3d20 | C94: 6 | D94: %%%%%%
B95: https://login.monster.de/?ch=DEGE&r=http%3A%2F%2Fjobsuche.monster.de%2fIT-Software-Systeme-Design_3%3fsf%3d19 | C95: 6 | D95: %%%%%%
B96: https://login.monster.de/?ch=DEGE&r=http%3A%2F%2Fjobsuche.monster.de%2fIT-Software-Systeme-Design_3%3fpg%3d6 | C96: 6 | D96: %%%%%%
B97: https://login.monster.de/?ch=DEGE&r=http%3A%2F%2Fjobsuche.monster.de%2fIT-Informationstechnologie_4%3fHPS%3d4_5C3_Suche_IT | C97: 6 | D97: %%%%%%
B98: https://login.monster.de/?ch=DEGE&r=http%3A%2F%2Fjobsuche.monster.de%2fHotel-und-Gastronomie_4%3fpg%3d10 | C98: 6 | D98: %%%%%%
B99: https://login.monster.de/?ch=DEGE&r=http%3A%2F%2Fjobsuche.monster.de%2fHotel-und-Gastronomie_4%3fHPS%3d4_5C3_Suche_Hotel | C99: 6 | D99: %%%%%%
B100: https://login.monster.de/?ch=DEGE&r=http%3A%2F%2Fjobsuche.monster.de%2fHaushaltsdienstleistungen_3%3fsf%3d10 | C100: 6 | D100: %%%%%%
B101: https://login.monster.de/?ch=DEGE&r=http%3A%2F%2Fjobsuche.monster.de%2fHandwerk_4%3fHPS%3d4_5C3_Suche_Handwerk | C101: 6 | D101: %%%%%%
B102: https://login.monster.de/?ch=DEGE&r=http%3A%2F%2Fjobsuche.monster.de%2fsonstige-Berufe_4%3fHPS%3d4_5C3_Suche_Sonstige | C102: 6 | D102: %%%%%%
B103: https://login.monster.de/?ch=DEGE&r=http%3A%2F%2Fjobsuche.monster.de%2fEnergie-Wasserversorgung_3%3fpg%3d7 | C103: 6 | D103: %%%%%%
B104: https://login.monster.de/?ch=DEGE&r=http%3A%2F%2Fjobsuche.monster.de%2fEnergie-Wasserversorgung_3%3fpg%3d3 | C104: 6 | D104: %%%%%%
B105: https://login.monster.de/?ch=DEGE&r=http%3A%2F%2Fjobsuche.monster.de%2fVertrieb-Verkauf_4%3fpg%3d3 | C105: 6 | D105: %%%%%%
B106: https://login.monster.de/?ch=DEGE&r=http%3A%2F%2Fjobsuche.monster.de%2fVertrieb-Verkauf_4%3fpg%3d10 | C106: 6 | D106: %%%%%%
B107: https://login.monster.de/?ch=DEGE&r=http%3A%2F%2Fjobsuche.monster.de%2fEinzelhandel_3%3fsf%3d23 | C107: 6 | D107: %%%%%%
B108: https://login.monster.de/?ch=DEGE&r=http%3A%2F%2Fjobsuche.monster.de%2fEinzelhandel_3%3fpg%3d8 | C108: 6 | D108: %%%%%%
B109: https://login.monster.de/?ch=DEGE&r=http%3A%2F%2Fjobsuche.monster.de%2fDesign-Gestaltung_4%3fpg%3d5 | C109: 6 | D109: %%%%%%
B110: https://login.monster.de/?ch=DEGE&r=http%3A%2F%2Fjobsuche.monster.de%2fDesign-Gestaltung_4%3fHPS%3d4_5C3_Suche_Design | C110: 6 | D110: %%%%%%
B111: https://login.monster.de/?ch=DEGE&r=http%3A%2F%2Fjobsuche.monster.de%2fVertrieb-Verkauf_4%3fHPS%3d4_5C3_Suche_Vertrieb | C111: 6 | D111: %%%%%%
B112: https://login.monster.de/?ch=DEGE&r=http%3A%2F%2Fjobsuche.monster.de%2fCustomer-Service-Kundenbetreuung_4%3fsf%3d22 | C112: 6 | D112: %%%%%%
B113: https://login.monster.de/?ch=DEGE&r=http%3A%2F%2Fjobsuche.monster.de%2fCustomer-Service-Kundenbetreuung_4%3fHPS%3d4_5C3_Suche_Customerservice | C113: 6 | D113: %%%%%%
B114: https://login.monster.de/?ch=DEGE&r=http%3A%2F%2Fjobsuche.monster.de%2fCharit%c3%a9-CFM-Facility-Management-GmbH_6 | C114: 6 | D114: %%%%%%
B115: https://login.monster.de/?ch=DEGE&r=http%3A%2F%2Fjobsuche.monster.de%2fBau-Baustoffhandel_3%3fpg%3d1 | C115: 6 | D115: %%%%%%
B116: https://login.monster.de/?ch=DEGE&r=http%3A%2F%2Fjobsuche.monster.de%2fAus-und-Weiterbildung_4%3fHPS%3d4_5C3_Suche_Ausbildung | C116: 6 | D116: %%%%%%
B117: https://login.monster.de/?ch=DEGE&r=http%3A%2F%2Fjobsuche.monster.de%2fAnlagen-Maschinenbau_3%3fpg%3d8 | C117: 6 | D117: %%%%%%
B118: https://login.monster.de/?ch=DEGE&r=http%3A%2F%2Fjobsuche.monster.de%2fAdministration-Sachbearbeitung_4%3fsf%3d22 | C118: 6 | D118: %%%%%%
B119: https://login.monster.de/?ch=DEGE&r=http%3A%2F%2Fjobsuche.monster.de%2fVermietung-Leasing_3%3fsf%3d23 | C119: 6 | D119: %%%%%%
B120: https://login.monster.de/?ch=DEGE&r=http%3A%2F%2Fjobsuche.monster.de%2fAdministration-Sachbearbeitung_4%3fHPS%3d4_5C3_Suche_Administration | C120: 6 | D120: %%%%%%
B121: https://login.monster.de/?ch=DEGE&r=http%3A%2F%2Fjobsuche.monster.de%2fSoftware__2dEntwickler-__28m__2fw__29_5%3fsf%3d19 | C121: 6 | D121: %%%%%%
B122: http://mein.monster.de/Become-Member/Create-Account.aspx?redirect=http%3a%2f%2fjobsuche.monster.de%2fProduktion_4%3fHPS%3d4_5C3_Suche_Produktion | C122: 6 | D122: %%%%%%
B123: https://login.monster.de/?ch=DEGE&r=http%3A%2F%2Fjobsuche.monster.de%2fSicherheit-Zivilschutz_4%3fHPS%3d4_5C3_Suche_Sicherheit | C123: 6 | D123: %%%%%%
B124: http://stellenanzeige.monster.de/Abschlussarbeit-ab-Januar-2012-Absicherung-der-HIL-F%c3%a4higkeit-des-Gesamtfahrzeug-Lenkungspr%c3%bcfstandes-Job-Sindelfingen-Baden-W%c3%bcrttemberg-Deutschland-103624866.aspx | C124: 6 | D124: %%%%%%
B125: http://stellenanzeige.monster.de/Verk%c3%a4ufer-Teilzeit-Vollzeit-f%c3%bcr-unseren-Vodafone-Shop-in-Pforzheim-Job-Pforzheim-Baden-W%c3%bcrttemberg-Deutschland-102063065.aspx | C125: 6 | D125: %%%%%%
B126: http://stellenanzeige.monster.de/Territory-Sales-Manager-m-w-Softwarel%c3%b6sungen-f%c3%bcr-die-Industrie-Job-Hannover-oder-Frankfurt-Gro%c3%9fraum-Deutschland-104240419.aspx | C126: 6 | D126: %%%%%%
B127: http://jobsuche.monster.de/AdvancedSearch.aspx?tjt=Key%20Account%20Manager%20%28m%2fw%29&sf=19 | C127: 6 | D127: %%%%%%
B128: http://stellenanzeige.monster.de/Sie-geben-dem-Handeln-Orientierung-Personalentwicklung-f%c3%bcr-Technologief%c3%bchrer-Job-Giengen-an-der-Brenz-Baden-W%c3%bcrttemberg-Deutschland-103810238.aspx | C128: 6 | D128: %%%%%%
B129: http://stellenanzeige.monster.de/Senior-m-w-Wirtschaftspr%c3%bcfung-Healthcare-Public-Sector-Job-D%c3%bcsseldorf-M%c3%bcnchen-Deutschland-100933361.aspx | C129: 6 | D129: %%%%%%
B130: http://jobs.monster.de/l-neuhausen-a%2Ed%2Ef%2E,-baden-w%c3%bcrttemberg.aspx | C130: 6 | D130: %%%,%%
B131: https://login.monster.de/?ch=DEGE&r=http%3A%2F%2Fjobsuche.monster.de%2fSchifffahrt_3%3fsf%3d13 | C131: 6 | D131: %%%%%%
B132: http://jobsuche.monster.de/AdvancedSearch.aspx?cn=Lidl%20GmbH%20%26%20Co%2e%20KG | C132: 6 | D132: %%%%%%
B133: http://stellenanzeige.monster.de/Projektleiter-m-w-bei-einem-Weltmarktf%c3%bchrer-Job-Gro%c3%9fraum-W%c3%bcrzburg-Bayern-Deutschland-104109114.aspx | C133: 6 | D133: %%%%%%
B134: http://stellenanzeige.monster.de/Projekterfahrener-IT-Leiter-m-w-als-Spezialist-f%c3%bcr-ERP-Systeme-Controlling-M%c3%bcnster-Job-Regierungsbezirk-M%c3%bcnster-Nordrhein-Westfalen-Deutschland-103977146.aspx | C134: 6 | D134: %%%%%%
B135: http://jobsuche.monster.de/AdvancedSearch.aspx?cn=Endress%2bHauser%20Conducta%20GmbH%2bCo%2e%20KG | C135: 6 | D135: %%%%%%
B136: http://stellenanzeige.monster.de/Pr%c3%bcfingenieur-Leistungspr%c3%bcfung-HG%c3%9c-Stromrichter-m-w-Job-Erlangen-Bayern-Deutschland-102659380.aspx | C136: 6 | D136: %%%%%%
B137: https://login.monster.de/?ch=DEGE&r=http%3A%2F%2Fjobsuche.monster.de%2fSchifffahrt_3%3fpg%3d5 | C137: 6 | D137: %%%%%%
B138: http://stellenanzeige.monster.de/Organisationsstarker-Technischer-Eink%c3%a4ufer-m-w-f%c3%bcr-mittelst%c3%a4ndischen-Stahl-und-Anlagenbauer-Job-Salzwedel-Sachsen-Anhalt-Deutschland-104062812.aspx | C138: 6 | D138: %%%%%%
B139: http://stellenanzeige.monster.de/Moderner-Vertriebsleiter-Projektgesch%c3%a4ft-m-w-im-Stahlbau-Job-Gro%c3%9fraum-Ulm-Baden-W%c3%bcrttemberg-Deutschland-102677623.aspx | C139: 6 | D139: %%%%%%
B140: https://login.monster.de/?ch=DEGE&r=http%3A%2F%2Fjobsuche.monster.de%2fHanseatisches-Personalkontor-Hamburg_6%3fre%3d106 | C140: 6 | D140: %%%%%%
B141: https://login.monster.de/?ch=DEGE&r=http%3A%2F%2Fjobsuche.monster.de%2fHauswirtschaftler%2fJobs-erhalten-5.aspx | C141: 5 | D141: %%%%%
B142: http://stellenanzeige.monster.de/Beratung-Akquise-Area-Sales-Manager-m-w-f%c3%bcr-metallverarbeitendes-Unternehmen-gesucht!-Job-N%c3%bcrnberg-Bayern-Deutschland-102166730.aspx | C142: 5 | D142: %%!%%
B143: https://login.monster.de/?ch=DEGE&r=http%3A%2F%2Fjobsuche.monster.de%2fRaumpfleger%2fJobs-erhalten-5.aspx | C143: 5 | D143: %%%%%
B144: http://jobs.monster.de/l-gro%c3%9fraum-w%c3%bcrzburg,-bayern.aspx | C144: 5 | D144: %%%%,
B145: http://stellenanzeige.monster.de/Technischer-Redakteur-m-w-Schwäbisch-Gmünd-Job-Schwäbisch-Gmünd-Baden-Württemberg-Deutschland-103341728.aspx | C145: 5 | D145: äüäüü
B146: http://stellenanzeige.monster.de/Technikaffiner-Strategischer-Einkäufer-m-w-für-weltweite-Beschaffungsmärkte-gesucht!-Job-Villingen-Schwenningen-Baden-Württemberg-Deutschland-103813551.aspx | C146: 5 | D146: äüä!ü
B147: http://stellenanzeige.monster.de/Betriebsleiter-in-spe-m-w-Wachsen-Sie-in-Ihre-F%c3%bchrungsaufgabe!-Job-Giengen-an-der-Brenz-Baden-W%c3%bcrttemberg-Deutschland-101369796.aspx | C147: 5 | D147: %%!%%
B148: http://jobs.monster.de/l-n%c3%a4he-freiburg,-baden-w%c3%bcrttemberg.aspx | C148: 5 | D148: %%,%%
B149: https://login.monster.de/?ch=DEGE&r=http%3A%2F%2Fjobsuche.monster.de%2fJobs%2fMonster_6 | C149: 5 | D149: %%%%%
B150: http://jobs.monster.de/l-gro%c3%9fraum-stuttgart,-baden-w%c3%bcrttemberg.aspx | C150: 5 | D150: %%,%%
B151: http://jobs.monster.de/l-gro%c3%9fraum-reutlingen,-baden-w%c3%bcrttemberg.aspx | C151: 5 | D151: %%,%%
B152: https://login.monster.de/?ch=DEGE&r=http%3A%2F%2Fjobsuche.monster.de%2fTagesmutter%2fJobs-erhalten-5.aspx | C152: 5 | D152: %%%%%
B153: http://jobs.monster.de/l-gro%c3%9fraum-ulm,-baden-w%c3%bcrttemberg.aspx | C153: 5 | D153: %%,%%
B154: http://jobs.monster.de/l-gro%c3%9fraum-villingen-schwenningen,-baden-w%c3%bcrttemberg.aspx | C154: 5 | D154: %%,%%
B155: http://jobs.monster.de/l-gro%c3%9fraum-tuttlingen,-baden-w%c3%bcrttemberg.aspx | C155: 5 | D155: %%,%%
B156: http://jobs.monster.de/l-oberfranken-(bayreuth%2c-kulmbach%2c-hof),-bayern.aspx | C156: 5 | D156: (%%),
B157: http://jobs.monster.de/l-gro%c3%9fraum-karlsruhe,-baden-w%c3%bcrttemberg.aspx | C157: 5 | D157: %%,%%
B158: http://jobs.monster.de/l-gro%c3%9fraum-esslingen,-baden-w%c3%bcrttemberg.aspx | C158: 5 | D158: %%,%%
B159: https://login.monster.de/?ch=DEGE&r=http%3A%2F%2Fjobsuche.monster.de%2fDurchsuchen%2f | C159: 5 | D159: %%%%%
B160: https://login.monster.de/?ch=DEGE&r=http%3A%2F%2Fjobsuche.monster.de%2fDurchsuchen%2fberlin_1 | C160: 5 | D160: %%%%%
B161: http://jobs.monster.de/l-k%c3%b6lleda,-th%c3%bcringen.aspx | C161: 5 | D161: %%,%%
B162: https://login.monster.de/?ch=DEGE&r=http%3A%2F%2Fjobsuche.monster.de%2fproduktion%2f_4 | C162: 5 | D162: %%%%%
B163: https://login.monster.de/?r=http%3A%2F%2Fwww.monster.de%2F&ch=DEGE | C163: 4 | D163: %%%%
B164: http://jobs.monster.de/l-hamburg%2c-m%c3%bcnchen,-hamburg.aspx | C164: 4 | D164: %%%,
B165: http://jobs.monster.de/l-heidelberg%2c-rhein-neckar-raum,-baden-w%c3%bcrttemberg.aspx | C165: 4 | D165: %,%%
B166: http://jobs.monster.de/l-ruhrgebiet%2c-k%c3%b6ln,-nordrhein-westfalen.aspx | C166: 4 | D166: %%%,
B167: http://jobs.monster.de/l-sindelfingen-%2f-stuttgart,-baden-w%c3%bcrttemberg.aspx | C167: 4 | D167: %,%%
B168: http://jobs.monster.de/l-singen-%2f-hohentwiel,-baden-w%c3%bcrttemberg.aspx | C168: 4 | D168: %,%%
B169: http://jobsuche.monster.de/Universit%c3%a4tsmedizin-der-Johannes-Gutenberg__2dUniversit%c3%a4t-Mainz_6 | C169: 4 | D169: %%%%
B170: http://jobsuche.monster.de/Universit%c3%a4tsmedizin-der-Johannes-Gutenberg__2dUniversit%c3%a4t-Mainz_6?sf=13 | C170: 4 | D170: %%%%
B171: http://jobs.monster.de/l-esslingen-%2f-region-stuttgart,-baden-w%c3%bcrttemberg.aspx | C171: 4 | D171: %,%%
B172: http://jobsuche.monster.de/Einkaufsb%c3%bcro-Deutscher-Eisenh%c3%a4ndler-Ges__2e-mbH_6 | C172: 4 | D172: %%%%
B173: http://karriere-journal.monster.de/beruf-recht/arbeitsrecht/betriebsbedingte-k%c3%bcndigung-im-europ%c3%a4ischen-vergleich/article.aspx | C173: 4 | D173: %%%%
B174: http://mein.monster.de/Become-Member/Create-Account.aspx?redirect=http%3a%2f%2fhome.monster.de%2f | C174: 4 | D174: %%%%
B175: http://mein.monster.de/Become-Member/Create-Account.aspx?redirect=http%3a%2f%2fjobs.monster.de%2f | C175: 4 | D175: %%%%
B176: http://mein.monster.de/Become-Member/Create-Account.aspx?redirect=http%3a%2f%2fmein.monster.de%2f | C176: 4 | D176: %%%%
B177: http://mein.monster.de/Become-Member/Create-Account.aspx?redirect=http%3a%2f%2fwww.monster.de%2f | C177: 4 | D177: %%%%
B178: http://stellenanzeige.monster.de/Allround-Buchhalter-mit-Controlling-Kenntnissen-m-w-BBOM-0702990-1-D-Job-B%c3%b6blingen-Baden-W%c3%bcrttemberg-Deutschland-104167438.aspx | C178: 4 | D178: %%%%
B179: http://stellenanzeige.monster.de/Anlagenmechaniker-Inbetriebnehmer-Au%c3%9fenmontage-w-m-Job-Weingarten-Baden-W%c3%bcrttemberg-Deutschland-103976021.aspx | C179: 4 | D179: %%%%
B180: http://stellenanzeige.monster.de/Assistent-in-mit-sehr-gutem-technischen-Verst%c3%a4ndnis-Job-D%c3%bcsseldorf-Nordrhein-Westfalen-Deutschland-96480848.aspx | C180: 4 | D180: %%%%
B181: http://stellenanzeige.monster.de/Assistenz-der-Gesch%c3%a4ftsleitung-rtv-media-solutions-m-w-Job-N%c3%bcrnberg-Bayern-Deutschland-104240150.aspx | C181: 4 | D181: %%%%
B182: http://stellenanzeige.monster.de/Assistenz-der-Gesch%c3%a4ftsleitung-rtv-media-solutions-m-w-Job-N%c3%bcrnberg-Bayern-Deutschland-104240151.aspx | C182: 4 | D182: %%%%
B183: http://stellenanzeige.monster.de/Augenoptiker-m-w-Job-Gro%c3%9fraum-Stuttgart-Baden-W%c3%bcrttemberg-Deutschland-101421268.aspx | C183: 4 | D183: %%%%
B184: http://stellenanzeige.monster.de/Augenoptikermeister-m-w-Job-Gro%c3%9fraum-Stuttgart-Baden-W%c3%bcrttemberg-Deutschland-101421117.aspx | C184: 4 | D184: %%%%
B185: http://stellenanzeige.monster.de/B%c3%bcroassistenz-m-w-Job-Mannheim-Baden-W%c3%bcrttemberg-Deutschland-96492270.aspx | C185: 4 | D185: %%%%
B186: http://stellenanzeige.monster.de/B%c3%bcroleitung-Innendienst-Job-Sindelfingen-Baden-W%c3%bcrttemberg-Deutschland-103659449.aspx | C186: 4 | D186: %%%%
B187: http://stellenanzeige.monster.de/Bankkaufmann-Bankkauffrau-f%c3%bcr-den-Servicebereich-Job-D%c3%bcsseldorf-Nordrhein-Westfalen-Deutschland-96480794.aspx | C187: 4 | D187: %%%%
B188: http://stellenanzeige.monster.de/Baustellenleiter-Au%c3%9fenmontage-w-m-Job-Weingarten-Baden-W%c3%bcrttemberg-Deutschland-103976020.aspx | C188: 4 | D188: %%%%
B189: http://stellenanzeige.monster.de/Biostatistiker-Klinisch-m-w-Job-Biberach-a.d.-Ri%c3%9f-Baden-W%c3%bcrttemberg-Deutschland-98026067.aspx | C189: 4 | D189: %%%%
B190: http://stellenanzeige.monster.de/Brandinspektor-in-im-vorbeugenden-Brandschutz-bei-der-Werkfeuerwehr-Mercedes-Benz-Werk-Untert%c3%bc-Job-Stuttgart-Baden-W%c3%bcrttemberg-Deutschland-103359652.aspx | C190: 4 | D190: %%%%
B191: http://stellenanzeige.monster.de/Business-Analyst-m-w-Consulting-Technology-Advisory-Technology-Integration-Job-Stuttgart-M%c3%bcnchen-D%c3%bcsseldorf-Hamburg-Frankfurt-Deutschland-100933268.aspx | C191: 4 | D191: %%%%
B192: http://stellenanzeige.monster.de/Consultant-Personaldienstleistung-m-w-zur-Verst%c3%a4rkung-des-Teams-der-AMADEUS-FIRE-AG-am-Standort-Job-Mannheim-Baden-W%c3%bcrttemberg-Deutschland-95278230.aspx | C192: 4 | D192: %%%%
B193: http://stellenanzeige.monster.de/Control-Electronic-Engineer-Job-Gr%c3%a5sten-D%c3%a4nemark-104105843.aspx | C193: 4 | D193: %%%%
B194: http://jobs.monster.de/l-asbach-b%c3%a4umenheim%2fhamlar,-bayern.aspx | C194: 4 | D194: %%%,
B195: http://stellenanzeige.monster.de/Duales-BWL-Studium-in-der-Fachrichtung-Steuer-und-Pr%c3%bcfungswesen-bei-Becker-und-Ihle-Steuerberater-Job-Rauenberg-Baden-W%c3%bcrttemberg-Deutschland-104221769.aspx | C195: 4 | D195: %%%%
B196: http://stellenanzeige.monster.de/Eink%c3%a4ufer-m-w-Equipment-Job-M%c3%bcnchen-Bayern-Deutschland-104213597.aspx | C196: 4 | D196: %%%%
B197: http://stellenanzeige.monster.de/Engagierter-Leiter-Finanz-und-Rechnungswesen-aus-der-Bau-oder-Immobilienbranche-m-w-Job-Gro%c3%9fraum-Ulm-Baden-W%c3%bcrttemberg-Deutschland-97110757.aspx | C197: 4 | D197: %%%%
B198: http://stellenanzeige.monster.de/Entsorgungsfachmann-frau-f%c3%bcr-die-Betriebsleitung-einer-Bodenreinigungsanlage-Job-Stuttgart-Baden-W%c3%bcrttemberg-Deutschland-103494894.aspx | C198: 4 | D198: %%%%
B199: http://stellenanzeige.monster.de/Entwicklungsingenieur-m-w-f%c3%bcr-Elastomerbauteile-Job-Ingelfingen-oder-Karlsruhe-Baden-W%c3%bcrttemberg-Deutschland-103652933.aspx | C199: 4 | D199: %%%%
B200: http://stellenanzeige.monster.de/Facharzt-oder-Assistenzarzt-m-w-An%c3%a4sthesie-und-Intensivmedizin-Job-Baden-W%c3%bcrttemberg-Deutschland-104195112.aspx | C200: 4 | D200: %%%%
B201: http://stellenanzeige.monster.de/Feuerwehrmann-frau-im-Bereich-VSS-Fire-Brigade-f%c3%bcr-den-mittleren-feuerwehrtechnischen-Dienst-m-w-Job-D%c3%bcsseldorf-Nordrhein-Westfalen-Deutschland-103888195.aspx | C201: 4 | D201: %%%%
B202: http://stellenanzeige.monster.de/Hochmotivierte-Hochschulabsolventen-m-w-Job-Gro%c3%9fraum-Stuttgart-Baden-W%c3%bcrttemberg-Deutschland-98386653.aspx | C202: 4 | D202: %%%%
B203: http://stellenanzeige.monster.de/Hochschulabsolvent-m-w-Corporate-Finance-Actuarial-Insurance-Services-Job-K%c3%b6ln-M%c3%bcnchen-Wien-Deutschland-100933943.aspx | C203: 4 | D203: %%%%
B204: http://stellenanzeige.monster.de/Hochschulabsolvent-m-w-Enterprise-Risk-Services-Control-Assurance-Job-Berlin-D%c3%bcsseldorf-Frankfurt-Hamburg-M%c3%bcnchen-N-Deutschland-100933257.aspx | C204: 4 | D204: %%%%
... 1337 more rows

Sheet Multiple H1 Tags
B3: Multiple H1 Tags
B5: Pages found with multiple H1 tags
B6: Total Count: 1272
B8: Issue Severity: Critical
B9: URL | C9: Count
B10: http://arbeitgeber.monster.de/ | C10: 4
B11: http://arbeitgeber.monster.de/?WT.mc_n=skr_ | C11: 4
B12: http://arbeitgeber.monster.de/?WT.mc_n=skr_advice | C12: 4
B13: http://arbeitgeber.monster.de/?WT.mc_n=skr_login | C13: 4
B14: http://arbeitgeber.monster.de/?WT.mc_n=skr_my | C14: 4
B15: http://arbeitgeber.monster.de/?WT.mc_n=skr_search | C15: 4
B16: http://arbeitgeber.monster.de/?WT.mc_n=skr_www | C16: 4
B17: http://arbeitgeber.monster.de/?WT.mc_n=skr_www_intercept | C17: 4
B18: http://arbeitgeber.monster.de/hr/personal-tipps/markte-analysen.aspx | C18: 2
B19: http://arbeitgeber.monster.de/hr/personal-tipps/markte-analysen/branchen-trends/arbeitsmarkt-manager-81918.aspx | C19: 3
B20: http://arbeitgeber.monster.de/hr/personal-tipps/markte-analysen/branchen-trends/newsletter-abonnieren-74628.aspx?WT.mc_n=NL_Abo_Footer | C20: 4
B21: http://arbeitgeber.monster.de/hr/personal-tipps/markte-analysen/gehaltsanalysen/Einkommen-Krankenhaus-2011-79323.aspx | C21: 3
B22: http://arbeitgeber.monster.de/hr/personal-tipps/markte-analysen/monster-employment-index/monster-employment-index-deutschland-august-2011-79201.aspx | C22: 3
B23: http://arbeitgeber.monster.de/hr/personal-tipps/markte-analysen/monster-employment-index/monster-employment-index-deutschland-juli-2011-%20078791.aspx | C23: 3
B24: http://arbeitgeber.monster.de/hr/personal-tipps/monster-training.aspx | C24: 2
B25: http://arbeitgeber.monster.de/hr/personal-tipps/personalmanagement/arbeitshilfen-checklisten/musterformular-probezeitbeurteilung-72557.aspx | C25: 3
B26: http://arbeitgeber.monster.de/hr/personal-tipps/personalmanagement/arbeitsrecht/Alkohol_Drogen_Arbeitsplatz_Missbrauch.aspx | C26: 3
B27: http://arbeitgeber.monster.de/hr/personal-tipps/personalmanagement/arbeitsrecht/arbeitnehmerdatenschutz-2-0-67764.aspx | C27: 3
B28: http://arbeitgeber.monster.de/hr/personal-tipps/personalmanagement/arbeitsrecht/musterarbeitszeugnis-anmerkungen-33292.aspx | C28: 3
B29: http://arbeitgeber.monster.de/hr/personal-tipps/personalmanagement/arbeitsrecht/musterarbeitszeugnis-dauer-person-33290.aspx | C29: 3
B30: http://arbeitgeber.monster.de/hr/personal-tipps/personalmanagement/arbeitsrecht/musterarbeitszeugnis-mit-kommentierung-33295.aspx | C30: 3
B31: http://arbeitgeber.monster.de/hr/personal-tipps/personalmanagement/arbeitsrecht/regelungen-zur-kostenuebernahme-67090.aspx | C31: 3
B32: http://arbeitgeber.monster.de/hr/personal-tipps/personalmanagement/arbeitsrecht/vertrauensarbeitszeit-rechte-und-pflichten-065967.aspx | C32: 3
B33: http://arbeitgeber.monster.de/hr/personal-tipps/personalmanagement/personalfuhrung-entwicklung/burnout-ausgebrannte-organisation-72507.aspx | C33: 3
B34: http://arbeitgeber.monster.de/hr/personal-tipps/personalmanagement/personalfuhrung-entwicklung/demographischer-wandel-75138.aspx | C34: 3
B35: http://arbeitgeber.monster.de/hr/personal-tipps/personalmanagement/personalfuhrung-entwicklung/inplacement-mitarbeiter-einarbeiten-75227.aspx | C35: 3
B36: http://arbeitgeber.monster.de/hr/personal-tipps/personalmanagement/personalfuhrung-entwicklung/leadershipg-mitarbeiterf%C3%BChrung-74788.aspx | C36: 3
B37: http://arbeitgeber.monster.de/hr/personal-tipps/personalmanagement/personalfuhrung-entwicklung/mitarbeiterbindung-die-grundlagen-075101.aspx | C37: 3
B38: http://arbeitgeber.monster.de/hr/personal-tipps/personalmanagement/personalfuhrung-entwicklung/mitarbeiterbindung-mangelt-74932.aspx | C38: 3
B39: http://arbeitgeber.monster.de/hr/personal-tipps/personalmanagement/personalfuhrung-entwicklung/mitarbeiterbindung-so-funktionierts-035920.aspx | C39: 3
B40: http://arbeitgeber.monster.de/hr/personal-tipps/personalmanagement/personalfuhrung-entwicklung/ziele-lohn-fuer-die-leistung-anderer-QA065523.aspx | C40: 3
B41: http://arbeitgeber.monster.de/hr/personal-tipps/rekrutierung-verguetung/bewerberauswahl/arbeitszeugnis-ein-auslaufmodell-66735.aspx | C41: 3
B42: http://arbeitgeber.monster.de/hr/personal-tipps/rekrutierung-verguetung/bewerberauswahl/gespraechsphasen-im-jobinterview-67768.aspx | C42: 3
B43: http://arbeitgeber.monster.de/hr/personal-tipps/rekrutierung-verguetung/bewerberauswahl/vorstellungsgespraech-die-vorbereitung-66798.aspx | C43: 3
B44: http://forum.monster.de/n/forumIndex.aspx?webtag=mstDEexpertenz&HPS=7_9C1ExpertenForen | C44: 3
B45: http://forum.monster.de/n/forumIndex.aspx?webtag=mstforum10&HPS=7_9C1BewerberForum | C45: 3
B46: http://forum.monster.de/n/pfx/forum.aspx?tsn=1&nav=messages&webtag=exp99482&tid=1 | C46: 3
B47: http://forum.monster.de/n/pfx/forum.aspx?tsn=1&nav=messages&webtag=mstforum30&tid=118 | C47: 3
B48: http://forum.monster.de/n/pfx/forum.aspx?tsn=1&nav=messages&webtag=mstforum40&tid=327 | C48: 3
B49: http://forum.monster.de/n/pfx/forum.aspx?tsn=1&nav=messages&webtag=mstforum40&tid=338 | C49: 3
B50: http://forum.monster.de/n/pfx/forum.aspx?tsn=1&nav=messages&webtag=mstforum50&tid=107 | C50: 3
B51: http://forum.monster.de/n/pfx/forum.aspx?tsn=1&nav=messages&webtag=mstforum50&tid=118 | C51: 3
B52: http://forum.monster.de/n/pfx/forum.aspx?tsn=1&nav=messages&webtag=mstforum50&tid=83 | C52: 3
B53: http://forum.monster.de/n/pfx/forum.aspx?tsn=1&nav=messages&webtag=mstforum50&tid=94 | C53: 3
B54: http://forum.monster.de/n/pfx/forum.aspx?tsn=4&nav=messages&webtag=mstforum40&tid=344 | C54: 3
B55: http://forum.monster.de/n/pfx/forum.aspx?tsn=5&nav=messages&webtag=mstforum50&tid=86 | C55: 3
B56: http://forum.monster.de/n/pfx/forum.aspx?webtag=exp99480 | C56: 3
B57: http://forum.monster.de/n/pfx/forum.aspx?webtag=exp99481 | C57: 3
B58: http://forum.monster.de/n/pfx/forum.aspx?webtag=exp99482 | C58: 3
B59: http://forum.monster.de/n/pfx/forum.aspx?webtag=mstforum30&HPS=7_9C1ForumBerufseinsteiger | C59: 3
B60: http://forum.monster.de/n/pfx/forum.aspx?webtag=mstforum40&HPS=7_9C1ForumImBerufsleben | C60: 3
B61: http://forum.monster.de/n/pfx/forum.aspx?webtag=mstforum50&HPS=7_9C1Forum40Plus | C61: 3
B62: http://jobs.monster.de/l-55543,-rheinland-pfalz.aspx | C62: 2
B63: http://jobs.monster.de/l-55543,-rosenhof,-rheinland-pfalz.aspx | C63: 2
B64: http://jobs.monster.de/l-augsburg,-bayern.aspx | C64: 2
B65: http://jobs.monster.de/l-baden-w%c3%bcrttemberg.aspx | C65: 2
B66: http://jobs.monster.de/l-bayern.aspx | C66: 2
B67: http://jobs.monster.de/l-berlin%2c-frankfurt,-berlin.aspx | C67: 2
B68: http://jobs.monster.de/l-berlin,-berlin.aspx | C68: 2
B69: http://jobs.monster.de/l-berlin.aspx | C69: 2
B70: http://jobs.monster.de/l-berlin.aspx?HPS=Navbar_Jobs | C70: 2
B71: http://jobs.monster.de/l-bonn,-nordrhein-westfalen.aspx | C71: 2
B72: http://jobs.monster.de/l-brandenburg,-brandenburg.aspx | C72: 2
B73: http://jobs.monster.de/l-brandenburg.aspx | C73: 2
B74: http://jobs.monster.de/l-braunschweig,-niedersachsen.aspx | C74: 2
B75: http://jobs.monster.de/l-bremen,-bremen.aspx | C75: 2
B76: http://jobs.monster.de/l-bremen.aspx | C76: 2
B77: http://jobs.monster.de/l-bremerhaven,-bremen.aspx | C77: 2
B78: http://jobs.monster.de/l-brensbach,-hessen.aspx | C78: 2
B79: http://jobs.monster.de/l-breuberg,-hessen.aspx | C79: 2
B80: http://jobs.monster.de/l-celle,-niedersachsen.aspx | C80: 2
B81: http://jobs.monster.de/l-chemnitz,-sachsen.aspx | C81: 2
B82: http://jobs.monster.de/l-cottbus,-brandenburg.aspx | C82: 2
B83: http://jobs.monster.de/l-d%c3%bcsseldorf,-nordrhein-westfalen.aspx | C83: 2
B84: http://jobs.monster.de/l-darmstadt,-hessen.aspx | C84: 2
B85: http://jobs.monster.de/l-dessau,-sachsen-anhalt.aspx | C85: 2
B86: http://jobs.monster.de/l-dortmund,-nordrhein-westfalen.aspx | C86: 2
B87: http://jobs.monster.de/l-dresden,-sachsen.aspx | C87: 2
B88: http://jobs.monster.de/l-duisburg,-nordrhein-westfalen.aspx | C88: 2
B89: http://jobs.monster.de/l-elsenfeld,-bayern.aspx | C89: 2
B90: http://jobs.monster.de/l-erfurt,-th%c3%bcringen.aspx | C90: 2
B91: http://jobs.monster.de/l-erkrath,-nordrhein-westfalen.aspx | C91: 2
B92: http://jobs.monster.de/l-erlangen,-bayern.aspx | C92: 2
B93: http://jobs.monster.de/l-eschborn,-hessen.aspx | C93: 2
B94: http://jobs.monster.de/l-essen%2c-bochum%2c-dortmund-(%2b-umgebung),-nordrhein-westfalen.aspx | C94: 2
B95: http://jobs.monster.de/l-essen,-nordrhein-westfalen.aspx | C95: 2
B96: http://jobs.monster.de/l-flensburg,-schleswig-holstein.aspx | C96: 2
B97: http://jobs.monster.de/l-flughafen-leipzig/halle,-sachsen.aspx | C97: 2
B98: http://jobs.monster.de/l-forchheim,-bayern.aspx | C98: 2
B99: http://jobs.monster.de/l-frankfurt,-hessen.aspx | C99: 2
B100: http://jobs.monster.de/l-frankfurt-am-main,-hessen.aspx | C100: 2
B101: http://jobs.monster.de/l-frankfurt-an-der-oder,-brandenburg.aspx | C101: 2
B102: http://jobs.monster.de/l-friedrichshafen,-baden-w%c3%bcrttemberg.aspx | C102: 2
B103: http://jobs.monster.de/l-g%c3%b6ttingen,-niedersachsen.aspx | C103: 2
B104: http://jobs.monster.de/l-gelsenkirchen,-nordrhein-westfalen.aspx | C104: 2
B105: http://jobs.monster.de/l-giengen-an-der-brenz,-baden-w%c3%bcrttemberg.aspx | C105: 2
B106: http://jobs.monster.de/l-grasellenbach,-hessen.aspx | C106: 2
B107: http://jobs.monster.de/l-gro%c3%9f-umstadt,-hessen.aspx | C107: 2
B108: http://jobs.monster.de/l-guldental,-rheinland-pfalz.aspx | C108: 2
B109: http://jobs.monster.de/l-hagen,-nordrhein-westfalen.aspx | C109: 2
B110: http://jobs.monster.de/l-halle,-sachsen-anhalt.aspx | C110: 2
B111: http://jobs.monster.de/l-hamburg%2c-m%c3%bcnchen,-hamburg.aspx | C111: 2
B112: http://jobs.monster.de/l-hamburg%2c-stuttgart,-hamburg.aspx | C112: 2
B113: http://jobs.monster.de/l-hamburg,-hamburg.aspx | C113: 2
B114: http://jobs.monster.de/l-hamburg.aspx | C114: 2
B115: http://jobs.monster.de/l-hamburg.aspx?HPS=Navbar_Jobs | C115: 2
B116: http://jobs.monster.de/l-hanau,-hessen.aspx | C116: 2
B117: http://jobs.monster.de/l-hanau-am-main,-hessen.aspx | C117: 2
B118: http://jobs.monster.de/l-hannover,-niedersachsen.aspx | C118: 2
B119: http://jobs.monster.de/l-heidelberg%2c-rhein-neckar-raum,-baden-w%c3%bcrttemberg.aspx | C119: 2
B120: http://jobs.monster.de/l-heidelberg,-baden-w%c3%bcrttemberg.aspx | C120: 2
B121: http://jobs.monster.de/l-heidenheim,-baden-w%c3%bcrttemberg.aspx | C121: 2
B122: http://jobs.monster.de/l-heilbronn,-baden-w%c3%bcrttemberg.aspx | C122: 2
B123: http://jobs.monster.de/l-herzogenaurach,-bayern.aspx | C123: 2
B124: http://jobs.monster.de/l-hessen.aspx | C124: 2
B125: http://jobs.monster.de/l-ingelfingen,-baden-w%c3%bcrttemberg.aspx | C125: 2
B126: http://jobs.monster.de/l-ingelheim,-rheinland-pfalz.aspx | C126: 2
B127: http://jobs.monster.de/l-k%c3%b6lleda,-th%c3%bcringen.aspx | C127: 2
B128: http://jobs.monster.de/l-k%c3%b6ln,-nordrhein-westfalen.aspx | C128: 2
B129: http://jobs.monster.de/l-kaiserslautern,-rheinland-pfalz.aspx | C129: 2
B130: http://jobs.monster.de/l-karlsruhe,-baden-w%c3%bcrttemberg.aspx | C130: 2
B131: http://jobs.monster.de/l-kassel,-hessen.aspx | C131: 2
B132: http://jobs.monster.de/l-kiel,-schleswig-holstein.aspx | C132: 2
B133: http://jobs.monster.de/l-kirchheimbolanden,-rheinland-pfalz.aspx | C133: 2
B134: http://jobs.monster.de/l-kleve,-nordrhein-westfalen.aspx | C134: 2
B135: http://jobs.monster.de/l-koblenz,-rheinland-pfalz.aspx | C135: 2
B136: http://jobs.monster.de/l-konstanz,-baden-w%c3%bcrttemberg.aspx | C136: 2
B137: http://jobs.monster.de/l-krefeld,-nordrhein-westfalen.aspx | C137: 2
B138: http://jobs.monster.de/l-l%c3%bcbeck,-schleswig-holstein.aspx | C138: 2
B139: http://jobs.monster.de/l-landau,-rheinland-pfalz.aspx | C139: 2
B140: http://jobs.monster.de/l-landshut,-bayern.aspx | C140: 2
B141: http://jobs.monster.de/l-langenhagen,-niedersachsen.aspx | C141: 2
B142: http://jobs.monster.de/l-lauf-an-der-pegnitz,-bayern.aspx | C142: 2
B143: http://jobs.monster.de/l-leinfelden-echterdingen,-baden-w%c3%bcrttemberg.aspx | C143: 2
B144: http://jobs.monster.de/l-leipzig%2c-chemnitz%2c-dresden,-sachsen.aspx | C144: 2
B145: http://jobs.monster.de/l-leipzig,-sachsen.aspx | C145: 2
B146: http://jobs.monster.de/l-lindemannsruhe,-rheinland-pfalz.aspx | C146: 2
B147: http://jobs.monster.de/l-lippstadt,-nordrhein-westfalen.aspx | C147: 2
B148: http://jobs.monster.de/l-ludwigsburg,-baden-w%c3%bcrttemberg.aspx | C148: 2
B149: http://jobs.monster.de/l-ludwigshafen-am-rhein,-rheinland-pfalz.aspx | C149: 2
B150: http://jobs.monster.de/l-m%c3%b6nchengladbach,-nordrhein-westfalen.aspx | C150: 2
B151: http://jobs.monster.de/l-m%c3%bcnchen,-bayern.aspx | C151: 2
B152: http://jobs.monster.de/l-m%c3%bcnster,-nordrhein-westfalen.aspx | C152: 2
B153: http://jobs.monster.de/l-magdeburg,-sachsen-anhalt.aspx | C153: 2
B154: http://jobs.monster.de/l-mainz,-rheinland-pfalz.aspx | C154: 2
B155: http://jobs.monster.de/l-mannheim,-baden-w%c3%bcrttemberg.aspx | C155: 2
B156: http://jobs.monster.de/l-marburg-an-der-lahn,-hessen.aspx | C156: 2
B157: http://jobs.monster.de/l-mecklenburg-vorpommern.aspx | C157: 2
B158: http://jobs.monster.de/l-mettmann,-nordrhein-westfalen.aspx | C158: 2
B159: http://jobs.monster.de/l-muenchen,-bayern.aspx | C159: 2
B160: http://jobs.monster.de/l-n%c3%bcrnberg,-bayern.aspx | C160: 2
B161: http://jobs.monster.de/l-neckarsulm,-baden-w%c3%bcrttemberg.aspx | C161: 2
B162: http://jobs.monster.de/l-neu-isenburg,-hessen.aspx | C162: 2
B163: http://jobs.monster.de/l-neu-ulm,-bayern.aspx | C163: 2
B164: http://jobs.monster.de/l-neubrandenburg,-mecklenburg-vorpommern.aspx | C164: 2
B165: http://jobs.monster.de/l-neuhausen-a%2Ed%2Ef%2E,-baden-w%c3%bcrttemberg.aspx | C165: 2
B166: http://jobs.monster.de/l-neunkirchen,-saarland.aspx | C166: 2
B167: http://jobs.monster.de/l-niedersachsen.aspx | C167: 2
B168: http://jobs.monster.de/l-norderstedt,-schleswig-holstein.aspx | C168: 2
B169: http://jobs.monster.de/l-nordrhein-westfalen.aspx | C169: 2
B170: http://jobs.monster.de/l-oldenburg,-niedersachsen.aspx | C170: 2
B171: http://jobs.monster.de/l-potsdam,-brandenburg.aspx | C171: 2
B172: http://jobs.monster.de/l-ravensburg,-baden-w%c3%bcrttemberg.aspx | C172: 2
B173: http://jobs.monster.de/l-regensburg,-bayern.aspx | C173: 2
B174: http://jobs.monster.de/l-regenstauf,-bayern.aspx | C174: 2
B175: http://jobs.monster.de/l-reutlingen,-baden-w%c3%bcrttemberg.aspx | C175: 2
B176: http://jobs.monster.de/l-rheinland-pfalz.aspx | C176: 2
B177: http://jobs.monster.de/l-rietheim-weilheim,-baden-w%c3%bcrttemberg.aspx | C177: 2
B178: http://jobs.monster.de/l-rosenheim,-bayern.aspx | C178: 2
B179: http://jobs.monster.de/l-rostock,-mecklenburg-vorpommern.aspx | C179: 2
B180: http://jobs.monster.de/l-roth,-bayern.aspx | C180: 2
B181: http://jobs.monster.de/l-saarbr%c3%bccken,-saarland.aspx | C181: 2
B182: http://jobs.monster.de/l-saarland.aspx | C182: 2
B183: http://jobs.monster.de/l-saarlouis,-saarland.aspx | C183: 2
B184: http://jobs.monster.de/l-sachsen-anhalt.aspx | C184: 2
B185: http://jobs.monster.de/l-sachsen.aspx | C185: 2
B186: http://jobs.monster.de/l-salzgitter,-niedersachsen.aspx | C186: 2
B187: http://jobs.monster.de/l-salzwedel,-sachsen-anhalt.aspx | C187: 2
B188: http://jobs.monster.de/l-schleswig-holstein.aspx | C188: 2
B189: http://jobs.monster.de/l-schmallenberg,-nordrhein-westfalen.aspx | C189: 2
B190: http://jobs.monster.de/l-schw%c3%a4bisch-gm%c3%bcnd,-baden-w%c3%bcrttemberg.aspx | C190: 2
B191: http://jobs.monster.de/l-schwerin,-mecklenburg-vorpommern.aspx | C191: 2
B192: http://jobs.monster.de/l-sindelfingen,-baden-w%c3%bcrttemberg.aspx | C192: 2
B193: http://jobs.monster.de/l-singen-%2f-hohentwiel,-baden-w%c3%bcrttemberg.aspx | C193: 2
B194: http://jobs.monster.de/l-speyer,-rheinland-pfalz.aspx | C194: 2
B195: http://jobs.monster.de/l-stephanskirchen,-bayern.aspx | C195: 2
B196: http://jobs.monster.de/l-straubing,-bayern.aspx | C196: 2
B197: http://jobs.monster.de/l-stuttgart,-baden-w%c3%bcrttemberg.aspx | C197: 2
B198: http://jobs.monster.de/l-sulzbach,-hessen.aspx | C198: 2
B199: http://jobs.monster.de/l-th%c3%bcringen.aspx | C199: 2
B200: http://jobs.monster.de/l-trier,-rheinland-pfalz.aspx | C200: 2
B201: http://jobs.monster.de/l-troisdorf,-nordrhein-westfalen.aspx | C201: 2
B202: http://jobs.monster.de/l-ulm,-baden-w%c3%bcrttemberg.aspx | C202: 2
B203: http://jobs.monster.de/l-unterf%c3%b6hring,-bayern.aspx | C203: 2
B204: http://jobs.monster.de/l-verl,-nordrhein-westfalen.aspx | C204: 2
... 1077 more rows

Sheet Short Meta Descriptions
B3: Short Meta Descriptions
B5: Pages found with meta description tag shorter than 125 characters
B6: Total Count: 481
B8: Issue Severity: Critical
B9: URL | C9: Meta Description | D9: Character Count
B10: http://arbeitgeber.monster.de/hr/personal-tipps/markte-analysen.aspx | C10: Gehaltsanalysen, Branchentrends und mehr. | D10: 41
B11: http://arbeitgeber.monster.de/hr/personal-tipps/markte-analysen/branchen-trends/newsletter-abonnieren-74628.aspx?WT.mc_n=NL_Abo_Footer | C11: Abonnieren Sie den HR-Magzin Newsletter mit Informationen zu aktuellen Trends und Themen aus dem HR-Bereich. | D11: 108
B12: http://arbeitgeber.monster.de/hr/personal-tipps/markte-analysen/gehaltsanalysen/Einkommen-Krankenhaus-2011-79323.aspx | C12: Aktuelle Gehaltstabelle für Ärzte und andere Krankenhausberufe. Jährliches Brutto-Gehalt nach Position und Karrierelevel. | D12: 124
B13: http://arbeitgeber.monster.de/hr/personal-tipps/markte-analysen/monster-employment-index/monster-employment-index-deutschland-august-2011-79201.aspx | C13: Monster Employment Index: Personalnachfrage in Deutschland wächst im August weiterhin | D13: 86
B14: http://arbeitgeber.monster.de/hr/personal-tipps/markte-analysen/monster-employment-index/monster-employment-index-deutschland-juli-2011-%20078791.aspx | C14: Monster Employment Index: Personalnachfrage in Deutschland wächst um 36 Prozent im Vorjahresvergleich | D14: 102
B15: http://arbeitgeber.monster.de/hr/personal-tipps/markte-analysen/studien.aspx | C15: Erforschen Sie ausführlich die Themen zur Personalbeschaffung. | D15: 64
B16: http://arbeitgeber.monster.de/hr/personal-tipps/personalmanagement/arbeitsrecht.aspx | C16: Diese arbeitsrechtlichen Aspekte sollten Sie in Ihrem Alltag nie außer Acht lassen. | D16: 87
B17: http://arbeitgeber.monster.de/hr/personal-tipps/personalmanagement/arbeitsrecht/musterarbeitszeugnis-anmerkungen-33292.aspx | C17: Wer hat Anspruch auf ein Zeugnis, welche Bedingungen sind bei der Erstellung einzuhalten? | D17: 89
B18: http://arbeitgeber.monster.de/hr/personal-tipps/personalmanagement/arbeitsrecht/musterarbeitszeugnis-dauer-person-33290.aspx | C18: So beschreiben Sie die Person eines Arbeitnehmers, die Dauer des Arbeitsverhältnisses und die Art der Tätigkeiten. | D18: 116
B19: http://arbeitgeber.monster.de/hr/personal-tipps/personalmanagement/arbeitsrecht/musterarbeitszeugnis-mit-kommentierung-33295.aspx | C19: Jeder Arbeitnehmer hat das Recht auf ein Arbeitszeugnis. Unsere Mustervorlage samt Kommentaren helfen Ihnen dabei. | D19: 114
B20: http://arbeitgeber.monster.de/hr/personal-tipps/personalmanagement/personalfuhrung-entwicklung/burnout-ausgebrannte-organisation-72507.aspx | C20: Von einem Burnout ist meist im Zusammenhang mit Menschen die Rede. Aber auch ganze Organisationen können ausbrennen. | D20: 117
B21: http://arbeitgeber.monster.de/hr/personal-tipps/personalmanagement/personalfuhrung-entwicklung/ziele-lohn-fuer-die-leistung-anderer-QA065523.aspx | C21: Die leistungsabhängige Vergütung ist auf dem Vormarsch. Der springende Punkt heißt Fairness. | D21: 95
B22: http://arbeitgeber.monster.de/hr/personal-tipps/personalmanagement/vergutung.aspx | C22: So schaffen Sie beim Thema Vergütung Anreize für Ihre Mitarbeiter. | D22: 68
B23: http://arbeitgeber.monster.de/hr/personal-tipps/rekrutierung-verguetung/bewerberauswahl/vorstellungsgespraech-die-vorbereitung-66798.aspx | C23: Die Qualität eines Vorstellungsgespräches hängt von der Vorbereitung ab. Karriere-Expertin Doris Brenner gibt Tipps. | D23: 119
B24: http://arbeitgeber.monster.de/online-recruiting/aktion.aspx?WT.mc_n=Herbstaktion_promo | C24: page-seo-info-for-solutions-79 | D24: 30
B25: http://arbeitgeber.monster.de/online-recruiting/aktuelles.aspx | C25: Sichern Sie sich den Wissensvorsprung zu aktuellsten Entwicklungen und Trends am Jobmarkt mit Monster. | D25: 103
B26: http://arbeitgeber.monster.de/online-recruiting/aktuelles.aspx?WT.mc_n=News_prospect | C26: Sichern Sie sich den Wissensvorsprung zu aktuellsten Entwicklungen und Trends am Jobmarkt mit Monster. | D26: 103
B27: http://arbeitgeber.monster.de/online-recruiting/events.aspx | C27: Events – Symposium und Messe zu den Trends in Personal und Recruiting. Besuchen Sie monster.de vor Ort. | D27: 107
B28: http://arbeitgeber.monster.de/sitemap.aspx | C28: Use the sitemap to easily find what you are looking for on Monster.com | D28: 70
B29: http://datenschutz.monster.de/account-management/inside2.aspx | C29: Monster has relationships with the following ad networks and other third parties. | D29: 81
B30: http://datenschutz.monster.de/computer-threats/inside2.aspx | C30: Monster has relationships with the following ad networks and other third parties. | D30: 81
B31: http://datenschutz.monster.de/email-scams/inside2.aspx | C31: Monster has relationships with the following ad networks and other third parties. | D31: 81
B32: http://datenschutz.monster.de/resume-security/inside2.aspx | C32: Monster has relationships with the following ad networks and other third parties. | D32: 81
B33: http://jobs.monster.de/ | C33: Jobs suchen, Arbeit finden, Jobs, Stellenangebote, Jobsuche | D33: 59
B34: http://jobs.monster.de/browse/l-bayern.aspx | C34: Jobs suchen, Arbeit finden, Jobs, Stellenangebote, Jobsuche | D34: 59
B35: http://jobs.monster.de/browse/l-berlin.aspx | C35: Jobs suchen, Arbeit finden, Jobs, Stellenangebote, Jobsuche | D35: 59
B36: http://jobs.monster.de/browse/l-brandenburg.aspx | C36: Jobs suchen, Arbeit finden, Jobs, Stellenangebote, Jobsuche | D36: 59
B37: http://jobs.monster.de/browse/l-bremen.aspx | C37: Jobs suchen, Arbeit finden, Jobs, Stellenangebote, Jobsuche | D37: 59
B38: http://jobs.monster.de/browse/l-hamburg.aspx | C38: Jobs suchen, Arbeit finden, Jobs, Stellenangebote, Jobsuche | D38: 59
B39: http://jobs.monster.de/browse/l-hessen.aspx | C39: Jobs suchen, Arbeit finden, Jobs, Stellenangebote, Jobsuche | D39: 59
B40: http://jobs.monster.de/browse/l-mecklenburg-vorpommern.aspx | C40: Jobs suchen, Arbeit finden, Jobs, Stellenangebote, Jobsuche | D40: 59
B41: http://jobs.monster.de/browse/l-niedersachsen.aspx | C41: Jobs suchen, Arbeit finden, Jobs, Stellenangebote, Jobsuche | D41: 59
B42: http://jobs.monster.de/browse/l-nordrhein-westfalen.aspx | C42: Jobs suchen, Arbeit finden, Jobs, Stellenangebote, Jobsuche | D42: 59
B43: http://jobs.monster.de/browse/l-rheinland-pfalz.aspx | C43: Jobs suchen, Arbeit finden, Jobs, Stellenangebote, Jobsuche | D43: 59
B44: http://jobs.monster.de/browse/l-saarland.aspx | C44: Jobs suchen, Arbeit finden, Jobs, Stellenangebote, Jobsuche | D44: 59
B45: http://jobs.monster.de/browse/l-sachsen-anhalt.aspx | C45: Jobs suchen, Arbeit finden, Jobs, Stellenangebote, Jobsuche | D45: 59
B46: http://jobs.monster.de/browse/l-schleswig-holstein.aspx | C46: Jobs suchen, Arbeit finden, Jobs, Stellenangebote, Jobsuche | D46: 59
B47: http://jobs.monster.de/browse/v-finanzwesen-l-baden-w%c3%bcrttemberg.aspx | C47: Jobs suchen, Arbeit finden, Jobs, Stellenangebote, Jobsuche | D47: 59
B48: http://jobs.monster.de/browse/v-finanzwesen-q-business-consultant.aspx | C48: Jobs suchen, Arbeit finden, Jobs, Stellenangebote, Jobsuche | D48: 59
B49: http://jobs.monster.de/browse/v-finanzwesen-q-business-systems-manager.aspx | C49: Jobs suchen, Arbeit finden, Jobs, Stellenangebote, Jobsuche | D49: 59
B50: http://jobs.monster.de/browse/v-finanzwesen-q-darlehenspezialist-kontokorrentkonten.aspx | C50: Jobs suchen, Arbeit finden, Jobs, Stellenangebote, Jobsuche | D50: 59
B51: http://jobs.monster.de/browse/v-finanzwesen-q-junior-bankkaufmann.aspx | C51: Jobs suchen, Arbeit finden, Jobs, Stellenangebote, Jobsuche | D51: 59
B52: http://jobs.monster.de/browse/v-finanzwesen-q-portfolio-manager.aspx | C52: Jobs suchen, Arbeit finden, Jobs, Stellenangebote, Jobsuche | D52: 59
B53: http://jobs.monster.de/browse/v-finanzwesen.aspx | C53: Jobs suchen, Arbeit finden, Jobs, Stellenangebote, Jobsuche | D53: 59
B54: http://jobs.monster.de/browse/v-gesundheitswesen-l-hamburg.aspx | C54: Jobs suchen, Arbeit finden, Jobs, Stellenangebote, Jobsuche | D54: 59
B55: http://jobs.monster.de/browse/v-gesundheitswesen-q-redakteur.aspx | C55: Jobs suchen, Arbeit finden, Jobs, Stellenangebote, Jobsuche | D55: 59
B56: http://jobs.monster.de/browse/v-gesundheitswesen-q-staatlich-anerkannter-altenpfleger.aspx | C56: Jobs suchen, Arbeit finden, Jobs, Stellenangebote, Jobsuche | D56: 59
B57: http://jobs.monster.de/browse/v-gesundheitswesen.aspx | C57: Jobs suchen, Arbeit finden, Jobs, Stellenangebote, Jobsuche | D57: 59
B58: http://jobs.monster.de/browse/v-ingenieurwesen-q-entwickler-maschinenbau.aspx | C58: Jobs suchen, Arbeit finden, Jobs, Stellenangebote, Jobsuche | D58: 59
B59: http://jobs.monster.de/browse/v-ingenieurwesen-q-fertigungsingenieur-betriebsanlagen.aspx | C59: Jobs suchen, Arbeit finden, Jobs, Stellenangebote, Jobsuche | D59: 59
B60: http://jobs.monster.de/browse/v-ingenieurwesen-q-ingenieur-werkstofftechnik.aspx | C60: Jobs suchen, Arbeit finden, Jobs, Stellenangebote, Jobsuche | D60: 59
B61: http://jobs.monster.de/browse/v-ingenieurwesen-q-systemelektroniker.aspx | C61: Jobs suchen, Arbeit finden, Jobs, Stellenangebote, Jobsuche | D61: 59
B62: http://jobs.monster.de/browse/v-ingenieurwesen.aspx | C62: Jobs suchen, Arbeit finden, Jobs, Stellenangebote, Jobsuche | D62: 59
B63: http://jobs.monster.de/browse/v-it-l-bremen.aspx | C63: Jobs suchen, Arbeit finden, Jobs, Stellenangebote, Jobsuche | D63: 59
B64: http://jobs.monster.de/browse/v-it-q-analyst-websicherheit.aspx | C64: Jobs suchen, Arbeit finden, Jobs, Stellenangebote, Jobsuche | D64: 59
B65: http://jobs.monster.de/browse/v-it-q-bereichsleiter-it.aspx | C65: Jobs suchen, Arbeit finden, Jobs, Stellenangebote, Jobsuche | D65: 59
B66: http://jobs.monster.de/browse/v-it-q-dbs-installateur.aspx | C66: Jobs suchen, Arbeit finden, Jobs, Stellenangebote, Jobsuche | D66: 59
B67: http://jobs.monster.de/browse/v-it-q-fachinformatiker.aspx | C67: Jobs suchen, Arbeit finden, Jobs, Stellenangebote, Jobsuche | D67: 59
B68: http://jobs.monster.de/browse/v-it-q-it-service-manager.aspx | C68: Jobs suchen, Arbeit finden, Jobs, Stellenangebote, Jobsuche | D68: 59
B69: http://jobs.monster.de/browse/v-it-q-it-supportanalyst.aspx | C69: Jobs suchen, Arbeit finden, Jobs, Stellenangebote, Jobsuche | D69: 59
B70: http://jobs.monster.de/browse/v-it-q-junior-anwendungsentwickler.aspx | C70: Jobs suchen, Arbeit finden, Jobs, Stellenangebote, Jobsuche | D70: 59
B71: http://jobs.monster.de/browse/v-it-q-leiter-technische-dienste.aspx | C71: Jobs suchen, Arbeit finden, Jobs, Stellenangebote, Jobsuche | D71: 59
B72: http://jobs.monster.de/browse/v-it-q-netzwerktechniker.aspx | C72: Jobs suchen, Arbeit finden, Jobs, Stellenangebote, Jobsuche | D72: 59
B73: http://jobs.monster.de/browse/v-it-q-siebel-pre-sales-fachberater.aspx | C73: Jobs suchen, Arbeit finden, Jobs, Stellenangebote, Jobsuche | D73: 59
B74: http://jobs.monster.de/browse/v-it-q-web-multimedia-texter.aspx | C74: Jobs suchen, Arbeit finden, Jobs, Stellenangebote, Jobsuche | D74: 59
B75: http://jobs.monster.de/browse/v-it.aspx | C75: Jobs suchen, Arbeit finden, Jobs, Stellenangebote, Jobsuche | D75: 59
B76: http://jobs.monster.de/browse/v-logistik-l-hessen.aspx | C76: Jobs suchen, Arbeit finden, Jobs, Stellenangebote, Jobsuche | D76: 59
B77: http://jobs.monster.de/browse/v-logistik-l-sachsen-anhalt.aspx | C77: Jobs suchen, Arbeit finden, Jobs, Stellenangebote, Jobsuche | D77: 59
B78: http://jobs.monster.de/browse/v-logistik.aspx | C78: Jobs suchen, Arbeit finden, Jobs, Stellenangebote, Jobsuche | D78: 59
B79: http://jobs.monster.de/browse/v-management.aspx | C79: Jobs suchen, Arbeit finden, Jobs, Stellenangebote, Jobsuche | D79: 59
B80: http://jobs.monster.de/browse/v-marketing-q-kaufmann-unternehmenskommunikation.aspx | C80: Jobs suchen, Arbeit finden, Jobs, Stellenangebote, Jobsuche | D80: 59
B81: http://jobs.monster.de/browse/v-marketing-q-life-cycle-manager.aspx | C81: Jobs suchen, Arbeit finden, Jobs, Stellenangebote, Jobsuche | D81: 59
B82: http://jobs.monster.de/browse/v-marketing-q-senior-product-manager.aspx | C82: Jobs suchen, Arbeit finden, Jobs, Stellenangebote, Jobsuche | D82: 59
B83: http://jobs.monster.de/browse/v-marketing-q-translator.aspx | C83: Jobs suchen, Arbeit finden, Jobs, Stellenangebote, Jobsuche | D83: 59
B84: http://jobs.monster.de/browse/v-marketing-q-werbetechniker.aspx | C84: Jobs suchen, Arbeit finden, Jobs, Stellenangebote, Jobsuche | D84: 59
B85: http://jobs.monster.de/browse/v-marketing.aspx | C85: Jobs suchen, Arbeit finden, Jobs, Stellenangebote, Jobsuche | D85: 59
B86: http://jobs.monster.de/browse/v-sachbearbeitung-l-th%c3%bcringen.aspx | C86: Jobs suchen, Arbeit finden, Jobs, Stellenangebote, Jobsuche | D86: 59
B87: http://jobs.monster.de/browse/v-sachbearbeitung-q-assistent-investitionsgesch%c3%a4fte.aspx | C87: Jobs suchen, Arbeit finden, Jobs, Stellenangebote, Jobsuche | D87: 59
B88: http://jobs.monster.de/browse/v-sachbearbeitung.aspx | C88: Jobs suchen, Arbeit finden, Jobs, Stellenangebote, Jobsuche | D88: 59
B89: http://jobs.monster.de/browse/v-vertrieb-q-property-manager.aspx | C89: Jobs suchen, Arbeit finden, Jobs, Stellenangebote, Jobsuche | D89: 59
B90: http://jobs.monster.de/browse/v-vertrieb-q-sales-account-manager.aspx | C90: Jobs suchen, Arbeit finden, Jobs, Stellenangebote, Jobsuche | D90: 59
B91: http://jobs.monster.de/browse/v-vertrieb-q-sales-consultant.aspx | C91: Jobs suchen, Arbeit finden, Jobs, Stellenangebote, Jobsuche | D91: 59
B92: http://jobs.monster.de/browse/v-vertrieb-q-sales-support.aspx | C92: Jobs suchen, Arbeit finden, Jobs, Stellenangebote, Jobsuche | D92: 59
B93: http://jobs.monster.de/browse/v-vertrieb-q-trainee-vertrieb.aspx | C93: Jobs suchen, Arbeit finden, Jobs, Stellenangebote, Jobsuche | D93: 59
B94: http://jobs.monster.de/browse/v-vertrieb.aspx | C94: Jobs suchen, Arbeit finden, Jobs, Stellenangebote, Jobsuche | D94: 59
B95: http://jobsuche.monster.de/?q=finanzwesen&sf=20 | C95: Finanzwesen Jobs &amp; Stellenanzeigen. Mit der Monster Online Jobsuche finden Sie Jobangebote – leichter als je zuvor. | D95: 121
B96: http://jobsuche.monster.de/?q=it&sf=14 | C96: It Jobs &amp; Stellenanzeigen. Mit der Monster Online Jobsuche finden Sie Jobangebote – leichter als je zuvor. | D96: 112
B97: http://jobsuche.monster.de/?q=logistik&sf=14 | C97: Logistik Jobs &amp; Stellenanzeigen. Mit der Monster Online Jobsuche finden Sie Jobangebote – leichter als je zuvor. | D97: 118
B98: http://jobsuche.monster.de/?q=marketing&sf=13 | C98: Marketing Jobs &amp; Stellenanzeigen. Mit der Monster Online Jobsuche finden Sie Jobangebote – leichter als je zuvor. | D98: 119
B99: http://jobsuche.monster.de/?tm=Gestern&sf=23 | C99: Jobs &amp; Stellenanzeigen. Mit der Monster Online Jobsuche finden Sie Jobangebote – leichter als je zuvor. | D99: 109
B100: http://jobsuche.monster.de/?tm=Heute&sf=23 | C100: Jobs &amp; Stellenanzeigen. Mit der Monster Online Jobsuche finden Sie Jobangebote – leichter als je zuvor. | D100: 109
B101: http://jobsuche.monster.de/?tm=Letzten-14-Tage&sf=23 | C101: Jobs &amp; Stellenanzeigen. Mit der Monster Online Jobsuche finden Sie Jobangebote – leichter als je zuvor. | D101: 109
B102: http://jobsuche.monster.de/?tm=Letzten-7-Tage&pg=6&sf=23 | C102: Jobs &amp; Stellenanzeigen. Mit der Monster Online Jobsuche finden Sie Jobangebote – leichter als je zuvor. | D102: 109
B103: http://jobsuche.monster.de/?tm=Letzten-7-Tage&sf=17 | C103: Jobs &amp; Stellenanzeigen. Mit der Monster Online Jobsuche finden Sie Jobangebote – leichter als je zuvor. | D103: 109
B104: http://jobsuche.monster.de/?tm=Letzten-7-Tage&sf=20 | C104: Jobs &amp; Stellenanzeigen. Mit der Monster Online Jobsuche finden Sie Jobangebote – leichter als je zuvor. | D104: 109
B105: http://jobsuche.monster.de/?tm=Letzten-7-Tage&sf=23 | C105: Jobs &amp; Stellenanzeigen. Mit der Monster Online Jobsuche finden Sie Jobangebote – leichter als je zuvor. | D105: 109
B106: http://jobsuche.monster.de/?tm=Seit-3-Tagen&sf=23 | C106: Jobs &amp; Stellenanzeigen. Mit der Monster Online Jobsuche finden Sie Jobangebote – leichter als je zuvor. | D106: 109
B107: http://jobsuche.monster.de/?tm=Seit-30-Tagen&sf=23 | C107: Jobs &amp; Stellenanzeigen. Mit der Monster Online Jobsuche finden Sie Jobangebote – leichter als je zuvor. | D107: 109
B108: http://jobsuche.monster.de/Alisa-GmbH_6 | C108: Jobs &amp; Stellenanzeigen bei Alisa GmbH. Mit der Monster Online Jobsuche finden Sie Jobangebote – leichter als je zuvor. | D108: 124
B109: http://jobsuche.monster.de/Altran_6 | C109: Jobs &amp; Stellenanzeigen bei Altran. Mit der Monster Online Jobsuche finden Sie Jobangebote – leichter als je zuvor. | D109: 120
B110: http://jobsuche.monster.de/Altran_6?sf=19 | C110: Jobs &amp; Stellenanzeigen bei Altran. Mit der Monster Online Jobsuche finden Sie Jobangebote – leichter als je zuvor. | D110: 120
B111: http://jobsuche.monster.de/Amazon_6?sf=20 | C111: Jobs &amp; Stellenanzeigen bei Amazon. Mit der Monster Online Jobsuche finden Sie Jobangebote – leichter als je zuvor. | D111: 120
B112: http://jobsuche.monster.de/BASF-SE_6 | C112: Jobs &amp; Stellenanzeigen bei BASF SE. Mit der Monster Online Jobsuche finden Sie Jobangebote – leichter als je zuvor. | D112: 121
B113: http://jobsuche.monster.de/BERLIN_2 | C113: Jobs &amp; Stellenanzeigen in BERLIN. Mit der Monster Online Jobsuche finden Sie Jobangebote – leichter als je zuvor. | D113: 119
B114: http://jobsuche.monster.de/Bayern_1?pg=3&sf=18.820 | C114: Jobs &amp; Stellenanzeigen in Bayern. Mit der Monster Online Jobsuche finden Sie Jobangebote – leichter als je zuvor. | D114: 119
B115: http://jobsuche.monster.de/Bayern_1?sf=18.820 | C115: Jobs &amp; Stellenanzeigen in Bayern. Mit der Monster Online Jobsuche finden Sie Jobangebote – leichter als je zuvor. | D115: 119
B116: http://jobsuche.monster.de/Bayern_1?sf=20 | C116: Jobs &amp; Stellenanzeigen in Bayern. Mit der Monster Online Jobsuche finden Sie Jobangebote – leichter als je zuvor. | D116: 119
B117: http://jobsuche.monster.de/Bayern_1?sf=21 | C117: Jobs &amp; Stellenanzeigen in Bayern. Mit der Monster Online Jobsuche finden Sie Jobangebote – leichter als je zuvor. | D117: 119
B118: http://jobsuche.monster.de/Berlin_1?sf=18.813 | C118: Jobs &amp; Stellenanzeigen in Berlin. Mit der Monster Online Jobsuche finden Sie Jobangebote – leichter als je zuvor. | D118: 119
B119: http://jobsuche.monster.de/Berlin_2 | C119: Jobs &amp; Stellenanzeigen in Berlin. Mit der Monster Online Jobsuche finden Sie Jobangebote – leichter als je zuvor. | D119: 119
B120: http://jobsuche.monster.de/Bielefeld_2 | C120: Jobs &amp; Stellenanzeigen in Bielefeld. Mit der Monster Online Jobsuche finden Sie Jobangebote – leichter als je zuvor. | D120: 122
B121: http://jobsuche.monster.de/BorgWarner_6 | C121: Jobs &amp; Stellenanzeigen bei BorgWarner. Mit der Monster Online Jobsuche finden Sie Jobangebote – leichter als je zuvor. | D121: 124
B122: http://jobsuche.monster.de/BorgWarner_6?sf=22 | C122: Jobs &amp; Stellenanzeigen bei BorgWarner. Mit der Monster Online Jobsuche finden Sie Jobangebote – leichter als je zuvor. | D122: 124
B123: http://jobsuche.monster.de/Bozen-__28IT__29_2 | C123: Jobs &amp; Stellenanzeigen in Bozen (IT). Mit der Monster Online Jobsuche finden Sie Jobangebote – leichter als je zuvor. | D123: 123
B124: http://jobsuche.monster.de/Bozen-__28IT__29_2?sf=13 | C124: Jobs &amp; Stellenanzeigen in Bozen (IT). Mit der Monster Online Jobsuche finden Sie Jobangebote – leichter als je zuvor. | D124: 123
B125: http://jobsuche.monster.de/Brandenburg_1?sf=18.821 | C125: Jobs &amp; Stellenanzeigen in Brandenburg. Mit der Monster Online Jobsuche finden Sie Jobangebote – leichter als je zuvor. | D125: 124
B126: http://jobsuche.monster.de/Bremen_1?sf=18.814 | C126: Jobs &amp; Stellenanzeigen in Bremen. Mit der Monster Online Jobsuche finden Sie Jobangebote – leichter als je zuvor. | D126: 119
B127: http://jobsuche.monster.de/Bundeswehr_6 | C127: Jobs &amp; Stellenanzeigen bei Bundeswehr. Mit der Monster Online Jobsuche finden Sie Jobangebote – leichter als je zuvor. | D127: 124
B128: http://jobsuche.monster.de/Bundesweit_2 | C128: Jobs &amp; Stellenanzeigen in Bundesweit. Mit der Monster Online Jobsuche finden Sie Jobangebote – leichter als je zuvor. | D128: 123
B129: http://jobsuche.monster.de/CROMSOURCE_6 | C129: Jobs &amp; Stellenanzeigen bei CROMSOURCE. Mit der Monster Online Jobsuche finden Sie Jobangebote – leichter als je zuvor. | D129: 124
B130: http://jobsuche.monster.de/DHL-Paket_6 | C130: Jobs &amp; Stellenanzeigen bei DHL Paket. Mit der Monster Online Jobsuche finden Sie Jobangebote – leichter als je zuvor. | D130: 123
B131: http://jobsuche.monster.de/Daimler-AG_6 | C131: Jobs &amp; Stellenanzeigen bei Daimler AG. Mit der Monster Online Jobsuche finden Sie Jobangebote – leichter als je zuvor. | D131: 124
B132: http://jobsuche.monster.de/Daimler-AG_6?pg=9&sf=20 | C132: Jobs &amp; Stellenanzeigen bei Daimler AG. Mit der Monster Online Jobsuche finden Sie Jobangebote – leichter als je zuvor. | D132: 124
B133: http://jobsuche.monster.de/Daimler-AG_6?sf=20 | C133: Jobs &amp; Stellenanzeigen bei Daimler AG. Mit der Monster Online Jobsuche finden Sie Jobangebote – leichter als je zuvor. | D133: 124
B134: http://jobsuche.monster.de/Durchsuchen/?q=finanzwesen | C134: Finanzwesen Jobs &amp; Stellenanzeigen. Mit der Monster Online Jobsuche finden Sie Jobangebote – leichter als je zuvor. | D134: 121
B135: http://jobsuche.monster.de/Durchsuchen/?q=ingenieurwesen | C135: Ingenieurwesen Jobs &amp; Stellenanzeigen. Mit der Monster Online Jobsuche finden Sie Jobangebote – leichter als je zuvor. | D135: 124
B136: http://jobsuche.monster.de/Durchsuchen/?q=it | C136: It Jobs &amp; Stellenanzeigen. Mit der Monster Online Jobsuche finden Sie Jobangebote – leichter als je zuvor. | D136: 112
B137: http://jobsuche.monster.de/Durchsuchen/?q=logistik | C137: Logistik Jobs &amp; Stellenanzeigen. Mit der Monster Online Jobsuche finden Sie Jobangebote – leichter als je zuvor. | D137: 118
B138: http://jobsuche.monster.de/Durchsuchen/?q=marketing | C138: Marketing Jobs &amp; Stellenanzeigen. Mit der Monster Online Jobsuche finden Sie Jobangebote – leichter als je zuvor. | D138: 119
B139: http://jobsuche.monster.de/Durchsuchen/?q=vertrieb | C139: Vertrieb Jobs &amp; Stellenanzeigen. Mit der Monster Online Jobsuche finden Sie Jobangebote – leichter als je zuvor. | D139: 118
B140: http://jobsuche.monster.de/Durchsuchen/bayern_1 | C140: Jobs &amp; Stellenanzeigen in Bayern. Mit der Monster Online Jobsuche finden Sie Jobangebote – leichter als je zuvor. | D140: 119
B141: http://jobsuche.monster.de/Durchsuchen/berlin_1 | C141: Jobs &amp; Stellenanzeigen in Berlin. Mit der Monster Online Jobsuche finden Sie Jobangebote – leichter als je zuvor. | D141: 119
B142: http://jobsuche.monster.de/Durchsuchen/brandenburg_1 | C142: Jobs &amp; Stellenanzeigen in Brandenburg. Mit der Monster Online Jobsuche finden Sie Jobangebote – leichter als je zuvor. | D142: 124
B143: http://jobsuche.monster.de/Durchsuchen/bremen_1 | C143: Jobs &amp; Stellenanzeigen in Bremen. Mit der Monster Online Jobsuche finden Sie Jobangebote – leichter als je zuvor. | D143: 119
B144: http://jobsuche.monster.de/Durchsuchen/hamburg_1 | C144: Jobs &amp; Stellenanzeigen in Hamburg. Mit der Monster Online Jobsuche finden Sie Jobangebote – leichter als je zuvor. | D144: 120
B145: http://jobsuche.monster.de/Durchsuchen/hessen_1 | C145: Jobs &amp; Stellenanzeigen in Hessen. Mit der Monster Online Jobsuche finden Sie Jobangebote – leichter als je zuvor. | D145: 119
B146: http://jobsuche.monster.de/Durchsuchen/saarland_1 | C146: Jobs &amp; Stellenanzeigen in Saarland. Mit der Monster Online Jobsuche finden Sie Jobangebote – leichter als je zuvor. | D146: 121
B147: http://jobsuche.monster.de/ELAXY-GmbH_6 | C147: Jobs &amp; Stellenanzeigen bei ELAXY GmbH. Mit der Monster Online Jobsuche finden Sie Jobangebote – leichter als je zuvor. | D147: 124
B148: http://jobsuche.monster.de/FALKE-KGaA_6 | C148: Jobs &amp; Stellenanzeigen bei FALKE KGaA. Mit der Monster Online Jobsuche finden Sie Jobangebote – leichter als je zuvor. | D148: 124
B149: http://jobsuche.monster.de/FALKE-KGaA_6?re=106 | C149: Jobs &amp; Stellenanzeigen bei FALKE KGaA. Mit der Monster Online Jobsuche finden Sie Jobangebote – leichter als je zuvor. | D149: 124
B150: http://jobsuche.monster.de/FALKE-KGaA_6?sf=20&re=106 | C150: Jobs &amp; Stellenanzeigen bei FALKE KGaA. Mit der Monster Online Jobsuche finden Sie Jobangebote – leichter als je zuvor. | D150: 124
B151: http://jobsuche.monster.de/Formel-D_6 | C151: Jobs &amp; Stellenanzeigen bei Formel D. Mit der Monster Online Jobsuche finden Sie Jobangebote – leichter als je zuvor. | D151: 122
B152: http://jobsuche.monster.de/Frankfurt_2 | C152: Jobs &amp; Stellenanzeigen in Frankfurt. Mit der Monster Online Jobsuche finden Sie Jobangebote – leichter als je zuvor. | D152: 122
B153: http://jobsuche.monster.de/HDW-GmbH_6 | C153: Jobs &amp; Stellenanzeigen bei HDW GmbH. Mit der Monster Online Jobsuche finden Sie Jobangebote – leichter als je zuvor. | D153: 122
B154: http://jobsuche.monster.de/Halle_2 | C154: Jobs &amp; Stellenanzeigen in Halle. Mit der Monster Online Jobsuche finden Sie Jobangebote – leichter als je zuvor. | D154: 118
B155: http://jobsuche.monster.de/Halle_2?pg=2 | C155: Jobs &amp; Stellenanzeigen in Halle. Mit der Monster Online Jobsuche finden Sie Jobangebote – leichter als je zuvor. | D155: 118
B156: http://jobsuche.monster.de/Halle_2?sf=13 | C156: Jobs &amp; Stellenanzeigen in Halle. Mit der Monster Online Jobsuche finden Sie Jobangebote – leichter als je zuvor. | D156: 118
B157: http://jobsuche.monster.de/Hamburg_1?q=it&sf=18.822 | C157: It Jobs &amp; Stellenanzeigen in Hamburg. Mit der Monster Online Jobsuche finden Sie Jobangebote – leichter als je zuvor. | D157: 123
B158: http://jobsuche.monster.de/Hamburg_1?sf=18.822 | C158: Jobs &amp; Stellenanzeigen in Hamburg. Mit der Monster Online Jobsuche finden Sie Jobangebote – leichter als je zuvor. | D158: 120
B159: http://jobsuche.monster.de/Hamburg_2 | C159: Jobs &amp; Stellenanzeigen in Hamburg. Mit der Monster Online Jobsuche finden Sie Jobangebote – leichter als je zuvor. | D159: 120
B160: http://jobsuche.monster.de/Handwerk_4?HPS=4_5C3_Suche_Handwerk | C160: Jobs &amp; Stellenanzeigen. Mit der Monster Online Jobsuche finden Sie Handwerk Jobangebote – leichter als je zuvor. | D160: 118
B161: http://jobsuche.monster.de/Handwerk_4?pg=1 | C161: Jobs &amp; Stellenanzeigen. Mit der Monster Online Jobsuche finden Sie Handwerk Jobangebote – leichter als je zuvor. | D161: 118
B162: http://jobsuche.monster.de/Handwerk_4?pg=10 | C162: Jobs &amp; Stellenanzeigen. Mit der Monster Online Jobsuche finden Sie Handwerk Jobangebote – leichter als je zuvor. | D162: 118
B163: http://jobsuche.monster.de/Handwerk_4?pg=2 | C163: Jobs &amp; Stellenanzeigen. Mit der Monster Online Jobsuche finden Sie Handwerk Jobangebote – leichter als je zuvor. | D163: 118
B164: http://jobsuche.monster.de/Handwerk_4?pg=3 | C164: Jobs &amp; Stellenanzeigen. Mit der Monster Online Jobsuche finden Sie Handwerk Jobangebote – leichter als je zuvor. | D164: 118
B165: http://jobsuche.monster.de/Handwerk_4?pg=4 | C165: Jobs &amp; Stellenanzeigen. Mit der Monster Online Jobsuche finden Sie Handwerk Jobangebote – leichter als je zuvor. | D165: 118
B166: http://jobsuche.monster.de/Handwerk_4?pg=5 | C166: Jobs &amp; Stellenanzeigen. Mit der Monster Online Jobsuche finden Sie Handwerk Jobangebote – leichter als je zuvor. | D166: 118
B167: http://jobsuche.monster.de/Handwerk_4?pg=6 | C167: Jobs &amp; Stellenanzeigen. Mit der Monster Online Jobsuche finden Sie Handwerk Jobangebote – leichter als je zuvor. | D167: 118
B168: http://jobsuche.monster.de/Handwerk_4?pg=7 | C168: Jobs &amp; Stellenanzeigen. Mit der Monster Online Jobsuche finden Sie Handwerk Jobangebote – leichter als je zuvor. | D168: 118
B169: http://jobsuche.monster.de/Handwerk_4?pg=8 | C169: Jobs &amp; Stellenanzeigen. Mit der Monster Online Jobsuche finden Sie Handwerk Jobangebote – leichter als je zuvor. | D169: 118
B170: http://jobsuche.monster.de/Handwerk_4?pg=8&sf=10 | C170: Jobs &amp; Stellenanzeigen. Mit der Monster Online Jobsuche finden Sie Handwerk Jobangebote – leichter als je zuvor. | D170: 118
B171: http://jobsuche.monster.de/Handwerk_4?pg=8&sf=13 | C171: Jobs &amp; Stellenanzeigen. Mit der Monster Online Jobsuche finden Sie Handwerk Jobangebote – leichter als je zuvor. | D171: 118
B172: http://jobsuche.monster.de/Handwerk_4?pg=8&sf=14 | C172: Jobs &amp; Stellenanzeigen. Mit der Monster Online Jobsuche finden Sie Handwerk Jobangebote – leichter als je zuvor. | D172: 118
B173: http://jobsuche.monster.de/Handwerk_4?pg=9 | C173: Jobs &amp; Stellenanzeigen. Mit der Monster Online Jobsuche finden Sie Handwerk Jobangebote – leichter als je zuvor. | D173: 118
B174: http://jobsuche.monster.de/Handwerk_4?sf=10 | C174: Jobs &amp; Stellenanzeigen. Mit der Monster Online Jobsuche finden Sie Handwerk Jobangebote – leichter als je zuvor. | D174: 118
B175: http://jobsuche.monster.de/Handwerk_4?sf=13 | C175: Jobs &amp; Stellenanzeigen. Mit der Monster Online Jobsuche finden Sie Handwerk Jobangebote – leichter als je zuvor. | D175: 118
B176: http://jobsuche.monster.de/Handwerk_4?sf=14 | C176: Jobs &amp; Stellenanzeigen. Mit der Monster Online Jobsuche finden Sie Handwerk Jobangebote – leichter als je zuvor. | D176: 118
B177: http://jobsuche.monster.de/Handwerk_4?sf=19 | C177: Jobs &amp; Stellenanzeigen. Mit der Monster Online Jobsuche finden Sie Handwerk Jobangebote – leichter als je zuvor. | D177: 118
B178: http://jobsuche.monster.de/Handwerk_4?sf=20 | C178: Jobs &amp; Stellenanzeigen. Mit der Monster Online Jobsuche finden Sie Handwerk Jobangebote – leichter als je zuvor. | D178: 118
B179: http://jobsuche.monster.de/Handwerk_4?sf=21 | C179: Jobs &amp; Stellenanzeigen. Mit der Monster Online Jobsuche finden Sie Handwerk Jobangebote – leichter als je zuvor. | D179: 118
B180: http://jobsuche.monster.de/Handwerk_4?sf=22 | C180: Jobs &amp; Stellenanzeigen. Mit der Monster Online Jobsuche finden Sie Handwerk Jobangebote – leichter als je zuvor. | D180: 118
B181: http://jobsuche.monster.de/Handwerk_4?sf=23 | C181: Jobs &amp; Stellenanzeigen. Mit der Monster Online Jobsuche finden Sie Handwerk Jobangebote – leichter als je zuvor. | D181: 118
B182: http://jobsuche.monster.de/Hays-AG_6 | C182: Jobs &amp; Stellenanzeigen bei Hays AG. Mit der Monster Online Jobsuche finden Sie Jobangebote – leichter als je zuvor. | D182: 121
B183: http://jobsuche.monster.de/Heidelberg_2 | C183: Jobs &amp; Stellenanzeigen in Heidelberg. Mit der Monster Online Jobsuche finden Sie Jobangebote – leichter als je zuvor. | D183: 123
B184: http://jobsuche.monster.de/Hessen_1?q=it&sf=18.815 | C184: It Jobs &amp; Stellenanzeigen in Hessen. Mit der Monster Online Jobsuche finden Sie Jobangebote – leichter als je zuvor. | D184: 122
B185: http://jobsuche.monster.de/Hessen_1?sf=10 | C185: Jobs &amp; Stellenanzeigen in Hessen. Mit der Monster Online Jobsuche finden Sie Jobangebote – leichter als je zuvor. | D185: 119
B186: http://jobsuche.monster.de/Hessen_1?sf=18.815 | C186: Jobs &amp; Stellenanzeigen in Hessen. Mit der Monster Online Jobsuche finden Sie Jobangebote – leichter als je zuvor. | D186: 119
B187: http://jobsuche.monster.de/Hessen_1?sf=18.815&pcnme=9 | C187: Jobs &amp; Stellenanzeigen in Hessen. Mit der Monster Online Jobsuche finden Sie Jobangebote – leichter als je zuvor. | D187: 119
B188: http://jobsuche.monster.de/Instandhaltung_4?HPS=4_5C3_Suche_Instandhaltung | C188: Jobs &amp; Stellenanzeigen. Mit der Monster Online Jobsuche finden Sie Instandhaltung Jobangebote – leichter als je zuvor. | D188: 124
B189: http://jobsuche.monster.de/Instandhaltung_4?pg=1 | C189: Jobs &amp; Stellenanzeigen. Mit der Monster Online Jobsuche finden Sie Instandhaltung Jobangebote – leichter als je zuvor. | D189: 124
B190: http://jobsuche.monster.de/Instandhaltung_4?pg=10 | C190: Jobs &amp; Stellenanzeigen. Mit der Monster Online Jobsuche finden Sie Instandhaltung Jobangebote – leichter als je zuvor. | D190: 124
B191: http://jobsuche.monster.de/Instandhaltung_4?pg=2 | C191: Jobs &amp; Stellenanzeigen. Mit der Monster Online Jobsuche finden Sie Instandhaltung Jobangebote – leichter als je zuvor. | D191: 124
B192: http://jobsuche.monster.de/Instandhaltung_4?pg=3 | C192: Jobs &amp; Stellenanzeigen. Mit der Monster Online Jobsuche finden Sie Instandhaltung Jobangebote – leichter als je zuvor. | D192: 124
B193: http://jobsuche.monster.de/Instandhaltung_4?pg=4 | C193: Jobs &amp; Stellenanzeigen. Mit der Monster Online Jobsuche finden Sie Instandhaltung Jobangebote – leichter als je zuvor. | D193: 124
B194: http://jobsuche.monster.de/Instandhaltung_4?pg=5 | C194: Jobs &amp; Stellenanzeigen. Mit der Monster Online Jobsuche finden Sie Instandhaltung Jobangebote – leichter als je zuvor. | D194: 124
B195: http://jobsuche.monster.de/Instandhaltung_4?pg=6 | C195: Jobs &amp; Stellenanzeigen. Mit der Monster Online Jobsuche finden Sie Instandhaltung Jobangebote – leichter als je zuvor. | D195: 124
B196: http://jobsuche.monster.de/Instandhaltung_4?pg=7 | C196: Jobs &amp; Stellenanzeigen. Mit der Monster Online Jobsuche finden Sie Instandhaltung Jobangebote – leichter als je zuvor. | D196: 124
B197: http://jobsuche.monster.de/Instandhaltung_4?pg=8 | C197: Jobs &amp; Stellenanzeigen. Mit der Monster Online Jobsuche finden Sie Instandhaltung Jobangebote – leichter als je zuvor. | D197: 124
B198: http://jobsuche.monster.de/Instandhaltung_4?pg=9 | C198: Jobs &amp; Stellenanzeigen. Mit der Monster Online Jobsuche finden Sie Instandhaltung Jobangebote – leichter als je zuvor. | D198: 124
B199: http://jobsuche.monster.de/Instandhaltung_4?sf=10 | C199: Jobs &amp; Stellenanzeigen. Mit der Monster Online Jobsuche finden Sie Instandhaltung Jobangebote – leichter als je zuvor. | D199: 124
B200: http://jobsuche.monster.de/Instandhaltung_4?sf=13 | C200: Jobs &amp; Stellenanzeigen. Mit der Monster Online Jobsuche finden Sie Instandhaltung Jobangebote – leichter als je zuvor. | D200: 124
B201: http://jobsuche.monster.de/Instandhaltung_4?sf=14 | C201: Jobs &amp; Stellenanzeigen. Mit der Monster Online Jobsuche finden Sie Instandhaltung Jobangebote – leichter als je zuvor. | D201: 124
B202: http://jobsuche.monster.de/Instandhaltung_4?sf=19 | C202: Jobs &amp; Stellenanzeigen. Mit der Monster Online Jobsuche finden Sie Instandhaltung Jobangebote – leichter als je zuvor. | D202: 124
B203: http://jobsuche.monster.de/Instandhaltung_4?sf=20 | C203: Jobs &amp; Stellenanzeigen. Mit der Monster Online Jobsuche finden Sie Instandhaltung Jobangebote – leichter als je zuvor. | D203: 124
B204: http://jobsuche.monster.de/Instandhaltung_4?sf=21 | C204: Jobs &amp; Stellenanzeigen. Mit der Monster Online Jobsuche finden Sie Instandhaltung Jobangebote – leichter als je zuvor. | D204: 124
... 286 more rows

Sheet Missing Meta Description
B3: Missing Meta Description
B5: Pages found missing a meta description tag
B6: Total Count: 278
B8: Issue Severity: Critical
B9: URL | C9: Meta Description Tag
B10: http://arbeitgeber.monster.de/privacy/default.aspx | C10: Missing
B11: http://arbeitgeber.monster.de/terms/terms.aspx | C11: Missing
B12: http://datenschutz.monster.de/business-fraud/inside2.aspx | C12: Missing
B13: http://datenschutz.monster.de/id-theft/inside2.aspx | C13: Missing
B14: http://forum.monster.de/n/pfx/profile.aspx?webtag=mstforum30&userId=1887458185&ptpw=y | C14: Missing
B15: http://forum.monster.de/n/pfx/profile.aspx?webtag=mstforum30&userId=1888615451&ptpw=y | C15: Missing
B16: http://forum.monster.de/n/pfx/profile.aspx?webtag=mstforum30&userId=1893597676&ptpw=y | C16: Missing
B17: http://forum.monster.de/n/pfx/profile.aspx?webtag=mstforum40&userId=1881054893&ptpw=y | C17: Missing
B18: http://forum.monster.de/n/pfx/profile.aspx?webtag=mstforum40&userId=1892558899&ptpw=y | C18: Missing
B19: http://forum.monster.de/n/pfx/profile.aspx?webtag=mstforum50&userId=1873974946&ptpw=y | C19: Missing
B20: http://hilfe.monster.de/ | C20: Missing
B21: http://jobsuche.monster.de/AdvancedSearch.aspx | C21: Missing
B22: http://jobsuche.monster.de/AdvancedSearch.aspx?cn=Amadeus%20FiRe%20AG&sf=20 | C22: Missing
B23: http://jobsuche.monster.de/AdvancedSearch.aspx?cn=Bankpower%20GmbH&sf=20 | C23: Missing
B24: http://jobsuche.monster.de/AdvancedSearch.aspx?cn=BorgWarner | C24: Missing
B25: http://jobsuche.monster.de/AdvancedSearch.aspx?cn=Deloitte%20%26%20Touche%20GmbH | C25: Missing
B26: http://jobsuche.monster.de/AdvancedSearch.aspx?cn=Deutsche%20Telekom%20AG&sf=20 | C26: Missing
B27: http://jobsuche.monster.de/AdvancedSearch.aspx?cn=Endress%2bHauser%20Conducta%20GmbH%2bCo%2e%20KG | C27: Missing
B28: http://jobsuche.monster.de/AdvancedSearch.aspx?cn=Hays%20AG | C28: Missing
B29: http://jobsuche.monster.de/AdvancedSearch.aspx?cn=Imtech%20Contracting%20GmbH | C29: Missing
B30: http://jobsuche.monster.de/AdvancedSearch.aspx?cn=Klepper%20Faltboote%20AG | C30: Missing
B31: http://jobsuche.monster.de/AdvancedSearch.aspx?cn=Lidl%20GmbH%20%26%20Co%2e%20KG | C31: Missing
B32: http://jobsuche.monster.de/AdvancedSearch.aspx?cn=PERIT%20Consulting%20GmbH%20%26%20Co%2e%20KG&sf=20 | C32: Missing
B33: http://jobsuche.monster.de/AdvancedSearch.aspx?cn=Precitec%20KG | C33: Missing
B34: http://jobsuche.monster.de/AdvancedSearch.aspx?cn=rtv%20media%20group%20GmbH | C34: Missing
B35: http://jobsuche.monster.de/AdvancedSearch.aspx?cn=triplex%20GmbH | C35: Missing
B36: http://jobsuche.monster.de/AdvancedSearch.aspx?indid=1 | C36: Missing
B37: http://jobsuche.monster.de/AdvancedSearch.aspx?indid=14 | C37: Missing
B38: http://jobsuche.monster.de/AdvancedSearch.aspx?indid=17 | C38: Missing
B39: http://jobsuche.monster.de/AdvancedSearch.aspx?indid=27 | C39: Missing
B40: http://jobsuche.monster.de/AdvancedSearch.aspx?indid=27&pg=3 | C40: Missing
B41: http://jobsuche.monster.de/AdvancedSearch.aspx?indid=3 | C41: Missing
B42: http://jobsuche.monster.de/AdvancedSearch.aspx?indid=3&pg=1 | C42: Missing
B43: http://jobsuche.monster.de/AdvancedSearch.aspx?indid=3&sf=18.824&stct=Nordrhein%2dWestfalen | C43: Missing
B44: http://jobsuche.monster.de/AdvancedSearch.aspx?indid=33 | C44: Missing
B45: http://jobsuche.monster.de/AdvancedSearch.aspx?indid=4 | C45: Missing
B46: http://jobsuche.monster.de/AdvancedSearch.aspx?indid=4&sf=18.826&stct=Sachsen%2dAnhalt | C46: Missing
B47: http://jobsuche.monster.de/AdvancedSearch.aspx?indid=43 | C47: Missing
B48: http://jobsuche.monster.de/AdvancedSearch.aspx?indid=43&sf=18.820&stct=Bayern | C48: Missing
B49: http://jobsuche.monster.de/AdvancedSearch.aspx?indid=48 | C49: Missing
B50: http://jobsuche.monster.de/AdvancedSearch.aspx?indid=48&sf=18.820&stct=Bayern | C50: Missing
B51: http://jobsuche.monster.de/AdvancedSearch.aspx?indid=78 | C51: Missing
B52: http://jobsuche.monster.de/AdvancedSearch.aspx?indid=78&pg=6 | C52: Missing
B53: http://jobsuche.monster.de/AdvancedSearch.aspx?indid=78&sf=22 | C53: Missing
B54: http://jobsuche.monster.de/AdvancedSearch.aspx?indid=79 | C54: Missing
B55: http://jobsuche.monster.de/AdvancedSearch.aspx?indid=79&pg=6 | C55: Missing
B56: http://jobsuche.monster.de/AdvancedSearch.aspx?indid=79&sf=22 | C56: Missing
B57: http://jobsuche.monster.de/AdvancedSearch.aspx?indid=83 | C57: Missing
B58: http://jobsuche.monster.de/AdvancedSearch.aspx?indid=83&sf=20 | C58: Missing
B59: http://jobsuche.monster.de/AdvancedSearch.aspx?occ=10.11709&occ=10.11801&occ=10.11735&occ=10.11950&occ=10.12006&occ=10.11939&occ=10.11840&occ=10.11913&occ=10.11986&occ=10.11989&occ=10.11993&occ=10.11868&occ=10.11839&occ=10.11954 | C59: Missing
B60: http://jobsuche.monster.de/AdvancedSearch.aspx?occ=10.11709&occ=10.11801&occ=10.11735&occ=10.11950&occ=10.12006&occ=10.11939&occ=10.11840&occ=10.11913&occ=10.11986&occ=10.11989&occ=10.11993&occ=10.11868&occ=10.11839&occ=10.11954&HPS=4_5C3_Suche_Vertrieb | C60: Missing
B61: http://jobsuche.monster.de/AdvancedSearch.aspx?occ=10.11709&occ=10.11801&occ=10.11735&occ=10.11950&occ=10.12006&occ=10.11939&occ=10.11840&occ=10.11913&occ=10.11986&occ=10.11989&occ=10.11993&occ=10.11868&occ=10.11839&occ=10.11954&pg=6 | C61: Missing
B62: http://jobsuche.monster.de/AdvancedSearch.aspx?occ=11.12008&occ=11.11741&occ=11.11892&HPS=4_5C3_Suche_Sonstige | C62: Missing
B63: http://jobsuche.monster.de/AdvancedSearch.aspx?occ=11.12008&occ=11.11741&occ=11.11892&pg=6 | C63: Missing
B64: http://jobsuche.monster.de/AdvancedSearch.aspx?occ=11.12008&occ=11.11741&occ=11.11892&sf=18.815&stct=Hessen | C64: Missing
B65: http://jobsuche.monster.de/AdvancedSearch.aspx?occ=11454.11719&occ=11454.11752&occ=11454.11765&occ=11454.11821&occ=11454.11837&occ=11454.11800&occ=11454.11923&occ=11454.11897&occ=11454.12005&HPS=4_5C3_Suche_Design | C65: Missing
B66: http://jobsuche.monster.de/AdvancedSearch.aspx?occ=11454.11719&occ=11454.11752&occ=11454.11765&occ=11454.11821&occ=11454.11837&occ=11454.11800&occ=11454.11923&occ=11454.11897&occ=11454.12005&sf=18.823&stct=Mecklenburg%2dVorpommern | C66: Missing
B67: http://jobsuche.monster.de/AdvancedSearch.aspx?occ=13.11810&occ=13.11831&occ=13.11822&occ=13.11811&occ=13.11947&occ=13.11816&occ=13.12007&occ=13.11901 | C67: Missing
B68: http://jobsuche.monster.de/AdvancedSearch.aspx?occ=13.11810&occ=13.11831&occ=13.11822&occ=13.11811&occ=13.11947&occ=13.11816&occ=13.12007&occ=13.11901&HPS=4_5C3_Suche_Hotel | C68: Missing
B69: http://jobsuche.monster.de/AdvancedSearch.aspx?occ=2.11802&occ=2.11797&occ=2.11770&occ=2.11942&occ=2.14874&occ=2.11888&occ=2.11713&occ=2.11958&occ=2.11894 | C69: Missing
B70: http://jobsuche.monster.de/AdvancedSearch.aspx?occ=2.11802&occ=2.11797&occ=2.11770&occ=2.11942&occ=2.14874&occ=2.11888&occ=2.11713&occ=2.11958&occ=2.11894&HPS=4_5C3_Suche_Administration | C70: Missing
B71: http://jobsuche.monster.de/AdvancedSearch.aspx?occ=2.11802&occ=2.11797&occ=2.11770&occ=2.11942&occ=2.14874&occ=2.11888&occ=2.11713&occ=2.11958&occ=2.11894&sf=23 | C71: Missing
B72: http://jobsuche.monster.de/AdvancedSearch.aspx?occ=3.11759&occ=3.11756&occ=3.11779&occ=3.11768&occ=3.11851&occ=3.11995&occ=3.11955&occ=3.11748&occ=3.11972&occ=3.11915&occ=3.11807 | C72: Missing
B73: http://jobsuche.monster.de/AdvancedSearch.aspx?occ=3.11759&occ=3.11756&occ=3.11779&occ=3.11768&occ=3.11851&occ=3.11995&occ=3.11955&occ=3.11748&occ=3.11972&occ=3.11915&occ=3.11807&HPS=4_5C3_Suche_Ausbildung | C73: Missing
B74: http://jobsuche.monster.de/AdvancedSearch.aspx?occ=4.11747&occ=4.11728&occ=4.11746&occ=4.11782&occ=4.11786&occ=4.11951&occ=4.11715&occ=4.11867&occ=4.11980&occ=4.11838&occ=4.11881&occ=4.11900&occ=4.11737&occ=4.11788 | C74: Missing
B75: http://jobsuche.monster.de/AdvancedSearch.aspx?occ=4.11747&occ=4.11728&occ=4.11746&occ=4.11782&occ=4.11786&occ=4.11951&occ=4.11715&occ=4.11867&occ=4.11980&occ=4.11838&occ=4.11881&occ=4.11900&occ=4.11737&occ=4.11788&HPS=4_5C3_Suche_Ingenieur | C75: Missing
B76: http://jobsuche.monster.de/AdvancedSearch.aspx?occ=5.11759&occ=5.11751&occ=5.11777&occ=5.11918&occ=5.14870&occ=5.11943&occ=5.11902 | C76: Missing
B77: http://jobsuche.monster.de/AdvancedSearch.aspx?occ=5.11759&occ=5.11751&occ=5.11777&occ=5.11918&occ=5.14870&occ=5.11943&occ=5.11902&HPS=4_5C3_Suche_Personalwesen | C77: Missing
B78: http://jobsuche.monster.de/AdvancedSearch.aspx?occ=5.11759&occ=5.11751&occ=5.11777&occ=5.11918&occ=5.14870&occ=5.11943&occ=5.11902&pg=1 | C78: Missing
B79: http://jobsuche.monster.de/AdvancedSearch.aspx?occ=5.11759&occ=5.11751&occ=5.11777&occ=5.11918&occ=5.14870&occ=5.11943&occ=5.11902&pg=2 | C79: Missing
B80: http://jobsuche.monster.de/AdvancedSearch.aspx?occ=5.11759&occ=5.11751&occ=5.11777&occ=5.11918&occ=5.14870&occ=5.11943&occ=5.11902&pg=3 | C80: Missing
B81: http://jobsuche.monster.de/AdvancedSearch.aspx?occ=5.11759&occ=5.11751&occ=5.11777&occ=5.11918&occ=5.14870&occ=5.11943&occ=5.11902&pg=4 | C81: Missing
B82: http://jobsuche.monster.de/AdvancedSearch.aspx?occ=5.11759&occ=5.11751&occ=5.11777&occ=5.11918&occ=5.14870&occ=5.11943&occ=5.11902&pg=5 | C82: Missing
B83: http://jobsuche.monster.de/AdvancedSearch.aspx?occ=5.11759&occ=5.11751&occ=5.11777&occ=5.11918&occ=5.14870&occ=5.11943&occ=5.11902&sf=18.813&stct=Berlin | C83: Missing
B84: http://jobsuche.monster.de/AdvancedSearch.aspx?occ=544.11965&occ=544.11755&occ=544.11829&occ=544.11953&occ=544.11783&occ=544.11809&occ=544.11835&occ=544.11925&occ=544.11845&occ=544.11896&occ=544.11737&occ=544.11978&occ=544.11963&occ=544.11743 | C84: Missing
B85: http://jobsuche.monster.de/AdvancedSearch.aspx?occ=545.11738&occ=545.11808&occ=545.11824&occ=545.11948&occ=545.11710&occ=545.11768&occ=545.11945&occ=545.11726&occ=545.11898&occ=545.11985 | C85: Missing
B86: http://jobsuche.monster.de/AdvancedSearch.aspx?occ=545.11738&occ=545.11808&occ=545.11824&occ=545.11948&occ=545.11710&occ=545.11768&occ=545.11945&occ=545.11726&occ=545.11898&occ=545.11985&HPS=4_5C3_Suche_Customerservice | C86: Missing
B87: http://jobsuche.monster.de/AdvancedSearch.aspx?occ=553.11753&occ=553.11783&occ=553.11798&occ=553.11849&occ=553.11835&occ=553.12000&occ=553.11925&occ=553.11854&occ=553.11791&occ=553.11858&occ=553.11903 | C87: Missing
B88: http://jobsuche.monster.de/AdvancedSearch.aspx?occ=553.11753&occ=553.11783&occ=553.11798&occ=553.11849&occ=553.11835&occ=553.12000&occ=553.11925&occ=553.11854&occ=553.11791&occ=553.11858&occ=553.11903&HPS=4_5C3_Suche_Instandhaltung | C88: Missing
B89: http://jobsuche.monster.de/AdvancedSearch.aspx?occ=553.11753&occ=553.11783&occ=553.11798&occ=553.11849&occ=553.11835&occ=553.12000&occ=553.11925&occ=553.11854&occ=553.11791&occ=553.11858&occ=553.11903&pg=4 | C89: Missing
B90: http://jobsuche.monster.de/AdvancedSearch.aspx?occ=553.11753&occ=553.11783&occ=553.11798&occ=553.11849&occ=553.11835&occ=553.12000&occ=553.11925&occ=553.11854&occ=553.11791&occ=553.11858&occ=553.11903&sf=18.819&stct=Schleswig%2dHolstein | C90: Missing
B91: http://jobsuche.monster.de/AdvancedSearch.aspx?occ=555.11805&occ=555.11974&occ=555.11926&occ=555.11961&occ=555.11914&occ=555.11762&occ=555.11879&HPS=4_5C3_Suche_Sicherheit | C91: Missing
B92: http://jobsuche.monster.de/AdvancedSearch.aspx?occ=559.11729&occ=559.11865&occ=559.11866&occ=559.11749&occ=559.11883&occ=559.11921&occ=559.11912&occ=559.11790 | C92: Missing
B93: http://jobsuche.monster.de/AdvancedSearch.aspx?occ=559.11729&occ=559.11865&occ=559.11866&occ=559.11749&occ=559.11883&occ=559.11921&occ=559.11912&occ=559.11790&HPS=4_5C3_Suche_Naturwissenschaftliche | C93: Missing
B94: http://jobsuche.monster.de/AdvancedSearch.aspx?occ=5623.11778&occ=5623.11850&occ=5623.11781&occ=5623.11899&occ=5623.11992 | C94: Missing
B95: http://jobsuche.monster.de/AdvancedSearch.aspx?occ=5623.11778&occ=5623.11850&occ=5623.11781&occ=5623.11899&occ=5623.11992&HPS=4_5C3_Suche_Redaktion | C95: Missing
B96: http://jobsuche.monster.de/AdvancedSearch.aspx?occ=5623.11778&occ=5623.11850&occ=5623.11781&occ=5623.11899&occ=5623.11992&sf=18.817&stct=Rheinland%2dPfalz | C96: Missing
B97: http://jobsuche.monster.de/AdvancedSearch.aspx?occ=5623.11778&occ=5623.11850&occ=5623.11781&occ=5623.11899&occ=5623.11992&sf=18.823&stct=Mecklenburg%2dVorpommern | C97: Missing
B98: http://jobsuche.monster.de/AdvancedSearch.aspx?occ=660.11996&occ=660.11774&occ=660.11754&occ=660.11772&occ=660.11787&occ=660.11847&occ=660.11848&occ=660.11969&occ=660.11970&occ=660.11904&occ=660.11882&occ=660.11979&occ=660.11987&occ=660.12005 | C98: Missing
B99: http://jobsuche.monster.de/AdvancedSearch.aspx?occ=660.11996&occ=660.11774&occ=660.11754&occ=660.11772&occ=660.11787&occ=660.11847&occ=660.11848&occ=660.11969&occ=660.11970&occ=660.11904&occ=660.11882&occ=660.11979&occ=660.11987&occ=660.12005&pg=8 | C99: Missing
B100: http://jobsuche.monster.de/AdvancedSearch.aspx?occ=7.11852&occ=7.11916&occ=7.11917&occ=7.11905&occ=7.11983&occ=7.11722 | C100: Missing
B101: http://jobsuche.monster.de/AdvancedSearch.aspx?occ=7.11852&occ=7.11916&occ=7.11917&occ=7.11905&occ=7.11983&occ=7.11722&HPS=4_5C3_Suche_Recht | C101: Missing
B102: http://jobsuche.monster.de/AdvancedSearch.aspx?occ=7.11852&occ=7.11916&occ=7.11917&occ=7.11905&occ=7.11983&occ=7.11722&sf=23 | C102: Missing
B103: http://jobsuche.monster.de/AdvancedSearch.aspx?occ=9007.12002&occ=9007.11732&occ=9007.11776&occ=9007.11795&occ=9007.11844&occ=9007.11863&occ=9007.11862&occ=9007.11869&occ=9007.11864&occ=9007.11931&occ=9007.11907&occ=9007.11988&occ=9007.11758 | C103: Missing
B104: http://jobsuche.monster.de/AdvancedSearch.aspx?occ=9008.11794&occ=9008.11848&occ=9008.11934&occ=9008.11935&occ=9008.11910 | C104: Missing
B105: http://jobsuche.monster.de/AdvancedSearch.aspx?occ=9008.11794&occ=9008.11848&occ=9008.11934&occ=9008.11935&occ=9008.11910&HPS=4_5C3_Suche_Projektmanagement | C105: Missing
B106: http://jobsuche.monster.de/AdvancedSearch.aspx?occ=9008.11794&occ=9008.11848&occ=9008.11934&occ=9008.11935&occ=9008.11910&sf=18.826&stct=Sachsen%2dAnhalt | C106: Missing
B107: http://jobsuche.monster.de/AdvancedSearch.aspx?q=finanzwesen | C107: Missing
B108: http://jobsuche.monster.de/AdvancedSearch.aspx?sf=17 | C108: Missing
B109: http://jobsuche.monster.de/AdvancedSearch.aspx?sf=19 | C109: Missing
B110: http://jobsuche.monster.de/AdvancedSearch.aspx?sf=20 | C110: Missing
B111: http://jobsuche.monster.de/AdvancedSearch.aspx?sf=23 | C111: Missing
B112: http://jobsuche.monster.de/AdvancedSearch.aspx?stct=Minden | C112: Missing
B113: http://jobsuche.monster.de/AdvancedSearch.aspx?stct=Stuttart%2c%20Hamburg | C113: Missing
B114: http://jobsuche.monster.de/AdvancedSearch.aspx?tjt=Key%20Account%20Manager%20%28m%2fw%29&sf=19 | C114: Missing
B115: http://jobsuche.monster.de/AdvancedSearch.aspx?tjt=Projektmanager%20%28m%2fw%29&sf=19 | C115: Missing
B116: http://karriere-beratung.monster.de/ | C116: Missing
B117: http://karrieremesse.monster.de/ | C117: Missing
B118: http://mein.monster.de/Become-Member/Create-Account.aspx | C118: Missing
B119: http://mein.monster.de/Become-Member/Create-Account.aspx?redirect=http%3a%2f%2fhome.monster.de%2f | C119: Missing
B120: http://mein.monster.de/Become-Member/Create-Account.aspx?redirect=http%3a%2f%2fjobs.monster.de%2f | C120: Missing
B121: http://mein.monster.de/Become-Member/Create-Account.aspx?redirect=http%3a%2f%2fjobsuche.monster.de%2fProduktion_4%3fHPS%3d4_5C3_Suche_Produktion | C121: Missing
B122: http://mein.monster.de/Become-Member/Create-Account.aspx?redirect=http%3a%2f%2fmein.monster.de%2f | C122: Missing
B123: http://mein.monster.de/Become-Member/Create-Account.aspx?redirect=http%3a%2f%2fwww.monster.de%2f | C123: Missing
B124: http://mein.monster.de/Career-Assessment/CareerData.aspx?GroupID=11 | C124: Missing
B125: http://mein.monster.de/Career-Assessment/CareerData.aspx?GroupID=12 | C125: Missing
B126: http://mein.monster.de/Career-Assessment/CareerData.aspx?GroupID=13 | C126: Missing
B127: http://mein.monster.de/Career-Assessment/CareerData.aspx?GroupID=15 | C127: Missing
B128: http://mein.monster.de/Career-Assessment/CareerData.aspx?GroupID=17 | C128: Missing
B129: http://mein.monster.de/Career-Assessment/CareerData.aspx?GroupID=7 | C129: Missing
B130: http://mein.monster.de/Career-Assessment/CareerData.aspx?GroupID=9 | C130: Missing
B131: http://mein.monster.de/Career-Assessment/CareerData.aspx?groupID=11 | C131: Missing
B132: http://mein.monster.de/Career-Assessment/CareerData.aspx?groupID=12 | C132: Missing
B133: http://mein.monster.de/Career-Assessment/CareerData.aspx?groupID=15 | C133: Missing
B134: http://mein.monster.de/Privacy/Default.aspx | C134: Missing
B135: http://mein.monster.de/Terms/Default.aspx | C135: Missing
B136: http://mein.monster.de/privacy/ | C136: Missing
B137: http://mein.monster.de/privacy/EmailForm.aspx | C137: Missing
B138: http://mein.monster.de/privacy/fullstatement.aspx | C138: Missing
B139: http://mein.monster.de/resources/ | C139: Missing
B140: http://mein.monster.de/securitycenter/ | C140: Missing
B141: http://mein.monster.de/terms/ | C141: Missing
B142: http://mein.monster.de/terms/default.aspx | C142: Missing
B143: http://promotions.monster.de/bewerberleitfaden/ | C143: Missing
B144: http://promotions.monster.de/bewerberleitfaden/?HPS=Navbar_CareerTools | C144: Missing
B145: http://stellenanzeige.monster.de/Praktikant-P-L-Mobility-m-w-Job-M%c3%bcnchen-Deutschland-97530415.aspx | C145: Missing
B146: https://arbeitgeber.monster.de/login.aspx | C146: Missing
B147: https://login.monster.de/?ch=DEGE&r=http%3A%2F%2Fjobsuche.monster.de%2f%3ftm%3dSeit-3-Tagen%26sf%3d23 | C147: Missing
B148: https://login.monster.de/?ch=DEGE&r=http%3A%2F%2Fjobsuche.monster.de%2fAdministration-Sachbearbeitung_4%3fHPS%3d4_5C3_Suche_Administration | C148: Missing
B149: https://login.monster.de/?ch=DEGE&r=http%3A%2F%2Fjobsuche.monster.de%2fAdministration-Sachbearbeitung_4%3fsf%3d22 | C149: Missing
B150: https://login.monster.de/?ch=DEGE&r=http%3A%2F%2Fjobsuche.monster.de%2fAnlagen-Maschinenbau_3%3fpg%3d8 | C150: Missing
B151: https://login.monster.de/?ch=DEGE&r=http%3A%2F%2Fjobsuche.monster.de%2fAus-und-Weiterbildung_4%3fHPS%3d4_5C3_Suche_Ausbildung | C151: Missing
B152: https://login.monster.de/?ch=DEGE&r=http%3A%2F%2Fjobsuche.monster.de%2fBau-Baustoffhandel_3%3fpg%3d1 | C152: Missing
B153: https://login.monster.de/?ch=DEGE&r=http%3A%2F%2Fjobsuche.monster.de%2fBerlin%2bLogistik-und-Transport_14%3fsf%3d18.813 | C153: Missing
B154: https://login.monster.de/?ch=DEGE&r=http%3A%2F%2Fjobsuche.monster.de%2fBerlin%2bNaturwissenschaftliche-Forschung_14%3fsf%3d18.813 | C154: Missing
B155: https://login.monster.de/?ch=DEGE&r=http%3A%2F%2Fjobsuche.monster.de%2fBrandenburg%2bEnergie-Wasserversorgung_13%3fsf%3d18.821 | C155: Missing
B156: https://login.monster.de/?ch=DEGE&r=http%3A%2F%2Fjobsuche.monster.de%2fBrandenburg%2bHandwerk_14%3fsf%3d18.821 | C156: Missing
B157: https://login.monster.de/?ch=DEGE&r=http%3A%2F%2Fjobsuche.monster.de%2fBrandenburg%2bLogistik-und-Transport_14%3fsf%3d18.821 | C157: Missing
B158: https://login.monster.de/?ch=DEGE&r=http%3A%2F%2Fjobsuche.monster.de%2fCharit%c3%a9-CFM-Facility-Management-GmbH_6 | C158: Missing
B159: https://login.monster.de/?ch=DEGE&r=http%3A%2F%2Fjobsuche.monster.de%2fCustomer-Service-Kundenbetreuung_4%3fHPS%3d4_5C3_Suche_Customerservice | C159: Missing
B160: https://login.monster.de/?ch=DEGE&r=http%3A%2F%2Fjobsuche.monster.de%2fCustomer-Service-Kundenbetreuung_4%3fsf%3d22 | C160: Missing
B161: https://login.monster.de/?ch=DEGE&r=http%3A%2F%2Fjobsuche.monster.de%2fDesign-Gestaltung_4%3fHPS%3d4_5C3_Suche_Design | C161: Missing
B162: https://login.monster.de/?ch=DEGE&r=http%3A%2F%2Fjobsuche.monster.de%2fDesign-Gestaltung_4%3fpg%3d5 | C162: Missing
B163: https://login.monster.de/?ch=DEGE&r=http%3A%2F%2Fjobsuche.monster.de%2fDurchsuchen%2f | C163: Missing
B164: https://login.monster.de/?ch=DEGE&r=http%3A%2F%2Fjobsuche.monster.de%2fDurchsuchen%2f%3fpg%3d1%26sf%3d23 | C164: Missing
B165: https://login.monster.de/?ch=DEGE&r=http%3A%2F%2Fjobsuche.monster.de%2fDurchsuchen%2f%3fpg%3d8%26sf%3d17 | C165: Missing
B166: https://login.monster.de/?ch=DEGE&r=http%3A%2F%2Fjobsuche.monster.de%2fDurchsuchen%2f%3fpg%3d8%26sf%3d19 | C166: Missing
B167: https://login.monster.de/?ch=DEGE&r=http%3A%2F%2Fjobsuche.monster.de%2fDurchsuchen%2f%3fsf%3d17 | C167: Missing
B168: https://login.monster.de/?ch=DEGE&r=http%3A%2F%2Fjobsuche.monster.de%2fDurchsuchen%2f%3fsf%3d19 | C168: Missing
B169: https://login.monster.de/?ch=DEGE&r=http%3A%2F%2Fjobsuche.monster.de%2fDurchsuchen%2f%3fsf%3d20 | C169: Missing
B170: https://login.monster.de/?ch=DEGE&r=http%3A%2F%2Fjobsuche.monster.de%2fDurchsuchen%2f%3fsf%3d23 | C170: Missing
B171: https://login.monster.de/?ch=DEGE&r=http%3A%2F%2Fjobsuche.monster.de%2fDurchsuchen%2fberlin_1 | C171: Missing
B172: https://login.monster.de/?ch=DEGE&r=http%3A%2F%2Fjobsuche.monster.de%2fEinzelhandel_3%3fpg%3d8 | C172: Missing
B173: https://login.monster.de/?ch=DEGE&r=http%3A%2F%2Fjobsuche.monster.de%2fEinzelhandel_3%3fsf%3d23 | C173: Missing
B174: https://login.monster.de/?ch=DEGE&r=http%3A%2F%2Fjobsuche.monster.de%2fEnergie-Wasserversorgung_3%3fpg%3d3 | C174: Missing
B175: https://login.monster.de/?ch=DEGE&r=http%3A%2F%2Fjobsuche.monster.de%2fEnergie-Wasserversorgung_3%3fpg%3d7 | C175: Missing
B176: https://login.monster.de/?ch=DEGE&r=http%3A%2F%2Fjobsuche.monster.de%2fHamburg%2bIngenieurdienstleistungen_13%3fsf%3d18.822 | C176: Missing
B177: https://login.monster.de/?ch=DEGE&r=http%3A%2F%2Fjobsuche.monster.de%2fHamburg%2bPersonalwesen_14%3fsf%3d18.822 | C177: Missing
B178: https://login.monster.de/?ch=DEGE&r=http%3A%2F%2Fjobsuche.monster.de%2fHandwerk_4%3fHPS%3d4_5C3_Suche_Handwerk | C178: Missing
B179: https://login.monster.de/?ch=DEGE&r=http%3A%2F%2Fjobsuche.monster.de%2fHanseatisches-Personalkontor-Hamburg_6%3fre%3d106 | C179: Missing
B180: https://login.monster.de/?ch=DEGE&r=http%3A%2F%2Fjobsuche.monster.de%2fHaushaltsdienstleistungen_3%3fsf%3d10 | C180: Missing
B181: https://login.monster.de/?ch=DEGE&r=http%3A%2F%2Fjobsuche.monster.de%2fHauswirtschaftler%2fJobs-erhalten-5.aspx | C181: Missing
B182: https://login.monster.de/?ch=DEGE&r=http%3A%2F%2Fjobsuche.monster.de%2fHessen%2bAus-und-Weiterbildung_14%3fsf%3d18.815 | C182: Missing
B183: https://login.monster.de/?ch=DEGE&r=http%3A%2F%2Fjobsuche.monster.de%2fHessen%2bLand-Forstwirtschaft-Fischerei_13%3fsf%3d18.815 | C183: Missing
B184: https://login.monster.de/?ch=DEGE&r=http%3A%2F%2Fjobsuche.monster.de%2fHessen%2bRechnungswesen-Finanzen_14%3fsf%3d18.815 | C184: Missing
B185: https://login.monster.de/?ch=DEGE&r=http%3A%2F%2Fjobsuche.monster.de%2fHotel-und-Gastronomie_4%3fHPS%3d4_5C3_Suche_Hotel | C185: Missing
B186: https://login.monster.de/?ch=DEGE&r=http%3A%2F%2Fjobsuche.monster.de%2fHotel-und-Gastronomie_4%3fpg%3d10 | C186: Missing
B187: https://login.monster.de/?ch=DEGE&r=http%3A%2F%2Fjobsuche.monster.de%2fIT-Informationstechnologie_4%3fHPS%3d4_5C3_Suche_IT | C187: Missing
B188: https://login.monster.de/?ch=DEGE&r=http%3A%2F%2Fjobsuche.monster.de%2fIT-Software-Systeme-Design_3%3fpg%3d6 | C188: Missing
B189: https://login.monster.de/?ch=DEGE&r=http%3A%2F%2Fjobsuche.monster.de%2fIT-Software-Systeme-Design_3%3fsf%3d19 | C189: Missing
B190: https://login.monster.de/?ch=DEGE&r=http%3A%2F%2Fjobsuche.monster.de%2fI__2eK__2eHofmann-GmbH_6%3fsf%3d20 | C190: Missing
B191: https://login.monster.de/?ch=DEGE&r=http%3A%2F%2Fjobsuche.monster.de%2fIngenieurwesen-Entwicklung-und-Konstruktion_4%3fHPS%3d4_5C3_Suche_Ingenieur | C191: Missing
B192: https://login.monster.de/?ch=DEGE&r=http%3A%2F%2Fjobsuche.monster.de%2fIngenieurwesen-Entwicklung-und-Konstruktion_4%3fpg%3d2 | C192: Missing
B193: https://login.monster.de/?ch=DEGE&r=http%3A%2F%2Fjobsuche.monster.de%2fInstandhaltung_4%3fHPS%3d4_5C3_Suche_Instandhaltung | C193: Missing
B194: https://login.monster.de/?ch=DEGE&r=http%3A%2F%2Fjobsuche.monster.de%2fJava-Entwickler-__28m__2fw__29_5%3fsf%3d19 | C194: Missing
B195: https://login.monster.de/?ch=DEGE&r=http%3A%2F%2Fjobsuche.monster.de%2fJobs%2fMonster%2bInternet-Dienstleistungen-Portale-Datenverarbeitung_63 | C195: Missing
B196: https://login.monster.de/?ch=DEGE&r=http%3A%2F%2Fjobsuche.monster.de%2fJobs%2fMonster%2bSchifffahrt_63 | C196: Missing
B197: https://login.monster.de/?ch=DEGE&r=http%3A%2F%2Fjobsuche.monster.de%2fJobs%2fMonster_6 | C197: Missing
B198: https://login.monster.de/?ch=DEGE&r=http%3A%2F%2Fjobsuche.monster.de%2fKonstrukteur-__28m__2fw__29_5%3fsf%3d19 | C198: Missing
B199: https://login.monster.de/?ch=DEGE&r=http%3A%2F%2Fjobsuche.monster.de%2fLand-Forstwirtschaft-Fischerei_3%3fsf%3d13 | C199: Missing
B200: https://login.monster.de/?ch=DEGE&r=http%3A%2F%2Fjobsuche.monster.de%2fLand-Forstwirtschaft-Fischerei_3%3fsf%3d22 | C200: Missing
B201: https://login.monster.de/?ch=DEGE&r=http%3A%2F%2Fjobsuche.monster.de%2fLogistik-und-Transport_4%3fHPS%3d4_5C3_Suche_Logistik | C201: Missing
B202: https://login.monster.de/?ch=DEGE&r=http%3A%2F%2Fjobsuche.monster.de%2fManpower-GmbH-__26-Co__2e-KG_6 | C202: Missing
B203: https://login.monster.de/?ch=DEGE&r=http%3A%2F%2Fjobsuche.monster.de%2fMarketing_4%3fHPS%3d4_5C3_Suche_Marketing | C203: Missing
B204: https://login.monster.de/?ch=DEGE&r=http%3A%2F%2Fjobsuche.monster.de%2fMarketing_4%3fsf%3d13 | C204: Missing
... 83 more rows

Sheet Multiple Title Tags
B3: Multiple Title Tags
B5: Pages found with multiple title tags
B6: Total Count: 255
B8: Issue Severity: Critical
B9: URL | C9: Count
B10: http://arbeitgeber.monster.de/hr/personal-tipps/markte-analysen/branchen-trends/arbeitsmarkt-manager-81918.aspx | C10: 3
B11: http://arbeitgeber.monster.de/hr/personal-tipps/markte-analysen/branchen-trends/newsletter-abonnieren-74628.aspx?WT.mc_n=NL_Abo_Footer | C11: 3
B12: http://arbeitgeber.monster.de/hr/personal-tipps/markte-analysen/gehaltsanalysen/Einkommen-Krankenhaus-2011-79323.aspx | C12: 3
B13: http://arbeitgeber.monster.de/hr/personal-tipps/markte-analysen/monster-employment-index/monster-employment-index-deutschland-august-2011-79201.aspx | C13: 3
B14: http://arbeitgeber.monster.de/hr/personal-tipps/markte-analysen/monster-employment-index/monster-employment-index-deutschland-juli-2011-%20078791.aspx | C14: 3
B15: http://arbeitgeber.monster.de/hr/personal-tipps/personalmanagement/arbeitshilfen-checklisten/musterformular-probezeitbeurteilung-72557.aspx | C15: 3
B16: http://arbeitgeber.monster.de/hr/personal-tipps/personalmanagement/arbeitsrecht/Alkohol_Drogen_Arbeitsplatz_Missbrauch.aspx | C16: 3
B17: http://arbeitgeber.monster.de/hr/personal-tipps/personalmanagement/arbeitsrecht/arbeitnehmerdatenschutz-2-0-67764.aspx | C17: 3
B18: http://arbeitgeber.monster.de/hr/personal-tipps/personalmanagement/arbeitsrecht/musterarbeitszeugnis-anmerkungen-33292.aspx | C18: 2
B19: http://arbeitgeber.monster.de/hr/personal-tipps/personalmanagement/arbeitsrecht/musterarbeitszeugnis-dauer-person-33290.aspx | C19: 2
B20: http://arbeitgeber.monster.de/hr/personal-tipps/personalmanagement/arbeitsrecht/musterarbeitszeugnis-mit-kommentierung-33295.aspx | C20: 3
B21: http://arbeitgeber.monster.de/hr/personal-tipps/personalmanagement/arbeitsrecht/regelungen-zur-kostenuebernahme-67090.aspx | C21: 3
B22: http://arbeitgeber.monster.de/hr/personal-tipps/personalmanagement/arbeitsrecht/vertrauensarbeitszeit-rechte-und-pflichten-065967.aspx | C22: 3
B23: http://arbeitgeber.monster.de/hr/personal-tipps/personalmanagement/personalfuhrung-entwicklung/burnout-ausgebrannte-organisation-72507.aspx | C23: 3
B24: http://arbeitgeber.monster.de/hr/personal-tipps/personalmanagement/personalfuhrung-entwicklung/demographischer-wandel-75138.aspx | C24: 3
B25: http://arbeitgeber.monster.de/hr/personal-tipps/personalmanagement/personalfuhrung-entwicklung/inplacement-mitarbeiter-einarbeiten-75227.aspx | C25: 3
B26: http://arbeitgeber.monster.de/hr/personal-tipps/personalmanagement/personalfuhrung-entwicklung/leadershipg-mitarbeiterf%C3%BChrung-74788.aspx | C26: 3
B27: http://arbeitgeber.monster.de/hr/personal-tipps/personalmanagement/personalfuhrung-entwicklung/mitarbeiterbindung-die-grundlagen-075101.aspx | C27: 3
B28: http://arbeitgeber.monster.de/hr/personal-tipps/personalmanagement/personalfuhrung-entwicklung/mitarbeiterbindung-mangelt-74932.aspx | C28: 3
B29: http://arbeitgeber.monster.de/hr/personal-tipps/personalmanagement/personalfuhrung-entwicklung/mitarbeiterbindung-so-funktionierts-035920.aspx | C29: 3
B30: http://arbeitgeber.monster.de/hr/personal-tipps/personalmanagement/personalfuhrung-entwicklung/ziele-lohn-fuer-die-leistung-anderer-QA065523.aspx | C30: 3
B31: http://arbeitgeber.monster.de/hr/personal-tipps/rekrutierung-verguetung/bewerberauswahl/arbeitszeugnis-ein-auslaufmodell-66735.aspx | C31: 3
B32: http://arbeitgeber.monster.de/hr/personal-tipps/rekrutierung-verguetung/bewerberauswahl/gespraechsphasen-im-jobinterview-67768.aspx | C32: 3
B33: http://arbeitgeber.monster.de/hr/personal-tipps/rekrutierung-verguetung/bewerberauswahl/vorstellungsgespraech-die-vorbereitung-66798.aspx | C33: 3
B34: http://karriere-journal.monster.de/Lebenslauf-Anschreiben/Anschreiben-Muster/anschreiben-vorlagen-bewerbung-31021/article.aspx | C34: 2
B35: http://karriere-journal.monster.de/Lebenslauf-Anschreiben/Anschreiben-Muster/bewerben-usa-musteranschreiben-cover-letter-39181/article.aspx | C35: 2
B36: http://karriere-journal.monster.de/Lebenslauf-Anschreiben/Anschreiben-Muster/hochschulabsolvent-musteranschreiben-31003/article.aspx | C36: 2
B37: http://karriere-journal.monster.de/Lebenslauf-Anschreiben/Anschreiben/bewerben-usa-anschreiben-cover-letter-39178/article.aspx | C37: 2
B38: http://karriere-journal.monster.de/Lebenslauf-Anschreiben/Anschreiben/mein-erstes-anschreiben/article.aspx | C38: 2
B39: http://karriere-journal.monster.de/Lebenslauf-Anschreiben/Anschreiben/so-verkaufen-sie-softskills-im-anschreiben-31143/article.aspx | C39: 2
B40: http://karriere-journal.monster.de/Lebenslauf-Anschreiben/Lebenslauf-Muster/40plus-musterlebenslauf-30983/article.aspx | C40: 2
B41: http://karriere-journal.monster.de/Lebenslauf-Anschreiben/Lebenslauf-Muster/assistent-angestellte-musterlebenslauf-30982/article.aspx | C41: 2
B42: http://karriere-journal.monster.de/Lebenslauf-Anschreiben/Lebenslauf-Muster/musterlebenslauf-englisch-international/article.aspx | C42: 2
B43: http://karriere-journal.monster.de/Lebenslauf-Anschreiben/Lebenslauf/antworten-zum-lebenslauf-31032/article.aspx | C43: 2
B44: http://karriere-journal.monster.de/Lebenslauf-Anschreiben/Lebenslauf/lebenslauf-check-inhalt-gestaltung-lucken/article.aspx | C44: 2
B45: http://karriere-journal.monster.de/beruf-recht/arbeitsrecht/arbeitsplatz-wie-viel-uberwachung-ist-erlaubt/article.aspx | C45: 2
B46: http://karriere-journal.monster.de/beruf-recht/arbeitsrecht/arbeitsrechtskolumne/article.aspx | C46: 2
B47: http://karriere-journal.monster.de/beruf-recht/arbeitsrecht/arbeitszeugnis-anspruch-auf-schlussformel/article.aspx | C47: 2
B48: http://karriere-journal.monster.de/beruf-recht/arbeitsrecht/befristung-arbeitsvertrag-neues-urteil/article.aspx | C48: 2
B49: http://karriere-journal.monster.de/beruf-recht/arbeitsrecht/beleidigung-im-job-wann-kuendigung-droht/article.aspx | C49: 2
B50: http://karriere-journal.monster.de/beruf-recht/arbeitsrecht/betriebsbedingte-k%c3%bcndigung-im-europ%c3%a4ischen-vergleich/article.aspx | C50: 2
B51: http://karriere-journal.monster.de/beruf-recht/arbeitsrecht/bewerberdaten-worauf-jobsucher-firmen-achten-sollten/article.aspx | C51: 2
B52: http://karriere-journal.monster.de/beruf-recht/arbeitsrecht/entlassung-kuendigung-weihnachten-35090/article.aspx | C52: 2
B53: http://karriere-journal.monster.de/beruf-recht/arbeitsrecht/mustervertrag-04verguetung/article.aspx | C53: 2
B54: http://karriere-journal.monster.de/beruf-recht/arbeitsrecht/mustervertrag-08urlaub/article.aspx | C54: 2
B55: http://karriere-journal.monster.de/beruf-recht/arbeitsrecht/scheinselbststaendigkeit-das-unterschaetzte-risiko/article.aspx | C55: 2
B56: http://karriere-journal.monster.de/beruf-recht/arbeitsrecht/schwanger-rechte-und-pflichten/article.aspx | C56: 2
B57: http://karriere-journal.monster.de/beruf-recht/arbeitsrecht/teilzeit-arbeiten-mit-strategie/article.aspx | C57: 2
B58: http://karriere-journal.monster.de/beruf-recht/berufsstart-praktikum/bachelor-sind-nicht-immer-willkommen/article.aspx | C58: 2
B59: http://karriere-journal.monster.de/beruf-recht/berufsstart-praktikum/bewerbung-nach-dem-studium/article.aspx | C59: 2
B60: http://karriere-journal.monster.de/beruf-recht/berufsstart-praktikum/bewerbungstipps-berufsanf%c3%a4nger-studenten-absolventen/article.aspx | C60: 2
B61: http://karriere-journal.monster.de/beruf-recht/berufsstart-praktikum/bezahlte-abschlussarbeit/article.aspx | C61: 2
B62: http://karriere-journal.monster.de/beruf-recht/berufsstart-praktikum/ist-ein-praktikum-sinnvoll/article.aspx | C62: 2
B63: http://karriere-journal.monster.de/beruf-recht/berufsstart-praktikum/karrierestart-per-traineeprogramm/article.aspx | C63: 2
B64: http://karriere-journal.monster.de/beruf-recht/berufsstart-praktikum/mein-erster-job-einstieg-und-probezeit/article.aspx | C64: 2
B65: http://karriere-journal.monster.de/beruf-recht/berufsstart-praktikum/praktikum-lohn-gehalt-verg%c3%bctung/article.aspx | C65: 2
B66: http://karriere-journal.monster.de/beruf-recht/berufsstart-praktikum/schulabschluss-und-jetzt/article.aspx | C66: 2
B67: http://karriere-journal.monster.de/beruf-recht/berufsstart-praktikum/sieben-tipps-erfolgreiches-praktikum-36230/article.aspx | C67: 2
B68: http://karriere-journal.monster.de/beruf-recht/chef-kollegen/frauen-in-maenner-meetings/article.aspx | C68: 2
B69: http://karriere-journal.monster.de/beruf-recht/chef-kollegen/kritik-richtig-austeilen-einstecken/article.aspx | C69: 2
B70: http://karriere-journal.monster.de/beruf-recht/chef-kollegen/liebe-am-arbeitsplatz/article.aspx | C70: 2
B71: http://karriere-journal.monster.de/beruf-recht/chef-kollegen/schlimmer-chef-so-gehen-sie-damit-um/article.aspx | C71: 2
B72: http://karriere-journal.monster.de/beruf-recht/chef-kollegen/selbstmarketing-leistung-nicht-verstecken/article.aspx | C72: 2
B73: http://karriere-journal.monster.de/beruf-recht/chef-kollegen/sieben-todsuenden-im-management-81939/article.aspx | C73: 2
B74: http://karriere-journal.monster.de/beruf-recht/chef-kollegen/staerken-ausbauen-schwaechen-abbauen/article.aspx | C74: 2
B75: http://karriere-journal.monster.de/beruf-recht/chef-kollegen/teamwork-karrierekiller/article.aspx | C75: 2
B76: http://karriere-journal.monster.de/beruf-recht/chef-kollegen/wenn-kollegen-nerven-typenlehre-hilft/article.aspx | C76: 2
B77: http://karriere-journal.monster.de/beruf-recht/gesund-fit/boureout-wenn-unterforderung-krank-macht/article.aspx | C77: 2
B78: http://karriere-journal.monster.de/beruf-recht/gesund-fit/brainfood-essen-fuer-mehr-leistung-63670/article.aspx | C78: 2
B79: http://karriere-journal.monster.de/beruf-recht/gesund-fit/burnout-depression-stress-ratgeber-42111/article.aspx | C79: 2
B80: http://karriere-journal.monster.de/beruf-recht/gesund-fit/dossier-work-life-balance/article.aspx | C80: 2
B81: http://karriere-journal.monster.de/beruf-recht/gesund-fit/dossier-work-life-balance/article.aspx?HPS=10_5C4_Gehaltstabelle | C81: 2
B82: http://karriere-journal.monster.de/beruf-recht/gesund-fit/familie-kinder-karriere/article.aspx | C82: 2
B83: http://karriere-journal.monster.de/beruf-recht/gesund-fit/karriereknick-oder-burnout-es-gibt-einen-mittelweg/article.aspx | C83: 2
B84: http://karriere-journal.monster.de/beruf-recht/gesund-fit/powernapping-schlafen-am-arbeitsplatz/article.aspx | C84: 2
B85: http://karriere-journal.monster.de/beruf-recht/gesund-fit/raus-aus-dem-alltagstrott/article.aspx | C85: 2
B86: http://karriere-journal.monster.de/beruf-recht/gesund-fit/suppenkoma-mude-nach-dem-mittagessen/article.aspx | C86: 2
B87: http://karriere-journal.monster.de/beruf-recht/gesund-fit/wider-die-herbst-depression/article.aspx | C87: 2
B88: http://karriere-journal.monster.de/beruf-recht/gesund-fit/work-life-balance-auch-fur-berufseinsteiger/article.aspx | C88: 2
B89: http://karriere-journal.monster.de/beruf-recht/gesund-fit/work-life-balance-chef-vertrauen/article.aspx | C89: 2
B90: http://karriere-journal.monster.de/beruf-recht/kundigung-stellenwechsel/job-wechseln-oder-im-job-bleiben/article.aspx | C90: 2
B91: http://karriere-journal.monster.de/beruf-recht/praxis-tipps/kaufsignale-erkennen-und-nutzen/article.aspx | C91: 2
B92: http://karriere-journal.monster.de/beruf-recht/praxis-tipps/koerpersprache-gestik/article.aspx | C92: 2
B93: http://karriere-journal.monster.de/beruf-recht/praxis-tipps/koerpersprache-mimik/article.aspx | C93: 2
B94: http://karriere-journal.monster.de/beruf-recht/praxis-tipps/relocation-im-ausland-arbeiten-mit-der-familie/article.aspx | C94: 2
B95: http://karriere-journal.monster.de/beruf-recht/praxis-tipps/sabbatical-index/article.aspx | C95: 2
B96: http://karriere-journal.monster.de/bewerbungs-tipps/branchen-trends/fuenf-branchen-mit-zukunft/article.aspx | C96: 2
B97: http://karriere-journal.monster.de/bewerbungs-tipps/branchen-trends/gesundheitsbranche-starkes-wachstum-viele-jobs/article.aspx | C97: 2
B98: http://karriere-journal.monster.de/bewerbungs-tipps/branchen-trends/jobs-leben-wohnen-leipzig/article.aspx | C98: 2
B99: http://karriere-journal.monster.de/bewerbungs-tipps/international/50plus-ausland-arbeiten/article.aspx | C99: 2
B100: http://karriere-journal.monster.de/bewerbungs-tipps/international/besuch-aus-china-gebrauchsanleitung-35792/article.aspx | C100: 2
B101: http://karriere-journal.monster.de/bewerbungs-tipps/international/bewerben-usa-bwerbungsmappe-39177/article.aspx | C101: 2
B102: http://karriere-journal.monster.de/bewerbungs-tipps/international/bewerben-usa-index-39184/article.aspx | C102: 2
B103: http://karriere-journal.monster.de/bewerbungs-tipps/international/bewerben-usa-intro-39176/article.aspx | C103: 2
B104: http://karriere-journal.monster.de/bewerbungs-tipps/international/china-business-etikette-geschaeftsleute-35884/article.aspx | C104: 2
B105: http://karriere-journal.monster.de/bewerbungs-tipps/international/internationale-musterlebenslaeufe/article.aspx | C105: 2
B106: http://karriere-journal.monster.de/bewerbungs-tipps/international/internationale-musterlebenslaeufe/article.aspx?HPS=Navbar_Lebenslauf | C106: 2
B107: http://karriere-journal.monster.de/bewerbungs-tipps/international/ratgeber-bewerben-business-international/article.aspx | C107: 2
B108: http://karriere-journal.monster.de/bewerbungs-tipps/international/survival-guide-new-york-63656/article.aspx | C108: 2
B109: http://karriere-journal.monster.de/bewerbungs-tipps/kontakte-knupfen/bewerben-jobmesse-fachmesse/article.aspx | C109: 2
B110: http://karriere-journal.monster.de/bewerbungs-tipps/kontakte-knupfen/jobmessen-mba-messen-2011-termine/article.aspx | C110: 2
B111: http://karriere-journal.monster.de/bewerbungs-tipps/vorbereitung-recherche/50plus-bewerben-mit-erfolg/article.aspx | C111: 2
B112: http://karriere-journal.monster.de/bewerbungs-tipps/vorbereitung-recherche/bewerben-aus-der-festanstellung/article.aspx | C112: 2
B113: http://karriere-journal.monster.de/bewerbungs-tipps/vorbereitung-recherche/bewerbung-staerken-und-schwaechen-verkaufen-35703/article.aspx | C113: 2
B114: http://karriere-journal.monster.de/bewerbungs-tipps/vorbereitung-recherche/bewerbungsfoto-tipps-bewerbungsbild/article.aspx | C114: 2
B115: http://karriere-journal.monster.de/bewerbungs-tipps/vorbereitung-recherche/bewerbungstipps/article.aspx | C115: 2
B116: http://karriere-journal.monster.de/bewerbungs-tipps/vorbereitung-recherche/bewerbungstipps/article.aspx?HPS=7_9C1Bewerbungstipps | C116: 2
B117: http://karriere-journal.monster.de/bewerbungs-tipps/vorbereitung-recherche/das-perfekte-bewerbungsfoto-29200/article.aspx | C117: 2
B118: http://karriere-journal.monster.de/bewerbungs-tipps/vorbereitung-recherche/die-groessten-bewerbungssuenden-33256/article.aspx | C118: 2
B119: http://karriere-journal.monster.de/bewerbungs-tipps/vorbereitung-recherche/die-groessten-bewerbungssuenden-33256/article.aspx?HPS=Navbar_CareerAdvice | C119: 2
B120: http://karriere-journal.monster.de/bewerbungs-tipps/vorbereitung-recherche/die-groessten-bewerbungssuenden-anschreiben-33258/article.aspx | C120: 2
B121: http://karriere-journal.monster.de/bewerbungs-tipps/vorbereitung-recherche/die-groessten-bewerbungssuenden-bewerbungsfoto-33260/article.aspx | C121: 2
B122: http://karriere-journal.monster.de/bewerbungs-tipps/vorbereitung-recherche/die-groessten-bewerbungssuenden-lebenslauf-33259/article.aspx | C122: 2
B123: http://karriere-journal.monster.de/bewerbungs-tipps/vorbereitung-recherche/die-groessten-bewerbungssuenden-nachfassen-33264/article.aspx | C123: 2
B124: http://karriere-journal.monster.de/bewerbungs-tipps/vorbereitung-recherche/die-groessten-bewerbungssuenden-online-33262/article.aspx | C124: 2
B125: http://karriere-journal.monster.de/bewerbungs-tipps/vorbereitung-recherche/die-groessten-bewerbungssuenden-vorstellungsgespraech-33263/article.aspx | C125: 2
B126: http://karriere-journal.monster.de/bewerbungs-tipps/vorbereitung-recherche/die-initiativbewerbung-29687/article.aspx | C126: 2
B127: http://karriere-journal.monster.de/bewerbungs-tipps/vorbereitung-recherche/die-initiativbewerbung-29687/article.aspx?HPS=Navbar_CareerAdvice | C127: 2
B128: http://karriere-journal.monster.de/bewerbungs-tipps/vorbereitung-recherche/inititativbewerbung-am-telefon/article.aspx | C128: 2
B129: http://karriere-journal.monster.de/bewerbungs-tipps/vorbereitung-recherche/jobs-in-koeln/article.aspx | C129: 2
B130: http://karriere-journal.monster.de/bewerbungs-tipps/vorbereitung-recherche/jobs-in-munchen/article.aspx | C130: 2
B131: http://karriere-journal.monster.de/bewerbungs-tipps/vorbereitung-recherche/soft-skills-ueberblick-41796/article.aspx | C131: 2
B132: http://karriere-journal.monster.de/bewerbungs-tipps/vorbereitung-recherche/stellenanzeigen-verstehen/article.aspx | C132: 2
B133: http://karriere-journal.monster.de/bewerbungs-tipps/vorbereitung-recherche/todsuenden-in-der-bewerbungsmappe-63472/article.aspx | C133: 2
B134: http://karriere-journal.monster.de/geld-gehalt/branchen-trends/IT-administrator-gehalt-arbeitsmarkt/article.aspx | C134: 2
B135: http://karriere-journal.monster.de/geld-gehalt/branchen-trends/architekt-gehalt-arbeitsmarkt/article.aspx | C135: 2
B136: http://karriere-journal.monster.de/geld-gehalt/branchen-trends/arzt-gehalt-arbeitsmarkt/article.aspx | C136: 2
B137: http://karriere-journal.monster.de/geld-gehalt/branchen-trends/bank-finanzwesen-gehalt-stellenmarkt-jobs/article.aspx | C137: 2
B138: http://karriere-journal.monster.de/geld-gehalt/branchen-trends/finanzwesen-gehalt-41088/article.aspx | C138: 2
B139: http://karriere-journal.monster.de/geld-gehalt/branchen-trends/gehaltsstudie-marketing-vertrieb-2010/article.aspx | C139: 2
B140: http://karriere-journal.monster.de/geld-gehalt/branchen-trends/gehaltsstudie-marketing-vertrieb-63720/article.aspx | C140: 3
B141: http://karriere-journal.monster.de/geld-gehalt/branchen-trends/it-administrator-gehalt-arbeitsmarkt/article.aspx | C141: 2
B142: http://karriere-journal.monster.de/geld-gehalt/branchen-trends/pharmareferent-pharmaberater-stellenmark-jobs/article.aspx | C142: 2
B143: http://karriere-journal.monster.de/geld-gehalt/branchen-trends/softwareingenieur-gehalt-arbeitsmarkt-80918/article.aspx | C143: 2
B144: http://karriere-journal.monster.de/geld-gehalt/branchen-trends/stellenmarkt-automobilindustrie/article.aspx | C144: 2
B145: http://karriere-journal.monster.de/geld-gehalt/branchen-trends/vertrieb-verkauf-sales-jobs-gehalt/article.aspx | C145: 2
B146: http://karriere-journal.monster.de/geld-gehalt/gehaltstabellen/einkommen-pharmabranche-vertrieb/article.aspx | C146: 2
B147: http://karriere-journal.monster.de/geld-gehalt/gehaltstabellen/finanzwesen-einkommen-2009-deutschland-29924/article.aspx | C147: 2
B148: http://karriere-journal.monster.de/geld-gehalt/gehaltstabellen/gehalt-in-banken2011/article.aspx | C148: 2
B149: http://karriere-journal.monster.de/geld-gehalt/gehaltstabellen/gehalt-it-branche-fachkrafte-fuhrungskrafte/article.aspx | C149: 2
B150: http://karriere-journal.monster.de/geld-gehalt/gehaltstabellen/gehalt-marketing/article.aspx | C150: 2
B151: http://karriere-journal.monster.de/geld-gehalt/gehaltstabellen/gehalt-versicherungen/article.aspx | C151: 2
B152: http://karriere-journal.monster.de/geld-gehalt/gehaltstabellen/ingenieur-einkommen-2009-deutschland-29779/article.aspx | C152: 2
B153: http://karriere-journal.monster.de/geld-gehalt/gehaltstabellen/ingenieur-einkommen-2010-deutschland-63317/article.aspx | C153: 2
B154: http://karriere-journal.monster.de/geld-gehalt/gehaltstabellen/it-einkommen-2010/article.aspx | C154: 2
B155: http://karriere-journal.monster.de/geld-gehalt/gehaltstabellen/kaufmaennische-berufe-2011/article.aspx | C155: 2
B156: http://karriere-journal.monster.de/geld-gehalt/gehaltstabellen/rechnungswesen-2010-67203/article.aspx | C156: 2
B157: http://karriere-journal.monster.de/geld-gehalt/gehaltstabellen/vertrieb-einkommen-2010-deutschland-063735/article.aspx | C157: 2
B158: http://karriere-journal.monster.de/geld-gehalt/gehaltsverhandlung/die-besten-gehaltstipps-35316/article.aspx | C158: 2
B159: http://karriere-journal.monster.de/geld-gehalt/gehaltsverhandlung/die-besten-gehaltstipps-35316/article.aspx?HPS=Navbar_CareerAdvice | C159: 2
B160: http://karriere-journal.monster.de/geld-gehalt/gehaltsverhandlung/gehaltstipp-des-monats-dezember-33530/article.aspx | C160: 2
B161: http://karriere-journal.monster.de/geld-gehalt/gehaltsverhandlung/gehaltstipp-des-monats-februar-35883/article.aspx | C161: 2
B162: http://karriere-journal.monster.de/geld-gehalt/gehaltsverhandlung/gehaltstipp-des-monats-januar-35337/article.aspx | C162: 2
B163: http://karriere-journal.monster.de/geld-gehalt/gehaltsverhandlung/gehaltstipp-des-monats-marz-36307/article.aspx | C163: 2
B164: http://karriere-journal.monster.de/geld-gehalt/gehaltsverhandlung/gehaltstipp-des-monats-november-31284/article.aspx | C164: 2
B165: http://karriere-journal.monster.de/geld-gehalt/gehaltsverhandlung/gehaltstipp-des-monats-oktober-31200/article.aspx | C165: 2
B166: http://karriere-journal.monster.de/geld-gehalt/gehaltsverhandlung/gehaltstipp-des-monats-september-30899/article.aspx | C166: 2
B167: http://karriere-journal.monster.de/geld-gehalt/gehaltsverhandlung/gehaltsverhandlung-10-rhetorische-tricks/article.aspx | C167: 2
B168: http://karriere-journal.monster.de/geld-gehalt/gehaltsverhandlung/geld-und-gehalt/article.aspx | C168: 2
B169: http://karriere-journal.monster.de/geld-gehalt/gehaltsverhandlung/geld-und-gehalt/article.aspx?HPS=7_9C1GeldGehalt | C169: 2
B170: http://karriere-journal.monster.de/geld-gehalt/gehaltsverhandlung/mehr-gehalt-geht-immer/article.aspx | C170: 2
B171: http://karriere-journal.monster.de/geld-gehalt/gehaltsverhandlung/meine-erste-gehaltserhoehung-verhandeln/article.aspx | C171: 2
B172: http://karriere-journal.monster.de/geld-gehalt/gehaltsverhandlung/top-jobs-zehn-bestbezahlten-berufe/article.aspx | C172: 2
B173: http://karriere-journal.monster.de/geld-gehalt/steuer-sparen/bewerbungskosten-erstattung/article.aspx | C173: 2
B174: http://karriere-journal.monster.de/geld-gehalt/steuer-sparen/investmentfonds-als-altersvorsorge/article.aspx | C174: 2
B175: http://karriere-journal.monster.de/karriere-planung/aufstieg-management/mitarbeitermotivation-wettbewerb-um-talente/article.aspx | C175: 2
B176: http://karriere-journal.monster.de/karriere-planung/berufe-im-uberblick/architekt-jobs-gehalt-ausbildung/article.aspx | C176: 2
B177: http://karriere-journal.monster.de/karriere-planung/berufe-im-uberblick/headhunter-42346/article.aspx | C177: 2
B178: http://karriere-journal.monster.de/karriere-planung/berufe-im-uberblick/moderator-42386/article.aspx | C178: 2
B179: http://karriere-journal.monster.de/karriere-planung/berufe-im-uberblick/softwareentwickler-bewerbung-lebenslauf-anschreiben-job-80915/article.aspx | C179: 2
B180: http://karriere-journal.monster.de/karriere-planung/berufe-im-uberblick/versicherungskaufmann-jobs-gehalt-ausbildung/article.aspx | C180: 2
B181: http://karriere-journal.monster.de/karriere-planung/berufe-im-uberblick/webdesigner-jobs/article.aspx | C181: 2
B182: http://karriere-journal.monster.de/karriere-planung/berufe-im-uberblick/wirtschaftsingenieur-42421/article.aspx | C182: 2
B183: http://karriere-journal.monster.de/karriere-planung/weiterbildung/abendstudium-zweiter-bildungsweg-29013/article.aspx | C183: 2
B184: http://karriere-journal.monster.de/karriere-planung/weiterbildung/auslandsstudium-ratgeber-zwei/article.aspx | C184: 2
B185: http://karriere-journal.monster.de/karriere-planung/weiterbildung/auslandsstudium-ratgeber/article.aspx | C185: 2
B186: http://karriere-journal.monster.de/karriere-planung/weiterbildung/fernstudium-anbieter-finden/article.aspx | C186: 2
B187: http://karriere-journal.monster.de/karriere-planung/weiterbildung/fernstudium-ratgeber/article.aspx | C187: 2
B188: http://karriere-journal.monster.de/karriere-planung/weiterbildung/karriere-weiterbildung/article.aspx | C188: 2
B189: http://karriere-journal.monster.de/karriere-planung/weiterbildung/karrierecoach-so-findet-man-einen-guten/article.aspx | C189: 2
B190: http://karriere-journal.monster.de/karriere-planung/weiterbildung/kostenloses-karrierecoaching/article.aspx | C190: 2
B191: http://karriere-journal.monster.de/karriere-planung/weiterbildung/projektmanagement-ausbildung-weiterbildung/article.aspx | C191: 2
B192: http://karriere-journal.monster.de/karriere-planung/weiterbildung/projektmanagement-crashkurs-gen%c3%bcgt-nicht/article.aspx | C192: 2
B193: http://karriere-journal.monster.de/karriere-planung/weiterbildung/projektmanagement-weiterbildung-kosten-zertifikate/article.aspx | C193: 2
B194: http://karriere-journal.monster.de/karriere-planung/weiterbildung/ratgeber-bildungsurlaub/article.aspx | C194: 2
B195: http://karriere-journal.monster.de/lebenslauf-anschreiben/anschreiben-muster/abteilungsleiterin-musteranschreiben-31002/article.aspx | C195: 2
B196: http://karriere-journal.monster.de/lebenslauf-anschreiben/anschreiben-muster/anschreiben-bewerbung-architekt/article.aspx | C196: 2
B197: http://karriere-journal.monster.de/lebenslauf-anschreiben/anschreiben-muster/anschreiben-bewerbung-softwareingenieur/article.aspx | C197: 2
B198: http://karriere-journal.monster.de/lebenslauf-anschreiben/anschreiben-muster/anschreiben-vorlagen-bewerbung-31021/article.aspx | C198: 2
B199: http://karriere-journal.monster.de/lebenslauf-anschreiben/anschreiben-muster/anschreiben-vorlagen-bewerbung-31021/article.aspx?HPS=Navbar_CareerAdvice | C199: 2
B200: http://karriere-journal.monster.de/lebenslauf-anschreiben/anschreiben-muster/anschreiben-vorlagen-bewerbung-31021/article.aspx?HPS=Navbar_Lebenslauf | C200: 2
B201: http://karriere-journal.monster.de/lebenslauf-anschreiben/anschreiben-muster/hochschulabsolvent-musteranschreiben-31003/article.aspx | C201: 2
B202: http://karriere-journal.monster.de/lebenslauf-anschreiben/anschreiben-muster/initiativbewerbung-musteranschreiben-31004/article.aspx | C202: 2
B203: http://karriere-journal.monster.de/lebenslauf-anschreiben/anschreiben-muster/kundenentwickler-musteranschreiben-31005/article.aspx | C203: 2
B204: http://karriere-journal.monster.de/lebenslauf-anschreiben/anschreiben-muster/sachbearbeiterin-musteranschreiben-31001/article.aspx | C204: 2
... 60 more rows

Sheet Missing H1 Tag
B3: Missing H1 Tag
B5: Pages found missing an H1 tag
B6: Total Count: 119
B8: Issue Severity: Critical
B9: URL | C9: H1 Tag
B10: http://arbeitgeber.monster.de/contactus.aspx | C10: Missing
B11: http://arbeitgeber.monster.de/sitemap.aspx | C11: Missing
B12: http://forum.monster.de/n/pfx/profile.aspx?webtag=mstforum30&userId=1887458185&ptpw=y | C12: Missing
B13: http://forum.monster.de/n/pfx/profile.aspx?webtag=mstforum30&userId=1888615451&ptpw=y | C13: Missing
B14: http://forum.monster.de/n/pfx/profile.aspx?webtag=mstforum30&userId=1893597676&ptpw=y | C14: Missing
B15: http://forum.monster.de/n/pfx/profile.aspx?webtag=mstforum40&userId=1881054893&ptpw=y | C15: Missing
B16: http://forum.monster.de/n/pfx/profile.aspx?webtag=mstforum40&userId=1892558899&ptpw=y | C16: Missing
B17: http://forum.monster.de/n/pfx/profile.aspx?webtag=mstforum50&userId=1873974946&ptpw=y | C17: Missing
B18: http://jobsuche.monster.de/ | C18: Missing
B19: http://jobsuche.monster.de/?q=finanzwesen&pg=7 | C19: Missing
B20: http://jobsuche.monster.de/?q=gesundheitswesen&pg=2 | C20: Missing
B21: http://jobsuche.monster.de/?q=ingenieurwesen&pg=10 | C21: Missing
B22: http://jobsuche.monster.de/?q=logistik&pg=10 | C22: Missing
B23: http://jobsuche.monster.de/?q=vertrieb&pg=7 | C23: Missing
B24: http://jobsuche.monster.de/Aachen__2fHamburg_2 | C24: Missing
B25: http://jobsuche.monster.de/Aachen__2fHamburg_2?sf=23 | C25: Missing
B26: http://jobsuche.monster.de/Altlanta-__28US__29_2 | C26: Missing
B27: http://jobsuche.monster.de/Berlin-und-Aachen_2 | C27: Missing
B28: http://jobsuche.monster.de/Berlin__2dMitte_2 | C28: Missing
B29: http://jobsuche.monster.de/Berlin__2dMitte_2?sf=10 | C29: Missing
B30: http://jobsuche.monster.de/Betriebs__2d__2fwerkschutzleiter__2fin+Sicherheit-Zivilschutz_54?sf=19 | C30: Missing
B31: http://jobsuche.monster.de/Bockhorn__2c-Zetel_2 | C31: Missing
B32: http://jobsuche.monster.de/Bozen-__28IT__29_2 | C32: Missing
B33: http://jobsuche.monster.de/Bozen-__28IT__29_2?sf=13 | C33: Missing
B34: http://jobsuche.monster.de/Bundesweit-__2d-verschiedene-Einsatzorte_2 | C34: Missing
B35: http://jobsuche.monster.de/Bundesweit_2 | C35: Missing
B36: http://jobsuche.monster.de/Essen-oder-Swindon-__28UK__29_2 | C36: Missing
B37: http://jobsuche.monster.de/Frankfurt-am-Main-oder-Berlin_2 | C37: Missing
B38: http://jobsuche.monster.de/Frankfurt-am-Main-oder-Berlin_2?sf=23 | C38: Missing
B39: http://jobsuche.monster.de/Hamburg-und-Hannover_2 | C39: Missing
B40: http://jobsuche.monster.de/Hamburg-und-Hannover_2?sf=19 | C40: Missing
B41: http://jobsuche.monster.de/Hamburg__2dHamm__2c-Hamburg__2dHorn_2 | C41: Missing
B42: http://jobsuche.monster.de/Hasselt-__28Belgien__29_2 | C42: Missing
B43: http://jobsuche.monster.de/Hasselt-__28Belgien__29_2?sf=22 | C43: Missing
B44: http://jobsuche.monster.de/Home-Office-PLZ-6-__26-7_2 | C44: Missing
B45: http://jobsuche.monster.de/Kufstein-oder-Wr__2e-Neudorf_2 | C45: Missing
B46: http://jobsuche.monster.de/Lanzenkirchen__2c-Austria_2 | C46: Missing
B47: http://jobsuche.monster.de/Ludwigshafen-__2f-Mannheim_2 | C47: Missing
B48: http://jobsuche.monster.de/Ludwigshafen-und-Schwarzheide_2 | C48: Missing
B49: http://jobsuche.monster.de/NRW_2 | C49: Missing
B50: http://jobsuche.monster.de/Norddeutschland_2 | C50: Missing
B51: http://jobsuche.monster.de/Norddeutschland_2?sf=21 | C51: Missing
B52: http://jobsuche.monster.de/Raum-Frankfurt__2c-Mannheim__2c-Ludwigshafen__2c-Heidelberg_2 | C52: Missing
B53: http://jobsuche.monster.de/Raum-Kahla__2c-Rudolstadt_2 | C53: Missing
B54: http://jobsuche.monster.de/Raum-Kahla__2c-Rudolstadt_2?sf=10 | C54: Missing
B55: http://jobsuche.monster.de/Raum-Kahla__2c-Rudolstadt_2?sf=20 | C55: Missing
B56: http://jobsuche.monster.de/Raum-Rhein__2dMain_2 | C56: Missing
B57: http://jobsuche.monster.de/Rhein__2dMain-Gebiet_2 | C57: Missing
B58: http://jobsuche.monster.de/Rhein__2dMain__2dRegion_2 | C58: Missing
B59: http://jobsuche.monster.de/Ruhrgebiet_2 | C59: Missing
B60: http://jobsuche.monster.de/Ruhrgebiet_2?sf=14 | C60: Missing
B61: http://jobsuche.monster.de/Salzburg-__2f-Bergheim-__28AT__29_2 | C61: Missing
B62: http://jobsuche.monster.de/Schleswig__2dHolstein-und-Niedersachsen_2 | C62: Missing
B63: http://jobsuche.monster.de/Shanghai-__28CN__29_2 | C63: Missing
B64: http://jobsuche.monster.de/Stuttart__2c-Hamburg_2 | C64: Missing
B65: http://jobsuche.monster.de/Titel/default.aspx | C65: Missing
B66: http://jobsuche.monster.de/Zhenjiang-__28CN__29_2 | C66: Missing
B67: http://jobsuche.monster.de/bundesweit_2 | C67: Missing
B68: http://jobsuche.monster.de/bundesweit_2?sf=10 | C68: Missing
B69: http://jobsuche.monster.de/mehrere-Standorte-in-Europa_2 | C69: Missing
B70: http://jobsuche.monster.de/yellowshark__ae_6 | C70: Missing
B71: http://karriere-beratung.monster.de/ | C71: Missing
B72: http://android.monster.de/ | C72: Missing
B73: http://karriere-beratung.monster.de/monster-apps/home.aspx?HPS=3_allmobile | C73: Missing
B74: http://mein.monster.de/ | C74: Missing
B75: http://mein.monster.de/ContactUs.aspx | C75: Missing
B76: http://mein.monster.de/Privacy/Default.aspx | C76: Missing
B77: http://mein.monster.de/contactus.aspx | C77: Missing
B78: http://mein.monster.de/job-surveys/index.aspx?pollid=12381 | C78: Missing
B79: http://mein.monster.de/privacy/ | C79: Missing
B80: http://mein.monster.de/privacy/EmailForm.aspx | C80: Missing
B81: http://mein.monster.de/privacy/fullstatement.aspx | C81: Missing
B82: http://mein.monster.de/resources/ | C82: Missing
B83: http://mein.monster.de/securitycenter/ | C83: Missing
B84: http://mein.monster.de/sitemap/ | C84: Missing
B85: http://stellenanzeige.monster.de/Anforderungsmanager-IT-Business-Analyst-m-w-im-Bereich-IT-Job-Hanau-Hessen-Deutschland-103310916.aspx | C85: Missing
B86: http://stellenanzeige.monster.de/Assistenz-der-Gesch%c3%a4ftsleitung-rtv-media-solutions-m-w-Job-N%c3%bcrnberg-Bayern-Deutschland-104240150.aspx | C86: Missing
B87: http://stellenanzeige.monster.de/Assistenz-der-Gesch%c3%a4ftsleitung-rtv-media-solutions-m-w-Job-N%c3%bcrnberg-Bayern-Deutschland-104240151.aspx | C87: Missing
B88: http://stellenanzeige.monster.de/BMW-Verk%c3%a4ufer-m-w-Job-verschiedene-Standorte-Deutschland-101404859.aspx | C88: Missing
B89: http://stellenanzeige.monster.de/Buchhalter-in-Bremen-m-w-Job-Bremen-Bremen-Deutschland-104221503.aspx | C89: Missing
B90: http://stellenanzeige.monster.de/CHEMIKER-IN-R-D-Job-Flensburg-Schleswig-Holstein-Deutschland-103659569.aspx | C90: Missing
B91: http://stellenanzeige.monster.de/Controller-m-w-Job-Straubing-Bayern-Deutschland-103640064.aspx | C91: Missing
B92: http://stellenanzeige.monster.de/E-Konstrukteur-In-Job-Bremen-Bremen-Deutschland-103660280.aspx | C92: Missing
B93: http://stellenanzeige.monster.de/Entwicklungsingenieur-m-w-Job-Hamburg-Hamburg-Deutschland-104212221.aspx | C93: Missing
B94: http://stellenanzeige.monster.de/Fertigungsleiter-in-Windenergie-Job-Bremen-Bremen-Deutschland-104223483.aspx | C94: Missing
B95: http://stellenanzeige.monster.de/Finanz-Controller-in-Bremen-m-w-Job-Bremen-Bremen-Deutschland-104220971.aspx | C95: Missing
B96: http://stellenanzeige.monster.de/Gruppenleiter-m-w-Validierung-und-Implementierung-Job-Wolfratshausen-Bayern-Deutschland-103968478.aspx | C96: Missing
B97: http://stellenanzeige.monster.de/Hochbauingenieur-in-Dipl-Ing-FH-Bachelor-als-Sicherheitskoordinator-Job-Landau-Rheinland-Pfalz-Deutschland-104130958.aspx | C97: Missing
B98: http://stellenanzeige.monster.de/Ihre-Karriere-bei-uns-im-Vertrieb-%c3%96ffnen-Sie-T%c3%bcren-im-Einzelhandel-Job-13-verschiedene-Dienstsitze-Hessen-Deutschland-103972923.aspx | C98: Missing
B99: http://stellenanzeige.monster.de/Ingenieur-Konstrukteur-Hydraulik-m-w-Job-Hamburg-Hamburg-Deutschland-103656359.aspx | C99: Missing
B100: http://stellenanzeige.monster.de/International-Sports-Sales-Executive-m-w-in-Berlin-Mitte-Job-Berlin-Mitte-Deutschland-103936358.aspx | C100: Missing
B101: http://stellenanzeige.monster.de/KEY-ACCOUNT-SALES-MANAGER-m-f-Job-Hamburg-Deutschland-104223538.aspx | C101: Missing
B102: http://stellenanzeige.monster.de/Konstrukteur-m-w-Job-Bremen-Bremen-Deutschland-104223481.aspx | C102: Missing
B103: http://stellenanzeige.monster.de/Mitarbeiter-Qualit%c3%a4tssicherung-m-w-Frontend-Test-Job-Leipzig-Chemnitz-Dresden-Sachsen-Deutschland-97534343.aspx | C103: Missing
B104: http://stellenanzeige.monster.de/Personalreferent-m-w-Job-Hamburg-Deutschland-104220415.aspx | C104: Missing
B105: http://stellenanzeige.monster.de/Praktikant-P-L-Mobility-m-w-Job-M%c3%bcnchen-Deutschland-97530415.aspx | C105: Missing
B106: http://stellenanzeige.monster.de/Praktikant-in-Online-Marketing-f%c3%bcr-mindestens-6-Monate-Job-Hamburg-Deutschland-100657810.aspx | C106: Missing
B107: http://stellenanzeige.monster.de/Produktentwickler-m-w-Kennziffer-0811-RE-MO-Job-Breuberg-Hessen-Deutschland-103342570.aspx | C107: Missing
B108: http://stellenanzeige.monster.de/Programmierer-m-w-Job-Bremen-Bremen-Deutschland-103660284.aspx | C108: Missing
B109: http://stellenanzeige.monster.de/Projektingenieur-m-w-Onshore-Job-Bremen-Bremen-Deutschland-104224004.aspx | C109: Missing
B110: http://stellenanzeige.monster.de/Projektmanager-Elektrotechnik-m-w-Job-Hamburg-Hamburg-Deutschland-104240369.aspx | C110: Missing
B111: http://stellenanzeige.monster.de/Referent-in-M%c3%a4rkte-und-Meeresfischerei-Job-Hamburg-Deutschland-104130338.aspx | C111: Missing
B112: http://stellenanzeige.monster.de/Sachbearbeiter-in-Versand-Export-Job-Frankfurt-am-Main-Hessen-Deutschland-103656957.aspx | C112: Missing
B113: http://stellenanzeige.monster.de/Sachbearbeiter-m-w-Schifffahrtsbranche-Job-L%c3%bcbeck-Schleswig-Holstein-Deutschland-104127463.aspx | C113: Missing
B114: http://stellenanzeige.monster.de/Scientist-m-w-Polymerchemistry-Job-Berlin-Deutschland-101419300.aspx | C114: Missing
B115: http://stellenanzeige.monster.de/Service-Techniker-in-Innen-und-Au%c3%9fendienst-Job-Bad-Homburg-Hessen-Deutschland-103965942.aspx | C115: Missing
B116: http://stellenanzeige.monster.de/Sports-Sales-Executive-m-f-Job-Berlin-Deutschland-103921397.aspx | C116: Missing
B117: http://stellenanzeige.monster.de/Teamleiter-in-Accounting-Job-D%c3%bcsseldorf-Nordrhein-Westfalen-Deutschland-103659408.aspx | C117: Missing
B118: http://stellenanzeige.monster.de/Technischer-Zeichner-m-w-Job-Bremen-Bremen-Deutschland-104224847.aspx | C118: Missing
B119: http://stellenanzeige.monster.de/Telesales-m-f-Job-Frankfurt-Hessen-Deutschland-103451477.aspx | C119: Missing
B120: http://stellenanzeige.monster.de/Trainee-Programm-Schwerpunkt-Firmenkunden-Job-Deutschland-103220432.aspx | C120: Missing
B121: http://stellenanzeige.monster.de/Trainer-m-w-Job-Brandenburg-Brandenburg-Deutschland-104225540.aspx | C121: Missing
B122: http://stellenanzeige.monster.de/Trainer-m-w-Job-Cottbus-Brandenburg-Deutschland-103600396.aspx | C122: Missing
B123: http://stellenanzeige.monster.de/Vermietassistent-Rental-Sales-Agent-m-w-Job-Deutschland-103598653.aspx | C123: Missing
B124: http://stellenanzeige.monster.de/Vertriebsmitarbeiter-f%c3%bcr-den-Innen-Au%c3%9fendienst-m-w-Job-Hagen-Nordrhein-Westfalen-Deutschland-104219373.aspx | C124: Missing
B125: http://unternehmen.monster.de/profile/alstom-power-generation-ag.aspx | C125: Missing
B126: http://unternehmen.monster.de/profile/eon.aspx | C126: Missing
B127: http://unternehmen.monster.de/profile/ernst--young-gmbh-wirtschaftspr%c3%bcfungsgesellschaft.aspx | C127: Missing
B128: http://unternehmen.monster.de/profile/procter--gamble-service-gmbh.aspx | C128: Missing

Sheet Long Title Tags
B3: Long Title Tags
B5: Pages found with title tags longer than 150 characters
B6: Total Count: 87
B8: Issue Severity: Critical
B9: URL | C9: Title Tags | D9: Character Count
B10: http://jobsuche.monster.de/Durchsuchen/ | C10: Monster Jobkatalog - Finden Sie Schritt für Schritt Ihren Job, durch Eingrenzung der Suchkriterien. Jobs & Stellenanzeigen Schritt für Schritt mit dem Monster Job-Navigator finden. | Jobsuche online Monster.de | D10: 211
B11: http://jobsuche.monster.de/Durchsuchen/?HPS=6_4C5JobKatalog | C11: Monster Jobkatalog - Finden Sie Schritt für Schritt Ihren Job, durch Eingrenzung der Suchkriterien. Jobs & Stellenanzeigen Schritt für Schritt mit dem Monster Job-Navigator finden. | Jobsuche online Monster.de | D11: 211
B12: http://jobsuche.monster.de/Durchsuchen/?pg=1 | C12: Monster Jobkatalog - Finden Sie Schritt für Schritt Ihren Job, durch Eingrenzung der Suchkriterien. Jobs & Stellenanzeigen Schritt für Schritt mit dem Monster Job-Navigator finden. | Jobsuche online Monster.de | D12: 211
B13: http://jobsuche.monster.de/Durchsuchen/?pg=1&sf=17 | C13: Monster Jobkatalog - Finden Sie Schritt für Schritt Ihren Job, durch Eingrenzung der Suchkriterien. Jobs & Stellenanzeigen Schritt für Schritt mit dem Monster Job-Navigator finden. | Jobsuche online Monster.de | D13: 211
B14: http://jobsuche.monster.de/Durchsuchen/?pg=1&sf=19 | C14: Monster Jobkatalog - Finden Sie Schritt für Schritt Ihren Job, durch Eingrenzung der Suchkriterien. Jobs & Stellenanzeigen Schritt für Schritt mit dem Monster Job-Navigator finden. | Jobsuche online Monster.de | D14: 211
B15: http://jobsuche.monster.de/Durchsuchen/?pg=1&sf=20 | C15: Monster Jobkatalog - Finden Sie Schritt für Schritt Ihren Job, durch Eingrenzung der Suchkriterien. Jobs & Stellenanzeigen Schritt für Schritt mit dem Monster Job-Navigator finden. | Jobsuche online Monster.de | D15: 211
B16: http://jobsuche.monster.de/Durchsuchen/?pg=1&sf=23 | C16: Monster Jobkatalog - Finden Sie Schritt für Schritt Ihren Job, durch Eingrenzung der Suchkriterien. Jobs & Stellenanzeigen Schritt für Schritt mit dem Monster Job-Navigator finden. | Jobsuche online Monster.de | D16: 211
B17: http://jobsuche.monster.de/Durchsuchen/?pg=10 | C17: Monster Jobkatalog - Finden Sie Schritt für Schritt Ihren Job, durch Eingrenzung der Suchkriterien. Jobs & Stellenanzeigen Schritt für Schritt mit dem Monster Job-Navigator finden. | Jobsuche online Monster.de | D17: 211
B18: http://jobsuche.monster.de/Durchsuchen/?pg=10&sf=17 | C18: Monster Jobkatalog - Finden Sie Schritt für Schritt Ihren Job, durch Eingrenzung der Suchkriterien. Jobs & Stellenanzeigen Schritt für Schritt mit dem Monster Job-Navigator finden. | Jobsuche online Monster.de | D18: 211
B19: http://jobsuche.monster.de/Durchsuchen/?pg=10&sf=19 | C19: Monster Jobkatalog - Finden Sie Schritt für Schritt Ihren Job, durch Eingrenzung der Suchkriterien. Jobs & Stellenanzeigen Schritt für Schritt mit dem Monster Job-Navigator finden. | Jobsuche online Monster.de | D19: 211
B20: http://jobsuche.monster.de/Durchsuchen/?pg=10&sf=19&pjt=1 | C20: Monster Jobkatalog - Finden Sie Schritt für Schritt Ihren Job, durch Eingrenzung der Suchkriterien. Jobs & Stellenanzeigen Schritt für Schritt mit dem Monster Job-Navigator finden. | Jobsuche online Monster.de | D20: 211
B21: http://jobsuche.monster.de/Durchsuchen/?pg=10&sf=20 | C21: Monster Jobkatalog - Finden Sie Schritt für Schritt Ihren Job, durch Eingrenzung der Suchkriterien. Jobs & Stellenanzeigen Schritt für Schritt mit dem Monster Job-Navigator finden. | Jobsuche online Monster.de | D21: 211
B22: http://jobsuche.monster.de/Durchsuchen/?pg=10&sf=23 | C22: Monster Jobkatalog - Finden Sie Schritt für Schritt Ihren Job, durch Eingrenzung der Suchkriterien. Jobs & Stellenanzeigen Schritt für Schritt mit dem Monster Job-Navigator finden. | Jobsuche online Monster.de | D22: 211
B23: http://jobsuche.monster.de/Durchsuchen/?pg=2 | C23: Monster Jobkatalog - Finden Sie Schritt für Schritt Ihren Job, durch Eingrenzung der Suchkriterien. Jobs & Stellenanzeigen Schritt für Schritt mit dem Monster Job-Navigator finden. | Jobsuche online Monster.de | D23: 211
B24: http://jobsuche.monster.de/Durchsuchen/?pg=2&sf=13 | C24: Monster Jobkatalog - Finden Sie Schritt für Schritt Ihren Job, durch Eingrenzung der Suchkriterien. Jobs & Stellenanzeigen Schritt für Schritt mit dem Monster Job-Navigator finden. | Jobsuche online Monster.de | D24: 211
B25: http://jobsuche.monster.de/Durchsuchen/?pg=2&sf=17 | C25: Monster Jobkatalog - Finden Sie Schritt für Schritt Ihren Job, durch Eingrenzung der Suchkriterien. Jobs & Stellenanzeigen Schritt für Schritt mit dem Monster Job-Navigator finden. | Jobsuche online Monster.de | D25: 211
B26: http://jobsuche.monster.de/Durchsuchen/?pg=2&sf=19 | C26: Monster Jobkatalog - Finden Sie Schritt für Schritt Ihren Job, durch Eingrenzung der Suchkriterien. Jobs & Stellenanzeigen Schritt für Schritt mit dem Monster Job-Navigator finden. | Jobsuche online Monster.de | D26: 211
B27: http://jobsuche.monster.de/Durchsuchen/?pg=2&sf=20 | C27: Monster Jobkatalog - Finden Sie Schritt für Schritt Ihren Job, durch Eingrenzung der Suchkriterien. Jobs & Stellenanzeigen Schritt für Schritt mit dem Monster Job-Navigator finden. | Jobsuche online Monster.de | D27: 211
B28: http://jobsuche.monster.de/Durchsuchen/?pg=2&sf=23 | C28: Monster Jobkatalog - Finden Sie Schritt für Schritt Ihren Job, durch Eingrenzung der Suchkriterien. Jobs & Stellenanzeigen Schritt für Schritt mit dem Monster Job-Navigator finden. | Jobsuche online Monster.de | D28: 211
B29: http://jobsuche.monster.de/Durchsuchen/?pg=3 | C29: Monster Jobkatalog - Finden Sie Schritt für Schritt Ihren Job, durch Eingrenzung der Suchkriterien. Jobs & Stellenanzeigen Schritt für Schritt mit dem Monster Job-Navigator finden. | Jobsuche online Monster.de | D29: 211
B30: http://jobsuche.monster.de/Durchsuchen/?pg=3&sf=17 | C30: Monster Jobkatalog - Finden Sie Schritt für Schritt Ihren Job, durch Eingrenzung der Suchkriterien. Jobs & Stellenanzeigen Schritt für Schritt mit dem Monster Job-Navigator finden. | Jobsuche online Monster.de | D30: 211
B31: http://jobsuche.monster.de/Durchsuchen/?pg=3&sf=19 | C31: Monster Jobkatalog - Finden Sie Schritt für Schritt Ihren Job, durch Eingrenzung der Suchkriterien. Jobs & Stellenanzeigen Schritt für Schritt mit dem Monster Job-Navigator finden. | Jobsuche online Monster.de | D31: 211
B32: http://jobsuche.monster.de/Durchsuchen/?pg=3&sf=20 | C32: Monster Jobkatalog - Finden Sie Schritt für Schritt Ihren Job, durch Eingrenzung der Suchkriterien. Jobs & Stellenanzeigen Schritt für Schritt mit dem Monster Job-Navigator finden. | Jobsuche online Monster.de | D32: 211
B33: http://jobsuche.monster.de/Durchsuchen/?pg=3&sf=23 | C33: Monster Jobkatalog - Finden Sie Schritt für Schritt Ihren Job, durch Eingrenzung der Suchkriterien. Jobs & Stellenanzeigen Schritt für Schritt mit dem Monster Job-Navigator finden. | Jobsuche online Monster.de | D33: 211
B34: http://jobsuche.monster.de/Durchsuchen/?pg=4 | C34: Monster Jobkatalog - Finden Sie Schritt für Schritt Ihren Job, durch Eingrenzung der Suchkriterien. Jobs & Stellenanzeigen Schritt für Schritt mit dem Monster Job-Navigator finden. | Jobsuche online Monster.de | D34: 211
B35: http://jobsuche.monster.de/Durchsuchen/?pg=4&sf=17 | C35: Monster Jobkatalog - Finden Sie Schritt für Schritt Ihren Job, durch Eingrenzung der Suchkriterien. Jobs & Stellenanzeigen Schritt für Schritt mit dem Monster Job-Navigator finden. | Jobsuche online Monster.de | D35: 211
B36: http://jobsuche.monster.de/Durchsuchen/?pg=4&sf=19 | C36: Monster Jobkatalog - Finden Sie Schritt für Schritt Ihren Job, durch Eingrenzung der Suchkriterien. Jobs & Stellenanzeigen Schritt für Schritt mit dem Monster Job-Navigator finden. | Jobsuche online Monster.de | D36: 211
B37: http://jobsuche.monster.de/Durchsuchen/?pg=4&sf=20 | C37: Monster Jobkatalog - Finden Sie Schritt für Schritt Ihren Job, durch Eingrenzung der Suchkriterien. Jobs & Stellenanzeigen Schritt für Schritt mit dem Monster Job-Navigator finden. | Jobsuche online Monster.de | D37: 211
B38: http://jobsuche.monster.de/Durchsuchen/?pg=4&sf=23 | C38: Monster Jobkatalog - Finden Sie Schritt für Schritt Ihren Job, durch Eingrenzung der Suchkriterien. Jobs & Stellenanzeigen Schritt für Schritt mit dem Monster Job-Navigator finden. | Jobsuche online Monster.de | D38: 211
B39: http://jobsuche.monster.de/Durchsuchen/?pg=5 | C39: Monster Jobkatalog - Finden Sie Schritt für Schritt Ihren Job, durch Eingrenzung der Suchkriterien. Jobs & Stellenanzeigen Schritt für Schritt mit dem Monster Job-Navigator finden. | Jobsuche online Monster.de | D39: 211
B40: http://jobsuche.monster.de/Durchsuchen/?pg=5&sf=17 | C40: Monster Jobkatalog - Finden Sie Schritt für Schritt Ihren Job, durch Eingrenzung der Suchkriterien. Jobs & Stellenanzeigen Schritt für Schritt mit dem Monster Job-Navigator finden. | Jobsuche online Monster.de | D40: 211
B41: http://jobsuche.monster.de/Durchsuchen/?pg=5&sf=19 | C41: Monster Jobkatalog - Finden Sie Schritt für Schritt Ihren Job, durch Eingrenzung der Suchkriterien. Jobs & Stellenanzeigen Schritt für Schritt mit dem Monster Job-Navigator finden. | Jobsuche online Monster.de | D41: 211
B42: http://jobsuche.monster.de/Durchsuchen/?pg=5&sf=20 | C42: Monster Jobkatalog - Finden Sie Schritt für Schritt Ihren Job, durch Eingrenzung der Suchkriterien. Jobs & Stellenanzeigen Schritt für Schritt mit dem Monster Job-Navigator finden. | Jobsuche online Monster.de | D42: 211
B43: http://jobsuche.monster.de/Durchsuchen/?pg=5&sf=23 | C43: Monster Jobkatalog - Finden Sie Schritt für Schritt Ihren Job, durch Eingrenzung der Suchkriterien. Jobs & Stellenanzeigen Schritt für Schritt mit dem Monster Job-Navigator finden. | Jobsuche online Monster.de | D43: 211
B44: http://jobsuche.monster.de/Durchsuchen/?pg=6 | C44: Monster Jobkatalog - Finden Sie Schritt für Schritt Ihren Job, durch Eingrenzung der Suchkriterien. Jobs & Stellenanzeigen Schritt für Schritt mit dem Monster Job-Navigator finden. | Jobsuche online Monster.de | D44: 211
B45: http://jobsuche.monster.de/Durchsuchen/?pg=6&sf=17 | C45: Monster Jobkatalog - Finden Sie Schritt für Schritt Ihren Job, durch Eingrenzung der Suchkriterien. Jobs & Stellenanzeigen Schritt für Schritt mit dem Monster Job-Navigator finden. | Jobsuche online Monster.de | D45: 211
B46: http://jobsuche.monster.de/Durchsuchen/?pg=6&sf=19 | C46: Monster Jobkatalog - Finden Sie Schritt für Schritt Ihren Job, durch Eingrenzung der Suchkriterien. Jobs & Stellenanzeigen Schritt für Schritt mit dem Monster Job-Navigator finden. | Jobsuche online Monster.de | D46: 211
B47: http://jobsuche.monster.de/Durchsuchen/?pg=6&sf=20 | C47: Monster Jobkatalog - Finden Sie Schritt für Schritt Ihren Job, durch Eingrenzung der Suchkriterien. Jobs & Stellenanzeigen Schritt für Schritt mit dem Monster Job-Navigator finden. | Jobsuche online Monster.de | D47: 211
B48: http://jobsuche.monster.de/Durchsuchen/?pg=6&sf=20&pcn=2 | C48: Monster Jobkatalog - Finden Sie Schritt für Schritt Ihren Job, durch Eingrenzung der Suchkriterien. Jobs & Stellenanzeigen Schritt für Schritt mit dem Monster Job-Navigator finden. | Jobsuche online Monster.de | D48: 211
B49: http://jobsuche.monster.de/Durchsuchen/?pg=6&sf=23 | C49: Monster Jobkatalog - Finden Sie Schritt für Schritt Ihren Job, durch Eingrenzung der Suchkriterien. Jobs & Stellenanzeigen Schritt für Schritt mit dem Monster Job-Navigator finden. | Jobsuche online Monster.de | D49: 211
B50: http://jobsuche.monster.de/Durchsuchen/?pg=7 | C50: Monster Jobkatalog - Finden Sie Schritt für Schritt Ihren Job, durch Eingrenzung der Suchkriterien. Jobs & Stellenanzeigen Schritt für Schritt mit dem Monster Job-Navigator finden. | Jobsuche online Monster.de | D50: 211
B51: http://jobsuche.monster.de/Durchsuchen/?pg=7&sf=17 | C51: Monster Jobkatalog - Finden Sie Schritt für Schritt Ihren Job, durch Eingrenzung der Suchkriterien. Jobs & Stellenanzeigen Schritt für Schritt mit dem Monster Job-Navigator finden. | Jobsuche online Monster.de | D51: 211
B52: http://jobsuche.monster.de/Durchsuchen/?pg=7&sf=19 | C52: Monster Jobkatalog - Finden Sie Schritt für Schritt Ihren Job, durch Eingrenzung der Suchkriterien. Jobs & Stellenanzeigen Schritt für Schritt mit dem Monster Job-Navigator finden. | Jobsuche online Monster.de | D52: 211
B53: http://jobsuche.monster.de/Durchsuchen/?pg=7&sf=20 | C53: Monster Jobkatalog - Finden Sie Schritt für Schritt Ihren Job, durch Eingrenzung der Suchkriterien. Jobs & Stellenanzeigen Schritt für Schritt mit dem Monster Job-Navigator finden. | Jobsuche online Monster.de | D53: 211
B54: http://jobsuche.monster.de/Durchsuchen/?pg=7&sf=23 | C54: Monster Jobkatalog - Finden Sie Schritt für Schritt Ihren Job, durch Eingrenzung der Suchkriterien. Jobs & Stellenanzeigen Schritt für Schritt mit dem Monster Job-Navigator finden. | Jobsuche online Monster.de | D54: 211
B55: http://jobsuche.monster.de/Durchsuchen/?pg=8 | C55: Monster Jobkatalog - Finden Sie Schritt für Schritt Ihren Job, durch Eingrenzung der Suchkriterien. Jobs & Stellenanzeigen Schritt für Schritt mit dem Monster Job-Navigator finden. | Jobsuche online Monster.de | D55: 211
B56: http://jobsuche.monster.de/Durchsuchen/?pg=8&sf=17 | C56: Monster Jobkatalog - Finden Sie Schritt für Schritt Ihren Job, durch Eingrenzung der Suchkriterien. Jobs & Stellenanzeigen Schritt für Schritt mit dem Monster Job-Navigator finden. | Jobsuche online Monster.de | D56: 211
B57: http://jobsuche.monster.de/Durchsuchen/?pg=8&sf=19 | C57: Monster Jobkatalog - Finden Sie Schritt für Schritt Ihren Job, durch Eingrenzung der Suchkriterien. Jobs & Stellenanzeigen Schritt für Schritt mit dem Monster Job-Navigator finden. | Jobsuche online Monster.de | D57: 211
B58: http://jobsuche.monster.de/Durchsuchen/?pg=8&sf=20 | C58: Monster Jobkatalog - Finden Sie Schritt für Schritt Ihren Job, durch Eingrenzung der Suchkriterien. Jobs & Stellenanzeigen Schritt für Schritt mit dem Monster Job-Navigator finden. | Jobsuche online Monster.de | D58: 211
B59: http://jobsuche.monster.de/Durchsuchen/?pg=8&sf=23 | C59: Monster Jobkatalog - Finden Sie Schritt für Schritt Ihren Job, durch Eingrenzung der Suchkriterien. Jobs & Stellenanzeigen Schritt für Schritt mit dem Monster Job-Navigator finden. | Jobsuche online Monster.de | D59: 211
B60: http://jobsuche.monster.de/Durchsuchen/?pg=9 | C60: Monster Jobkatalog - Finden Sie Schritt für Schritt Ihren Job, durch Eingrenzung der Suchkriterien. Jobs & Stellenanzeigen Schritt für Schritt mit dem Monster Job-Navigator finden. | Jobsuche online Monster.de | D60: 211
B61: http://jobsuche.monster.de/Durchsuchen/?pg=9&sf=17 | C61: Monster Jobkatalog - Finden Sie Schritt für Schritt Ihren Job, durch Eingrenzung der Suchkriterien. Jobs & Stellenanzeigen Schritt für Schritt mit dem Monster Job-Navigator finden. | Jobsuche online Monster.de | D61: 211
B62: http://jobsuche.monster.de/Durchsuchen/?pg=9&sf=19 | C62: Monster Jobkatalog - Finden Sie Schritt für Schritt Ihren Job, durch Eingrenzung der Suchkriterien. Jobs & Stellenanzeigen Schritt für Schritt mit dem Monster Job-Navigator finden. | Jobsuche online Monster.de | D62: 211
B63: http://jobsuche.monster.de/Durchsuchen/?pg=9&sf=20 | C63: Monster Jobkatalog - Finden Sie Schritt für Schritt Ihren Job, durch Eingrenzung der Suchkriterien. Jobs & Stellenanzeigen Schritt für Schritt mit dem Monster Job-Navigator finden. | Jobsuche online Monster.de | D63: 211
B64: http://jobsuche.monster.de/Durchsuchen/?pg=9&sf=23 | C64: Monster Jobkatalog - Finden Sie Schritt für Schritt Ihren Job, durch Eingrenzung der Suchkriterien. Jobs & Stellenanzeigen Schritt für Schritt mit dem Monster Job-Navigator finden. | Jobsuche online Monster.de | D64: 211
B65: http://jobsuche.monster.de/Durchsuchen/?sf=10 | C65: Monster Jobkatalog - Finden Sie Schritt für Schritt Ihren Job, durch Eingrenzung der Suchkriterien. Jobs & Stellenanzeigen Schritt für Schritt mit dem Monster Job-Navigator finden. | Jobsuche online Monster.de | D65: 211
B66: http://jobsuche.monster.de/Durchsuchen/?sf=13 | C66: Monster Jobkatalog - Finden Sie Schritt für Schritt Ihren Job, durch Eingrenzung der Suchkriterien. Jobs & Stellenanzeigen Schritt für Schritt mit dem Monster Job-Navigator finden. | Jobsuche online Monster.de | D66: 211
B67: http://jobsuche.monster.de/Durchsuchen/?sf=14 | C67: Monster Jobkatalog - Finden Sie Schritt für Schritt Ihren Job, durch Eingrenzung der Suchkriterien. Jobs & Stellenanzeigen Schritt für Schritt mit dem Monster Job-Navigator finden. | Jobsuche online Monster.de | D67: 211
B68: http://jobsuche.monster.de/Durchsuchen/?sf=17 | C68: Monster Jobkatalog - Finden Sie Schritt für Schritt Ihren Job, durch Eingrenzung der Suchkriterien. Jobs & Stellenanzeigen Schritt für Schritt mit dem Monster Job-Navigator finden. | Jobsuche online Monster.de | D68: 211
B69: http://jobsuche.monster.de/Durchsuchen/?sf=19 | C69: Monster Jobkatalog - Finden Sie Schritt für Schritt Ihren Job, durch Eingrenzung der Suchkriterien. Jobs & Stellenanzeigen Schritt für Schritt mit dem Monster Job-Navigator finden. | Jobsuche online Monster.de | D69: 211
B70: http://jobsuche.monster.de/Durchsuchen/?sf=19&pjt=1 | C70: Monster Jobkatalog - Finden Sie Schritt für Schritt Ihren Job, durch Eingrenzung der Suchkriterien. Jobs & Stellenanzeigen Schritt für Schritt mit dem Monster Job-Navigator finden. | Jobsuche online Monster.de | D70: 211
B71: http://jobsuche.monster.de/Durchsuchen/?sf=19&pjt=2 | C71: Monster Jobkatalog - Finden Sie Schritt für Schritt Ihren Job, durch Eingrenzung der Suchkriterien. Jobs & Stellenanzeigen Schritt für Schritt mit dem Monster Job-Navigator finden. | Jobsuche online Monster.de | D71: 211
B72: http://jobsuche.monster.de/Durchsuchen/?sf=20 | C72: Monster Jobkatalog - Finden Sie Schritt für Schritt Ihren Job, durch Eingrenzung der Suchkriterien. Jobs & Stellenanzeigen Schritt für Schritt mit dem Monster Job-Navigator finden. | Jobsuche online Monster.de | D72: 211
B73: http://jobsuche.monster.de/Durchsuchen/?sf=20&pcn=1 | C73: Monster Jobkatalog - Finden Sie Schritt für Schritt Ihren Job, durch Eingrenzung der Suchkriterien. Jobs & Stellenanzeigen Schritt für Schritt mit dem Monster Job-Navigator finden. | Jobsuche online Monster.de | D73: 211
B74: http://jobsuche.monster.de/Durchsuchen/?sf=20&pcn=2 | C74: Monster Jobkatalog - Finden Sie Schritt für Schritt Ihren Job, durch Eingrenzung der Suchkriterien. Jobs & Stellenanzeigen Schritt für Schritt mit dem Monster Job-Navigator finden. | Jobsuche online Monster.de | D74: 211
B75: http://jobsuche.monster.de/Durchsuchen/?sf=20&pcn=3 | C75: Monster Jobkatalog - Finden Sie Schritt für Schritt Ihren Job, durch Eingrenzung der Suchkriterien. Jobs & Stellenanzeigen Schritt für Schritt mit dem Monster Job-Navigator finden. | Jobsuche online Monster.de | D75: 211
B76: http://jobsuche.monster.de/Durchsuchen/?sf=20&pcn=4 | C76: Monster Jobkatalog - Finden Sie Schritt für Schritt Ihren Job, durch Eingrenzung der Suchkriterien. Jobs & Stellenanzeigen Schritt für Schritt mit dem Monster Job-Navigator finden. | Jobsuche online Monster.de | D76: 211
B77: http://jobsuche.monster.de/Durchsuchen/?sf=21 | C77: Monster Jobkatalog - Finden Sie Schritt für Schritt Ihren Job, durch Eingrenzung der Suchkriterien. Jobs & Stellenanzeigen Schritt für Schritt mit dem Monster Job-Navigator finden. | Jobsuche online Monster.de | D77: 211
B78: http://jobsuche.monster.de/Durchsuchen/?sf=22 | C78: Monster Jobkatalog - Finden Sie Schritt für Schritt Ihren Job, durch Eingrenzung der Suchkriterien. Jobs & Stellenanzeigen Schritt für Schritt mit dem Monster Job-Navigator finden. | Jobsuche online Monster.de | D78: 211
B79: http://jobsuche.monster.de/Durchsuchen/?sf=23 | C79: Monster Jobkatalog - Finden Sie Schritt für Schritt Ihren Job, durch Eingrenzung der Suchkriterien. Jobs & Stellenanzeigen Schritt für Schritt mit dem Monster Job-Navigator finden. | Jobsuche online Monster.de | D79: 211
B80: http://jobsuche.monster.de/design-und-gestaltung_4 | C80: Monster Jobkatalog - Finden Sie Schritt für Schritt Ihren Job, durch Eingrenzung der Suchkriterien. Jobs & Stellenanzeigen Schritt für Schritt mit dem Monster Job-Navigator finden. | Jobsuche online Monster.de | D80: 211
B81: http://jobsuche.monster.de/druckereien_3 | C81: Monster Jobkatalog - Finden Sie Schritt für Schritt Ihren Job, durch Eingrenzung der Suchkriterien. Jobs & Stellenanzeigen Schritt für Schritt mit dem Monster Job-Navigator finden. | Jobsuche online Monster.de | D81: 211
B82: http://jobsuche.monster.de/produktion/_4 | C82: Monster Jobkatalog - Finden Sie Schritt für Schritt Ihren Job, durch Eingrenzung der Suchkriterien. Jobs & Stellenanzeigen Schritt für Schritt mit dem Monster Job-Navigator finden. | Jobsuche online Monster.de | D82: 211
B83: http://jobsuche.monster.de/rundfunk-musik-film_3 | C83: Monster Jobkatalog - Finden Sie Schritt für Schritt Ihren Job, durch Eingrenzung der Suchkriterien. Jobs & Stellenanzeigen Schritt für Schritt mit dem Monster Job-Navigator finden. | Jobsuche online Monster.de | D83: 211
B84: http://stellenanzeige.monster.de/Abschlussarbeit-ab-Januar-2012-Absicherung-der-HIL-F%c3%a4higkeit-des-Gesamtfahrzeug-Lenkungspr%c3%bcfstandes-Job-Sindelfingen-Baden-W%c3%bcrttemberg-Deutschland-103624866.aspx | C84: Abschlussarbeit ab Januar 2012: Absicherung der HIL-Fähigkeit des Gesamtfahrzeug-Lenkungsprüfstandes Jobs in Sindelfingen, Baden-Württemberg Deutschland | D84: 155
B85: http://stellenanzeige.monster.de/Abschlussarbeit-ab-Januar-2012-Prognose-eines-Prototyp-Autos-nach-den-Pressekriterien-bzgl-des-Job-Sindelfingen-Baden-W%c3%bcrttemberg-Deutschland-103968605.aspx | C85: Abschlussarbeit ab Januar 2012: Prognose eines Prototyp-Autos nach den Pressekriterien bzgl. des ... Jobs in Sindelfingen, Baden-Württemberg Deutschland | D85: 153
B86: http://stellenanzeige.monster.de/Brandinspektor-in-im-vorbeugenden-Brandschutz-bei-der-Werkfeuerwehr-Mercedes-Benz-Werk-Untert%c3%bc-Job-Stuttgart-Baden-W%c3%bcrttemberg-Deutschland-103359652.aspx | C86: Brandinspektor/-in (im vorbeugenden Brandschutz) bei der Werkfeuerwehr Mercedes-Benz Werk Untertü... Jobs in Stuttgart, Baden-Württemberg Deutschland | D86: 151
B87: http://stellenanzeige.monster.de/Consultant-Personaldienstleistung-m-w-zur-Verst%c3%a4rkung-des-Teams-der-AMADEUS-FIRE-AG-am-Standort-Job-Mannheim-Baden-W%c3%bcrttemberg-Deutschland-95278230.aspx | C87: Consultant Personaldienstleistung (m/w) zur Verstärkung des Teams der AMADEUS FIRE AG am Standort... Jobs in Mannheim 68165, Baden-Württemberg Deutschland | D87: 156
B88: http://stellenanzeige.monster.de/Duales-BWL-Studium-in-der-Fachrichtung-Hotel-und-Tourismusmanagement-im-Parkhotel-Leininger-Hof-Job-Lindemannsruhe-Rheinland-Pfalz-Deutschland-104190875.aspx | C88: Duales BWL-Studium in der Fachrichtung Hotel- und Tourismusmanagement im Parkhotel Leininger Hof Jobs in Lindemannsruhe 67098, Rheinland-Pfalz Deutschland | D88: 154
B89: http://stellenanzeige.monster.de/Duales-BWL-Studium-in-der-Fachrichtung-Steuer-und-Pr%c3%bcfungswesen-bei-Becker-und-Ihle-Steuerberater-Job-Rauenberg-Baden-W%c3%bcrttemberg-Deutschland-104221769.aspx | C89: Duales BWL-Studium in der Fachrichtung Steuer- und Prüfungswesen bei Becker und Ihle Steuerberater Jobs in Rauenberg 69231, Baden-Württemberg Deutschland | D89: 155
B90: http://stellenanzeige.monster.de/Feuerwehrmann-frau-im-Bereich-VSS-Fire-Brigade-f%c3%bcr-den-mittleren-feuerwehrtechnischen-Dienst-m-w-Job-D%c3%bcsseldorf-Nordrhein-Westfalen-Deutschland-103888195.aspx | C90: Feuerwehrmann/-frau im Bereich VSS Fire Brigade für den mittleren feuerwehrtechnischen Dienst (m/w) Jobs in Düsseldorf 40721, Nordrhein-Westfalen Deutschland | D90: 159
B91: http://stellenanzeige.monster.de/Hochschulabsolvent-m-w-Wirtschaftspr%c3%bcfung-Financial-Services-Banken-und-Versicherungen-Job-Berlin-D%c3%bcsseldorf-Frankfurt-Hannover-Hamburg-Deutschland-100933644.aspx | C91: Hochschulabsolvent (m/w) Wirtschaftsprüfung - Financial Services (Banken und Versicherungen) Jobs in Berlin, Düsseldorf, Frankfurt, Hannover, Hamburg, | D91: 152
B92: http://stellenanzeige.monster.de/Steuerfachangestellte-Steuerfachwirt-Bilanzbuchhalter-in-Festanstellung-Raum-Hamburg-m-w-Job-Buchholz-in-der-Nordheide-und-Hamburg-Niedersachsen-Deutschland-103595973.aspx | C92: Steuerfachangestellte Steuerfachwirt Bilanzbuchhalter in Festanstellung Raum Hamburg (m/w) Jobs in Buchholz In Der Nordheide Und Hamburg 21244, Niedersachsen Deutschland | D92: 169
B93: http://stellenanzeige.monster.de/Techniker-m-w-Diplomingenieur-m-w-Bachelor-m-Job-Mecklenburg-Vorpommern-Mecklenburg-Vorpommern-Deutschland-102215888.aspx | C93: Techniker (m/w)/Diplomingenieur (m/w)/ Bachelor (m/w)/Master (m/w) Elektrotechnik Jobs in Mecklenburg-Vorpommern 18119, Mecklenburg-Vorpommern Deutschland | D93: 154
B94: http://stellenanzeige.monster.de/Wissenschaftliche-Mitarbeiterinnen-und-Mitarbeiter-der-Fachrichtung-Maschinenbau-Orthop%c3%a4dietechnik-Job-Stuttgart-Baden-W%c3%bcrttemberg-Deutschland-103593800.aspx | C94: Wissenschaftliche Mitarbeiterinnen und Mitarbeiter der Fachrichtung Maschinenbau/Orthopädietechnik Jobs in Stuttgart 70569, Baden-Württemberg Deutschland | D94: 155
B95: http://stellenanzeige.monster.de/Wissenschaftlicher-Mitarbeiter-m-w-mit-Studium-in-Elektrotechnik-Maschinenbau-Informatik-Job-Neubiberg-bei-M%c3%bcnchen-Bayern-Deutschland-103689208.aspx | C95: Wissenschaftlicher Mitarbeiter (m/w) mit Studium in Elektrotechnik / Maschinenbau / Informatik Jobs in Neubiberg Bei München 85579, Bayern Deutschland | D95: 151
B96: http://stellenanzeige.monster.de/akademische-r-Mitarbeiter-in-Fachrichtung-Ingenieurswissenschaften-oder-Wirtschaftsingenieurwesen-Job-Stuttgart-Baden-W%c3%bcrttemberg-Deutschland-103966421.aspx | C96: akademische/-r Mitarbeiter/-in Fachrichtung Ingenieurswissenschaften oder Wirtschaftsingenieurwesen Jobs in Stuttgart 70569, Baden-Württemberg Deutschland | D96: 155

Sheet 404s
B3: 404s
B5: Page Error found - Page Not Found - 404 Response Code
B6: Total Count: 52
B8: Issue Severity: Critical
B9: URL | C9: Response Code
B10: http://jobs.monster.de/l-13-verschiedene-dienstsitze,-hessen.aspx | C10: 404
B11: http://jobs.monster.de/l-achim-bei-bremen,-niedersachsen.aspx | C11: 404
B12: http://jobs.monster.de/l-albstradt,-baden-w%c3%bcrttemberg.aspx | C12: 404
B13: http://jobs.monster.de/l-asbach-b%c3%a4umenheim%2fhamlar,-bayern.aspx | C13: 404
B14: http://jobs.monster.de/l-augsburg-(kreis),-bayern.aspx | C14: 404
B15: http://jobs.monster.de/l-barcelona,-cat.aspx | C15: 404
B16: http://jobs.monster.de/l-basel-(ch),-bs.aspx | C16: 404
B17: http://jobs.monster.de/l-bottighofen,-tg.aspx | C17: 404
B18: http://jobs.monster.de/l-bundesweit,-hessen.aspx | C18: 404
B19: http://jobs.monster.de/l-burgkirchen-bei-alt%c3%b6tting,-bayern.aspx | C19: 404
B20: http://jobs.monster.de/l-deutschland,-baden-w%c3%bcrttemberg.aspx | C20: 404
B21: http://jobs.monster.de/l-deutschlandweit-verschiedene-regionen,-baden-w%c3%bcrttemberg.aspx | C21: 404
B22: http://jobs.monster.de/l-esslingen-%2f-region-stuttgart,-baden-w%c3%bcrttemberg.aspx | C22: 404
B23: http://jobs.monster.de/l-frankfurt%2c-hannover%2c-stuttgart,-berlin.aspx | C23: 404
B24: http://jobs.monster.de/l-frankfurt%2fmain,-hessen.aspx | C24: 404
B25: http://jobs.monster.de/l-frankfurt-flughafen,-hessen.aspx | C25: 404
B26: http://jobs.monster.de/l-gaggenau-bad-rotenfels,-baden-w%c3%bcrttemberg.aspx | C26: 404
B27: http://jobs.monster.de/l-gro%c3%9fraum-esslingen,-baden-w%c3%bcrttemberg.aspx | C27: 404
B28: http://jobs.monster.de/l-gro%c3%9fraum-frankfurt-am-main,-hessen.aspx | C28: 404
B29: http://jobs.monster.de/l-gro%c3%9fraum-karlsruhe,-baden-w%c3%bcrttemberg.aspx | C29: 404
B30: http://jobs.monster.de/l-gro%c3%9fraum-reutlingen,-baden-w%c3%bcrttemberg.aspx | C30: 404
B31: http://jobs.monster.de/l-gro%c3%9fraum-stuttgart,-baden-w%c3%bcrttemberg.aspx | C31: 404
B32: http://jobs.monster.de/l-gro%c3%9fraum-tuttlingen,-baden-w%c3%bcrttemberg.aspx | C32: 404
B33: http://jobs.monster.de/l-gro%c3%9fraum-ulm,-baden-w%c3%bcrttemberg.aspx | C33: 404
B34: http://jobs.monster.de/l-gro%c3%9fraum-villingen-schwenningen,-baden-w%c3%bcrttemberg.aspx | C34: 404
B35: http://jobs.monster.de/l-gro%c3%9fraum-w%c3%bcrzburg,-bayern.aspx | C35: 404
B36: http://jobs.monster.de/l-hamburg-rotenburgsort,-hamburg.aspx | C36: 404
B37: http://jobs.monster.de/l-ingelfingen-oder-karlsruhe,-baden-w%c3%bcrttemberg.aspx | C37: 404
B38: http://jobs.monster.de/l-lauenburg-nahe-hamburg,-schleswig-holstein.aspx | C38: 404
B39: http://jobs.monster.de/l-m%c3%bcnchen-schwabing,-bayern.aspx | C39: 404
B40: http://jobs.monster.de/l-meerbusch-b%c3%bcderich,-nordrhein-westfalen.aspx | C40: 404
B41: http://jobs.monster.de/l-n%c3%a4he-freiburg,-baden-w%c3%bcrttemberg.aspx | C41: 404
B42: http://jobs.monster.de/l-nahe-berlin,-berlin.aspx | C42: 404
B43: http://jobs.monster.de/l-nordrhein-westfalen,-nordrhein-westfalen.aspx | C43: 404
B44: http://jobs.monster.de/l-oberfranken-(bayreuth%2c-kulmbach%2c-hof),-bayern.aspx | C44: 404
B45: http://jobs.monster.de/l-ostwestfalen,-nordrhein-westfalen.aspx | C45: 404
B46: http://jobs.monster.de/l-pullach-bei-m%c3%bcnchen,-bayern.aspx | C46: 404
B47: http://jobs.monster.de/l-putzbrunn-near-munich,-bayern.aspx | C47: 404
B48: http://jobs.monster.de/l-raum-heidelberg,-baden-w%c3%bcrttemberg.aspx | C48: 404
B49: http://jobs.monster.de/l-raum-k%c3%b6ln,-nordrhein-westfalen.aspx | C49: 404
B50: http://jobs.monster.de/l-raum-mainz%2fwiesbaden,-rheinland-pfalz.aspx | C50: 404
B51: http://jobs.monster.de/l-regierungsbezirk-m%c3%bcnster,-nordrhein-westfalen.aspx | C51: 404
B52: http://jobs.monster.de/l-region-fulda,-hessen.aspx | C52: 404
B53: http://jobs.monster.de/l-ruhrgebiet%2c-k%c3%b6ln,-nordrhein-westfalen.aspx | C53: 404
B54: http://jobs.monster.de/l-sindelfingen-%2f-stuttgart,-baden-w%c3%bcrttemberg.aspx | C54: 404
B55: http://jobs.monster.de/l-zhangjiagang%2c-vr-china,-nordrhein-westfalen.aspx | C55: 404
B56: http://stellenanzeige.monster.de/Senior-Accountant-Job-Basel-CH-Schweiz-102879568.aspx | C56: 404
B57: http://unternehmen.monster.de/monsterde | C57: 404
B58: http://unternehmen.monster.de/monsterde/ | C58: 404
B59: http://forum.monster.de/mstDEindex?HPS=10_5C4_ExpertenforumBewerbungstipps | C59: 404
B60: http://forum.monster.de/mstDEindex?HPS=7_9C1Forenstart | C60: 404
B61: http://forum.monster.de/mstDEindex?HPS=Navbar_CareerTools | C61: 404

Sheet Multiple Meta Description
B3: Multiple Meta Description
B5: Pages found with multiple meta description tags
B6: Total Count: 48
B8: Issue Severity: Critical
B9: URL | C9: Count
B10: http://karriere-journal.monster.de/beruf-recht/berufsstart-praktikum/bezahlte-abschlussarbeit/article.aspx | C10: 2
B11: http://karriere-journal.monster.de/beruf-recht/chef-kollegen/schlimmer-chef-so-gehen-sie-damit-um/article.aspx | C11: 2
B12: http://karriere-journal.monster.de/beruf-recht/chef-kollegen/sieben-todsuenden-im-management-81939/article.aspx | C12: 2
B13: http://karriere-journal.monster.de/beruf-recht/chef-kollegen/wenn-kollegen-nerven-typenlehre-hilft/article.aspx | C13: 2
B14: http://karriere-journal.monster.de/beruf-recht/gesund-fit/karriereknick-oder-burnout-es-gibt-einen-mittelweg/article.aspx | C14: 2
B15: http://karriere-journal.monster.de/beruf-recht/kundigung-stellenwechsel/job-wechseln-oder-im-job-bleiben/article.aspx | C15: 2
B16: http://karriere-journal.monster.de/beruf-recht/praxis-tipps/koerpersprache-gestik/article.aspx | C16: 2
B17: http://karriere-journal.monster.de/beruf-recht/praxis-tipps/koerpersprache-mimik/article.aspx | C17: 2
B18: http://karriere-journal.monster.de/bewerbungs-tipps/branchen-trends/jobs-leben-wohnen-leipzig/article.aspx | C18: 2
B19: http://karriere-journal.monster.de/bewerbungs-tipps/vorbereitung-recherche/bewerbungsfoto-tipps-bewerbungsbild/article.aspx | C19: 2
B20: http://karriere-journal.monster.de/bewerbungs-tipps/vorbereitung-recherche/inititativbewerbung-am-telefon/article.aspx | C20: 2
B21: http://karriere-journal.monster.de/geld-gehalt/branchen-trends/architekt-gehalt-arbeitsmarkt/article.aspx | C21: 2
B22: http://karriere-journal.monster.de/geld-gehalt/branchen-trends/arzt-gehalt-arbeitsmarkt/article.aspx | C22: 2
B23: http://karriere-journal.monster.de/geld-gehalt/branchen-trends/bank-finanzwesen-gehalt-stellenmarkt-jobs/article.aspx | C23: 2
B24: http://karriere-journal.monster.de/geld-gehalt/branchen-trends/softwareingenieur-gehalt-arbeitsmarkt-80918/article.aspx | C24: 2
B25: http://karriere-journal.monster.de/geld-gehalt/gehaltsverhandlung/mehr-gehalt-geht-immer/article.aspx | C25: 2
B26: http://karriere-journal.monster.de/geld-gehalt/steuer-sparen/investmentfonds-als-altersvorsorge/article.aspx | C26: 2
B27: http://karriere-journal.monster.de/karriere-planung/aufstieg-management/mitarbeitermotivation-wettbewerb-um-talente/article.aspx | C27: 2
B28: http://karriere-journal.monster.de/karriere-planung/berufe-im-uberblick/architekt-jobs-gehalt-ausbildung/article.aspx | C28: 2
B29: http://karriere-journal.monster.de/karriere-planung/berufe-im-uberblick/moderator-42386/article.aspx | C29: 2
B30: http://karriere-journal.monster.de/karriere-planung/berufe-im-uberblick/softwareentwickler-bewerbung-lebenslauf-anschreiben-job-80915/article.aspx | C30: 2
B31: http://karriere-journal.monster.de/karriere-planung/berufe-im-uberblick/versicherungskaufmann-jobs-gehalt-ausbildung/article.aspx | C31: 2
B32: http://karriere-journal.monster.de/karriere-planung/weiterbildung/karrierecoach-so-findet-man-einen-guten/article.aspx | C32: 2
B33: http://karriere-journal.monster.de/karriere-planung/weiterbildung/projektmanagement-ausbildung-weiterbildung/article.aspx | C33: 2
B34: http://karriere-journal.monster.de/karriere-planung/weiterbildung/projektmanagement-weiterbildung-kosten-zertifikate/article.aspx | C34: 2
B35: http://karriere-journal.monster.de/lebenslauf-anschreiben/anschreiben-muster/anschreiben-bewerbung-architekt/article.aspx | C35: 2
B36: http://karriere-journal.monster.de/lebenslauf-anschreiben/anschreiben-muster/anschreiben-bewerbung-softwareingenieur/article.aspx | C36: 2
B37: http://karriere-journal.monster.de/lebenslauf-anschreiben/lebenslauf-muster/musterlebenslauf-zum-download-30985/article.aspx | C37: 2
B38: http://karriere-journal.monster.de/lebenslauf-anschreiben/lebenslauf-muster/musterlebenslauf-zum-download-30985/article.aspx?HPS=Navbar_CareerAdvice | C38: 2
B39: http://karriere-journal.monster.de/lebenslauf-anschreiben/lebenslauf-muster/musterlebenslauf-zum-download-30985/article.aspx?HPS=Navbar_Lebenslauf | C39: 2
B40: http://karriere-journal.monster.de/lebenslauf-anschreiben/lebenslauf-muster/tabellarischer-lebenslauf-bewerbung-architekt/article.aspx | C40: 2
B41: http://karriere-journal.monster.de/lebenslauf-anschreiben/lebenslauf-muster/tabellarischer-lebenslauf-bewerbung-controller/article.aspx | C41: 2
B42: http://karriere-journal.monster.de/lebenslauf-anschreiben/lebenslauf-muster/tabellarischer-lebenslauf-bewerbung-softwareingenieur-80917/article.aspx | C42: 2
B43: http://karriere-journal.monster.de/lebenslauf-anschreiben/lebenslauf-muster/tabellarischer-lebenslauf-bewerbung-versicherungskaufmann/article.aspx | C43: 2
B44: http://stellenanzeige.monster.de/Abteilungsleiter-Intralogistik-m-w-Job-Herongen-Roisdorf-Deutschland-104010484.aspx | C44: 2
B45: http://stellenanzeige.monster.de/HR-MANAGER-M-W-Job-Ostwestfalen-Nordrhein-Westfalen-Deutschland-99920360.aspx | C45: 2
B46: http://stellenanzeige.monster.de/Head-of-Mechanical-Maintenance-m-w-Job-Niedersachsen-Deutschland-102319976.aspx | C46: 2
B47: http://stellenanzeige.monster.de/Hochschulabsolvent-m-w-im-Direktvertrieb-Job-Ludwigshafen-Mannheim-Deutschland-103968606.aspx | C47: 2
B48: http://stellenanzeige.monster.de/LEITER-PROJEKTMANAGEMENT-M-W-Job-Ruhrgebiet-Deutschland-103974998.aspx | C48: 2
B49: http://stellenanzeige.monster.de/MARKETINGLEITUNG-m-w-Job-Berlin-Deutschland-104125555.aspx | C49: 2
B50: http://stellenanzeige.monster.de/PROJEKTLEITUNG-PROZESS-UND-QUALIT%c3%84TSMANAGEMENT-m-w-Job-Berlin-Deutschland-104125556.aspx | C50: 2
B51: http://stellenanzeige.monster.de/Praktikant-in-Online-Marketing-f%c3%bcr-mindestens-6-Monate-Job-Hamburg-Deutschland-100657810.aspx | C51: 2
B52: http://stellenanzeige.monster.de/Produktentwickler-m-w-Solar-Job-Lanzenkirchen-Austria-Schweiz-103022108.aspx | C52: 2
B53: http://stellenanzeige.monster.de/Projektleiter-Werkzeugtechnik-m-w-Job-Schaan-Liechtenstein-Schweiz-103153140.aspx | C53: 2
B54: http://stellenanzeige.monster.de/Softwareentwickler-m-w-Job-M%c3%bcnster-Nordrhein-Westfalen-Deutschland-103721028.aspx | C54: 2
B55: http://stellenanzeige.monster.de/Steuerfachangestellter-m-w-Bilanzbuchhalter-m-Job-Leipzig-Sachsen-Deutschland-103345592.aspx | C55: 2
B56: http://stellenanzeige.monster.de/Technischen-Berater-ISUS-m-w-Job-Hasselt-Belgien-Deutschland-100673531.aspx | C56: 2
B57: http://stellenanzeige.monster.de/Verkaufsberater-m-w-im-Au%c3%9fendienst-Job-Ruhrgebiet-Deutschland-103647056.aspx | C57: 2

Sheet Large ViewState Code
B3: Large ViewState Code
B5: Pages found with more than 1000 characters of viewstate code
B6: Total Count: 33
B8: Issue Severity: Critical
B9: URL | C9: Character Count
B10: http://forum.monster.de/n/pfx/forum.aspx?tsn=1&nav=messages&webtag=exp99482&tid=1 | C10: 1952
B11: http://forum.monster.de/n/pfx/forum.aspx?tsn=1&nav=messages&webtag=mstforum30&tid=118 | C11: 1952
B12: http://forum.monster.de/n/pfx/forum.aspx?tsn=1&nav=messages&webtag=mstforum40&tid=327 | C12: 1952
B13: http://forum.monster.de/n/pfx/forum.aspx?tsn=1&nav=messages&webtag=mstforum40&tid=338 | C13: 1952
B14: http://forum.monster.de/n/pfx/forum.aspx?tsn=1&nav=messages&webtag=mstforum50&tid=107 | C14: 1952
B15: http://forum.monster.de/n/pfx/forum.aspx?tsn=1&nav=messages&webtag=mstforum50&tid=118 | C15: 1952
B16: http://forum.monster.de/n/pfx/forum.aspx?tsn=1&nav=messages&webtag=mstforum50&tid=83 | C16: 1952
B17: http://forum.monster.de/n/pfx/forum.aspx?tsn=1&nav=messages&webtag=mstforum50&tid=94 | C17: 1952
B18: http://forum.monster.de/n/pfx/forum.aspx?tsn=4&nav=messages&webtag=mstforum40&tid=344 | C18: 1952
B19: http://forum.monster.de/n/pfx/forum.aspx?tsn=5&nav=messages&webtag=mstforum50&tid=86 | C19: 1952
B20: http://jobsuche.monster.de/StandardAdvancedSearch.aspx | C20: 9500
